Workbook

Sheet Intro (hidden)
A1: Introduction
A6: Tool Applicability (System Requirements/Types)

Sheet Getting Started (hidden)
A1: Instructions

Sheet Customer Information (hidden)
K2: HVAC Calculator Tool
K4: V.2.2.03
B6: Customer Information
C7: Name | G7: Phone
C8: Contact | G8: Email
B10: Building Information
C11: Address | G11: Type | H11: Retail Merchandise/Wholesale
C12: City | G12: SQFT
C13: Zip | E13: Zone | F13: 12 | G13: Year Built | H13: 2011
B15: Consumption
C16: Peak kW | D16: kWh | E16: Therms | F16: Electric Cost | G16: Therm Cost
B17: Jan | C17: 292.5 | D17: 204000 | E17: 2900 | F17: =D17*0.2 -> 40800 | G17: 2900 | H17: Include Total Cost for customers that receive bundled service. If the customer is direct access and the commodity cost is available, it should be included. Otherwise the Total Cost can be omitted.
B18: Feb | C18: 292.5 | D18: 199500 | E18: 3000 | F18: =D18*0.2 -> 39900 | G18: 3000
B19: Mar | C19: 300 | D19: 207000 | E19: 2400 | F19: 41400 | G19: 2400
B20: Apr | C20: 300 | D20: 199500 | E20: 1700 | F20: 39900 | G20: 1700
B21: May | C21: 315 | D21: 195750 | E21: 2100 | F21: 39150 | G21: 2100
B22: Jun | C22: 300 | D22: 212250 | E22: 1200 | F22: 42450 | G22: 1200
B23: Jul | C23: 315 | D23: 202500 | E23: 1400 | F23: 40500 | G23: 1400
B24: Aug | C24: 307.5 | D24: 205500 | E24: 1800 | F24: 41100 | G24: 1800
B25: Sep | C25: 307.5 | D25: 219000 | E25: 2000 | F25: 43800 | G25: 2000
B26: Oct | C26: 300 | D26: 190500 | E26: 2600 | F26: 38100 | G26: 2600
B27: Nov | C27: 292.5 | D27: 188250 | E27: 1700 | F27: 37650 | G27: 1700
B28: Dec | C28: 285 | D28: 201750 | E28: 3300 | F28: 40350 | G28: 3300 | H28: $/kWh | J28: $/Therm
B29: Annual | C29: =MAX($C$17:$C$28) -> 315 | D29: =SUM($D$17:$D$28) -> 2425500 | E29: =SUM($E$17:$E$28) -> 26100 | F29: =SUM($F$17:$F$28) -> 485100 | G29: =SUM($G$17:$G$28) -> 26100 | H29: =$F$29/$D$29 -> 0.2 | J29: =$G$29/$E$29 -> 1
B31: Current Program Incentive Rates ($/unit)
C32: Basic Non Lighting | D32: 0.08 | E32: /kWh | H32: Peak Demand | I32: 150 | J32: /kW
C33: Target Non Lighting | D33: 0.15 | E33: /kWh | H33: Above Code/ISP Natural Gas | I33: 1.25 | J33: /therm
C34: To Code/ISP Electric | D34: 0.06 | E34: /kWh | H34: To Code/ISP Natural Gas | I34: 0.5 | J34: /therm
B36: Additional Information Section

Sheet air system test
A1: HIDE | E1: Air Side System Calculations
A2: =E2 -> Equipment Specifications & Replacements | E2: Equipment Specifications & Replacements | K2: Cost | M2: Disable | N2: track input from calculator vs input from E+ | O2: Savings | R2: Fan kW | S2: Fan kWh | T2: Load kW | U2: Load kWh | V2: Therms | W2: Total kW | X2: Total kWh | Y2: Cost | Z2: Incentives | AB2: Savings as % of Site Usage | AC2: Fan kW | AD2: Fan kWh | AE2: Load kW | AF2: Load kWh | AG2: Therms | AH2: Total kW | AI2: Total kWh
E3: FileName | F3: Baseline | K3: Proposed | N3: No measure description found in the documentation. We can upgrade the boiler efficiency or fan efficiency for this measure | Q3: Equipment Replacements & Lockout | R3: =IF(ISBLANK(R14),0,R13-R14) -> 0 | S3: 0 | T3: 0 | U3: 0 | V3: 0 | W3: 0 | X3: 0 | Y3: =L2 -> 0 | Z3: 0 | AB3: =Q3 -> Equipment Replacements & Lockout | AC3: =R3/'Customer Information'!$C$29 -> 0 | AD3: =S3/'Customer Information'!$D$29 -> 0 | AE3: =T3/'Customer Information'!$C$29 -> 0 | AF3: =U3/'Customer Information'!$D$29 -> 0 | AG3: =V3/'Customer Information'!$E$29 -> 0 | AH3: =W3/'Customer Information'!$C$29 -> 0 | AI3: =X3/'Customer Information'!$D$29 -> 0 | AK3: the % savings in the calculator are calculated using site total, which doesn't match the baseline total, need to evaluate whether it is appropriate
A4: Baseline | B4: =COUNTA(F3:G20)>=19 -> TRUE | F4: AHU-1 | H4: Equipment Name | K4: AHU-1 | M4: =IF(OR(F4<>K4,G4<>L4),"*","") ->  | Q4: Scheduling Optimization | R4: 0 | S4: 0 | T4: 0 | U4: 0 | V4: 0 | W4: 0 | X4: 0 | Y4: =L22 -> 0 | Z4: 0 | AB4: Scheduling Optimization | AC4: =R4/'Customer Information'!$C$29 -> 0 | AD4: =S4/'Customer Information'!$D$29 -> 0 | AE4: =T4/'Customer Information'!$C$29 -> 0 | AF4: =U4/'Customer Information'!$D$29 -> 0 | AG4: =V4/'Customer Information'!$E$29 -> 0 | AH4: =W4/'Customer Information'!$C$29 -> 0 | AI4: =X4/'Customer Information'!$D$29 -> 0
A5: Proposed | B5: =IF(M2="Enable",COUNTA(K3:L20)>=19,"Not Enabled") -> Not Enabled | F5: 2009 | H5: Equipment Vintage | K5: 2009 | N5: not used, only documenting | Q5: Economizer Optimization | R5: 0 | S5: 0 | T5: 0 | U5: 0 | V5: 0 | W5: 0 | X5: 0 | Y5: =L29 -> 0 | Z5: 0 | AB5: Economizer Optimization | AC5: =R5/'Customer Information'!$C$29 -> 0 | AD5: =S5/'Customer Information'!$D$29 -> 0 | AE5: =T5/'Customer Information'!$C$29 -> 0 | AF5: =U5/'Customer Information'!$D$29 -> 0 | AG5: =V5/'Customer Information'!$E$29 -> 0 | AH5: =W5/'Customer Information'!$C$29 -> 0 | AI5: =X5/'Customer Information'!$D$29 -> 0
F6: Efficiency | K6: Efficiency | Q6: Static Pressure Reset | R6: 0 | S6: 0 | T6: 0 | U6: 0 | V6: 0 | W6: 0 | X6: 0 | Y6: =L42 -> 0 | Z6: 0 | AB6: Static Pressure Reset | AC6: =R6/'Customer Information'!$C$29 -> 0 | AD6: =S6/'Customer Information'!$D$29 -> 0 | AE6: =T6/'Customer Information'!$C$29 -> 0 | AF6: =U6/'Customer Information'!$D$29 -> 0 | AG6: =V6/'Customer Information'!$E$29 -> 0 | AH6: =W6/'Customer Information'!$C$29 -> 0 | AI6: =X6/'Customer Information'!$D$29 -> 0
F7: =INDEX('Input Table'!F5:F11,'Input Table'!A3,1) -> 0.8926392964 | H7: Seasonal average kW/Ton | K7: =F7 -> 0.8926392964 | N7: Chiller IPLV: extract from E+ output tables | Q7: Supply Air Temperature Reset | R7: 0 | S7: 0 | T7: 0 | U7: 0 | V7: 0 | W7: 0 | X7: 0 | Y7: =L47 -> 0 | Z7: 0 | AB7: Supply Air Temperature Reset | AC7: =R7/'Customer Information'!$C$29 -> 0 | AD7: =S7/'Customer Information'!$D$29 -> 0 | AE7: =T7/'Customer Information'!$C$29 -> 0 | AF7: =U7/'Customer Information'!$D$29 -> 0 | AG7: =V7/'Customer Information'!$E$29 -> 0 | AH7: =W7/'Customer Information'!$C$29 -> 0 | AI7: =X7/'Customer Information'!$D$29 -> 0
F8: Gas | H8: Source of Heating | K8: Gas | N8: Gas for boiler | Q8: Temperature And Fan Setback | R8: 0 | S8: 0 | T8: 0 | U8: -21417.47991 | V8: -2962.151409 | W8: 0 | X8: -21417.47991 | Y8: =L65 -> 0 | Z8: 0 | AB8: Temperature And Fan Setback | AC8: =R8/'Customer Information'!$C$29 -> 0 | AD8: =S8/'Customer Information'!$D$29 -> 0 | AE8: =T8/'Customer Information'!$C$29 -> 0 | AF8: =U8/'Customer Information'!$D$29 -> -0.008830129831 | AG8: =V8/'Customer Information'!$E$29 -> -0.1134923911 | AH8: =W8/'Customer Information'!$C$29 -> 0 | AI8: =X8/'Customer Information'!$D$29 -> -0.008830129831
F9: 0.8 | H9: Gas Efficiency | K9: 0.87 | N9: Calculator input | Q9: Total | R9: =SUM(R3:R8) -> 0 | S9: 0 | T9: 0 | U9: -21417.47991 | V9: -2962.151409 | W9: 0 | X9: -21417.47991 | Y9: 0 | Z9: 0 | AB9: =Q9 -> Total | AC9: =R9/'Customer Information'!$C$29 -> 0 | AD9: =S9/'Customer Information'!$D$29 -> 0 | AE9: =T9/'Customer Information'!$C$29 -> 0 | AF9: =U9/'Customer Information'!$D$29 -> -0.008830129831 | AG9: =V9/'Customer Information'!$E$29 -> -0.1134923911 | AH9: =W9/'Customer Information'!$C$29 -> 0 | AI9: =X9/'Customer Information'!$D$29 -> -0.008830129831
F10: 3.412 | H10: Electric Heating (HSPF) | K10: 3.412 | N10: NA | S10: =S9/(S13+U13) -> 0 | U10: =U9/(U13+S13) -> -0.02999528253 | V10: =V9/V13 -> -0.2440750784
F11: Heating | G11: Cooling | K11: Heating | L11: Cooling | N11: federal refers to ASHRAE, Title 24 can't go beyond federal, look at manu specs, Ajax, weil mclain, etc. High-eff Non-condensing: 87% TE High-eff Condensing: 95% AFUE | R11: Fan peak load and consumption are higher | T11: Peak cooling load and consumption are lower | V11: Therms is slightly higher
F12: =INDEX('Input Table'!G5:G11,'Input Table'!A3,1) -> 103 | G12: =INDEX('Input Table'!H5:H11,'Input Table'!A3,1) -> 30 | H12: Lockout Temp | K12: =F12 -> 103 | L12: =G12 -> 30 | M12: =IF(OR(F12<>K12,G12<>L12),"*","") ->  | N12: outdoor air temperature? Do we have this variable in E+? Use extreme high and low numbers here | O12: Consumption | R12: Fan kW | S12: Fan kWh | T12: Load kW | U12: Load kWh | V12: Therms | W12: Total kW | X12: Total kWh | AB12: Equipment Consumption as % of Site Usage | AC12: Fan kW | AD12: Fan kWh | AE12: Load kW | AF12: Load kWh | AG12: Therms | AH12: Total kW | AI12: Total kWh
F13: =INDEX('Input Table'!I5:I11,'Input Table'!A3,1) -> 142.2438839 | H13: Supply Fan (HP) | K13: =F13 -> 142.2438839 | N13: extract from E+ output tables | Q13: Baseline | R13: 122.5943171 | S13: 315773.9066 | T13: 184.5948658 | U13: 398254.3705 | V13: 12136.23049 | W13: =SUM(R13,T13) -> 307.1891828 | X13: 714028.2771 | AB13: =Q13 -> Baseline | AC13: =R13/'Customer Information'!$C$29 -> 0.3891883081 | AD13: =S13/'Customer Information'!$D$29 -> 0.1301892008 | AE13: =T13/'Customer Information'!$C$29 -> 0.5860154469 | AF13: =U13/'Customer Information'!$D$29 -> 0.1641947518 | AG13: =V13/'Customer Information'!$E$29 -> 0.4649896739 | AH13: =W13/'Customer Information'!$C$29 -> 0.9752037551 | AI13: =X13/'Customer Information'!$D$29 -> 0.2943839526
F14: =INDEX('Input Table'!J5:J11,'Input Table'!A3,1) -> 100350.1568 | H14: Supply Fan (CFM) | K14: =F14 -> 100350.1568 | N14: extract from E+ output tables | Q14: Equipment Specifications & Replacements | R14: 122.5943171 | S14: 315773.9066 | T14: 184.5948658 | U14: 398254.3705 | V14: 12136.23049 | W14: 307.1891828 | X14: 714028.2771 | AB14: Equipment Specifications & Replacements | AC14: =R14/'Customer Information'!$C$29 -> 0.3891883081 | AD14: =S14/'Customer Information'!$D$29 -> 0.1301892008 | AE14: =T14/'Customer Information'!$C$29 -> 0.5860154469 | AF14: =U14/'Customer Information'!$D$29 -> 0.1641947518 | AG14: =V14/'Customer Information'!$E$29 -> 0.4649896739 | AH14: =W14/'Customer Information'!$C$29 -> 0.9752037551 | AI14: =X14/'Customer Information'!$D$29 -> 0.2943839526
F15: VFD | H15: Supply Fan Control | K15: VFD | Q15: Scheduling Optimization | R15: 122.5943171 | S15: 315773.9066 | T15: 184.5948658 | U15: 398254.3705 | V15: 12136.23049 | W15: 307.1891828 | X15: 714028.2771 | AB15: Scheduling Optimization | AC15: =R15/'Customer Information'!$C$29 -> 0.3891883081 | AD15: =S15/'Customer Information'!$D$29 -> 0.1301892008 | AE15: =T15/'Customer Information'!$C$29 -> 0.5860154469 | AF15: =U15/'Customer Information'!$D$29 -> 0.1641947518 | AG15: =V15/'Customer Information'!$E$29 -> 0.4649896739 | AH15: =W15/'Customer Information'!$C$29 -> 0.9752037551 | AI15: =X15/'Customer Information'!$D$29 -> 0.2943839526
F16: =INDEX('Input Table'!K5:K11,'Input Table'!A3,1) -> 59.68865737 | H16: Return Fan (HP) | K16: =F16 -> 59.68865737 | N16: extract from E+ output tables | Q16: Economizer Optimization | R16: 122.5943171 | S16: 315773.9066 | T16: 184.5948658 | U16: 398254.3705 | V16: 12136.23049 | W16: 307.1891828 | X16: 714028.2771 | AB16: Economizer Optimization | AC16: =R16/'Customer Information'!$C$29 -> 0.3891883081 | AD16: =S16/'Customer Information'!$D$29 -> 0.1301892008 | AE16: =T16/'Customer Information'!$C$29 -> 0.5860154469 | AF16: =U16/'Customer Information'!$D$29 -> 0.1641947518 | AG16: =V16/'Customer Information'!$E$29 -> 0.4649896739 | AH16: =W16/'Customer Information'!$C$29 -> 0.9752037551 | AI16: =X16/'Customer Information'!$D$29 -> 0.2943839526
F17: =INDEX('Input Table'!L5:L11,'Input Table'!A3,1) -> 100350.1568 | H17: Return Fan (CFM) | K17: =F17 -> 100350.1568 | N17: extract from E+ output tables | Q17: Static Pressure Reset | R17: 122.5943171 | S17: 315773.9066 | T17: 184.5948658 | U17: 398254.3705 | V17: 12136.23049 | W17: 307.1891828 | X17: 714028.2771 | AB17: Static Pressure Reset | AC17: =R17/'Customer Information'!$C$29 -> 0.3891883081 | AD17: =S17/'Customer Information'!$D$29 -> 0.1301892008 | AE17: =T17/'Customer Information'!$C$29 -> 0.5860154469 | AF17: =U17/'Customer Information'!$D$29 -> 0.1641947518 | AG17: =V17/'Customer Information'!$E$29 -> 0.4649896739 | AH17: =W17/'Customer Information'!$C$29 -> 0.9752037551 | AI17: =X17/'Customer Information'!$D$29 -> 0.2943839526
F18: VFD | H18: Return Fan Control | K18: VFD | Q18: Supply Air Temperature Reset | R18: 122.5943171 | S18: 315773.9066 | T18: 184.5948658 | U18: 398254.3705 | V18: 12136.23049 | W18: 307.1891828 | X18: 714028.2771 | AB18: Supply Air Temperature Reset | AC18: =R18/'Customer Information'!$C$29 -> 0.3891883081 | AD18: =S18/'Customer Information'!$D$29 -> 0.1301892008 | AE18: =T18/'Customer Information'!$C$29 -> 0.5860154469 | AF18: =U18/'Customer Information'!$D$29 -> 0.1641947518 | AG18: =V18/'Customer Information'!$E$29 -> 0.4649896739 | AH18: =W18/'Customer Information'!$C$29 -> 0.9752037551 | AI18: =X18/'Customer Information'!$D$29 -> 0.2943839526
F19: =F17/F14 -> 1 | H19: Return Fan % of Supply | K19: 1 | N19: estimate it as the design return CFM/design supply CFM Use 100%, it is usually 100% in E+ | Q19: Temperature And Fan Setback | R19: 122.5943171 | S19: 315773.9066 | T19: 184.5948658 | U19: 419671.8504 | V19: 15098.3819 | W19: 307.1891828 | X19: 735445.757 | AB19: Temperature And Fan Setback | AC19: =R19/'Customer Information'!$C$29 -> 0.3891883081 | AD19: =S19/'Customer Information'!$D$29 -> 0.1301892008 | AE19: =T19/'Customer Information'!$C$29 -> 0.5860154469 | AF19: =U19/'Customer Information'!$D$29 -> 0.1730248816 | AG19: =V19/'Customer Information'!$E$29 -> 0.5784820651 | AH19: =W19/'Customer Information'!$C$29 -> 0.9752037551 | AI19: =X19/'Customer Information'!$D$29 -> 0.3032140824
F20: Constant Air Volume | H20: System Type (CAV/VAV) | K20: Variable Air Volume | M20: * | Q20: Proposed | R20: =AX246 -> 122.5943171 | S20: =AZ246 -> 315773.9066 | T20: =AY246 -> 184.5948658 | U20: =BA246 -> 419671.8504 | V20: =BB246 -> 15098.3819 | W20: 307.1891828 | X20: 735445.757 | AB20: =Q20 -> Proposed | AC20: =R20/'Customer Information'!$C$29 -> 0.3891883081 | AD20: =S20/'Customer Information'!$D$29 -> 0.1301892008 | AE20: =T20/'Customer Information'!$C$29 -> 0.5860154469 | AF20: =U20/'Customer Information'!$D$29 -> 0.1730248816 | AG20: =V20/'Customer Information'!$E$29 -> 0.5784820651 | AH20: =W20/'Customer Information'!$C$29 -> 0.9752037551 | AI20: =X20/'Customer Information'!$D$29 -> 0.3032140824
A22: =E22 -> Scheduling Optimization | E22: Scheduling Optimization | K22: Cost | M22: Disable
F23: Baseline | K23: Proposed | N23: This measure is to reduce the occupied hours schedule, or run in an unoccupied set back mode, combined with the "Fan and Space Temperature Setbacks" measure
A24: Baseline | B24: =COUNTA(F23:G27)>=9 -> TRUE | F24: Occupied (Start) | G24: Unoccupied (Stop) | K24: Occupied (Start) | L24: Unoccupied (Stop) | N24: AHU enters occupied and unoccupied modes of operation
A25: Proposed | B25: =IF(M22="Enable",COUNTA(K23:L27)>=9,"Not Enabled") -> Not Enabled | F25: 6 | G25: 21 | H25: Weekday | K25: 6 | L25: 20 | M25: =IF(OR(F25<>K25,G25<>L25),"*","") -> * | N25: occupancy schedule, AHU fan schedule, OA schedule
D26: 0, 0 means occupied all day | F26: 6 | G26: 22 | H26: Saturday | K26: 6 | L26: 21 | M26: =IF(OR(F26<>K26,G26<>L26),"*","") -> * | N26: schedules control the HVAC equipment | O26: To switch between Baseline or Proposed graphs, update the Switches in Processing section
F27: 8 | G27: 19 | H27: Sunday | K27: 8 | L27: 18 | M27: =IF(OR(F27<>K27,G27<>L27),"*","") -> *
A29: =E29 -> Economizer Optimization | E29: Economizer Optimization | K29: Cost | M29: Disable | O29: Occupied Graphs | W29: Unoccupied Graphs | AC29: Load and Power Graphs
F30: Baseline | K30: Proposed | N30: No measure description found in the documentation. My understanding is to reduce the min OA ratio %
A31: Baseline | B31: =IF(F31="Simple Data",COUNTA(F30:G40)>=14,AND(COUNTA(tbl_HVAC_Airside_Calc_Engine4[Occ OA Flow (%), Base Trend])<>0,COUNTA(tbl_HVAC_Airside_Calc_Engine4[UnOcc OA Flow (%), Base Trend])<>0)) -> TRUE | F31: Simple Data | H31: Data Type | K31: Simple Data | M31: =IF(OR(F31="Baseline Trend Data",AND(M29="Enable",K31="Proposed Trend Data")),"*See Note in Data Type cell","") -> 
F32: Occupied | K32: Occupied | N32: ProportionalMinimum means the min OA flow rate varies in proportion to the total system air flow rate.
A33: Proposed | B33: =IF(M29="Enable",IF(K31="Simple Data",COUNTA(K30:L40)>=14,AND(COUNTA(tbl_HVAC_Airside_Calc_Engine4[Occ OA Flow (%), Prop Trend])<>0,COUNTA(tbl_HVAC_Airside_Calc_Engine4[Unocc OA Flow (%), Prop Trend])<>0)),"Not Enabled") -> Not Enabled | F33: Min | G33: Max | K33: Min | L33: Max
E34: check outdoor air rate | F34: =INDEX('Input Table'!M5:M11,'Input Table'!A3,1) -> 0.2989697927 | G34: =F34 -> 0.2989697927 | H34: Out Door Air % | K34: =F34 -> 0.2989697927 | L34: 1 | M34: =IF(OR(F34<>K34,G34<>L34),"*","") -> * | N34: Minimum/Maximum Fraction of Outdoor Air Schedule Name (% of system mixed air flow - design air flow) % of supply air flow Use proportionalMinimum Extract from hourly results -- Air System Outdoor Air Fraction -- average across three air systems
F35: =INDEX('Input Table'!N5:N11,'Input Table'!A3,1) -> 75 | H35: Enable OAT | K35: =F35 -> 75 | M35: =IF(OR(F35<>K35,G35<>L35),"*","") ->  | N35: Economizer Maximum Limit Dry-Bulb Temperature, Use E+ inputs which follows Title 24 2019 Table 140.4-E when using FixedDryBulb Economizer
F37: Unoccupied | K37: Unoccupied | N37: turn off economizer in baseline
F38: Min | G38: Max | K38: Min | L38: Max
F39: 0 | G39: 0 | H39: Out Door Air % | K39: 0 | L39: 1 | M39: =IF(OR(F39<>K39,G39<>L39),"*","") -> * | N39: double checked
F40: =F35 -> 75 | H40: Enable OAT | K40: =K35 -> 75 | M40: =IF(OR(F40<>K40,G40<>L40),"*","") ->  | N40: could change to 83.3% for unoccupied
A42: =E42 -> Static Pressure Reset | E42: Static Pressure Reset | K42: Cost | M42: Disable
E43: This measure only applies to VFD fan types | F43: Baseline | K43: Proposed | N43: From reference: Reduced fan static pressure will reduce fan energy. We can choose different fan curve with different duct static pressure
A44: Baseline | B44: =COUNTA(F43:G45)>=5 -> TRUE | F44: Min | G44: Max | K44: Min | L44: Max
A45: Proposed | B45: =IF(M42="Enable",COUNTA(K43:L45)>=5,"Not Enabled") -> Not Enabled | F45: 1.5 | G45: 1.5 | H45: in. Water | K45: 0.5 | L45: 1.5 | M45: =IF(OR(F45<>K45,G45<>L45),"*","") -> * | N45: Design pressure rise -- total fan pressure rise, including duct static pressure rise
A47: =E47 -> Supply Air Temperature Reset | E47: Supply Air Temperature Reset | K47: Cost | M47: Disable
F48: Baseline | K48: Proposed | N48: OutdoorAirReset:
A49: Baseline | B49: =IF(F49="Simple Data",(COUNTA(F52:G53)++COUNTA(F57:G58)+COUNTA(F60)>=9),AND(COUNTA(tbl_HVAC_Airside_Calc_Engine4[Occ SAT (°F), Base Trend])<>0,COUNTA(tbl_HVAC_Airside_Calc_Engine4[UnOcc SAT (°F), Base Trend])<>0)) -> TRUE | F49: Simple Data | H49: Data Type | K49: Simple Data
F50: Occupied | K50: Occupied
F51: Min | G51: Max | K51: Min | L51: Max
A52: Proposed | B52: =IF(M47="Enable",IF(K49="Simple Data",(COUNTA(K52:L53)+COUNTA(K57:L58)+COUNTA(K60)>=9),AND(COUNTA(tbl_HVAC_Airside_Calc_Engine4[Occ SAT (°F), Prop Trend])<>0,COUNTA(tbl_HVAC_Airside_Calc_Engine4[UnOcc SAT (°F), Prop Trend])<>0)),"Not Enabled") -> Not Enabled | F52: 55 | G52: 55 | H52: Supply Air Temp | K52: 60 | L52: 55 | M52: =IF(OR(F52<>K52,G52<>L52),"*","") -> * | N52: SetpointManager:OutdoorAirReset
F53: 50 | G53: 75 | H53: @ OAT | K53: 50 | L53: 75 | M53: =IF(OR(F53<>K53,G53<>L53),"*","") ->  | N53: Calculator input
F55: Unoccupied | K55: Unoccupied
F56: Min | G56: Max | K56: Min | L56: Max
F57: 55 | G57: 55 | H57: Supply Air Temp | K57: 60 | L57: 55 | M57: =IF(OR(F57<>K57,G57<>L57),"*","") -> * | N57: keep them the same between occupied and unoccupied
F58: 50 | G58: 75 | H58: @ OAT | K58: 55 | L58: 75 | M58: =IF(OR(F58<>K58,G58<>L58),"*","") -> *
F60: No | H60: Pre-Heat Coil? | K60: No | M60: =IF(OR(F60<>K60,G60<>L60),"*","") ->  | N60: keep as No
F61: 55 | H61: Pre-Heat Setpoint Temp | K61: 55 | M61: =IF(OR(F61<>K61,G61<>L61),"*","") -> 
F62: 2 | H62: Fan Heat °F Added | K62: 2 | M62: =IF(OR(F62<>K62,G62<>L62),"*","") -> 
A65: =E65 -> Fan and Space Temperature Setbacks | E65: Fan and Space Temperature Setbacks | K65: Cost | M65: Enable
A66: Fan Flow | E66: Fan schedule and occupancy schedule | F66: Baseline | K66: Proposed | N66: DualMax % fan flow is defined as the ratio of operating CFM vs.design airflow CFM
A67: Baseline | B67: =IF(F67="Simple Data",COUNTA(F66:G80)>=24,AND(COUNTA(tbl_HVAC_Airside_Calc_Engine4[Occ SF Flow (%), Base Trend])<>0,COUNTA(tbl_HVAC_Airside_Calc_Engine4[UnOcc SF Flow (%), Base Trend])<>0)) -> TRUE | F67: Simple Data | H67: Data Type (Supply Fan Flow) | K67: Simple Data
F68: Occupied | K68: Occupied | M68: Sub-Disable
A69: Proposed | B69: =IF(AND(M65="Enable",M68="Sub-Enable"),IF(K67="Simple Data",COUNTA(K68:L73)>=11,COUNTA(tbl_HVAC_Airside_Calc_Engine4[Occ SF Flow (%), Prop Trend])<>0),"Not Enabled") -> Not Enabled | C69: Occ | F69: Min | G69: Max | K69: Min | L69: Max | N69: minimum air flow fraction, same for heating and cooling
A70: Proposed | B70: =IF(AND(M66="Enable",M75="Sub-Enable"),IF(K68="Simple Data",COUNTA(K75:L80)>=11,COUNTA(tbl_HVAC_Airside_Calc_Engine4[Unocc SF Flow (%), Prop Trend])<>0),"Not Enabled") -> Not Enabled | C70: Unocc | F70: =INDEX('Input Table'!O5:O11,'Input Table'!A3,1) -> 0.3 | G70: 1 | H70: Occ Fan Flow % - Cool | K70: =INDEX('Input Table'!S5:S11,'Input Table'!A3,1) -> 0.3 | L70: 1 | M70: =IF(OR(F70<>K70,G70<>L70),"*","") ->  | N70: cooling maximum air flow fraction? Cooling maximum air flow can usually go up to 100% in the model actual maximum flow % run a few models and check
E71: 60 is good as min | F71: 60 | G71: =F12 -> 103 | H71: OA Cooling Temp Range | K71: =F71 -> 60 | L71: =G71 -> 103 | N71: Max is the design cooling/heating temperature; Use Design Day Maximum Temperature in E+ keep the same for baseline and proposed
E72: max: design cooling/heating temperature | F72: =INDEX('Input Table'!P5:P11,'Input Table'!A3,1) -> 0.2999355206 | G72: =F72 -> 0.2999355206 | H72: Occ Fan Flow % - Heat | K72: =INDEX('Input Table'!T5:T11,'Input Table'!A3,1) -> 0.2999355206 | L72: =K72 -> 0.2999355206 | N72: maximum air flow fraction during reheat check actual % from results
E73: 55 is good as min | F73: 55 | G73: =G12 -> 30 | H73: OA Heating Temp Range | K73: =F73 -> 55 | L73: =G73 -> 30
F75: Unoccupied | K75: Unoccupied | M75: Sub-Disable
F76: Min | G76: Max | K76: Min | L76: Max
F77: 0 | G77: =F70 -> 0.3 | H77: Unocc Fan Flow % - Cool | K77: 0 | L77: =K70 -> 0.3 | M77: =IF(OR(F78<>K78,G78<>L78),"*","") ->  | N77: same between occupied and unoccupied
F78: 60 | G78: 65 | H78: OA Cooling Temp Range | K78: =K71 -> 60 | L78: 65 | M78: =IF(OR(F79<>K79,G79<>L79),"*","") -> 
F79: 0 | G79: =F72 -> 0.2999355206 | H79: Unocc Fan Flow % - Heat | K79: 0 | L79: =K72 -> 0.2999355206 | M79: =IF(OR(F72<>K72,G72<>L72),"*","") -> 
F80: =F73 -> 55 | G80: 50 | H80: OA Heating Temp Range | K80: =K73 -> 55 | L80: 50 | M80: =IF(OR(F80<>K80,G80<>L80),"*","") -> 
A82: VAV and Reheat | F82: Simple Data | H82: Data Type (VAV Reheat) | K82: RH VAV Flow & DAT Profile
A83: Baseline | B83: =IF(F82="Simple Data",COUNTA(F82:G90)>=13,COUNTA(tbl_HVAC_Airside_Calc_Engine4[[Occ SF Flow (%), Base Trend]:[UnOcc RAT (°F), Base Trend]])<>0) -> TRUE | F83: Occ | G83: Unocc | K83: Occupied
F84: 1 | H84: Fraction of Zones with RH | K84: Auto Calc
A85: Proposed | B85: =IF(M65="Enable",IF(K84="Auto Calc",COUNTA(K84)>=1,AND(COUNTA(tbl_HVAC_Airside_Calc_Engine4[Occ RH Box VAV Flow (%), Prop Trend])<>0,COUNTA(tbl_HVAC_Airside_Calc_Engine4[Occ RH VAV DAT (°F), Prop Trend])<>0)),"Not Enabled") -> TRUE | C85: Occ | F85: 55 | G85: 55 | H85: @ OAT (No Reheat) | N85: extract from results? Heating setpoint temperature? Keep as 70
A86: Proposed | B86: =IF(M65="Enable",IF(K87="Auto Calc",COUNTA(K87)>=1,AND(COUNTA(tbl_HVAC_Airside_Calc_Engine4[UnOcc RH Box VAV Flow (%), Prop Trend])<>0,COUNTA(tbl_HVAC_Airside_Calc_Engine4[UnOcc RH VAV DAT (°F), Prop Trend])<>0)),"Not Enabled") -> TRUE | C86: Unocc | F86: Stockton AP | H86: Select Closest City | K86: Unoccupied
F87: =VLOOKUP(F86,'T24 JA2.2'!$A$5:$S$816,18,0) -> 30 | G87: =VLOOKUP(F86,'T24 JA2.2'!$A$5:$S$816,18,0) -> 30 | H87: Design Heating OAT Lookup | K87: Auto Calc
F88: no | G88: no | H88: Override Lookup?
F89: 30 | G89: 30 | H89: Override Design Heating OAT | N89: “Design Drybulb (0.6%)” temperature from Title 24 JA2.2 design heating temperature
E90: actual maximum DAT | F90: =INDEX('Input Table'!W5:W11,'Input Table'!A3,1) -> 97.68024646 | G90: =INDEX('Input Table'!X5:X11,'Input Table'!A3,1) -> 80.28824767 | H90: Max DAT (Avg of All RH Boxes) | N90: Maximum reheat air temperature E+ input
A93: Space Temp and RAT | F93: Heating | G93: Cooling | K93: Heating | L93: Cooling | M93: Sub-Enable
A94: Baseline | B94: =AND(COUNTA(F93:G95)>=6,IF(F96="Use Space Temp",COUNTA(F96)>=1,AND(COUNTA(tbl_HVAC_Airside_Calc_Engine #REF! )<>0,COUNTA(tbl_HVAC_Airside_Calc_Engine4[UnOcc RAT (°F), Base Trend])<>0))) -> TRUE | F94: 70 | G94: 75 | H94: Occ Space Temp | K94: 70 | L94: 75 | M94: =IF(OR(F94<>K94,G94<>L94),"*","") ->  | N94: setpoint temperature for cooling and heating E+ input
F95: 65 | G95: 80 | H95: Unocc Space Temp | K95: 70 | L95: 75 | M95: =IF(OR(F95<>K95,G95<>L95),"*","") -> *
A96: Proposed | B96: =IF(AND(M65="Enable",M93="Sub-Enable"),AND(COUNTA(K93:L95)>=6,IF(K96="Use Space Temp",COUNTA(K96)>=1,AND(COUNTA(tbl_HVAC_Airside_Calc_Engine4[Occ RAT (°F), Prop Trend])<>0,COUNTA(tbl_HVAC_Airside_Calc_Engine4[UnOcc RAT (°F), Prop Trend])<>0))),"Not Enabled") -> TRUE | F96: Use Space Temp | H96: Return Air Temp | K96: Use Space Temp | M96: =IF(OR(F96<>K96,G96<>L96),"*","") -> 
A99: =E99 -> Processing | E99: Processing
F100: Switches
A101: Baseline | B101: =COUNTIFS($A$4:$A$97,A101,$B$4:$B$97,TRUE)=COUNTIFS($A$4:$A$97,A101) -> TRUE | F101: Proposed | G101: Equipment Specifications & Replacements | X101: Fan Total Efficiency | Z101: Check the fan efficiency in E+
A102: Proposed | B102: =IF(COUNTIFS($A$4:$A$97,A102,$B$4:$B$97,"Not Enabled")=COUNTIFS($A$4:$A$97,A102),"No Measures",COUNTIFS(A4:A97,"Proposed")-COUNTIFS(A4:A97,"Proposed",B4:B97,"Not Enabled")=COUNTIFS(A4:A97,"Proposed",B4:B97,"TRUE")) -> TRUE | F102: Proposed | G102: Scheduling Optimization | W102: Supply Fan | X102: =W109*X110 -> 0.91665 | Z102: Use TotalEfficiencyAndPressure method
F103: Proposed | G103: Economizer Optimization | W103: Return Fan | X103: =W110*X110 -> 0.9021 | Z103: Pressure rise | AA103: 1335.6 Pa
F104: Proposed | G104: Static Pressure Reset | U104: Fan Curves | Z104: Fan Total Efficiency | AA104: 0.55
F105: Proposed | G105: Supply Air Temperature Reset | Y105: Fan Curve
F106: Proposed | G106: Temperature And Fan Setback | W106: Fan Penalty Per Delta SAT | X106: =$H$129 -> 0 | Z106: SF | AB106: RF
U107: Plenum (in) | W107: =IF(P114>O114,MIN(1.5,O114),1.5) -> 1.5 | Y107: 2 | Z107: =IFERROR(IF($F$121="VFD",VLOOKUP($W$107,$X$113:$AB$121,$Y107,1),VLOOKUP($F$121,$X$125:$AC$130,$Y107,0)),0) -> 0.070428852 | AA107: a | AB107: =Z107 -> 0.070428852 | AC107: =IFERROR(VLOOKUP($F$124,$X$125:$AB$130,$Y107,1),0) -> 0.27196372
U108: Return duct pressure loss | W108: 0.5 | Y108: 3 | Z108: =IFERROR(IF($F$121="VFD",VLOOKUP($W$107,$X$113:$AB$121,$Y108,1),VLOOKUP($F$121,$X$125:$AC$130,$Y108,0)),0) -> 0.385330201 | AA108: b | AB108: =Z108 -> 0.385330201 | AC108: -0.88568115
T109: Motor efficiency | V109: Est Supply Fan Eff | W109: =VLOOKUP($F$119,$U$113:$V$131,2,TRUE) -> 0.945 | X109: VFD Eff | Y109: 4 | Z109: =IFERROR(IF($F$121="VFD",VLOOKUP($W$107,$X$113:$AB$121,$Y109,1),VLOOKUP($F$121,$X$125:$AC$130,$Y109,0)),0) -> -0.460864118 | AA109: c | AB109: -0.460864118 | AC109: 1.66371739
V110: Est Return Fan Eff | W110: =VLOOKUP($F$122,$U$113:$V$131,2,TRUE) -> 0.93 | X110: 0.97 | Y110: 5 | Z110: =IFERROR(IF($F$121="VFD",VLOOKUP($W$107,$X$113:$AB$121,$Y110,1),VLOOKUP($F$121,$X$125:$AC$130,$Y110,0)),0) -> 1.00920344 | AA110: d | AB110: 1.00920344 | AC110: 0.2
F111: Inputs
F112: Equipment Specifications & Replacements | K112: Scheduling Optimization | O112: Static Pressure Reset | U112: Motor HP | V112: Efficiency | X112: Plenum in. | Y112: a | Z112: b | AA112: c | AB112: d
F113: =IF(OR($M$2 = "Disable",K7="",$F$101="Baseline"),F7,K7) -> 0.8926392964 | G113: Seasonal average kW/Ton | K113: Occupied | L113: Unoccupied | O113: Min | P113: Max | U113: 0 | V113: 0.825 | X113: 0 | Y113: 0.027827882 | Z113: 0.026583195 | AA113: -0.0870687 | AB113: 1.03091975 | AC113: Perfect Reset | AD113: These fan curves are from DOE-2, only applys to VFD fan type for supply fan. For other fan types. It uses the ASHRAE 90.1 Fan curves
F114: =IF(OR($M$2 = "Disable",K8="",$F$101="Baseline"),F8,K8) -> Gas | G114: Source of Heating | K114: =IF(OR($M$22 = "Disable",K25="",$F$102="Baseline"),F25,K25) -> 6 | L114: 21 | M114: ='air system test'!H25 -> Weekday | O114: =IF(OR($M$42 = "Disable",K45="",$F$104="Baseline"),F45,K45) -> 1.5 | P114: =IF(OR($M$42 = "Disable",L45="",$F$104="Baseline"),G45,L45) -> 1.5 | Q114: In H2O | U114: 1.5 | V114: 0.84 | X114: 0.3 | Y114: 0.034171263 | Z114: 0.059448041 | AA114: -0.061049511 | AB114: 0.966140782
F115: =IF(OR($M$2 = "Disable",K9="",$F$101="Baseline"),F9,K9) -> 0.8 | G115: Gas Efficiency | K115: 6 | L115: 22 | M115: ='air system test'!H26 -> Saturday | U115: 2 | V115: 0.84 | X115: 0.4 | Y115: 0.037442571 | Z115: 0.072000619 | AA115: -0.062564426 | AB115: 0.952238103
F116: =IF(OR($M$2 = "Disable",K10="",$F$101="Baseline"),F10,K10) -> 3.412 | G116: Heat Pump (HSPF) | K116: 8 | L116: 19 | M116: ='air system test'!H27 -> Sunday | U116: 3 | V116: 0.875 | X116: 0.5 | Y116: 0.040759894 | Z116: 0.08804497 | AA116: -0.07292612 | AB116: 0.943739823
F117: =IF(OR($M$2 = "Disable",K12="",$F$101="Baseline"),F12,K12) -> 103 | G117: Heating Lockout Temp | O117: Temperature And Fan Setback | U117: 5 | V117: 0.875 | X117: 0.6 | Y117: 0.044034586 | Z117: 0.107518462 | AA117: -0.091288825 | AB117: 0.939910504
F118: =IF(OR($M$2 = "Disable",L12="",$F$101="Baseline"),G12,L12) -> 30 | G118: Cooling Lockout Temp | K118: Economizer Optimization | O118: =IF(OR($M$65 = "Disable",K67="",$F$106="Baseline"),F67,K67) -> Simple Data | P118: Data type | U118: 7.5 | V118: 0.895 | X118: 0.7 | Y118: 0.047182815 | Z118: 0.130541742 | AA118: -0.117286942 | AB118: 0.940313747
F119: =IF(OR($M$2 = "Disable",K13="",$F$101="Baseline"),F13,K13) -> 142.2438839 | G119: Supply Fan (HP) | K119: =IF(OR($M$29 = "Disable",K31="",$F$103="Baseline"),F31,K31) -> Simple Data | L119: Data Type | O119: Min | P119: Max | U119: 10 | V119: 0.895 | X119: 0.8 | Y119: 0.050254136 | Z119: 0.156227953 | AA119: -0.148857337 | AB119: 0.943697119
F120: 100350.1568 | G120: Supply Fan (CFM) | K120: Min | L120: Max | O120: =IF(OR($M$65 = "Disable",$M$68="Sub-Disable",K70="",$F$106="Baseline"),F70,K70) -> 0.3 | P120: 1 | Q120: Occ Fan Flow % - Cool | U120: 15 | V120: 0.91 | X120: 1 | Y120: 0.056118534 | Z120: 0.214726686 | AA120: -0.226093052 | AB120: 0.957646288
F121: VFD | G121: Supply Fan Control | K121: =IF(OR($M$29 = "Disable",K34="",$F$103="Baseline"),F34,K34) -> 0.2989697927 | L121: =IF(OR($M$29 = "Disable",L34="",$F$103="Baseline"),G34,L34) -> 0.2989697927 | M121: Occ Outdoor Air % | O121: 60 | P121: 103 | Q121: OA Cooling Temp Range | U121: 20 | V121: 0.91 | X121: 1.5 | Y121: 0.070428852 | Z121: 0.385330201 | AA121: -0.460864118 | AB121: 1.00920344 | AC121: No Reset
F122: 59.68865737 | G122: Return Fan (HP) | K122: =IF(OR($M$29 = "Disable",K35="",$F$103="Baseline"),F35,K35) -> 75 | M122: Occ Enable OAT | O122: 0.2999355206 | P122: 0.2999355206 | Q122: Occ Fan Speed % - Heat | U122: 25 | V122: 0.924 | X122: https://energydesignresources.com/media/2651/EDR_DesignGuidelines_VAV.pdf?tracked=true
F123: 100350.1568 | G123: Return Fan (CFM) | K123: =IF(OR($M$29 = "Disable",K39="",$F$103="Baseline"),F39,K39) -> 0 | L123: =IF(OR($M$29 = "Disable",L39="",$F$103="Baseline"),G39,L39) -> 0 | M123: Unocc Outdoor Air % | O123: 55 | P123: 30 | Q123: OA Heating Temp Range | U123: 30 | V123: 0.924
F124: VFD | G124: Return Fan Control | K124: =IF(OR($M$29 = "Disable",K40="",$F$103="Baseline"),F40,K40) -> 75 | M124: Unocc Enable OAT | U124: 40 | V124: 0.93 | X124: FanType | Y124: a | Z124: b | AA124: c | AB124: d | AC124: Min Power
F125: 1 | G125: Return Fan % of Supply | O125: =IF(OR($M$65 = "Disable",$M$75="Sub-Disable",K77="",$F$106="Baseline"),F77,K77) -> 0 | P125: 0.3 | Q125: Unocc Fan Speed % - Cool | U125: 50 | V125: 0.93 | X125: Damper | Y125: 0.24891704 | Z125: 1.111377 | AA125: -0.36029413 | AB125: 0.1 | AC125: 0.22 | AD125: ask PG&E
F126: Constant Air Volume | G126: System Type | K126: RH VAV Flow Adjustment | O126: 60 | P126: 65 | Q126: OA Cooling Temp Range | U126: 60 | V126: 0.936 | X126: IGV | Y126: 0.62339777 | Z126: -0.73826224 | AA126: 1.11486411 | AB126: 0.25 | AC126: 0.22 | AD126: Return fan curve use these ones
K127: =IF(OR($M$65 = "Disable",K84="",$F$106="Baseline"),F82,K84) -> Auto Calc | L127: Occupied Data Type | O127: 0 | P127: =IF(OR($M$65 = "Disable",$M$75="Sub-Disable",L79="",$F$106="Baseline"),G79,L79) -> 0.2999355206 | Q127: Unocc Fan Speed % - Heat | U127: 75 | V127: 0.941 | X127: VFD | Y127: 0.27196372 | Z127: -0.88568115 | AA127: 1.66371739 | AB127: 0.2 | AC127: 0.1
F128: Supply Air Temperature Reset | K128: =IF(OR($M$65 = "Disable",K87="",$F$106="Baseline"),F82,K87) -> Auto Calc | L128: Unoccupied Data Type | O128: 55 | P128: =IF(OR($M$65 = "Disable",$M$75="Sub-Disable",L80="",$F$106="Baseline"),G80,L80) -> 50 | Q128: OA Heating Temp Range | U128: 100 | V128: 0.945 | X128: Air-Foil or Backward-Inclined - Dampers Control Flow | Y128: 0.227143 | Z128: 1.178929 | AA128: -0.410714 | AB128: 0.45 | AC128: 0.68
F129: =IF(OR($M$47 = "Disable",K49="",$F$105="Baseline"),F49,K49) -> Simple Data | G129: Data Type | H129: =IF(F105="Baseline",0,IF(ISNUMBER(SEARCH("1%",#REF!,1)),0.01,0)) -> 0 | I129: Fan Penalty | K129: Occ | L129: Unocc | M129: Baseline Values | U129: 125 | V129: 0.945 | X129: Air-Foil or Backward-Inclined - Inlet Vanes | Y129: 0.584345 | Z129: -0.579167 | AA129: 0.970238 | AB129: 0.3 | AC129: 0.48
F130: =IF(OR($F$105="Baseline",$M$47="Disable",$K$60=""),F60,K60) -> No | G130: Pre-Heat Coil? | K130: =F84 -> 1 | M130: Fraction of Zones with RH | O130: =IF(OR($M$65 = "Disable",$M$93="Sub-Disable",K96="",$F$106="Baseline"),F96,K96) -> Use Space Temp | Q130: RAT Data type | U130: 150 | V130: 0.95 | X130: Vane-Axial - Variable Pitch Blades | Y130: 0.212048 | Z130: -0.569286 | AA130: 1.345238 | AB130: 0.2 | AC130: 0.15
F131: =IF(OR($F$105="Baseline",$M$47="Disable"),F61,K61) -> 55 | G131: Pre-Heat SAT | K131: =F85 -> 55 | L131: =G85 -> 55 | M131: @ OAT (No Reheat) | O131: Heating | P131: Cooling | U131: 200 | V131: 0.95 | X131: *ASHRAE 90.1 Fan Curves
F132: =IF(OR($F$105="Baseline",$M$47="Disable"),F62,K62) -> 2 | G132: Fan Heat °F Added | K132: =IF(F88="yes",F89,F87) -> 30 | L132: =IF(G88="yes",G89,G87) -> 30 | M132: Design Heating OAT | O132: =IF(OR($M$65 = "Disable",$M$93="Sub-Disable",K94="",$F$106="Baseline"),F94,K94) -> 70 | P132: =IF(OR($M$65 = "Disable",$M$93="Sub-Disable",L94="",$F$106="Baseline"),G94,L94) -> 75 | Q132: Occ Space Temp | U132: Reference: Table 15 Motor Efficiency Requirements for Traction Motors
K133: =F90 -> 97.68024646 | L133: =G90 -> 80.28824767 | M133: Max DAT (Avg of All RH Boxes) | O133: =IF(OR($M$65 = "Disable",$M$93="Sub-Disable",K95="",$F$106="Baseline"),F95,K95) -> 70 | P133: =IF(OR($M$65 = "Disable",$M$93="Sub-Disable",L95="",$F$106="Baseline"),G95,L95) -> 75 | Q133: Unocc Space Temp
E138: Calculation Engine | J138: Baseline Trend Data | V138: Proposed Trend Data | AH138: Occupied | BB138: Unoccupied | BV138: Occupied + Unoccupied Total | BY138: Baseline Space Load and Measure Interactive Effects Calcs ---------------------------------------------------------------------------------------------------------------------------------------------------------------->
E139: OAT °F | F139: On-Pk Occ Hrs | G139: On-Pk UnOcc Hrs | H139: Occ Hr | I139: UnOcc Hr | J139: Occ OA Flow (%), Base Trend | K139: Occ SAT (°F), Base Trend | L139: Occ SF Flow (%), Base Trend | M139: Occ RH Box VAV Flow (%), Base Trend | N139: Occ RH VAV DAT (°F), Base Trend | O139: Occ RAT (°F), Base Trend | P139: UnOcc OA Flow (%), Base Trend | Q139: UnOcc SAT (°F), Base Trend | R139: UnOcc SF Flow (%), Base Trend | S139: UnOcc RH Box VAV Flow (%), Base Trend | T139: UnOcc RH VAV DAT (°F), Base Trend | U139: UnOcc RAT (°F), Base Trend | V139: Occ OA Flow (%), Prop Trend | W139: Occ SAT (°F), Prop Trend | X139: Occ SF Flow (%), Prop Trend | Y139: Occ RH Box VAV Flow (%), Prop Trend | Z139: Occ RH VAV DAT (°F), Prop Trend | AA139: Occ RAT (°F), Prop Trend | AB139: Unocc OA Flow (%), Prop Trend | AC139: UnOcc SAT (°F), Prop Trend | AD139: Unocc SF Flow (%), Prop Trend | AE139: UnOcc RH Box VAV Flow (%), Prop Trend | AF139: UnOcc RH VAV DAT (°F), Prop Trend | AG139: UnOcc RAT (°F), Prop Trend | AH139: Occ Base SAT °F | AI139: Occ Prop SAT °F | AJ139: Occ Delta SAT °F | AK139: Occ SAT °F | AL139: Occ RH Box Flow % | AM139: Occ RH VAV DAT °F | AN139: Occ RAT °F | AO139: Occ OA Flow % | AP139: Occ MAT °F | AQ139: Occ Pre-Heat? | AR139: Occ Pre-Heat Load, kBtu | AS139: Occ SF Flow % | AT139: Occ Cooling Load, Ton | AU139: Occ Re-Heating Load, kBtu | AV139: Occ Total Heating Load, kBtu | AW139: Occ RF Flow % | AX139: Occ SF kW | AY139: Occ RF kW | AZ139: Occ Total Fan kW | BA139: Occ Load kW | BB139: Unocc Base SAT °F | BC139: Unocc Prop SAT °F | BD139: Unocc Delta SAT °F | BE139: Unocc SAT °F | BF139: Unocc RH Box Flow % | BG139: Unocc RH VAV DAT °F | BH139: UnOcc RAT °F | BI139: Unocc OA Flow % | BJ139: UnOcc MAT °F | BK139: Unocc Pre-Heat? | BL139: Unocc Pre-Heat Load, kBtu | BM139: Unocc SF Flow % | BN139: Unocc Cooling Load, Ton | BO139: Unocc Re-Heating Load, kBtu | BP139: Unocc Total Heating Load, kBtu | BQ139: Unocc RF Flow % | BR139: Unocc SF kW | BS139: Unocc RF kW | BT139: Unocc Total Fan kW | BU139: Unocc Load kW | BV139: Fan Total kWh | BW139: Load Total kWh | BX139: Heating Total Therms | BY139: Occ OA%, Base | BZ139: Occ SF Flow %, Base | CA139: Occ RH Box Flow %, Base | CB139: Occ RH to SF Ratio, Base | CC139: Occ DAT °F, Base | CD139: Occ RAT °F, Base | CE139: Occ Heating Only Flow %, Base | CF139: Occ Cooling Only Flow %, Base | CG139: Occ Tempered Cooling Flow %, Base | CH139: Occ Sum of Flow %, Base | CI139: Occ Space Heating Only Load kBtu/h, Base | CJ139: Occ Space Cooling Only Load kBtu/h, Base | CK139: Occ Space Tempered Cooling Load kBtu/h, Base | CL139: Occ SF Manual Prop Airflow Adj to Base Ratio | CM139: Occ Prop Fan Flow Adj (Cooling Only) | CN139: Occ Prop Fan Flow Adj (Tempered Cooling) | CO139: Occ Prop Net Fan Flow Adj | CP139: Occ RH DAT °F Adj | CQ139: Unocc OA%, Base | CR139: Unocc SF Flow %, Base | CS139: Unocc RH Box Flow %, Base | CT139: Unocc RH to SF Ratio, Base | CU139: Unocc DAT °F, Base | CV139: Unocc RAT °F, Base | CW139: Unocc Heating Only Flow %, Base | CX139: Unocc Cooling Only Flow %, Base | CY139: Unocc Tempered Cooling Flow %, Base | CZ139: Unocc Sum of Flow %, Base | DA139: Unocc Space Heating Only Load kBtu/h, Base | DB139: Unocc Space Cooling Only Load kBtu/h, Base | DC139: Unocc Space Tempered Cooling Load kBtu/h, Base | DD139: Unocc SF Manual Prop Airflow Adj to Base Ratio | DE139: Unocc Prop Fan Flow Adj (Cooling Only) | DF139: Unocc Prop Fan Flow Adj (Tempered Cooling) | DG139: Unocc Prop Net Fan Flow Adj | DH139: Unocc RH DAT °F Adj | DI139: Column1
E140: 115 | F140: =COUNTIFS(tbl_Climate_Zone[Dry_Bulb],E140,tbl_Climate_Zone[On-Pk Hour],1,tbl_Climate_Zone[Hour],">" & $K$114,tbl_Climate_Zone[Hour],"<=" & $L$114) -> 0 | G140: ='CZ2022'!S2-F140 -> 0 | H140: =SUM( COUNTIFS(tbl_Climate_Zone[Dry_Bulb],E140,tbl_Climate_Zone[Weekday],$M$114,tbl_Climate_Zone[Hour],">"&$K$114,tbl_Climate_Zone[Hour],"<="&$L$114), COUNTIFS(tbl_Climate_Zone[Dry_Bulb],E140,tbl_Climate_Zone[Weekday],$M$115,tbl_Climate_Zone[Hour],">"&$K$115,tbl_Climate_Zone[Hour],"<="&$L$115), COUNTIFS(tbl_Climate_Zone[Dry_Bulb],E140,tbl_Climate_Zone[Weekday],$M$116,tbl_Climate_Zone[Hour],">"&$K$116,tbl_Climate_Zone[Hour],"<="&$L$116)) -> 0 | I140: ='CZ2022'!T2-tbl_HVAC_Airside_Calc_Engine4[[#This Row],[Occ Hr]] -> 0 | AH140: =IFERROR(IF($F$49="Baseline Trend Data", IF(ISBLANK(tbl_HVAC_Airside_Calc_Engine4[[#This Row],[Occ SAT (°F), Base Trend]]),MEDIAN(MIN(tbl_HVAC_Airside_Calc_Engine4[Occ SAT (°F), Base Trend]),MAX(tbl_HVAC_Airside_Calc_Engine4[Occ SAT (°F), Base Trend]),FORECAST(tbl_HVAC_Airside_Calc_Engine4[[#This Row],[OAT °F]],tbl_HVAC_Airside_Calc_Engine4[Occ SAT (°F), Base Trend],tbl_HVAC_Airside_Calc_Engine4[OAT °F])),tbl_HVAC_Airside_Calc_Engine4[[#This Row],[Occ SAT (°F), Base Trend]]), FORECAST(MEDIAN($F$53,$G$53,tbl_HVAC_Airside_Calc_Engine4[[#This Row],[OAT °F]]),$F$52:$G$52,$F$53:$G$53)),0) -> 55 | AI140: =IF($M$47 = "Disable",tbl_HVAC_Airside_Calc_Engine4[[#This Row],[Occ Base SAT °F]],IFERROR(IF($K$49="Proposed Trend Data", IF(ISBLANK(tbl_HVAC_Airside_Calc_Engine4[[#This Row],[Occ SAT (°F), Prop Trend]]),MEDIAN(MIN(tbl_HVAC_Airside_Calc_Engine4[Occ SAT (°F), Prop Trend]),MAX(tbl_HVAC_Airside_Calc_Engine4[Occ SAT (°F), Prop Trend]),FORECAST(tbl_HVAC_Airside_Calc_Engine4[[#This Row],[OAT °F]],tbl_HVAC_Airside_Calc_Engine4[Occ SAT (°F), Prop Trend],tbl_HVAC_Airside_Calc_Engine4[OAT °F])),tbl_HVAC_Airside_Calc_Engine4[[#This Row],[Occ SAT (°F), Prop Trend]]), FORECAST(MEDIAN($K$53,$L$53,tbl_HVAC_Airside_Calc_Engine4[[#This Row],[OAT °F]]),$K$52:$L$52,$K$53:$L$53)),0)) -> 55 | AJ140: =tbl_HVAC_Airside_Calc_Engine4[[#This Row],[Occ SAT °F]]-tbl_HVAC_Airside_Calc_Engine4[[#This Row],[Occ Base SAT °F]] -> 0 | AK140: =IFERROR(IF($F$105="Baseline",tbl_HVAC_Airside_Calc_Engine4[[#This Row],[Occ Base SAT °F]],tbl_HVAC_Airside_Calc_Engine4[[#This Row],[Occ Prop SAT °F]]),0) -> 55 | AL140: =IF($K$127="Proposed Trend Data",IF(ISBLANK(tbl_HVAC_Airside_Calc_Engine4[[#This Row],[Occ RH Box VAV Flow (%), Prop Trend]]),MEDIAN(tbl_HVAC_Airside_Calc_Engine4[[#This Row],[Occ SF Flow %]],MIN(tbl_HVAC_Airside_Calc_Engine4[Occ RH Box VAV Flow (%), Prop Trend]),FORECAST(tbl_HVAC_Airside_Calc_Engine4[[#This Row],[OAT °F]],tbl_HVAC_Airside_Calc_Engine4[Occ RH Box VAV Flow (%), Prop Trend],tbl_HVAC_Airside_Calc_Engine4[OAT °F])),tbl_HVAC_Airside_Calc_Engine4[[#This Row],[Occ RH Box VAV Flow (%), Prop Trend]]), IF(AND($K$127="Auto Calc",$M$65="Enable",$M$68="Sub-Enable"),tbl_HVAC_Airside_Calc_Engine4[[#This Row],[Occ SF Flow %]]*tbl_HVAC_Airside_Calc_Engine4[[#This Row],[Occ RH to SF Ratio, Base]], tbl_HVAC_Airside_Calc_Engine4[[#This Row],[Occ RH Box Flow %, Base]]+tbl_HVAC_Airside_Calc_Engine4[[#This Row],[Occ Prop Fan Flow Adj (Tempered Cooling)]]+IFERROR(( tbl_HVAC_Airside_Calc_Engine4[[#This Row],[Occ RH Box Flow %, Base]]-tbl_HVAC_Airside_Calc_Engine4[[#This Row],[Occ Tempered Cooling Flow %, Base]]-tbl_HVAC_Airside_Calc_Engine4[[#This Row],[Occ Heating Only Flow %, Base]])/tbl_HVAC_Airside_Calc_Engine4[[#This Row],[Occ SF Flow %, Base]],0)*tbl_HVAC_Airside_Calc_Engine4[[#This Row],[Occ Prop Fan Flow Adj (Cooling Only)]])) -> 1 | AM140: =IF($K$127="Proposed Trend Data", IF(ISBLANK(tbl_HVAC_Airside_Calc_Engine4[[#This Row],[Occ RH VAV DAT (°F), Prop Trend]]),MEDIAN(tbl_HVAC_Airside_Calc_Engine4[[#This Row],[Occ Prop SAT °F]],MAX(tbl_HVAC_Airside_Calc_Engine4[Occ RH VAV DAT (°F), Prop Trend]),FORECAST(tbl_HVAC_Airside_Calc_Engine4[[#This Row],[OAT °F]],tbl_HVAC_Airside_Calc_Engine4[Occ RH VAV DAT (°F), Prop Trend],tbl_HVAC_Airside_Calc_Engine4[OAT °F])),tbl_HVAC_Airside_Calc_Engine4[[#This Row],[Occ RH VAV DAT (°F), Prop Trend]]), tbl_HVAC_Airside_Calc_Engine4[[#This Row],[Occ RH DAT °F Adj]]) -> 55 | AN140: =IF($O$130="Baseline Trend Data", IF(ISBLANK(tbl_HVAC_Airside_Calc_Engine4[[#This Row],[ Occ RAT (°F), Base Trend]]),MEDIAN(MIN($O$140:$O$245),MAX($O$140:$O$245),FORECAST(tbl_HVAC_Airside_Calc_Engine4[[#This Row],[OAT °F]],$O$140:$O$245,tbl_HVAC_Airside_Calc_Engine4[OAT °F])),tbl_HVAC_Airside_Calc_Engine4[[#This Row],[ Occ RAT (°F), Base Trend]]), IF($O$130="Proposed Trend Data",IF(ISBLANK(tbl_HVAC_Airside_Calc_Engine4[[#This Row],[Occ RAT (°F), Prop Trend]]),MEDIAN(MIN(tbl_HVAC_Airside_Calc_Engine4[Occ RAT (°F), Prop Trend]),MAX(tbl_HVAC_Airside_Calc_Engine4[Occ RAT (°F), Prop Trend]),FORECAST(tbl_HVAC_Airside_Calc_Engine4[[#This Row],[OAT °F]],tbl_HVAC_Airside_Calc_Engine4[Occ RAT (°F), Prop Trend],tbl_HVAC_Airside_Calc_Engine4[OAT °F])),tbl_HVAC_Airside_Calc_Engine4[[#This Row],[Occ RAT (°F), Prop Trend]]), MEDIAN($P$132,$O$132,tbl_HVAC_Airside_Calc_Engine4[[#This Row],[OAT °F]]))) -> 75 | AO140: =MEDIAN(0,1,IF($K$119="Baseline Trend Data", IF(ISBLANK(tbl_HVAC_Airside_Calc_Engine4[[#This Row],[Occ OA Flow (%), Base Trend]]),MEDIAN(MIN(tbl_HVAC_Airside_Calc_Engine4[Occ OA Flow (%), Base Trend]),MAX(tbl_HVAC_Airside_Calc_Engine4[Occ OA Flow (%), Base Trend]),FORECAST(tbl_HVAC_Airside_Calc_Engine4[[#This Row],[OAT °F]],tbl_HVAC_Airside_Calc_Engine4[Occ OA Flow (%), Base Trend],tbl_HVAC_Airside_Calc_Engine4[OAT °F])),tbl_HVAC_Airside_Calc_Engine4[[#This Row],[Occ OA Flow (%), Base Trend]]), IF($K$119="Proposed Trend Data", IF(ISBLANK(tbl_HVAC_Airside_Calc_Engine4[[#This Row],[Occ OA Flow (%), Prop Trend]]),MEDIAN(MIN(tbl_HVAC_Airside_Calc_Engine4[Occ OA Flow (%), Prop Trend]),MAX(tbl_HVAC_Airside_Calc_Engine4[Occ OA Flow (%), Prop Trend]),FORECAST(tbl_HVAC_Airside_Calc_Engine4[[#This Row],[OAT °F]],tbl_HVAC_Airside_Calc_Engine4[Occ OA Flow (%), Prop Trend],tbl_HVAC_Airside_Calc_Engine4[OAT °F])),tbl_HVAC_Airside_Calc_Engine4[[#This Row],[Occ OA Flow (%), Prop Trend]]), IFERROR(IF((tbl_HVAC_Airside_Calc_Engine4[[#This Row],[OAT °F]]>$K$122),$K$121,MAX($K$121,MIN($L$121,(tbl_HVAC_Airside_Calc_Engine4[[#This Row],[Occ SAT °F]]-tbl_HVAC_Airside_Calc_Engine4[[#This Row],[Occ RAT °F]])/(tbl_HVAC_Airside_Calc_Engine4[[#This Row],[OAT °F]]-tbl_HVAC_Airside_Calc_Engine4[[#This Row],[Occ RAT °F]])))),$K$121)))) -> 0.2989697927 | AP140: =tbl_HVAC_Airside_Calc_Engine4[[#This Row],[Occ RAT °F]]*(1-tbl_HVAC_Airside_Calc_Engine4[[#This Row],[Occ OA Flow %]])+tbl_HVAC_Airside_Calc_Engine4[[#This Row],[OAT °F]]*tbl_HVAC_Airside_Calc_Engine4[[#This Row],[Occ OA Flow %]] -> 86.95879171 | AQ140: =IF(AND($F$130="yes",$F$131>tbl_HVAC_Airside_Calc_Engine4[[#This Row],[Occ MAT °F]]+$F$132,tbl_HVAC_Airside_Calc_Engine4[[#This Row],[Occ Hr]]>0),"Yes","No") -> No | AR140: =IF(tbl_HVAC_Airside_Calc_Engine4[[#This Row],[Occ Pre-Heat?]]="Yes",1.08*tbl_HVAC_Airside_Calc_Engine4[[#This Row],[Occ SF Flow %]]*$F$120*($F$131-(tbl_HVAC_Airside_Calc_Engine4[[#This Row],[Occ MAT °F]]+$F$132))/1000,0) -> 0 | AS140: =IF($O$118="Proposed Trend Data", IF(ISBLANK(tbl_HVAC_Airside_Calc_Engine4[[#This Row],[Occ SF Flow (%), Prop Trend]]),MEDIAN(MIN(tbl_HVAC_Airside_Calc_Engine4[Occ SF Flow (%), Prop Trend]),100%,FORECAST(tbl_HVAC_Airside_Calc_Engine4[[#This Row],[OAT °F]],tbl_HVAC_Airside_Calc_Engine4[Occ SF Flow (%), Prop Trend],tbl_HVAC_Airside_Calc_Engine4[OAT °F])),tbl_HVAC_Airside_Calc_Engine4[[#This Row],[Occ SF Flow (%), Prop Trend]]), IF(AND($F$106="Proposed",$M$65="Enable",$M$68="Sub-Enable",$K$67="Simple Data"),IF(tbl_HVAC_Airside_Calc_Engine4[[#This Row],[OAT °F]]<$O$123,TREND($O$122:$P$122,$O$123:$P$123,MEDIAN(tbl_HVAC_Airside_Calc_Engine4[[#This Row],[OAT °F]],$O$123,$P$123)),TREND($O$120:$P$120,$O$121:$P$121,MEDIAN($O$121,$P$121,tbl_HVAC_Airside_Calc_Engine4[[#This Row],[OAT °F]]))), tbl_HVAC_Airside_Calc_Engine4[[#This Row],[Occ SF Flow %, Base]]+tbl_HVAC_Airside_Calc_Engine4[[#This Row],[Occ Prop Net Fan Flow Adj]])) -> 1 | AT140: =IF(tbl_HVAC_Airside_Calc_Engine4[[#This Row],[OAT °F]]>$F$118,MAX(1.08*$F$120*(tbl_HVAC_Airside_Calc_Engine4[[#This Row],[Occ SF Flow %]]*(tbl_HVAC_Airside_Calc_Engine4[[#This Row],[Occ MAT °F]]-tbl_HVAC_Airside_Calc_Engine4[[#This Row],[Occ SAT °F]])/12000),0),0) -> 288.6362783 | AU140: =IF(AND(tbl_HVAC_Airside_Calc_Engine4[[#This Row],[OAT °F]]<$F$117,tbl_HVAC_Airside_Calc_Engine4[[#This Row],[Occ Hr]]>0),(1.08*$F$120*tbl_HVAC_Airside_Calc_Engine4[[#This Row],[Occ RH Box Flow %]]*(tbl_HVAC_Airside_Calc_Engine4[[#This Row],[Occ RH VAV DAT °F]]-IF(tbl_HVAC_Airside_Calc_Engine4[[#This Row],[Occ Pre-Heat?]]="yes",$F$131,MIN(tbl_HVAC_Airside_Calc_Engine4[[#This Row],[Occ SAT °F]],tbl_HVAC_Airside_Calc_Engine4[[#This Row],[Occ MAT °F]])))/10^3),0) -> 0 | AV140: =tbl_HVAC_Airside_Calc_Engine4[[#This Row],[Occ Pre-Heat Load, kBtu]]+tbl_HVAC_Airside_Calc_Engine4[[#This Row],[Occ Re-Heating Load, kBtu]] -> 0 | AW140: =tbl_HVAC_Airside_Calc_Engine4[[#This Row],[Occ SF Flow %]]*$F$125 -> 1 | AX140: =IF(AND(tbl_HVAC_Airside_Calc_Engine4[[#This Row],[Occ SF Flow %]]>0,tbl_HVAC_Airside_Calc_Engine4[[#This Row],[Occ Hr]]>0),$F$119*0.746/$W$109/IF($F$121="VFD",$X$110,1)*(($Z$107+$Z$108*tbl_HVAC_Airside_Calc_Engine4[[#This Row],[Occ SF Flow %]]+$Z$109*tbl_HVAC_Airside_Calc_Engine4[[#This Row],[Occ SF Flow %]]^2+$Z$110*tbl_HVAC_Airside_Calc_Engine4[[#This Row],[Occ SF Flow %]]^3) ),0) -> 0 | AY140: =IF(AND(tbl_HVAC_Airside_Calc_Engine4[[#This Row],[Occ RF Flow %]]>0,tbl_HVAC_Airside_Calc_Engine4[[#This Row],[Occ Hr]]>0),$F$122*0.746/$W$110/IF($F$124="VFD",$X$110,1)*($AB$107+$AB$108*tbl_HVAC_Airside_Calc_Engine4[[#This Row],[Occ RF Flow %]]+$AB$109*tbl_HVAC_Airside_Calc_Engine4[[#This Row],[Occ RF Flow %]]^2+$AB$110*tbl_HVAC_Airside_Calc_Engine4[[#This Row],[Occ RF Flow %]]^3),0) -> 0 | AZ140: =tbl_HVAC_Airside_Calc_Engine4[[#This Row],[Occ SF kW]]+tbl_HVAC_Airside_Calc_Engine4[[#This Row],[Occ RF kW]] -> 0 | BA140: =IF(tbl_HVAC_Airside_Calc_Engine4[[#This Row],[Occ Hr]]>0,$F$113*tbl_HVAC_Airside_Calc_Engine4[[#This Row],[Occ Cooling Load, Ton]]+IF($F$114="Electric",(tbl_HVAC_Airside_Calc_Engine4[[#This Row],[Occ Total Heating Load, kBtu]])/$F$116,0),0) -> 0 | BB140: =IFERROR(IF($F$49="Baseline Trend Data", IF(ISBLANK(tbl_HVAC_Airside_Calc_Engine4[[#This Row],[UnOcc SAT (°F), Base Trend]]),MEDIAN(MIN(tbl_HVAC_Airside_Calc_Engine4[UnOcc SAT (°F), Base Trend]),MAX(tbl_HVAC_Airside_Calc_Engine4[UnOcc SAT (°F), Base Trend]),FORECAST(tbl_HVAC_Airside_Calc_Engine4[[#This Row],[OAT °F]],tbl_HVAC_Airside_Calc_Engine4[UnOcc SAT (°F), Base Trend],tbl_HVAC_Airside_Calc_Engine4[OAT °F])),tbl_HVAC_Airside_Calc_Engine4[[#This Row],[UnOcc SAT (°F), Base Trend]]), FORECAST(MEDIAN($F$58,$G$58,tbl_HVAC_Airside_Calc_Engine4[[#This Row],[OAT °F]]),$F$57:$G$57,$F$58:$G$58)),0) -> 55 | BC140: =IF($M$47 = "Disable",tbl_HVAC_Airside_Calc_Engine4[[#This Row],[Unocc Base SAT °F]],IFERROR(IF($K$49="Proposed Trend Data", IF(ISBLANK(tbl_HVAC_Airside_Calc_Engine4[[#This Row],[UnOcc SAT (°F), Prop Trend]]),MEDIAN(MIN(tbl_HVAC_Airside_Calc_Engine4[UnOcc SAT (°F), Prop Trend]),MAX(tbl_HVAC_Airside_Calc_Engine4[UnOcc SAT (°F), Prop Trend]),FORECAST(tbl_HVAC_Airside_Calc_Engine4[[#This Row],[OAT °F]],tbl_HVAC_Airside_Calc_Engine4[UnOcc SAT (°F), Prop Trend],tbl_HVAC_Airside_Calc_Engine4[OAT °F])),tbl_HVAC_Airside_Calc_Engine4[[#This Row],[UnOcc SAT (°F), Prop Trend]]), FORECAST(MEDIAN($K$58,$L$58,tbl_HVAC_Airside_Calc_Engine4[[#This Row],[OAT °F]]),$K$57:$L$57,$K$58:$L$58)),0)) -> 55 | BD140: =tbl_HVAC_Airside_Calc_Engine4[[#This Row],[Unocc SAT °F]]-tbl_HVAC_Airside_Calc_Engine4[[#This Row],[Unocc Base SAT °F]] -> 0 | BE140: =IFERROR(IF($F$105="Baseline",tbl_HVAC_Airside_Calc_Engine4[[#This Row],[Unocc Base SAT °F]],tbl_HVAC_Airside_Calc_Engine4[[#This Row],[Unocc Prop SAT °F]]),0) -> 55 | BF140: =IF($K$128="Proposed Trend Data",IF(ISBLANK(tbl_HVAC_Airside_Calc_Engine4[[#This Row],[UnOcc RH Box VAV Flow (%), Prop Trend]]),MEDIAN(tbl_HVAC_Airside_Calc_Engine4[[#This Row],[Unocc SF Flow %]],MIN(tbl_HVAC_Airside_Calc_Engine4[UnOcc RH Box VAV Flow (%), Prop Trend]),FORECAST(tbl_HVAC_Airside_Calc_Engine4[[#This Row],[OAT °F]],tbl_HVAC_Airside_Calc_Engine4[UnOcc RH Box VAV Flow (%), Prop Trend],tbl_HVAC_Airside_Calc_Engine4[OAT °F])),tbl_HVAC_Airside_Calc_Engine4[[#This Row],[UnOcc RH Box VAV Flow (%), Prop Trend]]), IF(AND($K$128="Auto Calc",$M$65="Enable",$M$75="Sub-Enable"),tbl_HVAC_Airside_Calc_Engine4[[#This Row],[Unocc SF Flow %]]*tbl_HVAC_Airside_Calc_Engine4[[#This Row],[Unocc RH to SF Ratio, Base]], tbl_HVAC_Airside_Calc_Engine4[[#This Row],[Unocc RH Box Flow %, Base]]+tbl_HVAC_Airside_Calc_Engine4[[#This Row],[Unocc Prop Fan Flow Adj (Tempered Cooling)]]+IFERROR(( tbl_HVAC_Airside_Calc_Engine4[[#This Row],[Unocc RH Box Flow %, Base]]-tbl_HVAC_Airside_Calc_Engine4[[#This Row],[Unocc Tempered Cooling Flow %, Base]]-tbl_HVAC_Airside_Calc_Engine4[[#This Row],[Unocc Heating Only Flow %, Base]])/tbl_HVAC_Airside_Calc_Engine4[[#This Row],[Unocc SF Flow %, Base]],0)*tbl_HVAC_Airside_Calc_Engine4[[#This Row],[Unocc Prop Fan Flow Adj (Cooling Only)]])) -> 0.3 | BG140: =IF($K$128="Proposed Trend Data", IF(ISBLANK(tbl_HVAC_Airside_Calc_Engine4[[#This Row],[UnOcc RH VAV DAT (°F), Prop Trend]]),MEDIAN(tbl_HVAC_Airside_Calc_Engine4[[#This Row],[Unocc Prop SAT °F]],MAX(tbl_HVAC_Airside_Calc_Engine4[UnOcc RH VAV DAT (°F), Prop Trend]),FORECAST(tbl_HVAC_Airside_Calc_Engine4[[#This Row],[OAT °F]],tbl_HVAC_Airside_Calc_Engine4[UnOcc RH VAV DAT (°F), Prop Trend],tbl_HVAC_Airside_Calc_Engine4[OAT °F])),tbl_HVAC_Airside_Calc_Engine4[[#This Row],[UnOcc RH VAV DAT (°F), Prop Trend]]), tbl_HVAC_Airside_Calc_Engine4[[#This Row],[Unocc RH DAT °F Adj]]) -> 55 | BH140: =IF($O$130="Baseline Trend Data", IF(ISBLANK(tbl_HVAC_Airside_Calc_Engine4[[#This Row],[UnOcc RAT (°F), Base Trend]]),MEDIAN(MIN(tbl_HVAC_Airside_Calc_Engine4[UnOcc RAT (°F), Base Trend]),MAX(tbl_HVAC_Airside_Calc_Engine4[UnOcc RAT (°F), Base Trend]),FORECAST(tbl_HVAC_Airside_Calc_Engine4[[#This Row],[OAT °F]], tbl_HVAC_Airside_Calc_Engine4[UnOcc RAT (°F), Base Trend],tbl_HVAC_Airside_Calc_Engine4[OAT °F])),tbl_HVAC_Airside_Calc_Engine4[[#This Row],[UnOcc RAT (°F), Base Trend]]), IF($O$130="Proposed Trend Data",IF(ISBLANK(tbl_HVAC_Airside_Calc_Engine4[[#This Row],[UnOcc RAT (°F), Prop Trend]]),MEDIAN(MIN(tbl_HVAC_Airside_Calc_Engine4[UnOcc RAT (°F), Prop Trend]),MAX(tbl_HVAC_Airside_Calc_Engine4[UnOcc RAT (°F), Prop Trend]),FORECAST(tbl_HVAC_Airside_Calc_Engine4[[#This Row],[OAT °F]],tbl_HVAC_Airside_Calc_Engine4[UnOcc RAT (°F), Prop Trend],tbl_HVAC_Airside_Calc_Engine4[OAT °F])),tbl_HVAC_Airside_Calc_Engine4[[#This Row],[UnOcc RAT (°F), Prop Trend]]), MEDIAN($P$133,$O$133,tbl_HVAC_Airside_Calc_Engine4[[#This Row],[OAT °F]]))) -> 75 | BI140: =MEDIAN(0,1,IF($K$119="Baseline Trend Data", IF(ISBLANK(tbl_HVAC_Airside_Calc_Engine4[[#This Row],[UnOcc OA Flow (%), Base Trend]]),MEDIAN(MIN(tbl_HVAC_Airside_Calc_Engine4[UnOcc OA Flow (%), Base Trend]),MAX(tbl_HVAC_Airside_Calc_Engine4[UnOcc OA Flow (%), Base Trend]),FORECAST(tbl_HVAC_Airside_Calc_Engine4[[#This Row],[OAT °F]],tbl_HVAC_Airside_Calc_Engine4[UnOcc OA Flow (%), Base Trend],tbl_HVAC_Airside_Calc_Engine4[OAT °F])),tbl_HVAC_Airside_Calc_Engine4[[#This Row],[UnOcc OA Flow (%), Base Trend]]), IF($K$119="Proposed Trend Data",IF(ISBLANK(tbl_HVAC_Airside_Calc_Engine4[[#This Row],[Unocc OA Flow (%), Prop Trend]]),MEDIAN(MIN(tbl_HVAC_Airside_Calc_Engine4[Unocc OA Flow (%), Prop Trend]),MAX(tbl_HVAC_Airside_Calc_Engine4[Unocc OA Flow (%), Prop Trend]),FORECAST(tbl_HVAC_Airside_Calc_Engine4[[#This Row],[OAT °F]],tbl_HVAC_Airside_Calc_Engine4[Unocc OA Flow (%), Prop Trend],tbl_HVAC_Airside_Calc_Engine4[OAT °F])),tbl_HVAC_Airside_Calc_Engine4[[#This Row],[Unocc OA Flow (%), Prop Trend]]), IFERROR(IF((tbl_HVAC_Airside_Calc_Engine4[[#This Row],[OAT °F]]>$K$124),$K$123,MAX($K$123,MIN($L$123,(tbl_HVAC_Airside_Calc_Engine4[[#This Row],[Unocc SAT °F]]-tbl_HVAC_Airside_Calc_Engine4[[#This Row],[UnOcc RAT °F]])/(tbl_HVAC_Airside_Calc_Engine4[[#This Row],[OAT °F]]-tbl_HVAC_Airside_Calc_Engine4[[#This Row],[UnOcc RAT °F]])))),$K$123)))) -> 0 | BJ140: =tbl_HVAC_Airside_Calc_Engine4[[#This Row],[UnOcc RAT °F]]*(1-tbl_HVAC_Airside_Calc_Engine4[[#This Row],[Unocc OA Flow %]])+tbl_HVAC_Airside_Calc_Engine4[[#This Row],[OAT °F]]*tbl_HVAC_Airside_Calc_Engine4[[#This Row],[Unocc OA Flow %]] -> 75 | BK140: =IF(AND($F$130="yes",$F$131>tbl_HVAC_Airside_Calc_Engine4[[#This Row],[UnOcc MAT °F]]+$F$132,tbl_HVAC_Airside_Calc_Engine4[[#This Row],[UnOcc Hr]]>0),"Yes","No") -> No | BL140: =IF(tbl_HVAC_Airside_Calc_Engine4[[#This Row],[Unocc Pre-Heat?]]="Yes",1.08*tbl_HVAC_Airside_Calc_Engine4[[#This Row],[Unocc SF Flow %]]*$F$120*($F$131-(tbl_HVAC_Airside_Calc_Engine4[[#This Row],[UnOcc MAT °F]]+$F$132))/1000,0) -> 0 | BM140: =IF($O$118="Proposed Trend Data", IF(ISBLANK(tbl_HVAC_Airside_Calc_Engine4[[#This Row],[Unocc SF Flow (%), Prop Trend]]),MEDIAN(MIN(tbl_HVAC_Airside_Calc_Engine4[Unocc SF Flow (%), Prop Trend]),100%,FORECAST(tbl_HVAC_Airside_Calc_Engine4[[#This Row],[OAT °F]],tbl_HVAC_Airside_Calc_Engine4[Unocc SF Flow (%), Prop Trend],tbl_HVAC_Airside_Calc_Engine4[OAT °F])),tbl_HVAC_Airside_Calc_Engine4[[#This Row],[Unocc SF Flow (%), Prop Trend]]), IF(AND($F$106="Proposed",$M$65="Enable",$M$75="Sub-Enable",$K$67="Simple Data"),IF(tbl_HVAC_Airside_Calc_Engine4[[#This Row],[OAT °F]]<$O$128,TREND($O$127:$P$127,$O$128:$P$128,MEDIAN(tbl_HVAC_Airside_Calc_Engine4[[#This Row],[OAT °F]],$O$128,$P$128)),TREND($O$125:$P$125,$O$126:$P$126,MEDIAN($O$126,$P$126,tbl_HVAC_Airside_Calc_Engine4[[#This Row],[OAT °F]]))), tbl_HVAC_Airside_Calc_Engine4[[#This Row],[Unocc SF Flow %, Base]]+tbl_HVAC_Airside_Calc_Engine4[[#This Row],[Unocc Prop Net Fan Flow Adj]])) -> 0.3 | BN140: =IF(tbl_HVAC_Airside_Calc_Engine4[[#This Row],[OAT °F]]>$F$118,MAX(1.08*$F$120*(tbl_HVAC_Airside_Calc_Engine4[[#This Row],[Unocc SF Flow %]]*(tbl_HVAC_Airside_Calc_Engine4[[#This Row],[UnOcc MAT °F]]-tbl_HVAC_Airside_Calc_Engine4[[#This Row],[Unocc SAT °F]])/12000),0),0) -> 54.18908467 | BO140: =IF(AND(tbl_HVAC_Airside_Calc_Engine4[[#This Row],[UnOcc Hr]]>0,tbl_HVAC_Airside_Calc_Engine4[[#This Row],[OAT °F]]<$F$117),(1.08*$F$120*tbl_HVAC_Airside_Calc_Engine4[[#This Row],[Unocc RH Box Flow %]]*(tbl_HVAC_Airside_Calc_Engine4[[#This Row],[Unocc RH VAV DAT °F]]-IF(tbl_HVAC_Airside_Calc_Engine4[[#This Row],[Unocc Pre-Heat?]]="yes",$F$131,MIN(tbl_HVAC_Airside_Calc_Engine4[[#This Row],[Unocc SAT °F]],tbl_HVAC_Airside_Calc_Engine4[[#This Row],[UnOcc MAT °F]])))/10^3),0) -> 0 | BP140: =tbl_HVAC_Airside_Calc_Engine4[[#This Row],[Unocc Pre-Heat Load, kBtu]]+tbl_HVAC_Airside_Calc_Engine4[[#This Row],[Unocc Re-Heating Load, kBtu]] -> 0 | BQ140: =tbl_HVAC_Airside_Calc_Engine4[[#This Row],[Unocc SF Flow %]]*$F$125 -> 0.3 | BR140: =IF(AND(tbl_HVAC_Airside_Calc_Engine4[[#This Row],[Unocc SF Flow %]]>0,tbl_HVAC_Airside_Calc_Engine4[[#This Row],[UnOcc Hr]]>0),$F$119*0.746/$W$109/IF($F$121="VFD",$X$110,1)*(($Z$107+$Z$108*tbl_HVAC_Airside_Calc_Engine4[[#This Row],[Unocc SF Flow %]]+$Z$109*tbl_HVAC_Airside_Calc_Engine4[[#This Row],[Unocc SF Flow %]]^2+$Z$110*tbl_HVAC_Airside_Calc_Engine4[[#This Row],[Unocc SF Flow %]]^3) ),0) -> 0 | BS140: =IF(AND(tbl_HVAC_Airside_Calc_Engine4[[#This Row],[Unocc RF Flow %]]>0,tbl_HVAC_Airside_Calc_Engine4[[#This Row],[UnOcc Hr]]>0),$F$122*0.746/$W$110/IF($F$124="VFD",$X$110,1)*($AB$107+$AB$108*tbl_HVAC_Airside_Calc_Engine4[[#This Row],[Unocc RF Flow %]]+$AB$109*tbl_HVAC_Airside_Calc_Engine4[[#This Row],[Unocc RF Flow %]]^2+$AB$110*tbl_HVAC_Airside_Calc_Engine4[[#This Row],[Unocc RF Flow %]]^3),0) -> 0 | BT140: =tbl_HVAC_Airside_Calc_Engine4[[#This Row],[Unocc SF kW]]+tbl_HVAC_Airside_Calc_Engine4[[#This Row],[Unocc RF kW]] -> 0 | BU140: =IF(tbl_HVAC_Airside_Calc_Engine4[[#This Row],[UnOcc Hr]]>0,$F$113*tbl_HVAC_Airside_Calc_Engine4[[#This Row],[Unocc Cooling Load, Ton]]+IF($F$114="Electric",(tbl_HVAC_Airside_Calc_Engine4[[#This Row],[Unocc Total Heating Load, kBtu]])/$F$116,0),0) -> 0 | BV140: =tbl_HVAC_Airside_Calc_Engine4[[#This Row],[Occ Hr]]*(tbl_HVAC_Airside_Calc_Engine4[[#This Row],[Occ SF kW]]+tbl_HVAC_Airside_Calc_Engine4[[#This Row],[Occ RF kW]])+tbl_HVAC_Airside_Calc_Engine4[[#This Row],[UnOcc Hr]]*(tbl_HVAC_Airside_Calc_Engine4[[#This Row],[Unocc SF kW]]+tbl_HVAC_Airside_Calc_Engine4[[#This Row],[Unocc RF kW]]) -> 0 | BW140: =tbl_HVAC_Airside_Calc_Engine4[[#This Row],[Occ Load kW]]*tbl_HVAC_Airside_Calc_Engine4[[#This Row],[Occ Hr]]+tbl_HVAC_Airside_Calc_Engine4[[#This Row],[Unocc Load kW]]*tbl_HVAC_Airside_Calc_Engine4[[#This Row],[UnOcc Hr]] -> 0 | BX140: =IF($F$114="Gas",(tbl_HVAC_Airside_Calc_Engine4[[#This Row],[Occ Pre-Heat Load, kBtu]]+tbl_HVAC_Airside_Calc_Engine4[[#This Row],[Occ Re-Heating Load, kBtu]])/100/$F$115*tbl_HVAC_Airside_Calc_Engine4[[#This Row],[Occ Hr]]+(tbl_HVAC_Airside_Calc_Engine4[[#This Row],[Unocc Pre-Heat Load, kBtu]]+tbl_HVAC_Airside_Calc_Engine4[[#This Row],[Unocc Re-Heating Load, kBtu]])/100/$F$115*tbl_HVAC_Airside_Calc_Engine4[[#This Row],[UnOcc Hr]],0) -> 0 | BY140: =MEDIAN(0,1,IF($F$31="Baseline Trend Data",IF(ISBLANK(tbl_HVAC_Airside_Calc_Engine4[[#This Row],[Occ OA Flow (%), Base Trend]]),MEDIAN(MIN(tbl_HVAC_Airside_Calc_Engine4[Occ OA Flow (%), Base Trend]),MAX(tbl_HVAC_Airside_Calc_Engine4[Occ OA Flow (%), Base Trend]),FORECAST(tbl_HVAC_Airside_Calc_Engine4[[#This Row],[OAT °F]],tbl_HVAC_Airside_Calc_Engine4[Occ OA Flow (%), Base Trend],tbl_HVAC_Airside_Calc_Engine4[OAT °F])),tbl_HVAC_Airside_Calc_Engine4[[#This Row],[Occ OA Flow (%), Base Trend]]), IFERROR(IF((tbl_HVAC_Airside_Calc_Engine4[[#This Row],[OAT °F]]>$F$35),$F$34,MAX($F$34,MIN($G$34,(tbl_HVAC_Airside_Calc_Engine4[[#This Row],[Occ Base SAT °F]]-tbl_HVAC_Airside_Calc_Engine4[[#This Row],[Occ RAT °F, Base]])/(tbl_HVAC_Airside_Calc_Engine4[[#This Row],[OAT °F]]-tbl_HVAC_Airside_Calc_Engine4[[#This Row],[Occ RAT °F, Base]])))),$F$34))) -> 0.2989697927 | BZ140: =MIN(100%,IF($F$67="Baseline Trend Data", IF(ISBLANK(tbl_HVAC_Airside_Calc_Engine4[[#This Row],[Occ SF Flow (%), Base Trend]]),MEDIAN(MIN(tbl_HVAC_Airside_Calc_Engine4[Occ SF Flow (%), Base Trend]),1,FORECAST(tbl_HVAC_Airside_Calc_Engine4[[#This Row],[OAT °F]],tbl_HVAC_Airside_Calc_Engine4[Occ SF Flow (%), Base Trend],tbl_HVAC_Airside_Calc_Engine4[OAT °F])),tbl_HVAC_Airside_Calc_Engine4[[#This Row],[Occ SF Flow (%), Base Trend]]), IF(tbl_HVAC_Airside_Calc_Engine4[[#This Row],[OAT °F]]<$F$73,TREND($F$72:$G$72,$F$73:$G$73,MEDIAN(tbl_HVAC_Airside_Calc_Engine4[[#This Row],[OAT °F]],$F$73,$G$73)), TREND($F$70:$G$70,$F$71:$G$71,MEDIAN($F$71,$G$71,tbl_HVAC_Airside_Calc_Engine4[[#This Row],[OAT °F]]))))) -> 1 | CA140: =MAX(0,MIN(100%,IF($F$82="Baseline Trend Data", IF(ISBLANK(tbl_HVAC_Airside_Calc_Engine4[[#This Row],[Occ RH Box VAV Flow (%), Base Trend]]),MEDIAN(MIN(tbl_HVAC_Airside_Calc_Engine4[Occ RH Box VAV Flow (%), Base Trend]),tbl_HVAC_Airside_Calc_Engine4[[#This Row],[Occ SF Flow %, Base]],FORECAST(tbl_HVAC_Airside_Calc_Engine4[[#This Row],[OAT °F]],tbl_HVAC_Airside_Calc_Engine4[Occ RH Box VAV Flow (%), Base Trend],tbl_HVAC_Airside_Calc_Engine4[OAT °F])),tbl_HVAC_Airside_Calc_Engine4[[#This Row],[Occ RH Box VAV Flow (%), Base Trend]]), tbl_HVAC_Airside_Calc_Engine4[[#This Row],[Occ SF Flow %, Base]]*$F$84))) -> 1 | CB140: =IFERROR(tbl_HVAC_Airside_Calc_Engine4[[#This Row],[Occ RH Box Flow %, Base]]/tbl_HVAC_Airside_Calc_Engine4[[#This Row],[Occ SF Flow %, Base]],0) -> 1 | CC140: =IF($F$82="Baseline Trend Data", IF(ISBLANK(tbl_HVAC_Airside_Calc_Engine4[[#This Row],[Occ RH VAV DAT (°F), Base Trend]]),MEDIAN(tbl_HVAC_Airside_Calc_Engine4[[#This Row],[Occ Base SAT °F]],MAX(tbl_HVAC_Airside_Calc_Engine4[Occ RH VAV DAT (°F), Base Trend]),FORECAST(tbl_HVAC_Airside_Calc_Engine4[[#This Row],[OAT °F]],tbl_HVAC_Airside_Calc_Engine4[Occ RH VAV DAT (°F), Base Trend],tbl_HVAC_Airside_Calc_Engine4[OAT °F])),tbl_HVAC_Airside_Calc_Engine4[[#This Row],[Occ RH VAV DAT (°F), Base Trend]]), MIN($F$90,tbl_HVAC_Airside_Calc_Engine4[[#This Row],[Occ Base SAT °F]]+MAX(0,($F$90-tbl_HVAC_Airside_Calc_Engine4[[#This Row],[Occ Base SAT °F]])*(($F$85-tbl_HVAC_Airside_Calc_Engine4[[#This Row],[OAT °F]])/($F$85-IF($F$88="yes",$F$89,$F$87)))))) -> 55 | CD140: =IF($F$96="Baseline Trend Data", IF(ISBLANK(tbl_HVAC_Airside_Calc_Engine4[[#This Row],[ Occ RAT (°F), Base Trend]]),MEDIAN(MIN($O$140:$O$245),MAX($O$140:$O$245),FORECAST(tbl_HVAC_Airside_Calc_Engine4[[#This Row],[OAT °F]],$O$140:$O$245,tbl_HVAC_Airside_Calc_Engine4[OAT °F])),tbl_HVAC_Airside_Calc_Engine4[[#This Row],[ Occ RAT (°F), Base Trend]]), MEDIAN($G$94,$F$94,tbl_HVAC_Airside_Calc_Engine4[[#This Row],[OAT °F]])) -> 75 | CE140: =IF(tbl_HVAC_Airside_Calc_Engine4[[#This Row],[Occ DAT °F, Base]]>$F$94,tbl_HVAC_Airside_Calc_Engine4[[#This Row],[Occ RH Box Flow %, Base]],0) -> 0 | CF140: =tbl_HVAC_Airside_Calc_Engine4[[#This Row],[Occ SF Flow %, Base]]-tbl_HVAC_Airside_Calc_Engine4[[#This Row],[Occ Heating Only Flow %, Base]]-tbl_HVAC_Airside_Calc_Engine4[[#This Row],[Occ Tempered Cooling Flow %, Base]] -> 1 | CG140: =IF(AND(tbl_HVAC_Airside_Calc_Engine4[[#This Row],[Occ DAT °F, Base]]<=$F$94,tbl_HVAC_Airside_Calc_Engine4[[#This Row],[Occ DAT °F, Base]]>tbl_HVAC_Airside_Calc_Engine4[[#This Row],[Occ Base SAT °F]]),tbl_HVAC_Airside_Calc_Engine4[[#This Row],[Occ RH Box Flow %, Base]],0) -> 0 | CH140: =SUM(tbl_HVAC_Airside_Calc_Engine4[[#This Row],[Occ Heating Only Flow %, Base]:[Occ Tempered Cooling Flow %, Base]]) -> 1 | CI140: =1.08*tbl_HVAC_Airside_Calc_Engine4[[#This Row],[Occ Heating Only Flow %, Base]]*$F$120*(tbl_HVAC_Airside_Calc_Engine4[[#This Row],[Occ DAT °F, Base]]-$F$94)/1000 -> 0 | CJ140: =1.08*tbl_HVAC_Airside_Calc_Engine4[[#This Row],[Occ Cooling Only Flow %, Base]]*$F$120*($G$94-tbl_HVAC_Airside_Calc_Engine4[[#This Row],[Occ Base SAT °F]])/1000 -> 2167.563387 | CK140: =1.08*tbl_HVAC_Airside_Calc_Engine4[[#This Row],[Occ Tempered Cooling Flow %, Base]]*$F$120*($F$94-tbl_HVAC_Airside_Calc_Engine4[[#This Row],[Occ DAT °F, Base]])/1000 -> 0 | CL140: =IF(AND($F$106="Proposed",$M$65="Enable",$M$68="Sub-Enable"),IFERROR(tbl_HVAC_Airside_Calc_Engine4[[#This Row],[Occ SF Flow %]]/tbl_HVAC_Airside_Calc_Engine4[[#This Row],[Occ SF Flow %, Base]],0),100%) -> 1 | CM140: =IF($F$126="Constant Air Volume",0%,IFERROR((tbl_HVAC_Airside_Calc_Engine4[[#This Row],[Occ Space Cooling Only Load kBtu/h, Base]]*1000/(1.08*($P$132-tbl_HVAC_Airside_Calc_Engine4[[#This Row],[Occ SAT °F]]))-tbl_HVAC_Airside_Calc_Engine4[[#This Row],[Occ Cooling Only Flow %, Base]]*$F$120)/$F$120,0)) -> 0 | CN140: =IF($F$126="Constant Air Volume",0%,IFERROR(MAX(0,tbl_HVAC_Airside_Calc_Engine4[[#This Row],[Occ Space Tempered Cooling Load kBtu/h, Base]]*1000/(1.08*($P$132-tbl_HVAC_Airside_Calc_Engine4[[#This Row],[Occ RH VAV DAT °F]]))-tbl_HVAC_Airside_Calc_Engine4[[#This Row],[Occ Tempered Cooling Flow %, Base]]*$F$120)/$F$120,0)) -> 0 | CO140: =IF($F$126="Constant Air Volume",0%,tbl_HVAC_Airside_Calc_Engine4[[#This Row],[Occ Prop Fan Flow Adj (Cooling Only)]]+tbl_HVAC_Airside_Calc_Engine4[[#This Row],[Occ Prop Fan Flow Adj (Tempered Cooling)]]) -> 0 | CP140: =MAX(IF(tbl_HVAC_Airside_Calc_Engine4[[#This Row],[Occ Space Heating Only Load kBtu/h, Base]]>0,tbl_HVAC_Airside_Calc_Engine4[[#This Row],[Occ Space Heating Only Load kBtu/h, Base]]*1000/(1.08*tbl_HVAC_Airside_Calc_Engine4[[#This Row],[Occ Heating Only Flow %, Base]]*tbl_HVAC_Airside_Calc_Engine4[[#This Row],[Occ SF Manual Prop Airflow Adj to Base Ratio]]*$F$120)+$O$132,IF(tbl_HVAC_Airside_Calc_Engine4[[#This Row],[Occ Space Tempered Cooling Load kBtu/h, Base]]>0,$O$132-tbl_HVAC_Airside_Calc_Engine4[[#This Row],[Occ Space Tempered Cooling Load kBtu/h, Base]]*1000/(1.08*tbl_HVAC_Airside_Calc_Engine4[[#This Row],[Occ Tempered Cooling Flow %, Base]]*tbl_HVAC_Airside_Calc_Engine4[[#This Row],[Occ SF Manual Prop Airflow Adj to Base Ratio]]*$F$120),tbl_HVAC_Airside_Calc_Engine4[[#This Row],[Occ DAT °F, Base]])),tbl_HVAC_Airside_Calc_Engine4[[#This Row],[Occ SAT °F]]) -> 55 | CQ140: =MEDIAN(0,1,IF($F$31="Baseline Trend Data",IF(ISBLANK(tbl_HVAC_Airside_Calc_Engine4[[#This Row],[UnOcc OA Flow (%), Base Trend]]),MEDIAN(MIN(tbl_HVAC_Airside_Calc_Engine4[UnOcc OA Flow (%), Base Trend]),MAX(tbl_HVAC_Airside_Calc_Engine4[UnOcc OA Flow (%), Base Trend]),FORECAST(tbl_HVAC_Airside_Calc_Engine4[[#This Row],[OAT °F]],tbl_HVAC_Airside_Calc_Engine4[UnOcc OA Flow (%), Base Trend],tbl_HVAC_Airside_Calc_Engine4[OAT °F])),tbl_HVAC_Airside_Calc_Engine4[[#This Row],[UnOcc OA Flow (%), Base Trend]]), IFERROR(IF((tbl_HVAC_Airside_Calc_Engine4[[#This Row],[OAT °F]]>$F$40),$F$39,MAX($F$39,MIN($G$39,(tbl_HVAC_Airside_Calc_Engine4[[#This Row],[Unocc Base SAT °F]]-tbl_HVAC_Airside_Calc_Engine4[[#This Row],[Unocc RAT °F, Base]])/(tbl_HVAC_Airside_Calc_Engine4[[#This Row],[OAT °F]]-tbl_HVAC_Airside_Calc_Engine4[[#This Row],[Unocc RAT °F, Base]])))),$F$39))) -> 0 | CR140: =MIN(100%,IF($F$67="Baseline Trend Data", IF(ISBLANK(tbl_HVAC_Airside_Calc_Engine4[[#This Row],[UnOcc SF Flow (%), Base Trend]]),MEDIAN(MIN(tbl_HVAC_Airside_Calc_Engine4[UnOcc SF Flow (%), Base Trend]),1,FORECAST(tbl_HVAC_Airside_Calc_Engine4[[#This Row],[OAT °F]],tbl_HVAC_Airside_Calc_Engine4[UnOcc SF Flow (%), Base Trend],tbl_HVAC_Airside_Calc_Engine4[OAT °F])),tbl_HVAC_Airside_Calc_Engine4[[#This Row],[UnOcc SF Flow (%), Base Trend]]), IF(tbl_HVAC_Airside_Calc_Engine4[[#This Row],[OAT °F]]<$F$80,TREND($F$79:$G$79,$F$80:$G$80,MEDIAN(tbl_HVAC_Airside_Calc_Engine4[[#This Row],[OAT °F]],$F$80,$G$80)), TREND($F$77:$G$77,$F$78:$G$78,MEDIAN($F$78,$G$78,tbl_HVAC_Airside_Calc_Engine4[[#This Row],[OAT °F]]))))) -> 0.3 | CS140: =MAX(0,MIN(100%,IF($F$82="Baseline Trend Data", IF(ISBLANK(tbl_HVAC_Airside_Calc_Engine4[[#This Row],[UnOcc RH Box VAV Flow (%), Base Trend]]),MEDIAN(MIN(tbl_HVAC_Airside_Calc_Engine4[UnOcc RH Box VAV Flow (%), Base Trend]),tbl_HVAC_Airside_Calc_Engine4[[#This Row],[Unocc SF Flow %, Base]],FORECAST(tbl_HVAC_Airside_Calc_Engine4[[#This Row],[OAT °F]],tbl_HVAC_Airside_Calc_Engine4[UnOcc RH Box VAV Flow (%), Base Trend],tbl_HVAC_Airside_Calc_Engine4[OAT °F])),tbl_HVAC_Airside_Calc_Engine4[[#This Row],[UnOcc RH Box VAV Flow (%), Base Trend]]), tbl_HVAC_Airside_Calc_Engine4[[#This Row],[Unocc SF Flow %, Base]]*$F$84))) -> 0.3 | CT140: =IFERROR(tbl_HVAC_Airside_Calc_Engine4[[#This Row],[Unocc RH Box Flow %, Base]]/tbl_HVAC_Airside_Calc_Engine4[[#This Row],[Unocc SF Flow %, Base]],0) -> 1 | CU140: =IF($F$82="Baseline Trend Data", IF(ISBLANK(tbl_HVAC_Airside_Calc_Engine4[[#This Row],[UnOcc RH VAV DAT (°F), Base Trend]]),MEDIAN(tbl_HVAC_Airside_Calc_Engine4[[#This Row],[Unocc Base SAT °F]],MAX(tbl_HVAC_Airside_Calc_Engine4[UnOcc RH VAV DAT (°F), Base Trend]),FORECAST(tbl_HVAC_Airside_Calc_Engine4[[#This Row],[OAT °F]],tbl_HVAC_Airside_Calc_Engine4[UnOcc RH VAV DAT (°F), Base Trend],tbl_HVAC_Airside_Calc_Engine4[OAT °F])),tbl_HVAC_Airside_Calc_Engine4[[#This Row],[UnOcc RH VAV DAT (°F), Base Trend]]), MIN($G$90,tbl_HVAC_Airside_Calc_Engine4[[#This Row],[Unocc Base SAT °F]]+MAX(0,($G$90-tbl_HVAC_Airside_Calc_Engine4[[#This Row],[Unocc Base SAT °F]])*(($G$85-tbl_HVAC_Airside_Calc_Engine4[[#This Row],[OAT °F]])/($G$85-IF($G$88="yes",$G$89,$G$87)))))) -> 55 | CV140: =IF($F$96="Baseline Trend Data", IF(ISBLANK(tbl_HVAC_Airside_Calc_Engine4[[#This Row],[UnOcc RAT (°F), Base Trend]]),MEDIAN(MIN(tbl_HVAC_Airside_Calc_Engine4[UnOcc RAT (°F), Base Trend]),MAX(tbl_HVAC_Airside_Calc_Engine4[UnOcc RAT (°F), Base Trend]),FORECAST(tbl_HVAC_Airside_Calc_Engine4[[#This Row],[OAT °F]],tbl_HVAC_Airside_Calc_Engine4[UnOcc RAT (°F), Base Trend],tbl_HVAC_Airside_Calc_Engine4[OAT °F])),tbl_HVAC_Airside_Calc_Engine4[[#This Row],[UnOcc RAT (°F), Base Trend]]), MEDIAN($G$95,$F$95,tbl_HVAC_Airside_Calc_Engine4[[#This Row],[OAT °F]])) -> 80 | CW140: =IF(tbl_HVAC_Airside_Calc_Engine4[[#This Row],[Unocc DAT °F, Base]]>$F$95,tbl_HVAC_Airside_Calc_Engine4[[#This Row],[Unocc RH Box Flow %, Base]],0) -> 0 | CX140: =tbl_HVAC_Airside_Calc_Engine4[[#This Row],[Unocc SF Flow %, Base]]-tbl_HVAC_Airside_Calc_Engine4[[#This Row],[Unocc Heating Only Flow %, Base]]-tbl_HVAC_Airside_Calc_Engine4[[#This Row],[Unocc Tempered Cooling Flow %, Base]] -> 0.3 | CY140: =IF(AND(tbl_HVAC_Airside_Calc_Engine4[[#This Row],[Unocc DAT °F, Base]]<=$F$95,tbl_HVAC_Airside_Calc_Engine4[[#This Row],[Unocc DAT °F, Base]]>tbl_HVAC_Airside_Calc_Engine4[[#This Row],[Unocc Base SAT °F]]),tbl_HVAC_Airside_Calc_Engine4[[#This Row],[Unocc RH Box Flow %, Base]],0) -> 0 | CZ140: =SUM(tbl_HVAC_Airside_Calc_Engine4[[#This Row],[Unocc Heating Only Flow %, Base]:[Unocc Tempered Cooling Flow %, Base]]) -> 0.3 | DA140: =1.08*tbl_HVAC_Airside_Calc_Engine4[[#This Row],[Unocc Heating Only Flow %, Base]]*$F$120*(tbl_HVAC_Airside_Calc_Engine4[[#This Row],[Unocc DAT °F, Base]]-$F$95)/1000 -> 0 | DB140: =1.08*tbl_HVAC_Airside_Calc_Engine4[[#This Row],[Unocc Cooling Only Flow %, Base]]*$F$120*($G$95-tbl_HVAC_Airside_Calc_Engine4[[#This Row],[Unocc Base SAT °F]])/1000 -> 812.8362701 | DC140: =1.08*tbl_HVAC_Airside_Calc_Engine4[[#This Row],[Unocc Tempered Cooling Flow %, Base]]*$F$120*($F$95-tbl_HVAC_Airside_Calc_Engine4[[#This Row],[Unocc DAT °F, Base]])/1000 -> 0 | DD140: =IF(AND($F$106="Proposed",$M$65="Enable",$M$75="Sub-Enable"),IF(tbl_HVAC_Airside_Calc_Engine4[[#This Row],[Unocc SF Flow %]]/tbl_HVAC_Airside_Calc_Engine4[[#This Row],[Unocc SF Flow %, Base]]=0,1,IFERROR(tbl_HVAC_Airside_Calc_Engine4[[#This Row],[Unocc SF Flow %]]/tbl_HVAC_Airside_Calc_Engine4[[#This Row],[Unocc SF Flow %, Base]],1)),100%) -> 1 | DE140: =IF($F$126="Constant Air Volume",0%,IFERROR((tbl_HVAC_Airside_Calc_Engine4[[#This Row],[Unocc Space Cooling Only Load kBtu/h, Base]]*1000/(1.08*($P$133-tbl_HVAC_Airside_Calc_Engine4[[#This Row],[Unocc SAT °F]]))-tbl_HVAC_Airside_Calc_Engine4[[#This Row],[Unocc Cooling Only Flow %, Base]]*$F$120)/$F$120,0)) -> 0 | DF140: =IF($F$126="Constant Air Volume",0%,IFERROR(MAX(0,tbl_HVAC_Airside_Calc_Engine4[[#This Row],[Unocc Space Tempered Cooling Load kBtu/h, Base]]*1000/(1.08*($P$133-tbl_HVAC_Airside_Calc_Engine4[[#This Row],[Unocc RH VAV DAT °F]]))-tbl_HVAC_Airside_Calc_Engine4[[#This Row],[Unocc Tempered Cooling Flow %, Base]]*$F$120)/$F$120,0)) -> 0 | DG140: =IF($F$126="Constant Air Volume",0%,tbl_HVAC_Airside_Calc_Engine4[[#This Row],[Unocc Prop Fan Flow Adj (Cooling Only)]]+tbl_HVAC_Airside_Calc_Engine4[[#This Row],[Unocc Prop Fan Flow Adj (Tempered Cooling)]]) -> 0 | DH140: =MAX(IF(tbl_HVAC_Airside_Calc_Engine4[[#This Row],[Unocc Space Heating Only Load kBtu/h, Base]]>0,tbl_HVAC_Airside_Calc_Engine4[[#This Row],[Unocc Space Heating Only Load kBtu/h, Base]]*1000/(1.08*tbl_HVAC_Airside_Calc_Engine4[[#This Row],[Unocc Heating Only Flow %, Base]]*tbl_HVAC_Airside_Calc_Engine4[[#This Row],[Unocc SF Manual Prop Airflow Adj to Base Ratio]]*$F$120)+$O$133,IF(tbl_HVAC_Airside_Calc_Engine4[[#This Row],[Unocc Space Tempered Cooling Load kBtu/h, Base]]>0,$O$133-tbl_HVAC_Airside_Calc_Engine4[[#This Row],[Unocc Space Tempered Cooling Load kBtu/h, Base]]*1000/(1.08*tbl_HVAC_Airside_Calc_Engine4[[#This Row],[Unocc Tempered Cooling Flow %, Base]]*tbl_HVAC_Airside_Calc_Engine4[[#This Row],[Unocc SF Manual Prop Airflow Adj to Base Ratio]]*$F$120),tbl_HVAC_Airside_Calc_Engine4[[#This Row],[Unocc DAT °F, Base]])),tbl_HVAC_Airside_Calc_Engine4[[#This Row],[Unocc SAT °F]]) -> 55 | DI140: =(tbl_HVAC_Airside_Calc_Engine4[[#This Row],[Occ Hr]]*(tbl_HVAC_Airside_Calc_Engine4[[#This Row],[Occ Space Cooling Only Load kBtu/h, Base]]+tbl_HVAC_Airside_Calc_Engine4[[#This Row],[Occ Space Tempered Cooling Load kBtu/h, Base]])+tbl_HVAC_Airside_Calc_Engine4[[#This Row],[UnOcc Hr]]*(tbl_HVAC_Airside_Calc_Engine4[[#This Row],[Unocc Space Cooling Only Load kBtu/h, Base]]+tbl_HVAC_Airside_Calc_Engine4[[#This Row],[Unocc Space Tempered Cooling Load kBtu/h, Base]]))/12 -> 0
E141: 114 | F141: =COUNTIFS(tbl_Climate_Zone[Dry_Bulb],E141,tbl_Climate_Zone[On-Pk Hour],1,tbl_Climate_Zone[Hour],">" & $K$114,tbl_Climate_Zone[Hour],"<=" & $L$114) -> 0 | G141: ='CZ2022'!S3-F141 -> 0 | H141: =SUM( COUNTIFS(tbl_Climate_Zone[Dry_Bulb],E141,tbl_Climate_Zone[Weekday],$M$114,tbl_Climate_Zone[Hour],">"&$K$114,tbl_Climate_Zone[Hour],"<="&$L$114), COUNTIFS(tbl_Climate_Zone[Dry_Bulb],E141,tbl_Climate_Zone[Weekday],$M$115,tbl_Climate_Zone[Hour],">"&$K$115,tbl_Climate_Zone[Hour],"<="&$L$115), COUNTIFS(tbl_Climate_Zone[Dry_Bulb],E141,tbl_Climate_Zone[Weekday],$M$116,tbl_Climate_Zone[Hour],">"&$K$116,tbl_Climate_Zone[Hour],"<="&$L$116)) -> 0 | I141: ='CZ2022'!T3-tbl_HVAC_Airside_Calc_Engine4[[#This Row],[Occ Hr]] -> 0 | AH141: =IFERROR(IF($F$49="Baseline Trend Data", IF(ISBLANK(tbl_HVAC_Airside_Calc_Engine4[[#This Row],[Occ SAT (°F), Base Trend]]),MEDIAN(MIN(tbl_HVAC_Airside_Calc_Engine4[Occ SAT (°F), Base Trend]),MAX(tbl_HVAC_Airside_Calc_Engine4[Occ SAT (°F), Base Trend]),FORECAST(tbl_HVAC_Airside_Calc_Engine4[[#This Row],[OAT °F]],tbl_HVAC_Airside_Calc_Engine4[Occ SAT (°F), Base Trend],tbl_HVAC_Airside_Calc_Engine4[OAT °F])),tbl_HVAC_Airside_Calc_Engine4[[#This Row],[Occ SAT (°F), Base Trend]]), FORECAST(MEDIAN($F$53,$G$53,tbl_HVAC_Airside_Calc_Engine4[[#This Row],[OAT °F]]),$F$52:$G$52,$F$53:$G$53)),0) -> 55 | AI141: =IF($M$47 = "Disable",tbl_HVAC_Airside_Calc_Engine4[[#This Row],[Occ Base SAT °F]],IFERROR(IF($K$49="Proposed Trend Data", IF(ISBLANK(tbl_HVAC_Airside_Calc_Engine4[[#This Row],[Occ SAT (°F), Prop Trend]]),MEDIAN(MIN(tbl_HVAC_Airside_Calc_Engine4[Occ SAT (°F), Prop Trend]),MAX(tbl_HVAC_Airside_Calc_Engine4[Occ SAT (°F), Prop Trend]),FORECAST(tbl_HVAC_Airside_Calc_Engine4[[#This Row],[OAT °F]],tbl_HVAC_Airside_Calc_Engine4[Occ SAT (°F), Prop Trend],tbl_HVAC_Airside_Calc_Engine4[OAT °F])),tbl_HVAC_Airside_Calc_Engine4[[#This Row],[Occ SAT (°F), Prop Trend]]), FORECAST(MEDIAN($K$53,$L$53,tbl_HVAC_Airside_Calc_Engine4[[#This Row],[OAT °F]]),$K$52:$L$52,$K$53:$L$53)),0)) -> 55 | AJ141: =tbl_HVAC_Airside_Calc_Engine4[[#This Row],[Occ SAT °F]]-tbl_HVAC_Airside_Calc_Engine4[[#This Row],[Occ Base SAT °F]] -> 0 | AK141: =IFERROR(IF($F$105="Baseline",tbl_HVAC_Airside_Calc_Engine4[[#This Row],[Occ Base SAT °F]],tbl_HVAC_Airside_Calc_Engine4[[#This Row],[Occ Prop SAT °F]]),0) -> 55 | AL141: =IF($K$127="Proposed Trend Data",IF(ISBLANK(tbl_HVAC_Airside_Calc_Engine4[[#This Row],[Occ RH Box VAV Flow (%), Prop Trend]]),MEDIAN(tbl_HVAC_Airside_Calc_Engine4[[#This Row],[Occ SF Flow %]],MIN(tbl_HVAC_Airside_Calc_Engine4[Occ RH Box VAV Flow (%), Prop Trend]),FORECAST(tbl_HVAC_Airside_Calc_Engine4[[#This Row],[OAT °F]],tbl_HVAC_Airside_Calc_Engine4[Occ RH Box VAV Flow (%), Prop Trend],tbl_HVAC_Airside_Calc_Engine4[OAT °F])),tbl_HVAC_Airside_Calc_Engine4[[#This Row],[Occ RH Box VAV Flow (%), Prop Trend]]), IF(AND($K$127="Auto Calc",$M$65="Enable",$M$68="Sub-Enable"),tbl_HVAC_Airside_Calc_Engine4[[#This Row],[Occ SF Flow %]]*tbl_HVAC_Airside_Calc_Engine4[[#This Row],[Occ RH to SF Ratio, Base]], tbl_HVAC_Airside_Calc_Engine4[[#This Row],[Occ RH Box Flow %, Base]]+tbl_HVAC_Airside_Calc_Engine4[[#This Row],[Occ Prop Fan Flow Adj (Tempered Cooling)]]+IFERROR(( tbl_HVAC_Airside_Calc_Engine4[[#This Row],[Occ RH Box Flow %, Base]]-tbl_HVAC_Airside_Calc_Engine4[[#This Row],[Occ Tempered Cooling Flow %, Base]]-tbl_HVAC_Airside_Calc_Engine4[[#This Row],[Occ Heating Only Flow %, Base]])/tbl_HVAC_Airside_Calc_Engine4[[#This Row],[Occ SF Flow %, Base]],0)*tbl_HVAC_Airside_Calc_Engine4[[#This Row],[Occ Prop Fan Flow Adj (Cooling Only)]])) -> 1 | AM141: =IF($K$127="Proposed Trend Data", IF(ISBLANK(tbl_HVAC_Airside_Calc_Engine4[[#This Row],[Occ RH VAV DAT (°F), Prop Trend]]),MEDIAN(tbl_HVAC_Airside_Calc_Engine4[[#This Row],[Occ Prop SAT °F]],MAX(tbl_HVAC_Airside_Calc_Engine4[Occ RH VAV DAT (°F), Prop Trend]),FORECAST(tbl_HVAC_Airside_Calc_Engine4[[#This Row],[OAT °F]],tbl_HVAC_Airside_Calc_Engine4[Occ RH VAV DAT (°F), Prop Trend],tbl_HVAC_Airside_Calc_Engine4[OAT °F])),tbl_HVAC_Airside_Calc_Engine4[[#This Row],[Occ RH VAV DAT (°F), Prop Trend]]), tbl_HVAC_Airside_Calc_Engine4[[#This Row],[Occ RH DAT °F Adj]]) -> 55 | AN141: =IF($O$130="Baseline Trend Data", IF(ISBLANK(tbl_HVAC_Airside_Calc_Engine4[[#This Row],[ Occ RAT (°F), Base Trend]]),MEDIAN(MIN($O$140:$O$245),MAX($O$140:$O$245),FORECAST(tbl_HVAC_Airside_Calc_Engine4[[#This Row],[OAT °F]],$O$140:$O$245,tbl_HVAC_Airside_Calc_Engine4[OAT °F])),tbl_HVAC_Airside_Calc_Engine4[[#This Row],[ Occ RAT (°F), Base Trend]]), IF($O$130="Proposed Trend Data",IF(ISBLANK(tbl_HVAC_Airside_Calc_Engine4[[#This Row],[Occ RAT (°F), Prop Trend]]),MEDIAN(MIN(tbl_HVAC_Airside_Calc_Engine4[Occ RAT (°F), Prop Trend]),MAX(tbl_HVAC_Airside_Calc_Engine4[Occ RAT (°F), Prop Trend]),FORECAST(tbl_HVAC_Airside_Calc_Engine4[[#This Row],[OAT °F]],tbl_HVAC_Airside_Calc_Engine4[Occ RAT (°F), Prop Trend],tbl_HVAC_Airside_Calc_Engine4[OAT °F])),tbl_HVAC_Airside_Calc_Engine4[[#This Row],[Occ RAT (°F), Prop Trend]]), MEDIAN($P$132,$O$132,tbl_HVAC_Airside_Calc_Engine4[[#This Row],[OAT °F]]))) -> 75 | AO141: =MEDIAN(0,1,IF($K$119="Baseline Trend Data", IF(ISBLANK(tbl_HVAC_Airside_Calc_Engine4[[#This Row],[Occ OA Flow (%), Base Trend]]),MEDIAN(MIN(tbl_HVAC_Airside_Calc_Engine4[Occ OA Flow (%), Base Trend]),MAX(tbl_HVAC_Airside_Calc_Engine4[Occ OA Flow (%), Base Trend]),FORECAST(tbl_HVAC_Airside_Calc_Engine4[[#This Row],[OAT °F]],tbl_HVAC_Airside_Calc_Engine4[Occ OA Flow (%), Base Trend],tbl_HVAC_Airside_Calc_Engine4[OAT °F])),tbl_HVAC_Airside_Calc_Engine4[[#This Row],[Occ OA Flow (%), Base Trend]]), IF($K$119="Proposed Trend Data", IF(ISBLANK(tbl_HVAC_Airside_Calc_Engine4[[#This Row],[Occ OA Flow (%), Prop Trend]]),MEDIAN(MIN(tbl_HVAC_Airside_Calc_Engine4[Occ OA Flow (%), Prop Trend]),MAX(tbl_HVAC_Airside_Calc_Engine4[Occ OA Flow (%), Prop Trend]),FORECAST(tbl_HVAC_Airside_Calc_Engine4[[#This Row],[OAT °F]],tbl_HVAC_Airside_Calc_Engine4[Occ OA Flow (%), Prop Trend],tbl_HVAC_Airside_Calc_Engine4[OAT °F])),tbl_HVAC_Airside_Calc_Engine4[[#This Row],[Occ OA Flow (%), Prop Trend]]), IFERROR(IF((tbl_HVAC_Airside_Calc_Engine4[[#This Row],[OAT °F]]>$K$122),$K$121,MAX($K$121,MIN($L$121,(tbl_HVAC_Airside_Calc_Engine4[[#This Row],[Occ SAT °F]]-tbl_HVAC_Airside_Calc_Engine4[[#This Row],[Occ RAT °F]])/(tbl_HVAC_Airside_Calc_Engine4[[#This Row],[OAT °F]]-tbl_HVAC_Airside_Calc_Engine4[[#This Row],[Occ RAT °F]])))),$K$121)))) -> 0.2989697927 | AP141: =tbl_HVAC_Airside_Calc_Engine4[[#This Row],[Occ RAT °F]]*(1-tbl_HVAC_Airside_Calc_Engine4[[#This Row],[Occ OA Flow %]])+tbl_HVAC_Airside_Calc_Engine4[[#This Row],[OAT °F]]*tbl_HVAC_Airside_Calc_Engine4[[#This Row],[Occ OA Flow %]] -> 86.65982192 | AQ141: =IF(AND($F$130="yes",$F$131>tbl_HVAC_Airside_Calc_Engine4[[#This Row],[Occ MAT °F]]+$F$132,tbl_HVAC_Airside_Calc_Engine4[[#This Row],[Occ Hr]]>0),"Yes","No") -> No | AR141: =IF(tbl_HVAC_Airside_Calc_Engine4[[#This Row],[Occ Pre-Heat?]]="Yes",1.08*tbl_HVAC_Airside_Calc_Engine4[[#This Row],[Occ SF Flow %]]*$F$120*($F$131-(tbl_HVAC_Airside_Calc_Engine4[[#This Row],[Occ MAT °F]]+$F$132))/1000,0) -> 0 | AS141: =IF($O$118="Proposed Trend Data", IF(ISBLANK(tbl_HVAC_Airside_Calc_Engine4[[#This Row],[Occ SF Flow (%), Prop Trend]]),MEDIAN(MIN(tbl_HVAC_Airside_Calc_Engine4[Occ SF Flow (%), Prop Trend]),100%,FORECAST(tbl_HVAC_Airside_Calc_Engine4[[#This Row],[OAT °F]],tbl_HVAC_Airside_Calc_Engine4[Occ SF Flow (%), Prop Trend],tbl_HVAC_Airside_Calc_Engine4[OAT °F])),tbl_HVAC_Airside_Calc_Engine4[[#This Row],[Occ SF Flow (%), Prop Trend]]), IF(AND($F$106="Proposed",$M$65="Enable",$M$68="Sub-Enable",$K$67="Simple Data"),IF(tbl_HVAC_Airside_Calc_Engine4[[#This Row],[OAT °F]]<$O$123,TREND($O$122:$P$122,$O$123:$P$123,MEDIAN(tbl_HVAC_Airside_Calc_Engine4[[#This Row],[OAT °F]],$O$123,$P$123)),TREND($O$120:$P$120,$O$121:$P$121,MEDIAN($O$121,$P$121,tbl_HVAC_Airside_Calc_Engine4[[#This Row],[OAT °F]]))), tbl_HVAC_Airside_Calc_Engine4[[#This Row],[Occ SF Flow %, Base]]+tbl_HVAC_Airside_Calc_Engine4[[#This Row],[Occ Prop Net Fan Flow Adj]])) -> 1 | AT141: =IF(tbl_HVAC_Airside_Calc_Engine4[[#This Row],[OAT °F]]>$F$118,MAX(1.08*$F$120*(tbl_HVAC_Airside_Calc_Engine4[[#This Row],[Occ SF Flow %]]*(tbl_HVAC_Airside_Calc_Engine4[[#This Row],[Occ MAT °F]]-tbl_HVAC_Airside_Calc_Engine4[[#This Row],[Occ SAT °F]])/12000),0),0) -> 285.9361284 | AU141: =IF(AND(tbl_HVAC_Airside_Calc_Engine4[[#This Row],[OAT °F]]<$F$117,tbl_HVAC_Airside_Calc_Engine4[[#This Row],[Occ Hr]]>0),(1.08*$F$120*tbl_HVAC_Airside_Calc_Engine4[[#This Row],[Occ RH Box Flow %]]*(tbl_HVAC_Airside_Calc_Engine4[[#This Row],[Occ RH VAV DAT °F]]-IF(tbl_HVAC_Airside_Calc_Engine4[[#This Row],[Occ Pre-Heat?]]="yes",$F$131,MIN(tbl_HVAC_Airside_Calc_Engine4[[#This Row],[Occ SAT °F]],tbl_HVAC_Airside_Calc_Engine4[[#This Row],[Occ MAT °F]])))/10^3),0) -> 0 | AV141: =tbl_HVAC_Airside_Calc_Engine4[[#This Row],[Occ Pre-Heat Load, kBtu]]+tbl_HVAC_Airside_Calc_Engine4[[#This Row],[Occ Re-Heating Load, kBtu]] -> 0 | AW141: =tbl_HVAC_Airside_Calc_Engine4[[#This Row],[Occ SF Flow %]]*$F$125 -> 1 | AX141: =IF(AND(tbl_HVAC_Airside_Calc_Engine4[[#This Row],[Occ SF Flow %]]>0,tbl_HVAC_Airside_Calc_Engine4[[#This Row],[Occ Hr]]>0),$F$119*0.746/$W$109/IF($F$121="VFD",$X$110,1)*(($Z$107+$Z$108*tbl_HVAC_Airside_Calc_Engine4[[#This Row],[Occ SF Flow %]]+$Z$109*tbl_HVAC_Airside_Calc_Engine4[[#This Row],[Occ SF Flow %]]^2+$Z$110*tbl_HVAC_Airside_Calc_Engine4[[#This Row],[Occ SF Flow %]]^3) ),0) -> 0 | AY141: =IF(AND(tbl_HVAC_Airside_Calc_Engine4[[#This Row],[Occ RF Flow %]]>0,tbl_HVAC_Airside_Calc_Engine4[[#This Row],[Occ Hr]]>0),$F$122*0.746/$W$110/IF($F$124="VFD",$X$110,1)*($AB$107+$AB$108*tbl_HVAC_Airside_Calc_Engine4[[#This Row],[Occ RF Flow %]]+$AB$109*tbl_HVAC_Airside_Calc_Engine4[[#This Row],[Occ RF Flow %]]^2+$AB$110*tbl_HVAC_Airside_Calc_Engine4[[#This Row],[Occ RF Flow %]]^3),0) -> 0 | AZ141: =tbl_HVAC_Airside_Calc_Engine4[[#This Row],[Occ SF kW]]+tbl_HVAC_Airside_Calc_Engine4[[#This Row],[Occ RF kW]] -> 0 | BA141: =IF(tbl_HVAC_Airside_Calc_Engine4[[#This Row],[Occ Hr]]>0,$F$113*tbl_HVAC_Airside_Calc_Engine4[[#This Row],[Occ Cooling Load, Ton]]+IF($F$114="Electric",(tbl_HVAC_Airside_Calc_Engine4[[#This Row],[Occ Total Heating Load, kBtu]])/$F$116,0),0) -> 0 | BB141: =IFERROR(IF($F$49="Baseline Trend Data", IF(ISBLANK(tbl_HVAC_Airside_Calc_Engine4[[#This Row],[UnOcc SAT (°F), Base Trend]]),MEDIAN(MIN(tbl_HVAC_Airside_Calc_Engine4[UnOcc SAT (°F), Base Trend]),MAX(tbl_HVAC_Airside_Calc_Engine4[UnOcc SAT (°F), Base Trend]),FORECAST(tbl_HVAC_Airside_Calc_Engine4[[#This Row],[OAT °F]],tbl_HVAC_Airside_Calc_Engine4[UnOcc SAT (°F), Base Trend],tbl_HVAC_Airside_Calc_Engine4[OAT °F])),tbl_HVAC_Airside_Calc_Engine4[[#This Row],[UnOcc SAT (°F), Base Trend]]), FORECAST(MEDIAN($F$58,$G$58,tbl_HVAC_Airside_Calc_Engine4[[#This Row],[OAT °F]]),$F$57:$G$57,$F$58:$G$58)),0) -> 55 | BC141: =IF($M$47 = "Disable",tbl_HVAC_Airside_Calc_Engine4[[#This Row],[Unocc Base SAT °F]],IFERROR(IF($K$49="Proposed Trend Data", IF(ISBLANK(tbl_HVAC_Airside_Calc_Engine4[[#This Row],[UnOcc SAT (°F), Prop Trend]]),MEDIAN(MIN(tbl_HVAC_Airside_Calc_Engine4[UnOcc SAT (°F), Prop Trend]),MAX(tbl_HVAC_Airside_Calc_Engine4[UnOcc SAT (°F), Prop Trend]),FORECAST(tbl_HVAC_Airside_Calc_Engine4[[#This Row],[OAT °F]],tbl_HVAC_Airside_Calc_Engine4[UnOcc SAT (°F), Prop Trend],tbl_HVAC_Airside_Calc_Engine4[OAT °F])),tbl_HVAC_Airside_Calc_Engine4[[#This Row],[UnOcc SAT (°F), Prop Trend]]), FORECAST(MEDIAN($K$58,$L$58,tbl_HVAC_Airside_Calc_Engine4[[#This Row],[OAT °F]]),$K$57:$L$57,$K$58:$L$58)),0)) -> 55 | BD141: =tbl_HVAC_Airside_Calc_Engine4[[#This Row],[Unocc SAT °F]]-tbl_HVAC_Airside_Calc_Engine4[[#This Row],[Unocc Base SAT °F]] -> 0 | BE141: =IFERROR(IF($F$105="Baseline",tbl_HVAC_Airside_Calc_Engine4[[#This Row],[Unocc Base SAT °F]],tbl_HVAC_Airside_Calc_Engine4[[#This Row],[Unocc Prop SAT °F]]),0) -> 55 | BF141: =IF($K$128="Proposed Trend Data",IF(ISBLANK(tbl_HVAC_Airside_Calc_Engine4[[#This Row],[UnOcc RH Box VAV Flow (%), Prop Trend]]),MEDIAN(tbl_HVAC_Airside_Calc_Engine4[[#This Row],[Unocc SF Flow %]],MIN(tbl_HVAC_Airside_Calc_Engine4[UnOcc RH Box VAV Flow (%), Prop Trend]),FORECAST(tbl_HVAC_Airside_Calc_Engine4[[#This Row],[OAT °F]],tbl_HVAC_Airside_Calc_Engine4[UnOcc RH Box VAV Flow (%), Prop Trend],tbl_HVAC_Airside_Calc_Engine4[OAT °F])),tbl_HVAC_Airside_Calc_Engine4[[#This Row],[UnOcc RH Box VAV Flow (%), Prop Trend]]), IF(AND($K$128="Auto Calc",$M$65="Enable",$M$75="Sub-Enable"),tbl_HVAC_Airside_Calc_Engine4[[#This Row],[Unocc SF Flow %]]*tbl_HVAC_Airside_Calc_Engine4[[#This Row],[Unocc RH to SF Ratio, Base]], tbl_HVAC_Airside_Calc_Engine4[[#This Row],[Unocc RH Box Flow %, Base]]+tbl_HVAC_Airside_Calc_Engine4[[#This Row],[Unocc Prop Fan Flow Adj (Tempered Cooling)]]+IFERROR(( tbl_HVAC_Airside_Calc_Engine4[[#This Row],[Unocc RH Box Flow %, Base]]-tbl_HVAC_Airside_Calc_Engine4[[#This Row],[Unocc Tempered Cooling Flow %, Base]]-tbl_HVAC_Airside_Calc_Engine4[[#This Row],[Unocc Heating Only Flow %, Base]])/tbl_HVAC_Airside_Calc_Engine4[[#This Row],[Unocc SF Flow %, Base]],0)*tbl_HVAC_Airside_Calc_Engine4[[#This Row],[Unocc Prop Fan Flow Adj (Cooling Only)]])) -> 0.3 | BG141: =IF($K$128="Proposed Trend Data", IF(ISBLANK(tbl_HVAC_Airside_Calc_Engine4[[#This Row],[UnOcc RH VAV DAT (°F), Prop Trend]]),MEDIAN(tbl_HVAC_Airside_Calc_Engine4[[#This Row],[Unocc Prop SAT °F]],MAX(tbl_HVAC_Airside_Calc_Engine4[UnOcc RH VAV DAT (°F), Prop Trend]),FORECAST(tbl_HVAC_Airside_Calc_Engine4[[#This Row],[OAT °F]],tbl_HVAC_Airside_Calc_Engine4[UnOcc RH VAV DAT (°F), Prop Trend],tbl_HVAC_Airside_Calc_Engine4[OAT °F])),tbl_HVAC_Airside_Calc_Engine4[[#This Row],[UnOcc RH VAV DAT (°F), Prop Trend]]), tbl_HVAC_Airside_Calc_Engine4[[#This Row],[Unocc RH DAT °F Adj]]) -> 55 | BH141: =IF($O$130="Baseline Trend Data", IF(ISBLANK(tbl_HVAC_Airside_Calc_Engine4[[#This Row],[UnOcc RAT (°F), Base Trend]]),MEDIAN(MIN(tbl_HVAC_Airside_Calc_Engine4[UnOcc RAT (°F), Base Trend]),MAX(tbl_HVAC_Airside_Calc_Engine4[UnOcc RAT (°F), Base Trend]),FORECAST(tbl_HVAC_Airside_Calc_Engine4[[#This Row],[OAT °F]], tbl_HVAC_Airside_Calc_Engine4[UnOcc RAT (°F), Base Trend],tbl_HVAC_Airside_Calc_Engine4[OAT °F])),tbl_HVAC_Airside_Calc_Engine4[[#This Row],[UnOcc RAT (°F), Base Trend]]), IF($O$130="Proposed Trend Data",IF(ISBLANK(tbl_HVAC_Airside_Calc_Engine4[[#This Row],[UnOcc RAT (°F), Prop Trend]]),MEDIAN(MIN(tbl_HVAC_Airside_Calc_Engine4[UnOcc RAT (°F), Prop Trend]),MAX(tbl_HVAC_Airside_Calc_Engine4[UnOcc RAT (°F), Prop Trend]),FORECAST(tbl_HVAC_Airside_Calc_Engine4[[#This Row],[OAT °F]],tbl_HVAC_Airside_Calc_Engine4[UnOcc RAT (°F), Prop Trend],tbl_HVAC_Airside_Calc_Engine4[OAT °F])),tbl_HVAC_Airside_Calc_Engine4[[#This Row],[UnOcc RAT (°F), Prop Trend]]), MEDIAN($P$133,$O$133,tbl_HVAC_Airside_Calc_Engine4[[#This Row],[OAT °F]]))) -> 75 | BI141: =MEDIAN(0,1,IF($K$119="Baseline Trend Data", IF(ISBLANK(tbl_HVAC_Airside_Calc_Engine4[[#This Row],[UnOcc OA Flow (%), Base Trend]]),MEDIAN(MIN(tbl_HVAC_Airside_Calc_Engine4[UnOcc OA Flow (%), Base Trend]),MAX(tbl_HVAC_Airside_Calc_Engine4[UnOcc OA Flow (%), Base Trend]),FORECAST(tbl_HVAC_Airside_Calc_Engine4[[#This Row],[OAT °F]],tbl_HVAC_Airside_Calc_Engine4[UnOcc OA Flow (%), Base Trend],tbl_HVAC_Airside_Calc_Engine4[OAT °F])),tbl_HVAC_Airside_Calc_Engine4[[#This Row],[UnOcc OA Flow (%), Base Trend]]), IF($K$119="Proposed Trend Data",IF(ISBLANK(tbl_HVAC_Airside_Calc_Engine4[[#This Row],[Unocc OA Flow (%), Prop Trend]]),MEDIAN(MIN(tbl_HVAC_Airside_Calc_Engine4[Unocc OA Flow (%), Prop Trend]),MAX(tbl_HVAC_Airside_Calc_Engine4[Unocc OA Flow (%), Prop Trend]),FORECAST(tbl_HVAC_Airside_Calc_Engine4[[#This Row],[OAT °F]],tbl_HVAC_Airside_Calc_Engine4[Unocc OA Flow (%), Prop Trend],tbl_HVAC_Airside_Calc_Engine4[OAT °F])),tbl_HVAC_Airside_Calc_Engine4[[#This Row],[Unocc OA Flow (%), Prop Trend]]), IFERROR(IF((tbl_HVAC_Airside_Calc_Engine4[[#This Row],[OAT °F]]>$K$124),$K$123,MAX($K$123,MIN($L$123,(tbl_HVAC_Airside_Calc_Engine4[[#This Row],[Unocc SAT °F]]-tbl_HVAC_Airside_Calc_Engine4[[#This Row],[UnOcc RAT °F]])/(tbl_HVAC_Airside_Calc_Engine4[[#This Row],[OAT °F]]-tbl_HVAC_Airside_Calc_Engine4[[#This Row],[UnOcc RAT °F]])))),$K$123)))) -> 0 | BJ141: =tbl_HVAC_Airside_Calc_Engine4[[#This Row],[UnOcc RAT °F]]*(1-tbl_HVAC_Airside_Calc_Engine4[[#This Row],[Unocc OA Flow %]])+tbl_HVAC_Airside_Calc_Engine4[[#This Row],[OAT °F]]*tbl_HVAC_Airside_Calc_Engine4[[#This Row],[Unocc OA Flow %]] -> 75 | BK141: =IF(AND($F$130="yes",$F$131>tbl_HVAC_Airside_Calc_Engine4[[#This Row],[UnOcc MAT °F]]+$F$132,tbl_HVAC_Airside_Calc_Engine4[[#This Row],[UnOcc Hr]]>0),"Yes","No") -> No | BL141: =IF(tbl_HVAC_Airside_Calc_Engine4[[#This Row],[Unocc Pre-Heat?]]="Yes",1.08*tbl_HVAC_Airside_Calc_Engine4[[#This Row],[Unocc SF Flow %]]*$F$120*($F$131-(tbl_HVAC_Airside_Calc_Engine4[[#This Row],[UnOcc MAT °F]]+$F$132))/1000,0) -> 0 | BM141: =IF($O$118="Proposed Trend Data", IF(ISBLANK(tbl_HVAC_Airside_Calc_Engine4[[#This Row],[Unocc SF Flow (%), Prop Trend]]),MEDIAN(MIN(tbl_HVAC_Airside_Calc_Engine4[Unocc SF Flow (%), Prop Trend]),100%,FORECAST(tbl_HVAC_Airside_Calc_Engine4[[#This Row],[OAT °F]],tbl_HVAC_Airside_Calc_Engine4[Unocc SF Flow (%), Prop Trend],tbl_HVAC_Airside_Calc_Engine4[OAT °F])),tbl_HVAC_Airside_Calc_Engine4[[#This Row],[Unocc SF Flow (%), Prop Trend]]), IF(AND($F$106="Proposed",$M$65="Enable",$M$75="Sub-Enable",$K$67="Simple Data"),IF(tbl_HVAC_Airside_Calc_Engine4[[#This Row],[OAT °F]]<$O$128,TREND($O$127:$P$127,$O$128:$P$128,MEDIAN(tbl_HVAC_Airside_Calc_Engine4[[#This Row],[OAT °F]],$O$128,$P$128)),TREND($O$125:$P$125,$O$126:$P$126,MEDIAN($O$126,$P$126,tbl_HVAC_Airside_Calc_Engine4[[#This Row],[OAT °F]]))), tbl_HVAC_Airside_Calc_Engine4[[#This Row],[Unocc SF Flow %, Base]]+tbl_HVAC_Airside_Calc_Engine4[[#This Row],[Unocc Prop Net Fan Flow Adj]])) -> 0.3 | BN141: =IF(tbl_HVAC_Airside_Calc_Engine4[[#This Row],[OAT °F]]>$F$118,MAX(1.08*$F$120*(tbl_HVAC_Airside_Calc_Engine4[[#This Row],[Unocc SF Flow %]]*(tbl_HVAC_Airside_Calc_Engine4[[#This Row],[UnOcc MAT °F]]-tbl_HVAC_Airside_Calc_Engine4[[#This Row],[Unocc SAT °F]])/12000),0),0) -> 54.18908467 | BO141: =IF(AND(tbl_HVAC_Airside_Calc_Engine4[[#This Row],[UnOcc Hr]]>0,tbl_HVAC_Airside_Calc_Engine4[[#This Row],[OAT °F]]<$F$117),(1.08*$F$120*tbl_HVAC_Airside_Calc_Engine4[[#This Row],[Unocc RH Box Flow %]]*(tbl_HVAC_Airside_Calc_Engine4[[#This Row],[Unocc RH VAV DAT °F]]-IF(tbl_HVAC_Airside_Calc_Engine4[[#This Row],[Unocc Pre-Heat?]]="yes",$F$131,MIN(tbl_HVAC_Airside_Calc_Engine4[[#This Row],[Unocc SAT °F]],tbl_HVAC_Airside_Calc_Engine4[[#This Row],[UnOcc MAT °F]])))/10^3),0) -> 0 | BP141: =tbl_HVAC_Airside_Calc_Engine4[[#This Row],[Unocc Pre-Heat Load, kBtu]]+tbl_HVAC_Airside_Calc_Engine4[[#This Row],[Unocc Re-Heating Load, kBtu]] -> 0 | BQ141: =tbl_HVAC_Airside_Calc_Engine4[[#This Row],[Unocc SF Flow %]]*$F$125 -> 0.3 | BR141: =IF(AND(tbl_HVAC_Airside_Calc_Engine4[[#This Row],[Unocc SF Flow %]]>0,tbl_HVAC_Airside_Calc_Engine4[[#This Row],[UnOcc Hr]]>0),$F$119*0.746/$W$109/IF($F$121="VFD",$X$110,1)*(($Z$107+$Z$108*tbl_HVAC_Airside_Calc_Engine4[[#This Row],[Unocc SF Flow %]]+$Z$109*tbl_HVAC_Airside_Calc_Engine4[[#This Row],[Unocc SF Flow %]]^2+$Z$110*tbl_HVAC_Airside_Calc_Engine4[[#This Row],[Unocc SF Flow %]]^3) ),0) -> 0 | BS141: =IF(AND(tbl_HVAC_Airside_Calc_Engine4[[#This Row],[Unocc RF Flow %]]>0,tbl_HVAC_Airside_Calc_Engine4[[#This Row],[UnOcc Hr]]>0),$F$122*0.746/$W$110/IF($F$124="VFD",$X$110,1)*($AB$107+$AB$108*tbl_HVAC_Airside_Calc_Engine4[[#This Row],[Unocc RF Flow %]]+$AB$109*tbl_HVAC_Airside_Calc_Engine4[[#This Row],[Unocc RF Flow %]]^2+$AB$110*tbl_HVAC_Airside_Calc_Engine4[[#This Row],[Unocc RF Flow %]]^3),0) -> 0 | BT141: =tbl_HVAC_Airside_Calc_Engine4[[#This Row],[Unocc SF kW]]+tbl_HVAC_Airside_Calc_Engine4[[#This Row],[Unocc RF kW]] -> 0 | BU141: =IF(tbl_HVAC_Airside_Calc_Engine4[[#This Row],[UnOcc Hr]]>0,$F$113*tbl_HVAC_Airside_Calc_Engine4[[#This Row],[Unocc Cooling Load, Ton]]+IF($F$114="Electric",(tbl_HVAC_Airside_Calc_Engine4[[#This Row],[Unocc Total Heating Load, kBtu]])/$F$116,0),0) -> 0 | BV141: =tbl_HVAC_Airside_Calc_Engine4[[#This Row],[Occ Hr]]*(tbl_HVAC_Airside_Calc_Engine4[[#This Row],[Occ SF kW]]+tbl_HVAC_Airside_Calc_Engine4[[#This Row],[Occ RF kW]])+tbl_HVAC_Airside_Calc_Engine4[[#This Row],[UnOcc Hr]]*(tbl_HVAC_Airside_Calc_Engine4[[#This Row],[Unocc SF kW]]+tbl_HVAC_Airside_Calc_Engine4[[#This Row],[Unocc RF kW]]) -> 0 | BW141: =tbl_HVAC_Airside_Calc_Engine4[[#This Row],[Occ Load kW]]*tbl_HVAC_Airside_Calc_Engine4[[#This Row],[Occ Hr]]+tbl_HVAC_Airside_Calc_Engine4[[#This Row],[Unocc Load kW]]*tbl_HVAC_Airside_Calc_Engine4[[#This Row],[UnOcc Hr]] -> 0 | BX141: =IF($F$114="Gas",(tbl_HVAC_Airside_Calc_Engine4[[#This Row],[Occ Pre-Heat Load, kBtu]]+tbl_HVAC_Airside_Calc_Engine4[[#This Row],[Occ Re-Heating Load, kBtu]])/100/$F$115*tbl_HVAC_Airside_Calc_Engine4[[#This Row],[Occ Hr]]+(tbl_HVAC_Airside_Calc_Engine4[[#This Row],[Unocc Pre-Heat Load, kBtu]]+tbl_HVAC_Airside_Calc_Engine4[[#This Row],[Unocc Re-Heating Load, kBtu]])/100/$F$115*tbl_HVAC_Airside_Calc_Engine4[[#This Row],[UnOcc Hr]],0) -> 0 | BY141: =MEDIAN(0,1,IF($F$31="Baseline Trend Data",IF(ISBLANK(tbl_HVAC_Airside_Calc_Engine4[[#This Row],[Occ OA Flow (%), Base Trend]]),MEDIAN(MIN(tbl_HVAC_Airside_Calc_Engine4[Occ OA Flow (%), Base Trend]),MAX(tbl_HVAC_Airside_Calc_Engine4[Occ OA Flow (%), Base Trend]),FORECAST(tbl_HVAC_Airside_Calc_Engine4[[#This Row],[OAT °F]],tbl_HVAC_Airside_Calc_Engine4[Occ OA Flow (%), Base Trend],tbl_HVAC_Airside_Calc_Engine4[OAT °F])),tbl_HVAC_Airside_Calc_Engine4[[#This Row],[Occ OA Flow (%), Base Trend]]), IFERROR(IF((tbl_HVAC_Airside_Calc_Engine4[[#This Row],[OAT °F]]>$F$35),$F$34,MAX($F$34,MIN($G$34,(tbl_HVAC_Airside_Calc_Engine4[[#This Row],[Occ Base SAT °F]]-tbl_HVAC_Airside_Calc_Engine4[[#This Row],[Occ RAT °F, Base]])/(tbl_HVAC_Airside_Calc_Engine4[[#This Row],[OAT °F]]-tbl_HVAC_Airside_Calc_Engine4[[#This Row],[Occ RAT °F, Base]])))),$F$34))) -> 0.2989697927 | BZ141: =MIN(100%,IF($F$67="Baseline Trend Data", IF(ISBLANK(tbl_HVAC_Airside_Calc_Engine4[[#This Row],[Occ SF Flow (%), Base Trend]]),MEDIAN(MIN(tbl_HVAC_Airside_Calc_Engine4[Occ SF Flow (%), Base Trend]),1,FORECAST(tbl_HVAC_Airside_Calc_Engine4[[#This Row],[OAT °F]],tbl_HVAC_Airside_Calc_Engine4[Occ SF Flow (%), Base Trend],tbl_HVAC_Airside_Calc_Engine4[OAT °F])),tbl_HVAC_Airside_Calc_Engine4[[#This Row],[Occ SF Flow (%), Base Trend]]), IF(tbl_HVAC_Airside_Calc_Engine4[[#This Row],[OAT °F]]<$F$73,TREND($F$72:$G$72,$F$73:$G$73,MEDIAN(tbl_HVAC_Airside_Calc_Engine4[[#This Row],[OAT °F]],$F$73,$G$73)), TREND($F$70:$G$70,$F$71:$G$71,MEDIAN($F$71,$G$71,tbl_HVAC_Airside_Calc_Engine4[[#This Row],[OAT °F]]))))) -> 1 | CA141: =MAX(0,MIN(100%,IF($F$82="Baseline Trend Data", IF(ISBLANK(tbl_HVAC_Airside_Calc_Engine4[[#This Row],[Occ RH Box VAV Flow (%), Base Trend]]),MEDIAN(MIN(tbl_HVAC_Airside_Calc_Engine4[Occ RH Box VAV Flow (%), Base Trend]),tbl_HVAC_Airside_Calc_Engine4[[#This Row],[Occ SF Flow %, Base]],FORECAST(tbl_HVAC_Airside_Calc_Engine4[[#This Row],[OAT °F]],tbl_HVAC_Airside_Calc_Engine4[Occ RH Box VAV Flow (%), Base Trend],tbl_HVAC_Airside_Calc_Engine4[OAT °F])),tbl_HVAC_Airside_Calc_Engine4[[#This Row],[Occ RH Box VAV Flow (%), Base Trend]]), tbl_HVAC_Airside_Calc_Engine4[[#This Row],[Occ SF Flow %, Base]]*$F$84))) -> 1 | CB141: =IFERROR(tbl_HVAC_Airside_Calc_Engine4[[#This Row],[Occ RH Box Flow %, Base]]/tbl_HVAC_Airside_Calc_Engine4[[#This Row],[Occ SF Flow %, Base]],0) -> 1 | CC141: =IF($F$82="Baseline Trend Data", IF(ISBLANK(tbl_HVAC_Airside_Calc_Engine4[[#This Row],[Occ RH VAV DAT (°F), Base Trend]]),MEDIAN(tbl_HVAC_Airside_Calc_Engine4[[#This Row],[Occ Base SAT °F]],MAX(tbl_HVAC_Airside_Calc_Engine4[Occ RH VAV DAT (°F), Base Trend]),FORECAST(tbl_HVAC_Airside_Calc_Engine4[[#This Row],[OAT °F]],tbl_HVAC_Airside_Calc_Engine4[Occ RH VAV DAT (°F), Base Trend],tbl_HVAC_Airside_Calc_Engine4[OAT °F])),tbl_HVAC_Airside_Calc_Engine4[[#This Row],[Occ RH VAV DAT (°F), Base Trend]]), MIN($F$90,tbl_HVAC_Airside_Calc_Engine4[[#This Row],[Occ Base SAT °F]]+MAX(0,($F$90-tbl_HVAC_Airside_Calc_Engine4[[#This Row],[Occ Base SAT °F]])*(($F$85-tbl_HVAC_Airside_Calc_Engine4[[#This Row],[OAT °F]])/($F$85-IF($F$88="yes",$F$89,$F$87)))))) -> 55 | CD141: =IF($F$96="Baseline Trend Data", IF(ISBLANK(tbl_HVAC_Airside_Calc_Engine4[[#This Row],[ Occ RAT (°F), Base Trend]]),MEDIAN(MIN($O$140:$O$245),MAX($O$140:$O$245),FORECAST(tbl_HVAC_Airside_Calc_Engine4[[#This Row],[OAT °F]],$O$140:$O$245,tbl_HVAC_Airside_Calc_Engine4[OAT °F])),tbl_HVAC_Airside_Calc_Engine4[[#This Row],[ Occ RAT (°F), Base Trend]]), MEDIAN($G$94,$F$94,tbl_HVAC_Airside_Calc_Engine4[[#This Row],[OAT °F]])) -> 75 | CE141: =IF(tbl_HVAC_Airside_Calc_Engine4[[#This Row],[Occ DAT °F, Base]]>$F$94,tbl_HVAC_Airside_Calc_Engine4[[#This Row],[Occ RH Box Flow %, Base]],0) -> 0 | CF141: =tbl_HVAC_Airside_Calc_Engine4[[#This Row],[Occ SF Flow %, Base]]-tbl_HVAC_Airside_Calc_Engine4[[#This Row],[Occ Heating Only Flow %, Base]]-tbl_HVAC_Airside_Calc_Engine4[[#This Row],[Occ Tempered Cooling Flow %, Base]] -> 1 | CG141: =IF(AND(tbl_HVAC_Airside_Calc_Engine4[[#This Row],[Occ DAT °F, Base]]<=$F$94,tbl_HVAC_Airside_Calc_Engine4[[#This Row],[Occ DAT °F, Base]]>tbl_HVAC_Airside_Calc_Engine4[[#This Row],[Occ Base SAT °F]]),tbl_HVAC_Airside_Calc_Engine4[[#This Row],[Occ RH Box Flow %, Base]],0) -> 0 | CH141: =SUM(tbl_HVAC_Airside_Calc_Engine4[[#This Row],[Occ Heating Only Flow %, Base]:[Occ Tempered Cooling Flow %, Base]]) -> 1 | CI141: =1.08*tbl_HVAC_Airside_Calc_Engine4[[#This Row],[Occ Heating Only Flow %, Base]]*$F$120*(tbl_HVAC_Airside_Calc_Engine4[[#This Row],[Occ DAT °F, Base]]-$F$94)/1000 -> 0 | CJ141: =1.08*tbl_HVAC_Airside_Calc_Engine4[[#This Row],[Occ Cooling Only Flow %, Base]]*$F$120*($G$94-tbl_HVAC_Airside_Calc_Engine4[[#This Row],[Occ Base SAT °F]])/1000 -> 2167.563387 | CK141: =1.08*tbl_HVAC_Airside_Calc_Engine4[[#This Row],[Occ Tempered Cooling Flow %, Base]]*$F$120*($F$94-tbl_HVAC_Airside_Calc_Engine4[[#This Row],[Occ DAT °F, Base]])/1000 -> 0 | CL141: =IF(AND($F$106="Proposed",$M$65="Enable",$M$68="Sub-Enable"),IFERROR(tbl_HVAC_Airside_Calc_Engine4[[#This Row],[Occ SF Flow %]]/tbl_HVAC_Airside_Calc_Engine4[[#This Row],[Occ SF Flow %, Base]],0),100%) -> 1 | CM141: =IF($F$126="Constant Air Volume",0%,IFERROR((tbl_HVAC_Airside_Calc_Engine4[[#This Row],[Occ Space Cooling Only Load kBtu/h, Base]]*1000/(1.08*($P$132-tbl_HVAC_Airside_Calc_Engine4[[#This Row],[Occ SAT °F]]))-tbl_HVAC_Airside_Calc_Engine4[[#This Row],[Occ Cooling Only Flow %, Base]]*$F$120)/$F$120,0)) -> 0 | CN141: =IF($F$126="Constant Air Volume",0%,IFERROR(MAX(0,tbl_HVAC_Airside_Calc_Engine4[[#This Row],[Occ Space Tempered Cooling Load kBtu/h, Base]]*1000/(1.08*($P$132-tbl_HVAC_Airside_Calc_Engine4[[#This Row],[Occ RH VAV DAT °F]]))-tbl_HVAC_Airside_Calc_Engine4[[#This Row],[Occ Tempered Cooling Flow %, Base]]*$F$120)/$F$120,0)) -> 0 | CO141: =IF($F$126="Constant Air Volume",0%,tbl_HVAC_Airside_Calc_Engine4[[#This Row],[Occ Prop Fan Flow Adj (Cooling Only)]]+tbl_HVAC_Airside_Calc_Engine4[[#This Row],[Occ Prop Fan Flow Adj (Tempered Cooling)]]) -> 0 | CP141: =MAX(IF(tbl_HVAC_Airside_Calc_Engine4[[#This Row],[Occ Space Heating Only Load kBtu/h, Base]]>0,tbl_HVAC_Airside_Calc_Engine4[[#This Row],[Occ Space Heating Only Load kBtu/h, Base]]*1000/(1.08*tbl_HVAC_Airside_Calc_Engine4[[#This Row],[Occ Heating Only Flow %, Base]]*tbl_HVAC_Airside_Calc_Engine4[[#This Row],[Occ SF Manual Prop Airflow Adj to Base Ratio]]*$F$120)+$O$132,IF(tbl_HVAC_Airside_Calc_Engine4[[#This Row],[Occ Space Tempered Cooling Load kBtu/h, Base]]>0,$O$132-tbl_HVAC_Airside_Calc_Engine4[[#This Row],[Occ Space Tempered Cooling Load kBtu/h, Base]]*1000/(1.08*tbl_HVAC_Airside_Calc_Engine4[[#This Row],[Occ Tempered Cooling Flow %, Base]]*tbl_HVAC_Airside_Calc_Engine4[[#This Row],[Occ SF Manual Prop Airflow Adj to Base Ratio]]*$F$120),tbl_HVAC_Airside_Calc_Engine4[[#This Row],[Occ DAT °F, Base]])),tbl_HVAC_Airside_Calc_Engine4[[#This Row],[Occ SAT °F]]) -> 55 | CQ141: =MEDIAN(0,1,IF($F$31="Baseline Trend Data",IF(ISBLANK(tbl_HVAC_Airside_Calc_Engine4[[#This Row],[UnOcc OA Flow (%), Base Trend]]),MEDIAN(MIN(tbl_HVAC_Airside_Calc_Engine4[UnOcc OA Flow (%), Base Trend]),MAX(tbl_HVAC_Airside_Calc_Engine4[UnOcc OA Flow (%), Base Trend]),FORECAST(tbl_HVAC_Airside_Calc_Engine4[[#This Row],[OAT °F]],tbl_HVAC_Airside_Calc_Engine4[UnOcc OA Flow (%), Base Trend],tbl_HVAC_Airside_Calc_Engine4[OAT °F])),tbl_HVAC_Airside_Calc_Engine4[[#This Row],[UnOcc OA Flow (%), Base Trend]]), IFERROR(IF((tbl_HVAC_Airside_Calc_Engine4[[#This Row],[OAT °F]]>$F$40),$F$39,MAX($F$39,MIN($G$39,(tbl_HVAC_Airside_Calc_Engine4[[#This Row],[Unocc Base SAT °F]]-tbl_HVAC_Airside_Calc_Engine4[[#This Row],[Unocc RAT °F, Base]])/(tbl_HVAC_Airside_Calc_Engine4[[#This Row],[OAT °F]]-tbl_HVAC_Airside_Calc_Engine4[[#This Row],[Unocc RAT °F, Base]])))),$F$39))) -> 0 | CR141: =MIN(100%,IF($F$67="Baseline Trend Data", IF(ISBLANK(tbl_HVAC_Airside_Calc_Engine4[[#This Row],[UnOcc SF Flow (%), Base Trend]]),MEDIAN(MIN(tbl_HVAC_Airside_Calc_Engine4[UnOcc SF Flow (%), Base Trend]),1,FORECAST(tbl_HVAC_Airside_Calc_Engine4[[#This Row],[OAT °F]],tbl_HVAC_Airside_Calc_Engine4[UnOcc SF Flow (%), Base Trend],tbl_HVAC_Airside_Calc_Engine4[OAT °F])),tbl_HVAC_Airside_Calc_Engine4[[#This Row],[UnOcc SF Flow (%), Base Trend]]), IF(tbl_HVAC_Airside_Calc_Engine4[[#This Row],[OAT °F]]<$F$80,TREND($F$79:$G$79,$F$80:$G$80,MEDIAN(tbl_HVAC_Airside_Calc_Engine4[[#This Row],[OAT °F]],$F$80,$G$80)), TREND($F$77:$G$77,$F$78:$G$78,MEDIAN($F$78,$G$78,tbl_HVAC_Airside_Calc_Engine4[[#This Row],[OAT °F]]))))) -> 0.3 | CS141: =MAX(0,MIN(100%,IF($F$82="Baseline Trend Data", IF(ISBLANK(tbl_HVAC_Airside_Calc_Engine4[[#This Row],[UnOcc RH Box VAV Flow (%), Base Trend]]),MEDIAN(MIN(tbl_HVAC_Airside_Calc_Engine4[UnOcc RH Box VAV Flow (%), Base Trend]),tbl_HVAC_Airside_Calc_Engine4[[#This Row],[Unocc SF Flow %, Base]],FORECAST(tbl_HVAC_Airside_Calc_Engine4[[#This Row],[OAT °F]],tbl_HVAC_Airside_Calc_Engine4[UnOcc RH Box VAV Flow (%), Base Trend],tbl_HVAC_Airside_Calc_Engine4[OAT °F])),tbl_HVAC_Airside_Calc_Engine4[[#This Row],[UnOcc RH Box VAV Flow (%), Base Trend]]), tbl_HVAC_Airside_Calc_Engine4[[#This Row],[Unocc SF Flow %, Base]]*$F$84))) -> 0.3 | CT141: =IFERROR(tbl_HVAC_Airside_Calc_Engine4[[#This Row],[Unocc RH Box Flow %, Base]]/tbl_HVAC_Airside_Calc_Engine4[[#This Row],[Unocc SF Flow %, Base]],0) -> 1 | CU141: =IF($F$82="Baseline Trend Data", IF(ISBLANK(tbl_HVAC_Airside_Calc_Engine4[[#This Row],[UnOcc RH VAV DAT (°F), Base Trend]]),MEDIAN(tbl_HVAC_Airside_Calc_Engine4[[#This Row],[Unocc Base SAT °F]],MAX(tbl_HVAC_Airside_Calc_Engine4[UnOcc RH VAV DAT (°F), Base Trend]),FORECAST(tbl_HVAC_Airside_Calc_Engine4[[#This Row],[OAT °F]],tbl_HVAC_Airside_Calc_Engine4[UnOcc RH VAV DAT (°F), Base Trend],tbl_HVAC_Airside_Calc_Engine4[OAT °F])),tbl_HVAC_Airside_Calc_Engine4[[#This Row],[UnOcc RH VAV DAT (°F), Base Trend]]), MIN($G$90,tbl_HVAC_Airside_Calc_Engine4[[#This Row],[Unocc Base SAT °F]]+MAX(0,($G$90-tbl_HVAC_Airside_Calc_Engine4[[#This Row],[Unocc Base SAT °F]])*(($G$85-tbl_HVAC_Airside_Calc_Engine4[[#This Row],[OAT °F]])/($G$85-IF($G$88="yes",$G$89,$G$87)))))) -> 55 | CV141: =IF($F$96="Baseline Trend Data", IF(ISBLANK(tbl_HVAC_Airside_Calc_Engine4[[#This Row],[UnOcc RAT (°F), Base Trend]]),MEDIAN(MIN(tbl_HVAC_Airside_Calc_Engine4[UnOcc RAT (°F), Base Trend]),MAX(tbl_HVAC_Airside_Calc_Engine4[UnOcc RAT (°F), Base Trend]),FORECAST(tbl_HVAC_Airside_Calc_Engine4[[#This Row],[OAT °F]],tbl_HVAC_Airside_Calc_Engine4[UnOcc RAT (°F), Base Trend],tbl_HVAC_Airside_Calc_Engine4[OAT °F])),tbl_HVAC_Airside_Calc_Engine4[[#This Row],[UnOcc RAT (°F), Base Trend]]), MEDIAN($G$95,$F$95,tbl_HVAC_Airside_Calc_Engine4[[#This Row],[OAT °F]])) -> 80 | CW141: =IF(tbl_HVAC_Airside_Calc_Engine4[[#This Row],[Unocc DAT °F, Base]]>$F$95,tbl_HVAC_Airside_Calc_Engine4[[#This Row],[Unocc RH Box Flow %, Base]],0) -> 0 | CX141: =tbl_HVAC_Airside_Calc_Engine4[[#This Row],[Unocc SF Flow %, Base]]-tbl_HVAC_Airside_Calc_Engine4[[#This Row],[Unocc Heating Only Flow %, Base]]-tbl_HVAC_Airside_Calc_Engine4[[#This Row],[Unocc Tempered Cooling Flow %, Base]] -> 0.3 | CY141: =IF(AND(tbl_HVAC_Airside_Calc_Engine4[[#This Row],[Unocc DAT °F, Base]]<=$F$95,tbl_HVAC_Airside_Calc_Engine4[[#This Row],[Unocc DAT °F, Base]]>tbl_HVAC_Airside_Calc_Engine4[[#This Row],[Unocc Base SAT °F]]),tbl_HVAC_Airside_Calc_Engine4[[#This Row],[Unocc RH Box Flow %, Base]],0) -> 0 | CZ141: =SUM(tbl_HVAC_Airside_Calc_Engine4[[#This Row],[Unocc Heating Only Flow %, Base]:[Unocc Tempered Cooling Flow %, Base]]) -> 0.3 | DA141: =1.08*tbl_HVAC_Airside_Calc_Engine4[[#This Row],[Unocc Heating Only Flow %, Base]]*$F$120*(tbl_HVAC_Airside_Calc_Engine4[[#This Row],[Unocc DAT °F, Base]]-$F$95)/1000 -> 0 | DB141: =1.08*tbl_HVAC_Airside_Calc_Engine4[[#This Row],[Unocc Cooling Only Flow %, Base]]*$F$120*($G$95-tbl_HVAC_Airside_Calc_Engine4[[#This Row],[Unocc Base SAT °F]])/1000 -> 812.8362701 | DC141: =1.08*tbl_HVAC_Airside_Calc_Engine4[[#This Row],[Unocc Tempered Cooling Flow %, Base]]*$F$120*($F$95-tbl_HVAC_Airside_Calc_Engine4[[#This Row],[Unocc DAT °F, Base]])/1000 -> 0 | DD141: =IF(AND($F$106="Proposed",$M$65="Enable",$M$75="Sub-Enable"),IF(tbl_HVAC_Airside_Calc_Engine4[[#This Row],[Unocc SF Flow %]]/tbl_HVAC_Airside_Calc_Engine4[[#This Row],[Unocc SF Flow %, Base]]=0,1,IFERROR(tbl_HVAC_Airside_Calc_Engine4[[#This Row],[Unocc SF Flow %]]/tbl_HVAC_Airside_Calc_Engine4[[#This Row],[Unocc SF Flow %, Base]],1)),100%) -> 1 | DE141: =IF($F$126="Constant Air Volume",0%,IFERROR((tbl_HVAC_Airside_Calc_Engine4[[#This Row],[Unocc Space Cooling Only Load kBtu/h, Base]]*1000/(1.08*($P$133-tbl_HVAC_Airside_Calc_Engine4[[#This Row],[Unocc SAT °F]]))-tbl_HVAC_Airside_Calc_Engine4[[#This Row],[Unocc Cooling Only Flow %, Base]]*$F$120)/$F$120,0)) -> 0 | DF141: =IF($F$126="Constant Air Volume",0%,IFERROR(MAX(0,tbl_HVAC_Airside_Calc_Engine4[[#This Row],[Unocc Space Tempered Cooling Load kBtu/h, Base]]*1000/(1.08*($P$133-tbl_HVAC_Airside_Calc_Engine4[[#This Row],[Unocc RH VAV DAT °F]]))-tbl_HVAC_Airside_Calc_Engine4[[#This Row],[Unocc Tempered Cooling Flow %, Base]]*$F$120)/$F$120,0)) -> 0 | DG141: =IF($F$126="Constant Air Volume",0%,tbl_HVAC_Airside_Calc_Engine4[[#This Row],[Unocc Prop Fan Flow Adj (Cooling Only)]]+tbl_HVAC_Airside_Calc_Engine4[[#This Row],[Unocc Prop Fan Flow Adj (Tempered Cooling)]]) -> 0 | DH141: =MAX(IF(tbl_HVAC_Airside_Calc_Engine4[[#This Row],[Unocc Space Heating Only Load kBtu/h, Base]]>0,tbl_HVAC_Airside_Calc_Engine4[[#This Row],[Unocc Space Heating Only Load kBtu/h, Base]]*1000/(1.08*tbl_HVAC_Airside_Calc_Engine4[[#This Row],[Unocc Heating Only Flow %, Base]]*tbl_HVAC_Airside_Calc_Engine4[[#This Row],[Unocc SF Manual Prop Airflow Adj to Base Ratio]]*$F$120)+$O$133,IF(tbl_HVAC_Airside_Calc_Engine4[[#This Row],[Unocc Space Tempered Cooling Load kBtu/h, Base]]>0,$O$133-tbl_HVAC_Airside_Calc_Engine4[[#This Row],[Unocc Space Tempered Cooling Load kBtu/h, Base]]*1000/(1.08*tbl_HVAC_Airside_Calc_Engine4[[#This Row],[Unocc Tempered Cooling Flow %, Base]]*tbl_HVAC_Airside_Calc_Engine4[[#This Row],[Unocc SF Manual Prop Airflow Adj to Base Ratio]]*$F$120),tbl_HVAC_Airside_Calc_Engine4[[#This Row],[Unocc DAT °F, Base]])),tbl_HVAC_Airside_Calc_Engine4[[#This Row],[Unocc SAT °F]]) -> 55 | DI141: =(tbl_HVAC_Airside_Calc_Engine4[[#This Row],[Occ Hr]]*(tbl_HVAC_Airside_Calc_Engine4[[#This Row],[Occ Space Cooling Only Load kBtu/h, Base]]+tbl_HVAC_Airside_Calc_Engine4[[#This Row],[Occ Space Tempered Cooling Load kBtu/h, Base]])+tbl_HVAC_Airside_Calc_Engine4[[#This Row],[UnOcc Hr]]*(tbl_HVAC_Airside_Calc_Engine4[[#This Row],[Unocc Space Cooling Only Load kBtu/h, Base]]+tbl_HVAC_Airside_Calc_Engine4[[#This Row],[Unocc Space Tempered Cooling Load kBtu/h, Base]]))/12 -> 0
E142: 113 | F142: =COUNTIFS(tbl_Climate_Zone[Dry_Bulb],E142,tbl_Climate_Zone[On-Pk Hour],1,tbl_Climate_Zone[Hour],">" & $K$114,tbl_Climate_Zone[Hour],"<=" & $L$114) -> 0 | G142: ='CZ2022'!S4-F142 -> 0 | H142: =SUM( COUNTIFS(tbl_Climate_Zone[Dry_Bulb],E142,tbl_Climate_Zone[Weekday],$M$114,tbl_Climate_Zone[Hour],">"&$K$114,tbl_Climate_Zone[Hour],"<="&$L$114), COUNTIFS(tbl_Climate_Zone[Dry_Bulb],E142,tbl_Climate_Zone[Weekday],$M$115,tbl_Climate_Zone[Hour],">"&$K$115,tbl_Climate_Zone[Hour],"<="&$L$115), COUNTIFS(tbl_Climate_Zone[Dry_Bulb],E142,tbl_Climate_Zone[Weekday],$M$116,tbl_Climate_Zone[Hour],">"&$K$116,tbl_Climate_Zone[Hour],"<="&$L$116)) -> 0 | I142: ='CZ2022'!T4-tbl_HVAC_Airside_Calc_Engine4[[#This Row],[Occ Hr]] -> 0 | AH142: =IFERROR(IF($F$49="Baseline Trend Data", IF(ISBLANK(tbl_HVAC_Airside_Calc_Engine4[[#This Row],[Occ SAT (°F), Base Trend]]),MEDIAN(MIN(tbl_HVAC_Airside_Calc_Engine4[Occ SAT (°F), Base Trend]),MAX(tbl_HVAC_Airside_Calc_Engine4[Occ SAT (°F), Base Trend]),FORECAST(tbl_HVAC_Airside_Calc_Engine4[[#This Row],[OAT °F]],tbl_HVAC_Airside_Calc_Engine4[Occ SAT (°F), Base Trend],tbl_HVAC_Airside_Calc_Engine4[OAT °F])),tbl_HVAC_Airside_Calc_Engine4[[#This Row],[Occ SAT (°F), Base Trend]]), FORECAST(MEDIAN($F$53,$G$53,tbl_HVAC_Airside_Calc_Engine4[[#This Row],[OAT °F]]),$F$52:$G$52,$F$53:$G$53)),0) -> 55 | AI142: =IF($M$47 = "Disable",tbl_HVAC_Airside_Calc_Engine4[[#This Row],[Occ Base SAT °F]],IFERROR(IF($K$49="Proposed Trend Data", IF(ISBLANK(tbl_HVAC_Airside_Calc_Engine4[[#This Row],[Occ SAT (°F), Prop Trend]]),MEDIAN(MIN(tbl_HVAC_Airside_Calc_Engine4[Occ SAT (°F), Prop Trend]),MAX(tbl_HVAC_Airside_Calc_Engine4[Occ SAT (°F), Prop Trend]),FORECAST(tbl_HVAC_Airside_Calc_Engine4[[#This Row],[OAT °F]],tbl_HVAC_Airside_Calc_Engine4[Occ SAT (°F), Prop Trend],tbl_HVAC_Airside_Calc_Engine4[OAT °F])),tbl_HVAC_Airside_Calc_Engine4[[#This Row],[Occ SAT (°F), Prop Trend]]), FORECAST(MEDIAN($K$53,$L$53,tbl_HVAC_Airside_Calc_Engine4[[#This Row],[OAT °F]]),$K$52:$L$52,$K$53:$L$53)),0)) -> 55 | AJ142: =tbl_HVAC_Airside_Calc_Engine4[[#This Row],[Occ SAT °F]]-tbl_HVAC_Airside_Calc_Engine4[[#This Row],[Occ Base SAT °F]] -> 0 | AK142: =IFERROR(IF($F$105="Baseline",tbl_HVAC_Airside_Calc_Engine4[[#This Row],[Occ Base SAT °F]],tbl_HVAC_Airside_Calc_Engine4[[#This Row],[Occ Prop SAT °F]]),0) -> 55 | AL142: =IF($K$127="Proposed Trend Data",IF(ISBLANK(tbl_HVAC_Airside_Calc_Engine4[[#This Row],[Occ RH Box VAV Flow (%), Prop Trend]]),MEDIAN(tbl_HVAC_Airside_Calc_Engine4[[#This Row],[Occ SF Flow %]],MIN(tbl_HVAC_Airside_Calc_Engine4[Occ RH Box VAV Flow (%), Prop Trend]),FORECAST(tbl_HVAC_Airside_Calc_Engine4[[#This Row],[OAT °F]],tbl_HVAC_Airside_Calc_Engine4[Occ RH Box VAV Flow (%), Prop Trend],tbl_HVAC_Airside_Calc_Engine4[OAT °F])),tbl_HVAC_Airside_Calc_Engine4[[#This Row],[Occ RH Box VAV Flow (%), Prop Trend]]), IF(AND($K$127="Auto Calc",$M$65="Enable",$M$68="Sub-Enable"),tbl_HVAC_Airside_Calc_Engine4[[#This Row],[Occ SF Flow %]]*tbl_HVAC_Airside_Calc_Engine4[[#This Row],[Occ RH to SF Ratio, Base]], tbl_HVAC_Airside_Calc_Engine4[[#This Row],[Occ RH Box Flow %, Base]]+tbl_HVAC_Airside_Calc_Engine4[[#This Row],[Occ Prop Fan Flow Adj (Tempered Cooling)]]+IFERROR(( tbl_HVAC_Airside_Calc_Engine4[[#This Row],[Occ RH Box Flow %, Base]]-tbl_HVAC_Airside_Calc_Engine4[[#This Row],[Occ Tempered Cooling Flow %, Base]]-tbl_HVAC_Airside_Calc_Engine4[[#This Row],[Occ Heating Only Flow %, Base]])/tbl_HVAC_Airside_Calc_Engine4[[#This Row],[Occ SF Flow %, Base]],0)*tbl_HVAC_Airside_Calc_Engine4[[#This Row],[Occ Prop Fan Flow Adj (Cooling Only)]])) -> 1 | AM142: =IF($K$127="Proposed Trend Data", IF(ISBLANK(tbl_HVAC_Airside_Calc_Engine4[[#This Row],[Occ RH VAV DAT (°F), Prop Trend]]),MEDIAN(tbl_HVAC_Airside_Calc_Engine4[[#This Row],[Occ Prop SAT °F]],MAX(tbl_HVAC_Airside_Calc_Engine4[Occ RH VAV DAT (°F), Prop Trend]),FORECAST(tbl_HVAC_Airside_Calc_Engine4[[#This Row],[OAT °F]],tbl_HVAC_Airside_Calc_Engine4[Occ RH VAV DAT (°F), Prop Trend],tbl_HVAC_Airside_Calc_Engine4[OAT °F])),tbl_HVAC_Airside_Calc_Engine4[[#This Row],[Occ RH VAV DAT (°F), Prop Trend]]), tbl_HVAC_Airside_Calc_Engine4[[#This Row],[Occ RH DAT °F Adj]]) -> 55 | AN142: =IF($O$130="Baseline Trend Data", IF(ISBLANK(tbl_HVAC_Airside_Calc_Engine4[[#This Row],[ Occ RAT (°F), Base Trend]]),MEDIAN(MIN($O$140:$O$245),MAX($O$140:$O$245),FORECAST(tbl_HVAC_Airside_Calc_Engine4[[#This Row],[OAT °F]],$O$140:$O$245,tbl_HVAC_Airside_Calc_Engine4[OAT °F])),tbl_HVAC_Airside_Calc_Engine4[[#This Row],[ Occ RAT (°F), Base Trend]]), IF($O$130="Proposed Trend Data",IF(ISBLANK(tbl_HVAC_Airside_Calc_Engine4[[#This Row],[Occ RAT (°F), Prop Trend]]),MEDIAN(MIN(tbl_HVAC_Airside_Calc_Engine4[Occ RAT (°F), Prop Trend]),MAX(tbl_HVAC_Airside_Calc_Engine4[Occ RAT (°F), Prop Trend]),FORECAST(tbl_HVAC_Airside_Calc_Engine4[[#This Row],[OAT °F]],tbl_HVAC_Airside_Calc_Engine4[Occ RAT (°F), Prop Trend],tbl_HVAC_Airside_Calc_Engine4[OAT °F])),tbl_HVAC_Airside_Calc_Engine4[[#This Row],[Occ RAT (°F), Prop Trend]]), MEDIAN($P$132,$O$132,tbl_HVAC_Airside_Calc_Engine4[[#This Row],[OAT °F]]))) -> 75 | AO142: =MEDIAN(0,1,IF($K$119="Baseline Trend Data", IF(ISBLANK(tbl_HVAC_Airside_Calc_Engine4[[#This Row],[Occ OA Flow (%), Base Trend]]),MEDIAN(MIN(tbl_HVAC_Airside_Calc_Engine4[Occ OA Flow (%), Base Trend]),MAX(tbl_HVAC_Airside_Calc_Engine4[Occ OA Flow (%), Base Trend]),FORECAST(tbl_HVAC_Airside_Calc_Engine4[[#This Row],[OAT °F]],tbl_HVAC_Airside_Calc_Engine4[Occ OA Flow (%), Base Trend],tbl_HVAC_Airside_Calc_Engine4[OAT °F])),tbl_HVAC_Airside_Calc_Engine4[[#This Row],[Occ OA Flow (%), Base Trend]]), IF($K$119="Proposed Trend Data", IF(ISBLANK(tbl_HVAC_Airside_Calc_Engine4[[#This Row],[Occ OA Flow (%), Prop Trend]]),MEDIAN(MIN(tbl_HVAC_Airside_Calc_Engine4[Occ OA Flow (%), Prop Trend]),MAX(tbl_HVAC_Airside_Calc_Engine4[Occ OA Flow (%), Prop Trend]),FORECAST(tbl_HVAC_Airside_Calc_Engine4[[#This Row],[OAT °F]],tbl_HVAC_Airside_Calc_Engine4[Occ OA Flow (%), Prop Trend],tbl_HVAC_Airside_Calc_Engine4[OAT °F])),tbl_HVAC_Airside_Calc_Engine4[[#This Row],[Occ OA Flow (%), Prop Trend]]), IFERROR(IF((tbl_HVAC_Airside_Calc_Engine4[[#This Row],[OAT °F]]>$K$122),$K$121,MAX($K$121,MIN($L$121,(tbl_HVAC_Airside_Calc_Engine4[[#This Row],[Occ SAT °F]]-tbl_HVAC_Airside_Calc_Engine4[[#This Row],[Occ RAT °F]])/(tbl_HVAC_Airside_Calc_Engine4[[#This Row],[OAT °F]]-tbl_HVAC_Airside_Calc_Engine4[[#This Row],[Occ RAT °F]])))),$K$121)))) -> 0.2989697927 | AP142: =tbl_HVAC_Airside_Calc_Engine4[[#This Row],[Occ RAT °F]]*(1-tbl_HVAC_Airside_Calc_Engine4[[#This Row],[Occ OA Flow %]])+tbl_HVAC_Airside_Calc_Engine4[[#This Row],[OAT °F]]*tbl_HVAC_Airside_Calc_Engine4[[#This Row],[Occ OA Flow %]] -> 86.36085212 | AQ142: =IF(AND($F$130="yes",$F$131>tbl_HVAC_Airside_Calc_Engine4[[#This Row],[Occ MAT °F]]+$F$132,tbl_HVAC_Airside_Calc_Engine4[[#This Row],[Occ Hr]]>0),"Yes","No") -> No | AR142: =IF(tbl_HVAC_Airside_Calc_Engine4[[#This Row],[Occ Pre-Heat?]]="Yes",1.08*tbl_HVAC_Airside_Calc_Engine4[[#This Row],[Occ SF Flow %]]*$F$120*($F$131-(tbl_HVAC_Airside_Calc_Engine4[[#This Row],[Occ MAT °F]]+$F$132))/1000,0) -> 0 | AS142: =IF($O$118="Proposed Trend Data", IF(ISBLANK(tbl_HVAC_Airside_Calc_Engine4[[#This Row],[Occ SF Flow (%), Prop Trend]]),MEDIAN(MIN(tbl_HVAC_Airside_Calc_Engine4[Occ SF Flow (%), Prop Trend]),100%,FORECAST(tbl_HVAC_Airside_Calc_Engine4[[#This Row],[OAT °F]],tbl_HVAC_Airside_Calc_Engine4[Occ SF Flow (%), Prop Trend],tbl_HVAC_Airside_Calc_Engine4[OAT °F])),tbl_HVAC_Airside_Calc_Engine4[[#This Row],[Occ SF Flow (%), Prop Trend]]), IF(AND($F$106="Proposed",$M$65="Enable",$M$68="Sub-Enable",$K$67="Simple Data"),IF(tbl_HVAC_Airside_Calc_Engine4[[#This Row],[OAT °F]]<$O$123,TREND($O$122:$P$122,$O$123:$P$123,MEDIAN(tbl_HVAC_Airside_Calc_Engine4[[#This Row],[OAT °F]],$O$123,$P$123)),TREND($O$120:$P$120,$O$121:$P$121,MEDIAN($O$121,$P$121,tbl_HVAC_Airside_Calc_Engine4[[#This Row],[OAT °F]]))), tbl_HVAC_Airside_Calc_Engine4[[#This Row],[Occ SF Flow %, Base]]+tbl_HVAC_Airside_Calc_Engine4[[#This Row],[Occ Prop Net Fan Flow Adj]])) -> 1 | AT142: =IF(tbl_HVAC_Airside_Calc_Engine4[[#This Row],[OAT °F]]>$F$118,MAX(1.08*$F$120*(tbl_HVAC_Airside_Calc_Engine4[[#This Row],[Occ SF Flow %]]*(tbl_HVAC_Airside_Calc_Engine4[[#This Row],[Occ MAT °F]]-tbl_HVAC_Airside_Calc_Engine4[[#This Row],[Occ SAT °F]])/12000),0),0) -> 283.2359785 | AU142: =IF(AND(tbl_HVAC_Airside_Calc_Engine4[[#This Row],[OAT °F]]<$F$117,tbl_HVAC_Airside_Calc_Engine4[[#This Row],[Occ Hr]]>0),(1.08*$F$120*tbl_HVAC_Airside_Calc_Engine4[[#This Row],[Occ RH Box Flow %]]*(tbl_HVAC_Airside_Calc_Engine4[[#This Row],[Occ RH VAV DAT °F]]-IF(tbl_HVAC_Airside_Calc_Engine4[[#This Row],[Occ Pre-Heat?]]="yes",$F$131,MIN(tbl_HVAC_Airside_Calc_Engine4[[#This Row],[Occ SAT °F]],tbl_HVAC_Airside_Calc_Engine4[[#This Row],[Occ MAT °F]])))/10^3),0) -> 0 | AV142: =tbl_HVAC_Airside_Calc_Engine4[[#This Row],[Occ Pre-Heat Load, kBtu]]+tbl_HVAC_Airside_Calc_Engine4[[#This Row],[Occ Re-Heating Load, kBtu]] -> 0 | AW142: =tbl_HVAC_Airside_Calc_Engine4[[#This Row],[Occ SF Flow %]]*$F$125 -> 1 | AX142: =IF(AND(tbl_HVAC_Airside_Calc_Engine4[[#This Row],[Occ SF Flow %]]>0,tbl_HVAC_Airside_Calc_Engine4[[#This Row],[Occ Hr]]>0),$F$119*0.746/$W$109/IF($F$121="VFD",$X$110,1)*(($Z$107+$Z$108*tbl_HVAC_Airside_Calc_Engine4[[#This Row],[Occ SF Flow %]]+$Z$109*tbl_HVAC_Airside_Calc_Engine4[[#This Row],[Occ SF Flow %]]^2+$Z$110*tbl_HVAC_Airside_Calc_Engine4[[#This Row],[Occ SF Flow %]]^3) ),0) -> 0 | AY142: =IF(AND(tbl_HVAC_Airside_Calc_Engine4[[#This Row],[Occ RF Flow %]]>0,tbl_HVAC_Airside_Calc_Engine4[[#This Row],[Occ Hr]]>0),$F$122*0.746/$W$110/IF($F$124="VFD",$X$110,1)*($AB$107+$AB$108*tbl_HVAC_Airside_Calc_Engine4[[#This Row],[Occ RF Flow %]]+$AB$109*tbl_HVAC_Airside_Calc_Engine4[[#This Row],[Occ RF Flow %]]^2+$AB$110*tbl_HVAC_Airside_Calc_Engine4[[#This Row],[Occ RF Flow %]]^3),0) -> 0 | AZ142: =tbl_HVAC_Airside_Calc_Engine4[[#This Row],[Occ SF kW]]+tbl_HVAC_Airside_Calc_Engine4[[#This Row],[Occ RF kW]] -> 0 | BA142: =IF(tbl_HVAC_Airside_Calc_Engine4[[#This Row],[Occ Hr]]>0,$F$113*tbl_HVAC_Airside_Calc_Engine4[[#This Row],[Occ Cooling Load, Ton]]+IF($F$114="Electric",(tbl_HVAC_Airside_Calc_Engine4[[#This Row],[Occ Total Heating Load, kBtu]])/$F$116,0),0) -> 0 | BB142: =IFERROR(IF($F$49="Baseline Trend Data", IF(ISBLANK(tbl_HVAC_Airside_Calc_Engine4[[#This Row],[UnOcc SAT (°F), Base Trend]]),MEDIAN(MIN(tbl_HVAC_Airside_Calc_Engine4[UnOcc SAT (°F), Base Trend]),MAX(tbl_HVAC_Airside_Calc_Engine4[UnOcc SAT (°F), Base Trend]),FORECAST(tbl_HVAC_Airside_Calc_Engine4[[#This Row],[OAT °F]],tbl_HVAC_Airside_Calc_Engine4[UnOcc SAT (°F), Base Trend],tbl_HVAC_Airside_Calc_Engine4[OAT °F])),tbl_HVAC_Airside_Calc_Engine4[[#This Row],[UnOcc SAT (°F), Base Trend]]), FORECAST(MEDIAN($F$58,$G$58,tbl_HVAC_Airside_Calc_Engine4[[#This Row],[OAT °F]]),$F$57:$G$57,$F$58:$G$58)),0) -> 55 | BC142: =IF($M$47 = "Disable",tbl_HVAC_Airside_Calc_Engine4[[#This Row],[Unocc Base SAT °F]],IFERROR(IF($K$49="Proposed Trend Data", IF(ISBLANK(tbl_HVAC_Airside_Calc_Engine4[[#This Row],[UnOcc SAT (°F), Prop Trend]]),MEDIAN(MIN(tbl_HVAC_Airside_Calc_Engine4[UnOcc SAT (°F), Prop Trend]),MAX(tbl_HVAC_Airside_Calc_Engine4[UnOcc SAT (°F), Prop Trend]),FORECAST(tbl_HVAC_Airside_Calc_Engine4[[#This Row],[OAT °F]],tbl_HVAC_Airside_Calc_Engine4[UnOcc SAT (°F), Prop Trend],tbl_HVAC_Airside_Calc_Engine4[OAT °F])),tbl_HVAC_Airside_Calc_Engine4[[#This Row],[UnOcc SAT (°F), Prop Trend]]), FORECAST(MEDIAN($K$58,$L$58,tbl_HVAC_Airside_Calc_Engine4[[#This Row],[OAT °F]]),$K$57:$L$57,$K$58:$L$58)),0)) -> 55 | BD142: =tbl_HVAC_Airside_Calc_Engine4[[#This Row],[Unocc SAT °F]]-tbl_HVAC_Airside_Calc_Engine4[[#This Row],[Unocc Base SAT °F]] -> 0 | BE142: =IFERROR(IF($F$105="Baseline",tbl_HVAC_Airside_Calc_Engine4[[#This Row],[Unocc Base SAT °F]],tbl_HVAC_Airside_Calc_Engine4[[#This Row],[Unocc Prop SAT °F]]),0) -> 55 | BF142: =IF($K$128="Proposed Trend Data",IF(ISBLANK(tbl_HVAC_Airside_Calc_Engine4[[#This Row],[UnOcc RH Box VAV Flow (%), Prop Trend]]),MEDIAN(tbl_HVAC_Airside_Calc_Engine4[[#This Row],[Unocc SF Flow %]],MIN(tbl_HVAC_Airside_Calc_Engine4[UnOcc RH Box VAV Flow (%), Prop Trend]),FORECAST(tbl_HVAC_Airside_Calc_Engine4[[#This Row],[OAT °F]],tbl_HVAC_Airside_Calc_Engine4[UnOcc RH Box VAV Flow (%), Prop Trend],tbl_HVAC_Airside_Calc_Engine4[OAT °F])),tbl_HVAC_Airside_Calc_Engine4[[#This Row],[UnOcc RH Box VAV Flow (%), Prop Trend]]), IF(AND($K$128="Auto Calc",$M$65="Enable",$M$75="Sub-Enable"),tbl_HVAC_Airside_Calc_Engine4[[#This Row],[Unocc SF Flow %]]*tbl_HVAC_Airside_Calc_Engine4[[#This Row],[Unocc RH to SF Ratio, Base]], tbl_HVAC_Airside_Calc_Engine4[[#This Row],[Unocc RH Box Flow %, Base]]+tbl_HVAC_Airside_Calc_Engine4[[#This Row],[Unocc Prop Fan Flow Adj (Tempered Cooling)]]+IFERROR(( tbl_HVAC_Airside_Calc_Engine4[[#This Row],[Unocc RH Box Flow %, Base]]-tbl_HVAC_Airside_Calc_Engine4[[#This Row],[Unocc Tempered Cooling Flow %, Base]]-tbl_HVAC_Airside_Calc_Engine4[[#This Row],[Unocc Heating Only Flow %, Base]])/tbl_HVAC_Airside_Calc_Engine4[[#This Row],[Unocc SF Flow %, Base]],0)*tbl_HVAC_Airside_Calc_Engine4[[#This Row],[Unocc Prop Fan Flow Adj (Cooling Only)]])) -> 0.3 | BG142: =IF($K$128="Proposed Trend Data", IF(ISBLANK(tbl_HVAC_Airside_Calc_Engine4[[#This Row],[UnOcc RH VAV DAT (°F), Prop Trend]]),MEDIAN(tbl_HVAC_Airside_Calc_Engine4[[#This Row],[Unocc Prop SAT °F]],MAX(tbl_HVAC_Airside_Calc_Engine4[UnOcc RH VAV DAT (°F), Prop Trend]),FORECAST(tbl_HVAC_Airside_Calc_Engine4[[#This Row],[OAT °F]],tbl_HVAC_Airside_Calc_Engine4[UnOcc RH VAV DAT (°F), Prop Trend],tbl_HVAC_Airside_Calc_Engine4[OAT °F])),tbl_HVAC_Airside_Calc_Engine4[[#This Row],[UnOcc RH VAV DAT (°F), Prop Trend]]), tbl_HVAC_Airside_Calc_Engine4[[#This Row],[Unocc RH DAT °F Adj]]) -> 55 | BH142: =IF($O$130="Baseline Trend Data", IF(ISBLANK(tbl_HVAC_Airside_Calc_Engine4[[#This Row],[UnOcc RAT (°F), Base Trend]]),MEDIAN(MIN(tbl_HVAC_Airside_Calc_Engine4[UnOcc RAT (°F), Base Trend]),MAX(tbl_HVAC_Airside_Calc_Engine4[UnOcc RAT (°F), Base Trend]),FORECAST(tbl_HVAC_Airside_Calc_Engine4[[#This Row],[OAT °F]], tbl_HVAC_Airside_Calc_Engine4[UnOcc RAT (°F), Base Trend],tbl_HVAC_Airside_Calc_Engine4[OAT °F])),tbl_HVAC_Airside_Calc_Engine4[[#This Row],[UnOcc RAT (°F), Base Trend]]), IF($O$130="Proposed Trend Data",IF(ISBLANK(tbl_HVAC_Airside_Calc_Engine4[[#This Row],[UnOcc RAT (°F), Prop Trend]]),MEDIAN(MIN(tbl_HVAC_Airside_Calc_Engine4[UnOcc RAT (°F), Prop Trend]),MAX(tbl_HVAC_Airside_Calc_Engine4[UnOcc RAT (°F), Prop Trend]),FORECAST(tbl_HVAC_Airside_Calc_Engine4[[#This Row],[OAT °F]],tbl_HVAC_Airside_Calc_Engine4[UnOcc RAT (°F), Prop Trend],tbl_HVAC_Airside_Calc_Engine4[OAT °F])),tbl_HVAC_Airside_Calc_Engine4[[#This Row],[UnOcc RAT (°F), Prop Trend]]), MEDIAN($P$133,$O$133,tbl_HVAC_Airside_Calc_Engine4[[#This Row],[OAT °F]]))) -> 75 | BI142: =MEDIAN(0,1,IF($K$119="Baseline Trend Data", IF(ISBLANK(tbl_HVAC_Airside_Calc_Engine4[[#This Row],[UnOcc OA Flow (%), Base Trend]]),MEDIAN(MIN(tbl_HVAC_Airside_Calc_Engine4[UnOcc OA Flow (%), Base Trend]),MAX(tbl_HVAC_Airside_Calc_Engine4[UnOcc OA Flow (%), Base Trend]),FORECAST(tbl_HVAC_Airside_Calc_Engine4[[#This Row],[OAT °F]],tbl_HVAC_Airside_Calc_Engine4[UnOcc OA Flow (%), Base Trend],tbl_HVAC_Airside_Calc_Engine4[OAT °F])),tbl_HVAC_Airside_Calc_Engine4[[#This Row],[UnOcc OA Flow (%), Base Trend]]), IF($K$119="Proposed Trend Data",IF(ISBLANK(tbl_HVAC_Airside_Calc_Engine4[[#This Row],[Unocc OA Flow (%), Prop Trend]]),MEDIAN(MIN(tbl_HVAC_Airside_Calc_Engine4[Unocc OA Flow (%), Prop Trend]),MAX(tbl_HVAC_Airside_Calc_Engine4[Unocc OA Flow (%), Prop Trend]),FORECAST(tbl_HVAC_Airside_Calc_Engine4[[#This Row],[OAT °F]],tbl_HVAC_Airside_Calc_Engine4[Unocc OA Flow (%), Prop Trend],tbl_HVAC_Airside_Calc_Engine4[OAT °F])),tbl_HVAC_Airside_Calc_Engine4[[#This Row],[Unocc OA Flow (%), Prop Trend]]), IFERROR(IF((tbl_HVAC_Airside_Calc_Engine4[[#This Row],[OAT °F]]>$K$124),$K$123,MAX($K$123,MIN($L$123,(tbl_HVAC_Airside_Calc_Engine4[[#This Row],[Unocc SAT °F]]-tbl_HVAC_Airside_Calc_Engine4[[#This Row],[UnOcc RAT °F]])/(tbl_HVAC_Airside_Calc_Engine4[[#This Row],[OAT °F]]-tbl_HVAC_Airside_Calc_Engine4[[#This Row],[UnOcc RAT °F]])))),$K$123)))) -> 0 | BJ142: =tbl_HVAC_Airside_Calc_Engine4[[#This Row],[UnOcc RAT °F]]*(1-tbl_HVAC_Airside_Calc_Engine4[[#This Row],[Unocc OA Flow %]])+tbl_HVAC_Airside_Calc_Engine4[[#This Row],[OAT °F]]*tbl_HVAC_Airside_Calc_Engine4[[#This Row],[Unocc OA Flow %]] -> 75 | BK142: =IF(AND($F$130="yes",$F$131>tbl_HVAC_Airside_Calc_Engine4[[#This Row],[UnOcc MAT °F]]+$F$132,tbl_HVAC_Airside_Calc_Engine4[[#This Row],[UnOcc Hr]]>0),"Yes","No") -> No | BL142: =IF(tbl_HVAC_Airside_Calc_Engine4[[#This Row],[Unocc Pre-Heat?]]="Yes",1.08*tbl_HVAC_Airside_Calc_Engine4[[#This Row],[Unocc SF Flow %]]*$F$120*($F$131-(tbl_HVAC_Airside_Calc_Engine4[[#This Row],[UnOcc MAT °F]]+$F$132))/1000,0) -> 0 | BM142: =IF($O$118="Proposed Trend Data", IF(ISBLANK(tbl_HVAC_Airside_Calc_Engine4[[#This Row],[Unocc SF Flow (%), Prop Trend]]),MEDIAN(MIN(tbl_HVAC_Airside_Calc_Engine4[Unocc SF Flow (%), Prop Trend]),100%,FORECAST(tbl_HVAC_Airside_Calc_Engine4[[#This Row],[OAT °F]],tbl_HVAC_Airside_Calc_Engine4[Unocc SF Flow (%), Prop Trend],tbl_HVAC_Airside_Calc_Engine4[OAT °F])),tbl_HVAC_Airside_Calc_Engine4[[#This Row],[Unocc SF Flow (%), Prop Trend]]), IF(AND($F$106="Proposed",$M$65="Enable",$M$75="Sub-Enable",$K$67="Simple Data"),IF(tbl_HVAC_Airside_Calc_Engine4[[#This Row],[OAT °F]]<$O$128,TREND($O$127:$P$127,$O$128:$P$128,MEDIAN(tbl_HVAC_Airside_Calc_Engine4[[#This Row],[OAT °F]],$O$128,$P$128)),TREND($O$125:$P$125,$O$126:$P$126,MEDIAN($O$126,$P$126,tbl_HVAC_Airside_Calc_Engine4[[#This Row],[OAT °F]]))), tbl_HVAC_Airside_Calc_Engine4[[#This Row],[Unocc SF Flow %, Base]]+tbl_HVAC_Airside_Calc_Engine4[[#This Row],[Unocc Prop Net Fan Flow Adj]])) -> 0.3 | BN142: =IF(tbl_HVAC_Airside_Calc_Engine4[[#This Row],[OAT °F]]>$F$118,MAX(1.08*$F$120*(tbl_HVAC_Airside_Calc_Engine4[[#This Row],[Unocc SF Flow %]]*(tbl_HVAC_Airside_Calc_Engine4[[#This Row],[UnOcc MAT °F]]-tbl_HVAC_Airside_Calc_Engine4[[#This Row],[Unocc SAT °F]])/12000),0),0) -> 54.18908467 | BO142: =IF(AND(tbl_HVAC_Airside_Calc_Engine4[[#This Row],[UnOcc Hr]]>0,tbl_HVAC_Airside_Calc_Engine4[[#This Row],[OAT °F]]<$F$117),(1.08*$F$120*tbl_HVAC_Airside_Calc_Engine4[[#This Row],[Unocc RH Box Flow %]]*(tbl_HVAC_Airside_Calc_Engine4[[#This Row],[Unocc RH VAV DAT °F]]-IF(tbl_HVAC_Airside_Calc_Engine4[[#This Row],[Unocc Pre-Heat?]]="yes",$F$131,MIN(tbl_HVAC_Airside_Calc_Engine4[[#This Row],[Unocc SAT °F]],tbl_HVAC_Airside_Calc_Engine4[[#This Row],[UnOcc MAT °F]])))/10^3),0) -> 0 | BP142: =tbl_HVAC_Airside_Calc_Engine4[[#This Row],[Unocc Pre-Heat Load, kBtu]]+tbl_HVAC_Airside_Calc_Engine4[[#This Row],[Unocc Re-Heating Load, kBtu]] -> 0 | BQ142: =tbl_HVAC_Airside_Calc_Engine4[[#This Row],[Unocc SF Flow %]]*$F$125 -> 0.3 | BR142: =IF(AND(tbl_HVAC_Airside_Calc_Engine4[[#This Row],[Unocc SF Flow %]]>0,tbl_HVAC_Airside_Calc_Engine4[[#This Row],[UnOcc Hr]]>0),$F$119*0.746/$W$109/IF($F$121="VFD",$X$110,1)*(($Z$107+$Z$108*tbl_HVAC_Airside_Calc_Engine4[[#This Row],[Unocc SF Flow %]]+$Z$109*tbl_HVAC_Airside_Calc_Engine4[[#This Row],[Unocc SF Flow %]]^2+$Z$110*tbl_HVAC_Airside_Calc_Engine4[[#This Row],[Unocc SF Flow %]]^3) ),0) -> 0 | BS142: =IF(AND(tbl_HVAC_Airside_Calc_Engine4[[#This Row],[Unocc RF Flow %]]>0,tbl_HVAC_Airside_Calc_Engine4[[#This Row],[UnOcc Hr]]>0),$F$122*0.746/$W$110/IF($F$124="VFD",$X$110,1)*($AB$107+$AB$108*tbl_HVAC_Airside_Calc_Engine4[[#This Row],[Unocc RF Flow %]]+$AB$109*tbl_HVAC_Airside_Calc_Engine4[[#This Row],[Unocc RF Flow %]]^2+$AB$110*tbl_HVAC_Airside_Calc_Engine4[[#This Row],[Unocc RF Flow %]]^3),0) -> 0 | BT142: =tbl_HVAC_Airside_Calc_Engine4[[#This Row],[Unocc SF kW]]+tbl_HVAC_Airside_Calc_Engine4[[#This Row],[Unocc RF kW]] -> 0 | BU142: =IF(tbl_HVAC_Airside_Calc_Engine4[[#This Row],[UnOcc Hr]]>0,$F$113*tbl_HVAC_Airside_Calc_Engine4[[#This Row],[Unocc Cooling Load, Ton]]+IF($F$114="Electric",(tbl_HVAC_Airside_Calc_Engine4[[#This Row],[Unocc Total Heating Load, kBtu]])/$F$116,0),0) -> 0 | BV142: =tbl_HVAC_Airside_Calc_Engine4[[#This Row],[Occ Hr]]*(tbl_HVAC_Airside_Calc_Engine4[[#This Row],[Occ SF kW]]+tbl_HVAC_Airside_Calc_Engine4[[#This Row],[Occ RF kW]])+tbl_HVAC_Airside_Calc_Engine4[[#This Row],[UnOcc Hr]]*(tbl_HVAC_Airside_Calc_Engine4[[#This Row],[Unocc SF kW]]+tbl_HVAC_Airside_Calc_Engine4[[#This Row],[Unocc RF kW]]) -> 0 | BW142: =tbl_HVAC_Airside_Calc_Engine4[[#This Row],[Occ Load kW]]*tbl_HVAC_Airside_Calc_Engine4[[#This Row],[Occ Hr]]+tbl_HVAC_Airside_Calc_Engine4[[#This Row],[Unocc Load kW]]*tbl_HVAC_Airside_Calc_Engine4[[#This Row],[UnOcc Hr]] -> 0 | BX142: =IF($F$114="Gas",(tbl_HVAC_Airside_Calc_Engine4[[#This Row],[Occ Pre-Heat Load, kBtu]]+tbl_HVAC_Airside_Calc_Engine4[[#This Row],[Occ Re-Heating Load, kBtu]])/100/$F$115*tbl_HVAC_Airside_Calc_Engine4[[#This Row],[Occ Hr]]+(tbl_HVAC_Airside_Calc_Engine4[[#This Row],[Unocc Pre-Heat Load, kBtu]]+tbl_HVAC_Airside_Calc_Engine4[[#This Row],[Unocc Re-Heating Load, kBtu]])/100/$F$115*tbl_HVAC_Airside_Calc_Engine4[[#This Row],[UnOcc Hr]],0) -> 0 | BY142: =MEDIAN(0,1,IF($F$31="Baseline Trend Data",IF(ISBLANK(tbl_HVAC_Airside_Calc_Engine4[[#This Row],[Occ OA Flow (%), Base Trend]]),MEDIAN(MIN(tbl_HVAC_Airside_Calc_Engine4[Occ OA Flow (%), Base Trend]),MAX(tbl_HVAC_Airside_Calc_Engine4[Occ OA Flow (%), Base Trend]),FORECAST(tbl_HVAC_Airside_Calc_Engine4[[#This Row],[OAT °F]],tbl_HVAC_Airside_Calc_Engine4[Occ OA Flow (%), Base Trend],tbl_HVAC_Airside_Calc_Engine4[OAT °F])),tbl_HVAC_Airside_Calc_Engine4[[#This Row],[Occ OA Flow (%), Base Trend]]), IFERROR(IF((tbl_HVAC_Airside_Calc_Engine4[[#This Row],[OAT °F]]>$F$35),$F$34,MAX($F$34,MIN($G$34,(tbl_HVAC_Airside_Calc_Engine4[[#This Row],[Occ Base SAT °F]]-tbl_HVAC_Airside_Calc_Engine4[[#This Row],[Occ RAT °F, Base]])/(tbl_HVAC_Airside_Calc_Engine4[[#This Row],[OAT °F]]-tbl_HVAC_Airside_Calc_Engine4[[#This Row],[Occ RAT °F, Base]])))),$F$34))) -> 0.2989697927 | BZ142: =MIN(100%,IF($F$67="Baseline Trend Data", IF(ISBLANK(tbl_HVAC_Airside_Calc_Engine4[[#This Row],[Occ SF Flow (%), Base Trend]]),MEDIAN(MIN(tbl_HVAC_Airside_Calc_Engine4[Occ SF Flow (%), Base Trend]),1,FORECAST(tbl_HVAC_Airside_Calc_Engine4[[#This Row],[OAT °F]],tbl_HVAC_Airside_Calc_Engine4[Occ SF Flow (%), Base Trend],tbl_HVAC_Airside_Calc_Engine4[OAT °F])),tbl_HVAC_Airside_Calc_Engine4[[#This Row],[Occ SF Flow (%), Base Trend]]), IF(tbl_HVAC_Airside_Calc_Engine4[[#This Row],[OAT °F]]<$F$73,TREND($F$72:$G$72,$F$73:$G$73,MEDIAN(tbl_HVAC_Airside_Calc_Engine4[[#This Row],[OAT °F]],$F$73,$G$73)), TREND($F$70:$G$70,$F$71:$G$71,MEDIAN($F$71,$G$71,tbl_HVAC_Airside_Calc_Engine4[[#This Row],[OAT °F]]))))) -> 1 | CA142: =MAX(0,MIN(100%,IF($F$82="Baseline Trend Data", IF(ISBLANK(tbl_HVAC_Airside_Calc_Engine4[[#This Row],[Occ RH Box VAV Flow (%), Base Trend]]),MEDIAN(MIN(tbl_HVAC_Airside_Calc_Engine4[Occ RH Box VAV Flow (%), Base Trend]),tbl_HVAC_Airside_Calc_Engine4[[#This Row],[Occ SF Flow %, Base]],FORECAST(tbl_HVAC_Airside_Calc_Engine4[[#This Row],[OAT °F]],tbl_HVAC_Airside_Calc_Engine4[Occ RH Box VAV Flow (%), Base Trend],tbl_HVAC_Airside_Calc_Engine4[OAT °F])),tbl_HVAC_Airside_Calc_Engine4[[#This Row],[Occ RH Box VAV Flow (%), Base Trend]]), tbl_HVAC_Airside_Calc_Engine4[[#This Row],[Occ SF Flow %, Base]]*$F$84))) -> 1 | CB142: =IFERROR(tbl_HVAC_Airside_Calc_Engine4[[#This Row],[Occ RH Box Flow %, Base]]/tbl_HVAC_Airside_Calc_Engine4[[#This Row],[Occ SF Flow %, Base]],0) -> 1 | CC142: =IF($F$82="Baseline Trend Data", IF(ISBLANK(tbl_HVAC_Airside_Calc_Engine4[[#This Row],[Occ RH VAV DAT (°F), Base Trend]]),MEDIAN(tbl_HVAC_Airside_Calc_Engine4[[#This Row],[Occ Base SAT °F]],MAX(tbl_HVAC_Airside_Calc_Engine4[Occ RH VAV DAT (°F), Base Trend]),FORECAST(tbl_HVAC_Airside_Calc_Engine4[[#This Row],[OAT °F]],tbl_HVAC_Airside_Calc_Engine4[Occ RH VAV DAT (°F), Base Trend],tbl_HVAC_Airside_Calc_Engine4[OAT °F])),tbl_HVAC_Airside_Calc_Engine4[[#This Row],[Occ RH VAV DAT (°F), Base Trend]]), MIN($F$90,tbl_HVAC_Airside_Calc_Engine4[[#This Row],[Occ Base SAT °F]]+MAX(0,($F$90-tbl_HVAC_Airside_Calc_Engine4[[#This Row],[Occ Base SAT °F]])*(($F$85-tbl_HVAC_Airside_Calc_Engine4[[#This Row],[OAT °F]])/($F$85-IF($F$88="yes",$F$89,$F$87)))))) -> 55 | CD142: =IF($F$96="Baseline Trend Data", IF(ISBLANK(tbl_HVAC_Airside_Calc_Engine4[[#This Row],[ Occ RAT (°F), Base Trend]]),MEDIAN(MIN($O$140:$O$245),MAX($O$140:$O$245),FORECAST(tbl_HVAC_Airside_Calc_Engine4[[#This Row],[OAT °F]],$O$140:$O$245,tbl_HVAC_Airside_Calc_Engine4[OAT °F])),tbl_HVAC_Airside_Calc_Engine4[[#This Row],[ Occ RAT (°F), Base Trend]]), MEDIAN($G$94,$F$94,tbl_HVAC_Airside_Calc_Engine4[[#This Row],[OAT °F]])) -> 75 | CE142: =IF(tbl_HVAC_Airside_Calc_Engine4[[#This Row],[Occ DAT °F, Base]]>$F$94,tbl_HVAC_Airside_Calc_Engine4[[#This Row],[Occ RH Box Flow %, Base]],0) -> 0 | CF142: =tbl_HVAC_Airside_Calc_Engine4[[#This Row],[Occ SF Flow %, Base]]-tbl_HVAC_Airside_Calc_Engine4[[#This Row],[Occ Heating Only Flow %, Base]]-tbl_HVAC_Airside_Calc_Engine4[[#This Row],[Occ Tempered Cooling Flow %, Base]] -> 1 | CG142: =IF(AND(tbl_HVAC_Airside_Calc_Engine4[[#This Row],[Occ DAT °F, Base]]<=$F$94,tbl_HVAC_Airside_Calc_Engine4[[#This Row],[Occ DAT °F, Base]]>tbl_HVAC_Airside_Calc_Engine4[[#This Row],[Occ Base SAT °F]]),tbl_HVAC_Airside_Calc_Engine4[[#This Row],[Occ RH Box Flow %, Base]],0) -> 0 | CH142: =SUM(tbl_HVAC_Airside_Calc_Engine4[[#This Row],[Occ Heating Only Flow %, Base]:[Occ Tempered Cooling Flow %, Base]]) -> 1 | CI142: =1.08*tbl_HVAC_Airside_Calc_Engine4[[#This Row],[Occ Heating Only Flow %, Base]]*$F$120*(tbl_HVAC_Airside_Calc_Engine4[[#This Row],[Occ DAT °F, Base]]-$F$94)/1000 -> 0 | CJ142: =1.08*tbl_HVAC_Airside_Calc_Engine4[[#This Row],[Occ Cooling Only Flow %, Base]]*$F$120*($G$94-tbl_HVAC_Airside_Calc_Engine4[[#This Row],[Occ Base SAT °F]])/1000 -> 2167.563387 | CK142: =1.08*tbl_HVAC_Airside_Calc_Engine4[[#This Row],[Occ Tempered Cooling Flow %, Base]]*$F$120*($F$94-tbl_HVAC_Airside_Calc_Engine4[[#This Row],[Occ DAT °F, Base]])/1000 -> 0 | CL142: =IF(AND($F$106="Proposed",$M$65="Enable",$M$68="Sub-Enable"),IFERROR(tbl_HVAC_Airside_Calc_Engine4[[#This Row],[Occ SF Flow %]]/tbl_HVAC_Airside_Calc_Engine4[[#This Row],[Occ SF Flow %, Base]],0),100%) -> 1 | CM142: =IF($F$126="Constant Air Volume",0%,IFERROR((tbl_HVAC_Airside_Calc_Engine4[[#This Row],[Occ Space Cooling Only Load kBtu/h, Base]]*1000/(1.08*($P$132-tbl_HVAC_Airside_Calc_Engine4[[#This Row],[Occ SAT °F]]))-tbl_HVAC_Airside_Calc_Engine4[[#This Row],[Occ Cooling Only Flow %, Base]]*$F$120)/$F$120,0)) -> 0 | CN142: =IF($F$126="Constant Air Volume",0%,IFERROR(MAX(0,tbl_HVAC_Airside_Calc_Engine4[[#This Row],[Occ Space Tempered Cooling Load kBtu/h, Base]]*1000/(1.08*($P$132-tbl_HVAC_Airside_Calc_Engine4[[#This Row],[Occ RH VAV DAT °F]]))-tbl_HVAC_Airside_Calc_Engine4[[#This Row],[Occ Tempered Cooling Flow %, Base]]*$F$120)/$F$120,0)) -> 0 | CO142: =IF($F$126="Constant Air Volume",0%,tbl_HVAC_Airside_Calc_Engine4[[#This Row],[Occ Prop Fan Flow Adj (Cooling Only)]]+tbl_HVAC_Airside_Calc_Engine4[[#This Row],[Occ Prop Fan Flow Adj (Tempered Cooling)]]) -> 0 | CP142: =MAX(IF(tbl_HVAC_Airside_Calc_Engine4[[#This Row],[Occ Space Heating Only Load kBtu/h, Base]]>0,tbl_HVAC_Airside_Calc_Engine4[[#This Row],[Occ Space Heating Only Load kBtu/h, Base]]*1000/(1.08*tbl_HVAC_Airside_Calc_Engine4[[#This Row],[Occ Heating Only Flow %, Base]]*tbl_HVAC_Airside_Calc_Engine4[[#This Row],[Occ SF Manual Prop Airflow Adj to Base Ratio]]*$F$120)+$O$132,IF(tbl_HVAC_Airside_Calc_Engine4[[#This Row],[Occ Space Tempered Cooling Load kBtu/h, Base]]>0,$O$132-tbl_HVAC_Airside_Calc_Engine4[[#This Row],[Occ Space Tempered Cooling Load kBtu/h, Base]]*1000/(1.08*tbl_HVAC_Airside_Calc_Engine4[[#This Row],[Occ Tempered Cooling Flow %, Base]]*tbl_HVAC_Airside_Calc_Engine4[[#This Row],[Occ SF Manual Prop Airflow Adj to Base Ratio]]*$F$120),tbl_HVAC_Airside_Calc_Engine4[[#This Row],[Occ DAT °F, Base]])),tbl_HVAC_Airside_Calc_Engine4[[#This Row],[Occ SAT °F]]) -> 55 | CQ142: =MEDIAN(0,1,IF($F$31="Baseline Trend Data",IF(ISBLANK(tbl_HVAC_Airside_Calc_Engine4[[#This Row],[UnOcc OA Flow (%), Base Trend]]),MEDIAN(MIN(tbl_HVAC_Airside_Calc_Engine4[UnOcc OA Flow (%), Base Trend]),MAX(tbl_HVAC_Airside_Calc_Engine4[UnOcc OA Flow (%), Base Trend]),FORECAST(tbl_HVAC_Airside_Calc_Engine4[[#This Row],[OAT °F]],tbl_HVAC_Airside_Calc_Engine4[UnOcc OA Flow (%), Base Trend],tbl_HVAC_Airside_Calc_Engine4[OAT °F])),tbl_HVAC_Airside_Calc_Engine4[[#This Row],[UnOcc OA Flow (%), Base Trend]]), IFERROR(IF((tbl_HVAC_Airside_Calc_Engine4[[#This Row],[OAT °F]]>$F$40),$F$39,MAX($F$39,MIN($G$39,(tbl_HVAC_Airside_Calc_Engine4[[#This Row],[Unocc Base SAT °F]]-tbl_HVAC_Airside_Calc_Engine4[[#This Row],[Unocc RAT °F, Base]])/(tbl_HVAC_Airside_Calc_Engine4[[#This Row],[OAT °F]]-tbl_HVAC_Airside_Calc_Engine4[[#This Row],[Unocc RAT °F, Base]])))),$F$39))) -> 0 | CR142: =MIN(100%,IF($F$67="Baseline Trend Data", IF(ISBLANK(tbl_HVAC_Airside_Calc_Engine4[[#This Row],[UnOcc SF Flow (%), Base Trend]]),MEDIAN(MIN(tbl_HVAC_Airside_Calc_Engine4[UnOcc SF Flow (%), Base Trend]),1,FORECAST(tbl_HVAC_Airside_Calc_Engine4[[#This Row],[OAT °F]],tbl_HVAC_Airside_Calc_Engine4[UnOcc SF Flow (%), Base Trend],tbl_HVAC_Airside_Calc_Engine4[OAT °F])),tbl_HVAC_Airside_Calc_Engine4[[#This Row],[UnOcc SF Flow (%), Base Trend]]), IF(tbl_HVAC_Airside_Calc_Engine4[[#This Row],[OAT °F]]<$F$80,TREND($F$79:$G$79,$F$80:$G$80,MEDIAN(tbl_HVAC_Airside_Calc_Engine4[[#This Row],[OAT °F]],$F$80,$G$80)), TREND($F$77:$G$77,$F$78:$G$78,MEDIAN($F$78,$G$78,tbl_HVAC_Airside_Calc_Engine4[[#This Row],[OAT °F]]))))) -> 0.3 | CS142: =MAX(0,MIN(100%,IF($F$82="Baseline Trend Data", IF(ISBLANK(tbl_HVAC_Airside_Calc_Engine4[[#This Row],[UnOcc RH Box VAV Flow (%), Base Trend]]),MEDIAN(MIN(tbl_HVAC_Airside_Calc_Engine4[UnOcc RH Box VAV Flow (%), Base Trend]),tbl_HVAC_Airside_Calc_Engine4[[#This Row],[Unocc SF Flow %, Base]],FORECAST(tbl_HVAC_Airside_Calc_Engine4[[#This Row],[OAT °F]],tbl_HVAC_Airside_Calc_Engine4[UnOcc RH Box VAV Flow (%), Base Trend],tbl_HVAC_Airside_Calc_Engine4[OAT °F])),tbl_HVAC_Airside_Calc_Engine4[[#This Row],[UnOcc RH Box VAV Flow (%), Base Trend]]), tbl_HVAC_Airside_Calc_Engine4[[#This Row],[Unocc SF Flow %, Base]]*$F$84))) -> 0.3 | CT142: =IFERROR(tbl_HVAC_Airside_Calc_Engine4[[#This Row],[Unocc RH Box Flow %, Base]]/tbl_HVAC_Airside_Calc_Engine4[[#This Row],[Unocc SF Flow %, Base]],0) -> 1 | CU142: =IF($F$82="Baseline Trend Data", IF(ISBLANK(tbl_HVAC_Airside_Calc_Engine4[[#This Row],[UnOcc RH VAV DAT (°F), Base Trend]]),MEDIAN(tbl_HVAC_Airside_Calc_Engine4[[#This Row],[Unocc Base SAT °F]],MAX(tbl_HVAC_Airside_Calc_Engine4[UnOcc RH VAV DAT (°F), Base Trend]),FORECAST(tbl_HVAC_Airside_Calc_Engine4[[#This Row],[OAT °F]],tbl_HVAC_Airside_Calc_Engine4[UnOcc RH VAV DAT (°F), Base Trend],tbl_HVAC_Airside_Calc_Engine4[OAT °F])),tbl_HVAC_Airside_Calc_Engine4[[#This Row],[UnOcc RH VAV DAT (°F), Base Trend]]), MIN($G$90,tbl_HVAC_Airside_Calc_Engine4[[#This Row],[Unocc Base SAT °F]]+MAX(0,($G$90-tbl_HVAC_Airside_Calc_Engine4[[#This Row],[Unocc Base SAT °F]])*(($G$85-tbl_HVAC_Airside_Calc_Engine4[[#This Row],[OAT °F]])/($G$85-IF($G$88="yes",$G$89,$G$87)))))) -> 55 | CV142: =IF($F$96="Baseline Trend Data", IF(ISBLANK(tbl_HVAC_Airside_Calc_Engine4[[#This Row],[UnOcc RAT (°F), Base Trend]]),MEDIAN(MIN(tbl_HVAC_Airside_Calc_Engine4[UnOcc RAT (°F), Base Trend]),MAX(tbl_HVAC_Airside_Calc_Engine4[UnOcc RAT (°F), Base Trend]),FORECAST(tbl_HVAC_Airside_Calc_Engine4[[#This Row],[OAT °F]],tbl_HVAC_Airside_Calc_Engine4[UnOcc RAT (°F), Base Trend],tbl_HVAC_Airside_Calc_Engine4[OAT °F])),tbl_HVAC_Airside_Calc_Engine4[[#This Row],[UnOcc RAT (°F), Base Trend]]), MEDIAN($G$95,$F$95,tbl_HVAC_Airside_Calc_Engine4[[#This Row],[OAT °F]])) -> 80 | CW142: =IF(tbl_HVAC_Airside_Calc_Engine4[[#This Row],[Unocc DAT °F, Base]]>$F$95,tbl_HVAC_Airside_Calc_Engine4[[#This Row],[Unocc RH Box Flow %, Base]],0) -> 0 | CX142: =tbl_HVAC_Airside_Calc_Engine4[[#This Row],[Unocc SF Flow %, Base]]-tbl_HVAC_Airside_Calc_Engine4[[#This Row],[Unocc Heating Only Flow %, Base]]-tbl_HVAC_Airside_Calc_Engine4[[#This Row],[Unocc Tempered Cooling Flow %, Base]] -> 0.3 | CY142: =IF(AND(tbl_HVAC_Airside_Calc_Engine4[[#This Row],[Unocc DAT °F, Base]]<=$F$95,tbl_HVAC_Airside_Calc_Engine4[[#This Row],[Unocc DAT °F, Base]]>tbl_HVAC_Airside_Calc_Engine4[[#This Row],[Unocc Base SAT °F]]),tbl_HVAC_Airside_Calc_Engine4[[#This Row],[Unocc RH Box Flow %, Base]],0) -> 0 | CZ142: =SUM(tbl_HVAC_Airside_Calc_Engine4[[#This Row],[Unocc Heating Only Flow %, Base]:[Unocc Tempered Cooling Flow %, Base]]) -> 0.3 | DA142: =1.08*tbl_HVAC_Airside_Calc_Engine4[[#This Row],[Unocc Heating Only Flow %, Base]]*$F$120*(tbl_HVAC_Airside_Calc_Engine4[[#This Row],[Unocc DAT °F, Base]]-$F$95)/1000 -> 0 | DB142: =1.08*tbl_HVAC_Airside_Calc_Engine4[[#This Row],[Unocc Cooling Only Flow %, Base]]*$F$120*($G$95-tbl_HVAC_Airside_Calc_Engine4[[#This Row],[Unocc Base SAT °F]])/1000 -> 812.8362701 | DC142: =1.08*tbl_HVAC_Airside_Calc_Engine4[[#This Row],[Unocc Tempered Cooling Flow %, Base]]*$F$120*($F$95-tbl_HVAC_Airside_Calc_Engine4[[#This Row],[Unocc DAT °F, Base]])/1000 -> 0 | DD142: =IF(AND($F$106="Proposed",$M$65="Enable",$M$75="Sub-Enable"),IF(tbl_HVAC_Airside_Calc_Engine4[[#This Row],[Unocc SF Flow %]]/tbl_HVAC_Airside_Calc_Engine4[[#This Row],[Unocc SF Flow %, Base]]=0,1,IFERROR(tbl_HVAC_Airside_Calc_Engine4[[#This Row],[Unocc SF Flow %]]/tbl_HVAC_Airside_Calc_Engine4[[#This Row],[Unocc SF Flow %, Base]],1)),100%) -> 1 | DE142: =IF($F$126="Constant Air Volume",0%,IFERROR((tbl_HVAC_Airside_Calc_Engine4[[#This Row],[Unocc Space Cooling Only Load kBtu/h, Base]]*1000/(1.08*($P$133-tbl_HVAC_Airside_Calc_Engine4[[#This Row],[Unocc SAT °F]]))-tbl_HVAC_Airside_Calc_Engine4[[#This Row],[Unocc Cooling Only Flow %, Base]]*$F$120)/$F$120,0)) -> 0 | DF142: =IF($F$126="Constant Air Volume",0%,IFERROR(MAX(0,tbl_HVAC_Airside_Calc_Engine4[[#This Row],[Unocc Space Tempered Cooling Load kBtu/h, Base]]*1000/(1.08*($P$133-tbl_HVAC_Airside_Calc_Engine4[[#This Row],[Unocc RH VAV DAT °F]]))-tbl_HVAC_Airside_Calc_Engine4[[#This Row],[Unocc Tempered Cooling Flow %, Base]]*$F$120)/$F$120,0)) -> 0 | DG142: =IF($F$126="Constant Air Volume",0%,tbl_HVAC_Airside_Calc_Engine4[[#This Row],[Unocc Prop Fan Flow Adj (Cooling Only)]]+tbl_HVAC_Airside_Calc_Engine4[[#This Row],[Unocc Prop Fan Flow Adj (Tempered Cooling)]]) -> 0 | DH142: =MAX(IF(tbl_HVAC_Airside_Calc_Engine4[[#This Row],[Unocc Space Heating Only Load kBtu/h, Base]]>0,tbl_HVAC_Airside_Calc_Engine4[[#This Row],[Unocc Space Heating Only Load kBtu/h, Base]]*1000/(1.08*tbl_HVAC_Airside_Calc_Engine4[[#This Row],[Unocc Heating Only Flow %, Base]]*tbl_HVAC_Airside_Calc_Engine4[[#This Row],[Unocc SF Manual Prop Airflow Adj to Base Ratio]]*$F$120)+$O$133,IF(tbl_HVAC_Airside_Calc_Engine4[[#This Row],[Unocc Space Tempered Cooling Load kBtu/h, Base]]>0,$O$133-tbl_HVAC_Airside_Calc_Engine4[[#This Row],[Unocc Space Tempered Cooling Load kBtu/h, Base]]*1000/(1.08*tbl_HVAC_Airside_Calc_Engine4[[#This Row],[Unocc Tempered Cooling Flow %, Base]]*tbl_HVAC_Airside_Calc_Engine4[[#This Row],[Unocc SF Manual Prop Airflow Adj to Base Ratio]]*$F$120),tbl_HVAC_Airside_Calc_Engine4[[#This Row],[Unocc DAT °F, Base]])),tbl_HVAC_Airside_Calc_Engine4[[#This Row],[Unocc SAT °F]]) -> 55 | DI142: =(tbl_HVAC_Airside_Calc_Engine4[[#This Row],[Occ Hr]]*(tbl_HVAC_Airside_Calc_Engine4[[#This Row],[Occ Space Cooling Only Load kBtu/h, Base]]+tbl_HVAC_Airside_Calc_Engine4[[#This Row],[Occ Space Tempered Cooling Load kBtu/h, Base]])+tbl_HVAC_Airside_Calc_Engine4[[#This Row],[UnOcc Hr]]*(tbl_HVAC_Airside_Calc_Engine4[[#This Row],[Unocc Space Cooling Only Load kBtu/h, Base]]+tbl_HVAC_Airside_Calc_Engine4[[#This Row],[Unocc Space Tempered Cooling Load kBtu/h, Base]]))/12 -> 0
E143: 112 | F143: =COUNTIFS(tbl_Climate_Zone[Dry_Bulb],E143,tbl_Climate_Zone[On-Pk Hour],1,tbl_Climate_Zone[Hour],">" & $K$114,tbl_Climate_Zone[Hour],"<=" & $L$114) -> 0 | G143: ='CZ2022'!S5-F143 -> 0 | H143: =SUM( COUNTIFS(tbl_Climate_Zone[Dry_Bulb],E143,tbl_Climate_Zone[Weekday],$M$114,tbl_Climate_Zone[Hour],">"&$K$114,tbl_Climate_Zone[Hour],"<="&$L$114), COUNTIFS(tbl_Climate_Zone[Dry_Bulb],E143,tbl_Climate_Zone[Weekday],$M$115,tbl_Climate_Zone[Hour],">"&$K$115,tbl_Climate_Zone[Hour],"<="&$L$115), COUNTIFS(tbl_Climate_Zone[Dry_Bulb],E143,tbl_Climate_Zone[Weekday],$M$116,tbl_Climate_Zone[Hour],">"&$K$116,tbl_Climate_Zone[Hour],"<="&$L$116)) -> 0 | I143: ='CZ2022'!T5-tbl_HVAC_Airside_Calc_Engine4[[#This Row],[Occ Hr]] -> 0 | AH143: =IFERROR(IF($F$49="Baseline Trend Data", IF(ISBLANK(tbl_HVAC_Airside_Calc_Engine4[[#This Row],[Occ SAT (°F), Base Trend]]),MEDIAN(MIN(tbl_HVAC_Airside_Calc_Engine4[Occ SAT (°F), Base Trend]),MAX(tbl_HVAC_Airside_Calc_Engine4[Occ SAT (°F), Base Trend]),FORECAST(tbl_HVAC_Airside_Calc_Engine4[[#This Row],[OAT °F]],tbl_HVAC_Airside_Calc_Engine4[Occ SAT (°F), Base Trend],tbl_HVAC_Airside_Calc_Engine4[OAT °F])),tbl_HVAC_Airside_Calc_Engine4[[#This Row],[Occ SAT (°F), Base Trend]]), FORECAST(MEDIAN($F$53,$G$53,tbl_HVAC_Airside_Calc_Engine4[[#This Row],[OAT °F]]),$F$52:$G$52,$F$53:$G$53)),0) -> 55 | AI143: =IF($M$47 = "Disable",tbl_HVAC_Airside_Calc_Engine4[[#This Row],[Occ Base SAT °F]],IFERROR(IF($K$49="Proposed Trend Data", IF(ISBLANK(tbl_HVAC_Airside_Calc_Engine4[[#This Row],[Occ SAT (°F), Prop Trend]]),MEDIAN(MIN(tbl_HVAC_Airside_Calc_Engine4[Occ SAT (°F), Prop Trend]),MAX(tbl_HVAC_Airside_Calc_Engine4[Occ SAT (°F), Prop Trend]),FORECAST(tbl_HVAC_Airside_Calc_Engine4[[#This Row],[OAT °F]],tbl_HVAC_Airside_Calc_Engine4[Occ SAT (°F), Prop Trend],tbl_HVAC_Airside_Calc_Engine4[OAT °F])),tbl_HVAC_Airside_Calc_Engine4[[#This Row],[Occ SAT (°F), Prop Trend]]), FORECAST(MEDIAN($K$53,$L$53,tbl_HVAC_Airside_Calc_Engine4[[#This Row],[OAT °F]]),$K$52:$L$52,$K$53:$L$53)),0)) -> 55 | AJ143: =tbl_HVAC_Airside_Calc_Engine4[[#This Row],[Occ SAT °F]]-tbl_HVAC_Airside_Calc_Engine4[[#This Row],[Occ Base SAT °F]] -> 0 | AK143: =IFERROR(IF($F$105="Baseline",tbl_HVAC_Airside_Calc_Engine4[[#This Row],[Occ Base SAT °F]],tbl_HVAC_Airside_Calc_Engine4[[#This Row],[Occ Prop SAT °F]]),0) -> 55 | AL143: =IF($K$127="Proposed Trend Data",IF(ISBLANK(tbl_HVAC_Airside_Calc_Engine4[[#This Row],[Occ RH Box VAV Flow (%), Prop Trend]]),MEDIAN(tbl_HVAC_Airside_Calc_Engine4[[#This Row],[Occ SF Flow %]],MIN(tbl_HVAC_Airside_Calc_Engine4[Occ RH Box VAV Flow (%), Prop Trend]),FORECAST(tbl_HVAC_Airside_Calc_Engine4[[#This Row],[OAT °F]],tbl_HVAC_Airside_Calc_Engine4[Occ RH Box VAV Flow (%), Prop Trend],tbl_HVAC_Airside_Calc_Engine4[OAT °F])),tbl_HVAC_Airside_Calc_Engine4[[#This Row],[Occ RH Box VAV Flow (%), Prop Trend]]), IF(AND($K$127="Auto Calc",$M$65="Enable",$M$68="Sub-Enable"),tbl_HVAC_Airside_Calc_Engine4[[#This Row],[Occ SF Flow %]]*tbl_HVAC_Airside_Calc_Engine4[[#This Row],[Occ RH to SF Ratio, Base]], tbl_HVAC_Airside_Calc_Engine4[[#This Row],[Occ RH Box Flow %, Base]]+tbl_HVAC_Airside_Calc_Engine4[[#This Row],[Occ Prop Fan Flow Adj (Tempered Cooling)]]+IFERROR(( tbl_HVAC_Airside_Calc_Engine4[[#This Row],[Occ RH Box Flow %, Base]]-tbl_HVAC_Airside_Calc_Engine4[[#This Row],[Occ Tempered Cooling Flow %, Base]]-tbl_HVAC_Airside_Calc_Engine4[[#This Row],[Occ Heating Only Flow %, Base]])/tbl_HVAC_Airside_Calc_Engine4[[#This Row],[Occ SF Flow %, Base]],0)*tbl_HVAC_Airside_Calc_Engine4[[#This Row],[Occ Prop Fan Flow Adj (Cooling Only)]])) -> 1 | AM143: =IF($K$127="Proposed Trend Data", IF(ISBLANK(tbl_HVAC_Airside_Calc_Engine4[[#This Row],[Occ RH VAV DAT (°F), Prop Trend]]),MEDIAN(tbl_HVAC_Airside_Calc_Engine4[[#This Row],[Occ Prop SAT °F]],MAX(tbl_HVAC_Airside_Calc_Engine4[Occ RH VAV DAT (°F), Prop Trend]),FORECAST(tbl_HVAC_Airside_Calc_Engine4[[#This Row],[OAT °F]],tbl_HVAC_Airside_Calc_Engine4[Occ RH VAV DAT (°F), Prop Trend],tbl_HVAC_Airside_Calc_Engine4[OAT °F])),tbl_HVAC_Airside_Calc_Engine4[[#This Row],[Occ RH VAV DAT (°F), Prop Trend]]), tbl_HVAC_Airside_Calc_Engine4[[#This Row],[Occ RH DAT °F Adj]]) -> 55 | AN143: =IF($O$130="Baseline Trend Data", IF(ISBLANK(tbl_HVAC_Airside_Calc_Engine4[[#This Row],[ Occ RAT (°F), Base Trend]]),MEDIAN(MIN($O$140:$O$245),MAX($O$140:$O$245),FORECAST(tbl_HVAC_Airside_Calc_Engine4[[#This Row],[OAT °F]],$O$140:$O$245,tbl_HVAC_Airside_Calc_Engine4[OAT °F])),tbl_HVAC_Airside_Calc_Engine4[[#This Row],[ Occ RAT (°F), Base Trend]]), IF($O$130="Proposed Trend Data",IF(ISBLANK(tbl_HVAC_Airside_Calc_Engine4[[#This Row],[Occ RAT (°F), Prop Trend]]),MEDIAN(MIN(tbl_HVAC_Airside_Calc_Engine4[Occ RAT (°F), Prop Trend]),MAX(tbl_HVAC_Airside_Calc_Engine4[Occ RAT (°F), Prop Trend]),FORECAST(tbl_HVAC_Airside_Calc_Engine4[[#This Row],[OAT °F]],tbl_HVAC_Airside_Calc_Engine4[Occ RAT (°F), Prop Trend],tbl_HVAC_Airside_Calc_Engine4[OAT °F])),tbl_HVAC_Airside_Calc_Engine4[[#This Row],[Occ RAT (°F), Prop Trend]]), MEDIAN($P$132,$O$132,tbl_HVAC_Airside_Calc_Engine4[[#This Row],[OAT °F]]))) -> 75 | AO143: =MEDIAN(0,1,IF($K$119="Baseline Trend Data", IF(ISBLANK(tbl_HVAC_Airside_Calc_Engine4[[#This Row],[Occ OA Flow (%), Base Trend]]),MEDIAN(MIN(tbl_HVAC_Airside_Calc_Engine4[Occ OA Flow (%), Base Trend]),MAX(tbl_HVAC_Airside_Calc_Engine4[Occ OA Flow (%), Base Trend]),FORECAST(tbl_HVAC_Airside_Calc_Engine4[[#This Row],[OAT °F]],tbl_HVAC_Airside_Calc_Engine4[Occ OA Flow (%), Base Trend],tbl_HVAC_Airside_Calc_Engine4[OAT °F])),tbl_HVAC_Airside_Calc_Engine4[[#This Row],[Occ OA Flow (%), Base Trend]]), IF($K$119="Proposed Trend Data", IF(ISBLANK(tbl_HVAC_Airside_Calc_Engine4[[#This Row],[Occ OA Flow (%), Prop Trend]]),MEDIAN(MIN(tbl_HVAC_Airside_Calc_Engine4[Occ OA Flow (%), Prop Trend]),MAX(tbl_HVAC_Airside_Calc_Engine4[Occ OA Flow (%), Prop Trend]),FORECAST(tbl_HVAC_Airside_Calc_Engine4[[#This Row],[OAT °F]],tbl_HVAC_Airside_Calc_Engine4[Occ OA Flow (%), Prop Trend],tbl_HVAC_Airside_Calc_Engine4[OAT °F])),tbl_HVAC_Airside_Calc_Engine4[[#This Row],[Occ OA Flow (%), Prop Trend]]), IFERROR(IF((tbl_HVAC_Airside_Calc_Engine4[[#This Row],[OAT °F]]>$K$122),$K$121,MAX($K$121,MIN($L$121,(tbl_HVAC_Airside_Calc_Engine4[[#This Row],[Occ SAT °F]]-tbl_HVAC_Airside_Calc_Engine4[[#This Row],[Occ RAT °F]])/(tbl_HVAC_Airside_Calc_Engine4[[#This Row],[OAT °F]]-tbl_HVAC_Airside_Calc_Engine4[[#This Row],[Occ RAT °F]])))),$K$121)))) -> 0.2989697927 | AP143: =tbl_HVAC_Airside_Calc_Engine4[[#This Row],[Occ RAT °F]]*(1-tbl_HVAC_Airside_Calc_Engine4[[#This Row],[Occ OA Flow %]])+tbl_HVAC_Airside_Calc_Engine4[[#This Row],[OAT °F]]*tbl_HVAC_Airside_Calc_Engine4[[#This Row],[Occ OA Flow %]] -> 86.06188233 | AQ143: =IF(AND($F$130="yes",$F$131>tbl_HVAC_Airside_Calc_Engine4[[#This Row],[Occ MAT °F]]+$F$132,tbl_HVAC_Airside_Calc_Engine4[[#This Row],[Occ Hr]]>0),"Yes","No") -> No | AR143: =IF(tbl_HVAC_Airside_Calc_Engine4[[#This Row],[Occ Pre-Heat?]]="Yes",1.08*tbl_HVAC_Airside_Calc_Engine4[[#This Row],[Occ SF Flow %]]*$F$120*($F$131-(tbl_HVAC_Airside_Calc_Engine4[[#This Row],[Occ MAT °F]]+$F$132))/1000,0) -> 0 | AS143: =IF($O$118="Proposed Trend Data", IF(ISBLANK(tbl_HVAC_Airside_Calc_Engine4[[#This Row],[Occ SF Flow (%), Prop Trend]]),MEDIAN(MIN(tbl_HVAC_Airside_Calc_Engine4[Occ SF Flow (%), Prop Trend]),100%,FORECAST(tbl_HVAC_Airside_Calc_Engine4[[#This Row],[OAT °F]],tbl_HVAC_Airside_Calc_Engine4[Occ SF Flow (%), Prop Trend],tbl_HVAC_Airside_Calc_Engine4[OAT °F])),tbl_HVAC_Airside_Calc_Engine4[[#This Row],[Occ SF Flow (%), Prop Trend]]), IF(AND($F$106="Proposed",$M$65="Enable",$M$68="Sub-Enable",$K$67="Simple Data"),IF(tbl_HVAC_Airside_Calc_Engine4[[#This Row],[OAT °F]]<$O$123,TREND($O$122:$P$122,$O$123:$P$123,MEDIAN(tbl_HVAC_Airside_Calc_Engine4[[#This Row],[OAT °F]],$O$123,$P$123)),TREND($O$120:$P$120,$O$121:$P$121,MEDIAN($O$121,$P$121,tbl_HVAC_Airside_Calc_Engine4[[#This Row],[OAT °F]]))), tbl_HVAC_Airside_Calc_Engine4[[#This Row],[Occ SF Flow %, Base]]+tbl_HVAC_Airside_Calc_Engine4[[#This Row],[Occ Prop Net Fan Flow Adj]])) -> 1 | AT143: =IF(tbl_HVAC_Airside_Calc_Engine4[[#This Row],[OAT °F]]>$F$118,MAX(1.08*$F$120*(tbl_HVAC_Airside_Calc_Engine4[[#This Row],[Occ SF Flow %]]*(tbl_HVAC_Airside_Calc_Engine4[[#This Row],[Occ MAT °F]]-tbl_HVAC_Airside_Calc_Engine4[[#This Row],[Occ SAT °F]])/12000),0),0) -> 280.5358286 | AU143: =IF(AND(tbl_HVAC_Airside_Calc_Engine4[[#This Row],[OAT °F]]<$F$117,tbl_HVAC_Airside_Calc_Engine4[[#This Row],[Occ Hr]]>0),(1.08*$F$120*tbl_HVAC_Airside_Calc_Engine4[[#This Row],[Occ RH Box Flow %]]*(tbl_HVAC_Airside_Calc_Engine4[[#This Row],[Occ RH VAV DAT °F]]-IF(tbl_HVAC_Airside_Calc_Engine4[[#This Row],[Occ Pre-Heat?]]="yes",$F$131,MIN(tbl_HVAC_Airside_Calc_Engine4[[#This Row],[Occ SAT °F]],tbl_HVAC_Airside_Calc_Engine4[[#This Row],[Occ MAT °F]])))/10^3),0) -> 0 | AV143: =tbl_HVAC_Airside_Calc_Engine4[[#This Row],[Occ Pre-Heat Load, kBtu]]+tbl_HVAC_Airside_Calc_Engine4[[#This Row],[Occ Re-Heating Load, kBtu]] -> 0 | AW143: =tbl_HVAC_Airside_Calc_Engine4[[#This Row],[Occ SF Flow %]]*$F$125 -> 1 | AX143: =IF(AND(tbl_HVAC_Airside_Calc_Engine4[[#This Row],[Occ SF Flow %]]>0,tbl_HVAC_Airside_Calc_Engine4[[#This Row],[Occ Hr]]>0),$F$119*0.746/$W$109/IF($F$121="VFD",$X$110,1)*(($Z$107+$Z$108*tbl_HVAC_Airside_Calc_Engine4[[#This Row],[Occ SF Flow %]]+$Z$109*tbl_HVAC_Airside_Calc_Engine4[[#This Row],[Occ SF Flow %]]^2+$Z$110*tbl_HVAC_Airside_Calc_Engine4[[#This Row],[Occ SF Flow %]]^3) ),0) -> 0 | AY143: =IF(AND(tbl_HVAC_Airside_Calc_Engine4[[#This Row],[Occ RF Flow %]]>0,tbl_HVAC_Airside_Calc_Engine4[[#This Row],[Occ Hr]]>0),$F$122*0.746/$W$110/IF($F$124="VFD",$X$110,1)*($AB$107+$AB$108*tbl_HVAC_Airside_Calc_Engine4[[#This Row],[Occ RF Flow %]]+$AB$109*tbl_HVAC_Airside_Calc_Engine4[[#This Row],[Occ RF Flow %]]^2+$AB$110*tbl_HVAC_Airside_Calc_Engine4[[#This Row],[Occ RF Flow %]]^3),0) -> 0 | AZ143: =tbl_HVAC_Airside_Calc_Engine4[[#This Row],[Occ SF kW]]+tbl_HVAC_Airside_Calc_Engine4[[#This Row],[Occ RF kW]] -> 0 | BA143: =IF(tbl_HVAC_Airside_Calc_Engine4[[#This Row],[Occ Hr]]>0,$F$113*tbl_HVAC_Airside_Calc_Engine4[[#This Row],[Occ Cooling Load, Ton]]+IF($F$114="Electric",(tbl_HVAC_Airside_Calc_Engine4[[#This Row],[Occ Total Heating Load, kBtu]])/$F$116,0),0) -> 0 | BB143: =IFERROR(IF($F$49="Baseline Trend Data", IF(ISBLANK(tbl_HVAC_Airside_Calc_Engine4[[#This Row],[UnOcc SAT (°F), Base Trend]]),MEDIAN(MIN(tbl_HVAC_Airside_Calc_Engine4[UnOcc SAT (°F), Base Trend]),MAX(tbl_HVAC_Airside_Calc_Engine4[UnOcc SAT (°F), Base Trend]),FORECAST(tbl_HVAC_Airside_Calc_Engine4[[#This Row],[OAT °F]],tbl_HVAC_Airside_Calc_Engine4[UnOcc SAT (°F), Base Trend],tbl_HVAC_Airside_Calc_Engine4[OAT °F])),tbl_HVAC_Airside_Calc_Engine4[[#This Row],[UnOcc SAT (°F), Base Trend]]), FORECAST(MEDIAN($F$58,$G$58,tbl_HVAC_Airside_Calc_Engine4[[#This Row],[OAT °F]]),$F$57:$G$57,$F$58:$G$58)),0) -> 55 | BC143: =IF($M$47 = "Disable",tbl_HVAC_Airside_Calc_Engine4[[#This Row],[Unocc Base SAT °F]],IFERROR(IF($K$49="Proposed Trend Data", IF(ISBLANK(tbl_HVAC_Airside_Calc_Engine4[[#This Row],[UnOcc SAT (°F), Prop Trend]]),MEDIAN(MIN(tbl_HVAC_Airside_Calc_Engine4[UnOcc SAT (°F), Prop Trend]),MAX(tbl_HVAC_Airside_Calc_Engine4[UnOcc SAT (°F), Prop Trend]),FORECAST(tbl_HVAC_Airside_Calc_Engine4[[#This Row],[OAT °F]],tbl_HVAC_Airside_Calc_Engine4[UnOcc SAT (°F), Prop Trend],tbl_HVAC_Airside_Calc_Engine4[OAT °F])),tbl_HVAC_Airside_Calc_Engine4[[#This Row],[UnOcc SAT (°F), Prop Trend]]), FORECAST(MEDIAN($K$58,$L$58,tbl_HVAC_Airside_Calc_Engine4[[#This Row],[OAT °F]]),$K$57:$L$57,$K$58:$L$58)),0)) -> 55 | BD143: =tbl_HVAC_Airside_Calc_Engine4[[#This Row],[Unocc SAT °F]]-tbl_HVAC_Airside_Calc_Engine4[[#This Row],[Unocc Base SAT °F]] -> 0 | BE143: =IFERROR(IF($F$105="Baseline",tbl_HVAC_Airside_Calc_Engine4[[#This Row],[Unocc Base SAT °F]],tbl_HVAC_Airside_Calc_Engine4[[#This Row],[Unocc Prop SAT °F]]),0) -> 55 | BF143: =IF($K$128="Proposed Trend Data",IF(ISBLANK(tbl_HVAC_Airside_Calc_Engine4[[#This Row],[UnOcc RH Box VAV Flow (%), Prop Trend]]),MEDIAN(tbl_HVAC_Airside_Calc_Engine4[[#This Row],[Unocc SF Flow %]],MIN(tbl_HVAC_Airside_Calc_Engine4[UnOcc RH Box VAV Flow (%), Prop Trend]),FORECAST(tbl_HVAC_Airside_Calc_Engine4[[#This Row],[OAT °F]],tbl_HVAC_Airside_Calc_Engine4[UnOcc RH Box VAV Flow (%), Prop Trend],tbl_HVAC_Airside_Calc_Engine4[OAT °F])),tbl_HVAC_Airside_Calc_Engine4[[#This Row],[UnOcc RH Box VAV Flow (%), Prop Trend]]), IF(AND($K$128="Auto Calc",$M$65="Enable",$M$75="Sub-Enable"),tbl_HVAC_Airside_Calc_Engine4[[#This Row],[Unocc SF Flow %]]*tbl_HVAC_Airside_Calc_Engine4[[#This Row],[Unocc RH to SF Ratio, Base]], tbl_HVAC_Airside_Calc_Engine4[[#This Row],[Unocc RH Box Flow %, Base]]+tbl_HVAC_Airside_Calc_Engine4[[#This Row],[Unocc Prop Fan Flow Adj (Tempered Cooling)]]+IFERROR(( tbl_HVAC_Airside_Calc_Engine4[[#This Row],[Unocc RH Box Flow %, Base]]-tbl_HVAC_Airside_Calc_Engine4[[#This Row],[Unocc Tempered Cooling Flow %, Base]]-tbl_HVAC_Airside_Calc_Engine4[[#This Row],[Unocc Heating Only Flow %, Base]])/tbl_HVAC_Airside_Calc_Engine4[[#This Row],[Unocc SF Flow %, Base]],0)*tbl_HVAC_Airside_Calc_Engine4[[#This Row],[Unocc Prop Fan Flow Adj (Cooling Only)]])) -> 0.3 | BG143: =IF($K$128="Proposed Trend Data", IF(ISBLANK(tbl_HVAC_Airside_Calc_Engine4[[#This Row],[UnOcc RH VAV DAT (°F), Prop Trend]]),MEDIAN(tbl_HVAC_Airside_Calc_Engine4[[#This Row],[Unocc Prop SAT °F]],MAX(tbl_HVAC_Airside_Calc_Engine4[UnOcc RH VAV DAT (°F), Prop Trend]),FORECAST(tbl_HVAC_Airside_Calc_Engine4[[#This Row],[OAT °F]],tbl_HVAC_Airside_Calc_Engine4[UnOcc RH VAV DAT (°F), Prop Trend],tbl_HVAC_Airside_Calc_Engine4[OAT °F])),tbl_HVAC_Airside_Calc_Engine4[[#This Row],[UnOcc RH VAV DAT (°F), Prop Trend]]), tbl_HVAC_Airside_Calc_Engine4[[#This Row],[Unocc RH DAT °F Adj]]) -> 55 | BH143: =IF($O$130="Baseline Trend Data", IF(ISBLANK(tbl_HVAC_Airside_Calc_Engine4[[#This Row],[UnOcc RAT (°F), Base Trend]]),MEDIAN(MIN(tbl_HVAC_Airside_Calc_Engine4[UnOcc RAT (°F), Base Trend]),MAX(tbl_HVAC_Airside_Calc_Engine4[UnOcc RAT (°F), Base Trend]),FORECAST(tbl_HVAC_Airside_Calc_Engine4[[#This Row],[OAT °F]], tbl_HVAC_Airside_Calc_Engine4[UnOcc RAT (°F), Base Trend],tbl_HVAC_Airside_Calc_Engine4[OAT °F])),tbl_HVAC_Airside_Calc_Engine4[[#This Row],[UnOcc RAT (°F), Base Trend]]), IF($O$130="Proposed Trend Data",IF(ISBLANK(tbl_HVAC_Airside_Calc_Engine4[[#This Row],[UnOcc RAT (°F), Prop Trend]]),MEDIAN(MIN(tbl_HVAC_Airside_Calc_Engine4[UnOcc RAT (°F), Prop Trend]),MAX(tbl_HVAC_Airside_Calc_Engine4[UnOcc RAT (°F), Prop Trend]),FORECAST(tbl_HVAC_Airside_Calc_Engine4[[#This Row],[OAT °F]],tbl_HVAC_Airside_Calc_Engine4[UnOcc RAT (°F), Prop Trend],tbl_HVAC_Airside_Calc_Engine4[OAT °F])),tbl_HVAC_Airside_Calc_Engine4[[#This Row],[UnOcc RAT (°F), Prop Trend]]), MEDIAN($P$133,$O$133,tbl_HVAC_Airside_Calc_Engine4[[#This Row],[OAT °F]]))) -> 75 | BI143: =MEDIAN(0,1,IF($K$119="Baseline Trend Data", IF(ISBLANK(tbl_HVAC_Airside_Calc_Engine4[[#This Row],[UnOcc OA Flow (%), Base Trend]]),MEDIAN(MIN(tbl_HVAC_Airside_Calc_Engine4[UnOcc OA Flow (%), Base Trend]),MAX(tbl_HVAC_Airside_Calc_Engine4[UnOcc OA Flow (%), Base Trend]),FORECAST(tbl_HVAC_Airside_Calc_Engine4[[#This Row],[OAT °F]],tbl_HVAC_Airside_Calc_Engine4[UnOcc OA Flow (%), Base Trend],tbl_HVAC_Airside_Calc_Engine4[OAT °F])),tbl_HVAC_Airside_Calc_Engine4[[#This Row],[UnOcc OA Flow (%), Base Trend]]), IF($K$119="Proposed Trend Data",IF(ISBLANK(tbl_HVAC_Airside_Calc_Engine4[[#This Row],[Unocc OA Flow (%), Prop Trend]]),MEDIAN(MIN(tbl_HVAC_Airside_Calc_Engine4[Unocc OA Flow (%), Prop Trend]),MAX(tbl_HVAC_Airside_Calc_Engine4[Unocc OA Flow (%), Prop Trend]),FORECAST(tbl_HVAC_Airside_Calc_Engine4[[#This Row],[OAT °F]],tbl_HVAC_Airside_Calc_Engine4[Unocc OA Flow (%), Prop Trend],tbl_HVAC_Airside_Calc_Engine4[OAT °F])),tbl_HVAC_Airside_Calc_Engine4[[#This Row],[Unocc OA Flow (%), Prop Trend]]), IFERROR(IF((tbl_HVAC_Airside_Calc_Engine4[[#This Row],[OAT °F]]>$K$124),$K$123,MAX($K$123,MIN($L$123,(tbl_HVAC_Airside_Calc_Engine4[[#This Row],[Unocc SAT °F]]-tbl_HVAC_Airside_Calc_Engine4[[#This Row],[UnOcc RAT °F]])/(tbl_HVAC_Airside_Calc_Engine4[[#This Row],[OAT °F]]-tbl_HVAC_Airside_Calc_Engine4[[#This Row],[UnOcc RAT °F]])))),$K$123)))) -> 0 | BJ143: =tbl_HVAC_Airside_Calc_Engine4[[#This Row],[UnOcc RAT °F]]*(1-tbl_HVAC_Airside_Calc_Engine4[[#This Row],[Unocc OA Flow %]])+tbl_HVAC_Airside_Calc_Engine4[[#This Row],[OAT °F]]*tbl_HVAC_Airside_Calc_Engine4[[#This Row],[Unocc OA Flow %]] -> 75 | BK143: =IF(AND($F$130="yes",$F$131>tbl_HVAC_Airside_Calc_Engine4[[#This Row],[UnOcc MAT °F]]+$F$132,tbl_HVAC_Airside_Calc_Engine4[[#This Row],[UnOcc Hr]]>0),"Yes","No") -> No | BL143: =IF(tbl_HVAC_Airside_Calc_Engine4[[#This Row],[Unocc Pre-Heat?]]="Yes",1.08*tbl_HVAC_Airside_Calc_Engine4[[#This Row],[Unocc SF Flow %]]*$F$120*($F$131-(tbl_HVAC_Airside_Calc_Engine4[[#This Row],[UnOcc MAT °F]]+$F$132))/1000,0) -> 0 | BM143: =IF($O$118="Proposed Trend Data", IF(ISBLANK(tbl_HVAC_Airside_Calc_Engine4[[#This Row],[Unocc SF Flow (%), Prop Trend]]),MEDIAN(MIN(tbl_HVAC_Airside_Calc_Engine4[Unocc SF Flow (%), Prop Trend]),100%,FORECAST(tbl_HVAC_Airside_Calc_Engine4[[#This Row],[OAT °F]],tbl_HVAC_Airside_Calc_Engine4[Unocc SF Flow (%), Prop Trend],tbl_HVAC_Airside_Calc_Engine4[OAT °F])),tbl_HVAC_Airside_Calc_Engine4[[#This Row],[Unocc SF Flow (%), Prop Trend]]), IF(AND($F$106="Proposed",$M$65="Enable",$M$75="Sub-Enable",$K$67="Simple Data"),IF(tbl_HVAC_Airside_Calc_Engine4[[#This Row],[OAT °F]]<$O$128,TREND($O$127:$P$127,$O$128:$P$128,MEDIAN(tbl_HVAC_Airside_Calc_Engine4[[#This Row],[OAT °F]],$O$128,$P$128)),TREND($O$125:$P$125,$O$126:$P$126,MEDIAN($O$126,$P$126,tbl_HVAC_Airside_Calc_Engine4[[#This Row],[OAT °F]]))), tbl_HVAC_Airside_Calc_Engine4[[#This Row],[Unocc SF Flow %, Base]]+tbl_HVAC_Airside_Calc_Engine4[[#This Row],[Unocc Prop Net Fan Flow Adj]])) -> 0.3 | BN143: =IF(tbl_HVAC_Airside_Calc_Engine4[[#This Row],[OAT °F]]>$F$118,MAX(1.08*$F$120*(tbl_HVAC_Airside_Calc_Engine4[[#This Row],[Unocc SF Flow %]]*(tbl_HVAC_Airside_Calc_Engine4[[#This Row],[UnOcc MAT °F]]-tbl_HVAC_Airside_Calc_Engine4[[#This Row],[Unocc SAT °F]])/12000),0),0) -> 54.18908467 | BO143: =IF(AND(tbl_HVAC_Airside_Calc_Engine4[[#This Row],[UnOcc Hr]]>0,tbl_HVAC_Airside_Calc_Engine4[[#This Row],[OAT °F]]<$F$117),(1.08*$F$120*tbl_HVAC_Airside_Calc_Engine4[[#This Row],[Unocc RH Box Flow %]]*(tbl_HVAC_Airside_Calc_Engine4[[#This Row],[Unocc RH VAV DAT °F]]-IF(tbl_HVAC_Airside_Calc_Engine4[[#This Row],[Unocc Pre-Heat?]]="yes",$F$131,MIN(tbl_HVAC_Airside_Calc_Engine4[[#This Row],[Unocc SAT °F]],tbl_HVAC_Airside_Calc_Engine4[[#This Row],[UnOcc MAT °F]])))/10^3),0) -> 0 | BP143: =tbl_HVAC_Airside_Calc_Engine4[[#This Row],[Unocc Pre-Heat Load, kBtu]]+tbl_HVAC_Airside_Calc_Engine4[[#This Row],[Unocc Re-Heating Load, kBtu]] -> 0 | BQ143: =tbl_HVAC_Airside_Calc_Engine4[[#This Row],[Unocc SF Flow %]]*$F$125 -> 0.3 | BR143: =IF(AND(tbl_HVAC_Airside_Calc_Engine4[[#This Row],[Unocc SF Flow %]]>0,tbl_HVAC_Airside_Calc_Engine4[[#This Row],[UnOcc Hr]]>0),$F$119*0.746/$W$109/IF($F$121="VFD",$X$110,1)*(($Z$107+$Z$108*tbl_HVAC_Airside_Calc_Engine4[[#This Row],[Unocc SF Flow %]]+$Z$109*tbl_HVAC_Airside_Calc_Engine4[[#This Row],[Unocc SF Flow %]]^2+$Z$110*tbl_HVAC_Airside_Calc_Engine4[[#This Row],[Unocc SF Flow %]]^3) ),0) -> 0 | BS143: =IF(AND(tbl_HVAC_Airside_Calc_Engine4[[#This Row],[Unocc RF Flow %]]>0,tbl_HVAC_Airside_Calc_Engine4[[#This Row],[UnOcc Hr]]>0),$F$122*0.746/$W$110/IF($F$124="VFD",$X$110,1)*($AB$107+$AB$108*tbl_HVAC_Airside_Calc_Engine4[[#This Row],[Unocc RF Flow %]]+$AB$109*tbl_HVAC_Airside_Calc_Engine4[[#This Row],[Unocc RF Flow %]]^2+$AB$110*tbl_HVAC_Airside_Calc_Engine4[[#This Row],[Unocc RF Flow %]]^3),0) -> 0 | BT143: =tbl_HVAC_Airside_Calc_Engine4[[#This Row],[Unocc SF kW]]+tbl_HVAC_Airside_Calc_Engine4[[#This Row],[Unocc RF kW]] -> 0 | BU143: =IF(tbl_HVAC_Airside_Calc_Engine4[[#This Row],[UnOcc Hr]]>0,$F$113*tbl_HVAC_Airside_Calc_Engine4[[#This Row],[Unocc Cooling Load, Ton]]+IF($F$114="Electric",(tbl_HVAC_Airside_Calc_Engine4[[#This Row],[Unocc Total Heating Load, kBtu]])/$F$116,0),0) -> 0 | BV143: =tbl_HVAC_Airside_Calc_Engine4[[#This Row],[Occ Hr]]*(tbl_HVAC_Airside_Calc_Engine4[[#This Row],[Occ SF kW]]+tbl_HVAC_Airside_Calc_Engine4[[#This Row],[Occ RF kW]])+tbl_HVAC_Airside_Calc_Engine4[[#This Row],[UnOcc Hr]]*(tbl_HVAC_Airside_Calc_Engine4[[#This Row],[Unocc SF kW]]+tbl_HVAC_Airside_Calc_Engine4[[#This Row],[Unocc RF kW]]) -> 0 | BW143: =tbl_HVAC_Airside_Calc_Engine4[[#This Row],[Occ Load kW]]*tbl_HVAC_Airside_Calc_Engine4[[#This Row],[Occ Hr]]+tbl_HVAC_Airside_Calc_Engine4[[#This Row],[Unocc Load kW]]*tbl_HVAC_Airside_Calc_Engine4[[#This Row],[UnOcc Hr]] -> 0 | BX143: =IF($F$114="Gas",(tbl_HVAC_Airside_Calc_Engine4[[#This Row],[Occ Pre-Heat Load, kBtu]]+tbl_HVAC_Airside_Calc_Engine4[[#This Row],[Occ Re-Heating Load, kBtu]])/100/$F$115*tbl_HVAC_Airside_Calc_Engine4[[#This Row],[Occ Hr]]+(tbl_HVAC_Airside_Calc_Engine4[[#This Row],[Unocc Pre-Heat Load, kBtu]]+tbl_HVAC_Airside_Calc_Engine4[[#This Row],[Unocc Re-Heating Load, kBtu]])/100/$F$115*tbl_HVAC_Airside_Calc_Engine4[[#This Row],[UnOcc Hr]],0) -> 0 | BY143: =MEDIAN(0,1,IF($F$31="Baseline Trend Data",IF(ISBLANK(tbl_HVAC_Airside_Calc_Engine4[[#This Row],[Occ OA Flow (%), Base Trend]]),MEDIAN(MIN(tbl_HVAC_Airside_Calc_Engine4[Occ OA Flow (%), Base Trend]),MAX(tbl_HVAC_Airside_Calc_Engine4[Occ OA Flow (%), Base Trend]),FORECAST(tbl_HVAC_Airside_Calc_Engine4[[#This Row],[OAT °F]],tbl_HVAC_Airside_Calc_Engine4[Occ OA Flow (%), Base Trend],tbl_HVAC_Airside_Calc_Engine4[OAT °F])),tbl_HVAC_Airside_Calc_Engine4[[#This Row],[Occ OA Flow (%), Base Trend]]), IFERROR(IF((tbl_HVAC_Airside_Calc_Engine4[[#This Row],[OAT °F]]>$F$35),$F$34,MAX($F$34,MIN($G$34,(tbl_HVAC_Airside_Calc_Engine4[[#This Row],[Occ Base SAT °F]]-tbl_HVAC_Airside_Calc_Engine4[[#This Row],[Occ RAT °F, Base]])/(tbl_HVAC_Airside_Calc_Engine4[[#This Row],[OAT °F]]-tbl_HVAC_Airside_Calc_Engine4[[#This Row],[Occ RAT °F, Base]])))),$F$34))) -> 0.2989697927 | BZ143: =MIN(100%,IF($F$67="Baseline Trend Data", IF(ISBLANK(tbl_HVAC_Airside_Calc_Engine4[[#This Row],[Occ SF Flow (%), Base Trend]]),MEDIAN(MIN(tbl_HVAC_Airside_Calc_Engine4[Occ SF Flow (%), Base Trend]),1,FORECAST(tbl_HVAC_Airside_Calc_Engine4[[#This Row],[OAT °F]],tbl_HVAC_Airside_Calc_Engine4[Occ SF Flow (%), Base Trend],tbl_HVAC_Airside_Calc_Engine4[OAT °F])),tbl_HVAC_Airside_Calc_Engine4[[#This Row],[Occ SF Flow (%), Base Trend]]), IF(tbl_HVAC_Airside_Calc_Engine4[[#This Row],[OAT °F]]<$F$73,TREND($F$72:$G$72,$F$73:$G$73,MEDIAN(tbl_HVAC_Airside_Calc_Engine4[[#This Row],[OAT °F]],$F$73,$G$73)), TREND($F$70:$G$70,$F$71:$G$71,MEDIAN($F$71,$G$71,tbl_HVAC_Airside_Calc_Engine4[[#This Row],[OAT °F]]))))) -> 1 | CA143: =MAX(0,MIN(100%,IF($F$82="Baseline Trend Data", IF(ISBLANK(tbl_HVAC_Airside_Calc_Engine4[[#This Row],[Occ RH Box VAV Flow (%), Base Trend]]),MEDIAN(MIN(tbl_HVAC_Airside_Calc_Engine4[Occ RH Box VAV Flow (%), Base Trend]),tbl_HVAC_Airside_Calc_Engine4[[#This Row],[Occ SF Flow %, Base]],FORECAST(tbl_HVAC_Airside_Calc_Engine4[[#This Row],[OAT °F]],tbl_HVAC_Airside_Calc_Engine4[Occ RH Box VAV Flow (%), Base Trend],tbl_HVAC_Airside_Calc_Engine4[OAT °F])),tbl_HVAC_Airside_Calc_Engine4[[#This Row],[Occ RH Box VAV Flow (%), Base Trend]]), tbl_HVAC_Airside_Calc_Engine4[[#This Row],[Occ SF Flow %, Base]]*$F$84))) -> 1 | CB143: =IFERROR(tbl_HVAC_Airside_Calc_Engine4[[#This Row],[Occ RH Box Flow %, Base]]/tbl_HVAC_Airside_Calc_Engine4[[#This Row],[Occ SF Flow %, Base]],0) -> 1 | CC143: =IF($F$82="Baseline Trend Data", IF(ISBLANK(tbl_HVAC_Airside_Calc_Engine4[[#This Row],[Occ RH VAV DAT (°F), Base Trend]]),MEDIAN(tbl_HVAC_Airside_Calc_Engine4[[#This Row],[Occ Base SAT °F]],MAX(tbl_HVAC_Airside_Calc_Engine4[Occ RH VAV DAT (°F), Base Trend]),FORECAST(tbl_HVAC_Airside_Calc_Engine4[[#This Row],[OAT °F]],tbl_HVAC_Airside_Calc_Engine4[Occ RH VAV DAT (°F), Base Trend],tbl_HVAC_Airside_Calc_Engine4[OAT °F])),tbl_HVAC_Airside_Calc_Engine4[[#This Row],[Occ RH VAV DAT (°F), Base Trend]]), MIN($F$90,tbl_HVAC_Airside_Calc_Engine4[[#This Row],[Occ Base SAT °F]]+MAX(0,($F$90-tbl_HVAC_Airside_Calc_Engine4[[#This Row],[Occ Base SAT °F]])*(($F$85-tbl_HVAC_Airside_Calc_Engine4[[#This Row],[OAT °F]])/($F$85-IF($F$88="yes",$F$89,$F$87)))))) -> 55 | CD143: =IF($F$96="Baseline Trend Data", IF(ISBLANK(tbl_HVAC_Airside_Calc_Engine4[[#This Row],[ Occ RAT (°F), Base Trend]]),MEDIAN(MIN($O$140:$O$245),MAX($O$140:$O$245),FORECAST(tbl_HVAC_Airside_Calc_Engine4[[#This Row],[OAT °F]],$O$140:$O$245,tbl_HVAC_Airside_Calc_Engine4[OAT °F])),tbl_HVAC_Airside_Calc_Engine4[[#This Row],[ Occ RAT (°F), Base Trend]]), MEDIAN($G$94,$F$94,tbl_HVAC_Airside_Calc_Engine4[[#This Row],[OAT °F]])) -> 75 | CE143: =IF(tbl_HVAC_Airside_Calc_Engine4[[#This Row],[Occ DAT °F, Base]]>$F$94,tbl_HVAC_Airside_Calc_Engine4[[#This Row],[Occ RH Box Flow %, Base]],0) -> 0 | CF143: =tbl_HVAC_Airside_Calc_Engine4[[#This Row],[Occ SF Flow %, Base]]-tbl_HVAC_Airside_Calc_Engine4[[#This Row],[Occ Heating Only Flow %, Base]]-tbl_HVAC_Airside_Calc_Engine4[[#This Row],[Occ Tempered Cooling Flow %, Base]] -> 1 | CG143: =IF(AND(tbl_HVAC_Airside_Calc_Engine4[[#This Row],[Occ DAT °F, Base]]<=$F$94,tbl_HVAC_Airside_Calc_Engine4[[#This Row],[Occ DAT °F, Base]]>tbl_HVAC_Airside_Calc_Engine4[[#This Row],[Occ Base SAT °F]]),tbl_HVAC_Airside_Calc_Engine4[[#This Row],[Occ RH Box Flow %, Base]],0) -> 0 | CH143: =SUM(tbl_HVAC_Airside_Calc_Engine4[[#This Row],[Occ Heating Only Flow %, Base]:[Occ Tempered Cooling Flow %, Base]]) -> 1 | CI143: =1.08*tbl_HVAC_Airside_Calc_Engine4[[#This Row],[Occ Heating Only Flow %, Base]]*$F$120*(tbl_HVAC_Airside_Calc_Engine4[[#This Row],[Occ DAT °F, Base]]-$F$94)/1000 -> 0 | CJ143: =1.08*tbl_HVAC_Airside_Calc_Engine4[[#This Row],[Occ Cooling Only Flow %, Base]]*$F$120*($G$94-tbl_HVAC_Airside_Calc_Engine4[[#This Row],[Occ Base SAT °F]])/1000 -> 2167.563387 | CK143: =1.08*tbl_HVAC_Airside_Calc_Engine4[[#This Row],[Occ Tempered Cooling Flow %, Base]]*$F$120*($F$94-tbl_HVAC_Airside_Calc_Engine4[[#This Row],[Occ DAT °F, Base]])/1000 -> 0 | CL143: =IF(AND($F$106="Proposed",$M$65="Enable",$M$68="Sub-Enable"),IFERROR(tbl_HVAC_Airside_Calc_Engine4[[#This Row],[Occ SF Flow %]]/tbl_HVAC_Airside_Calc_Engine4[[#This Row],[Occ SF Flow %, Base]],0),100%) -> 1 | CM143: =IF($F$126="Constant Air Volume",0%,IFERROR((tbl_HVAC_Airside_Calc_Engine4[[#This Row],[Occ Space Cooling Only Load kBtu/h, Base]]*1000/(1.08*($P$132-tbl_HVAC_Airside_Calc_Engine4[[#This Row],[Occ SAT °F]]))-tbl_HVAC_Airside_Calc_Engine4[[#This Row],[Occ Cooling Only Flow %, Base]]*$F$120)/$F$120,0)) -> 0 | CN143: =IF($F$126="Constant Air Volume",0%,IFERROR(MAX(0,tbl_HVAC_Airside_Calc_Engine4[[#This Row],[Occ Space Tempered Cooling Load kBtu/h, Base]]*1000/(1.08*($P$132-tbl_HVAC_Airside_Calc_Engine4[[#This Row],[Occ RH VAV DAT °F]]))-tbl_HVAC_Airside_Calc_Engine4[[#This Row],[Occ Tempered Cooling Flow %, Base]]*$F$120)/$F$120,0)) -> 0 | CO143: =IF($F$126="Constant Air Volume",0%,tbl_HVAC_Airside_Calc_Engine4[[#This Row],[Occ Prop Fan Flow Adj (Cooling Only)]]+tbl_HVAC_Airside_Calc_Engine4[[#This Row],[Occ Prop Fan Flow Adj (Tempered Cooling)]]) -> 0 | CP143: =MAX(IF(tbl_HVAC_Airside_Calc_Engine4[[#This Row],[Occ Space Heating Only Load kBtu/h, Base]]>0,tbl_HVAC_Airside_Calc_Engine4[[#This Row],[Occ Space Heating Only Load kBtu/h, Base]]*1000/(1.08*tbl_HVAC_Airside_Calc_Engine4[[#This Row],[Occ Heating Only Flow %, Base]]*tbl_HVAC_Airside_Calc_Engine4[[#This Row],[Occ SF Manual Prop Airflow Adj to Base Ratio]]*$F$120)+$O$132,IF(tbl_HVAC_Airside_Calc_Engine4[[#This Row],[Occ Space Tempered Cooling Load kBtu/h, Base]]>0,$O$132-tbl_HVAC_Airside_Calc_Engine4[[#This Row],[Occ Space Tempered Cooling Load kBtu/h, Base]]*1000/(1.08*tbl_HVAC_Airside_Calc_Engine4[[#This Row],[Occ Tempered Cooling Flow %, Base]]*tbl_HVAC_Airside_Calc_Engine4[[#This Row],[Occ SF Manual Prop Airflow Adj to Base Ratio]]*$F$120),tbl_HVAC_Airside_Calc_Engine4[[#This Row],[Occ DAT °F, Base]])),tbl_HVAC_Airside_Calc_Engine4[[#This Row],[Occ SAT °F]]) -> 55 | CQ143: =MEDIAN(0,1,IF($F$31="Baseline Trend Data",IF(ISBLANK(tbl_HVAC_Airside_Calc_Engine4[[#This Row],[UnOcc OA Flow (%), Base Trend]]),MEDIAN(MIN(tbl_HVAC_Airside_Calc_Engine4[UnOcc OA Flow (%), Base Trend]),MAX(tbl_HVAC_Airside_Calc_Engine4[UnOcc OA Flow (%), Base Trend]),FORECAST(tbl_HVAC_Airside_Calc_Engine4[[#This Row],[OAT °F]],tbl_HVAC_Airside_Calc_Engine4[UnOcc OA Flow (%), Base Trend],tbl_HVAC_Airside_Calc_Engine4[OAT °F])),tbl_HVAC_Airside_Calc_Engine4[[#This Row],[UnOcc OA Flow (%), Base Trend]]), IFERROR(IF((tbl_HVAC_Airside_Calc_Engine4[[#This Row],[OAT °F]]>$F$40),$F$39,MAX($F$39,MIN($G$39,(tbl_HVAC_Airside_Calc_Engine4[[#This Row],[Unocc Base SAT °F]]-tbl_HVAC_Airside_Calc_Engine4[[#This Row],[Unocc RAT °F, Base]])/(tbl_HVAC_Airside_Calc_Engine4[[#This Row],[OAT °F]]-tbl_HVAC_Airside_Calc_Engine4[[#This Row],[Unocc RAT °F, Base]])))),$F$39))) -> 0 | CR143: =MIN(100%,IF($F$67="Baseline Trend Data", IF(ISBLANK(tbl_HVAC_Airside_Calc_Engine4[[#This Row],[UnOcc SF Flow (%), Base Trend]]),MEDIAN(MIN(tbl_HVAC_Airside_Calc_Engine4[UnOcc SF Flow (%), Base Trend]),1,FORECAST(tbl_HVAC_Airside_Calc_Engine4[[#This Row],[OAT °F]],tbl_HVAC_Airside_Calc_Engine4[UnOcc SF Flow (%), Base Trend],tbl_HVAC_Airside_Calc_Engine4[OAT °F])),tbl_HVAC_Airside_Calc_Engine4[[#This Row],[UnOcc SF Flow (%), Base Trend]]), IF(tbl_HVAC_Airside_Calc_Engine4[[#This Row],[OAT °F]]<$F$80,TREND($F$79:$G$79,$F$80:$G$80,MEDIAN(tbl_HVAC_Airside_Calc_Engine4[[#This Row],[OAT °F]],$F$80,$G$80)), TREND($F$77:$G$77,$F$78:$G$78,MEDIAN($F$78,$G$78,tbl_HVAC_Airside_Calc_Engine4[[#This Row],[OAT °F]]))))) -> 0.3 | CS143: =MAX(0,MIN(100%,IF($F$82="Baseline Trend Data", IF(ISBLANK(tbl_HVAC_Airside_Calc_Engine4[[#This Row],[UnOcc RH Box VAV Flow (%), Base Trend]]),MEDIAN(MIN(tbl_HVAC_Airside_Calc_Engine4[UnOcc RH Box VAV Flow (%), Base Trend]),tbl_HVAC_Airside_Calc_Engine4[[#This Row],[Unocc SF Flow %, Base]],FORECAST(tbl_HVAC_Airside_Calc_Engine4[[#This Row],[OAT °F]],tbl_HVAC_Airside_Calc_Engine4[UnOcc RH Box VAV Flow (%), Base Trend],tbl_HVAC_Airside_Calc_Engine4[OAT °F])),tbl_HVAC_Airside_Calc_Engine4[[#This Row],[UnOcc RH Box VAV Flow (%), Base Trend]]), tbl_HVAC_Airside_Calc_Engine4[[#This Row],[Unocc SF Flow %, Base]]*$F$84))) -> 0.3 | CT143: =IFERROR(tbl_HVAC_Airside_Calc_Engine4[[#This Row],[Unocc RH Box Flow %, Base]]/tbl_HVAC_Airside_Calc_Engine4[[#This Row],[Unocc SF Flow %, Base]],0) -> 1 | CU143: =IF($F$82="Baseline Trend Data", IF(ISBLANK(tbl_HVAC_Airside_Calc_Engine4[[#This Row],[UnOcc RH VAV DAT (°F), Base Trend]]),MEDIAN(tbl_HVAC_Airside_Calc_Engine4[[#This Row],[Unocc Base SAT °F]],MAX(tbl_HVAC_Airside_Calc_Engine4[UnOcc RH VAV DAT (°F), Base Trend]),FORECAST(tbl_HVAC_Airside_Calc_Engine4[[#This Row],[OAT °F]],tbl_HVAC_Airside_Calc_Engine4[UnOcc RH VAV DAT (°F), Base Trend],tbl_HVAC_Airside_Calc_Engine4[OAT °F])),tbl_HVAC_Airside_Calc_Engine4[[#This Row],[UnOcc RH VAV DAT (°F), Base Trend]]), MIN($G$90,tbl_HVAC_Airside_Calc_Engine4[[#This Row],[Unocc Base SAT °F]]+MAX(0,($G$90-tbl_HVAC_Airside_Calc_Engine4[[#This Row],[Unocc Base SAT °F]])*(($G$85-tbl_HVAC_Airside_Calc_Engine4[[#This Row],[OAT °F]])/($G$85-IF($G$88="yes",$G$89,$G$87)))))) -> 55 | CV143: =IF($F$96="Baseline Trend Data", IF(ISBLANK(tbl_HVAC_Airside_Calc_Engine4[[#This Row],[UnOcc RAT (°F), Base Trend]]),MEDIAN(MIN(tbl_HVAC_Airside_Calc_Engine4[UnOcc RAT (°F), Base Trend]),MAX(tbl_HVAC_Airside_Calc_Engine4[UnOcc RAT (°F), Base Trend]),FORECAST(tbl_HVAC_Airside_Calc_Engine4[[#This Row],[OAT °F]],tbl_HVAC_Airside_Calc_Engine4[UnOcc RAT (°F), Base Trend],tbl_HVAC_Airside_Calc_Engine4[OAT °F])),tbl_HVAC_Airside_Calc_Engine4[[#This Row],[UnOcc RAT (°F), Base Trend]]), MEDIAN($G$95,$F$95,tbl_HVAC_Airside_Calc_Engine4[[#This Row],[OAT °F]])) -> 80 | CW143: =IF(tbl_HVAC_Airside_Calc_Engine4[[#This Row],[Unocc DAT °F, Base]]>$F$95,tbl_HVAC_Airside_Calc_Engine4[[#This Row],[Unocc RH Box Flow %, Base]],0) -> 0 | CX143: =tbl_HVAC_Airside_Calc_Engine4[[#This Row],[Unocc SF Flow %, Base]]-tbl_HVAC_Airside_Calc_Engine4[[#This Row],[Unocc Heating Only Flow %, Base]]-tbl_HVAC_Airside_Calc_Engine4[[#This Row],[Unocc Tempered Cooling Flow %, Base]] -> 0.3 | CY143: =IF(AND(tbl_HVAC_Airside_Calc_Engine4[[#This Row],[Unocc DAT °F, Base]]<=$F$95,tbl_HVAC_Airside_Calc_Engine4[[#This Row],[Unocc DAT °F, Base]]>tbl_HVAC_Airside_Calc_Engine4[[#This Row],[Unocc Base SAT °F]]),tbl_HVAC_Airside_Calc_Engine4[[#This Row],[Unocc RH Box Flow %, Base]],0) -> 0 | CZ143: =SUM(tbl_HVAC_Airside_Calc_Engine4[[#This Row],[Unocc Heating Only Flow %, Base]:[Unocc Tempered Cooling Flow %, Base]]) -> 0.3 | DA143: =1.08*tbl_HVAC_Airside_Calc_Engine4[[#This Row],[Unocc Heating Only Flow %, Base]]*$F$120*(tbl_HVAC_Airside_Calc_Engine4[[#This Row],[Unocc DAT °F, Base]]-$F$95)/1000 -> 0 | DB143: =1.08*tbl_HVAC_Airside_Calc_Engine4[[#This Row],[Unocc Cooling Only Flow %, Base]]*$F$120*($G$95-tbl_HVAC_Airside_Calc_Engine4[[#This Row],[Unocc Base SAT °F]])/1000 -> 812.8362701 | DC143: =1.08*tbl_HVAC_Airside_Calc_Engine4[[#This Row],[Unocc Tempered Cooling Flow %, Base]]*$F$120*($F$95-tbl_HVAC_Airside_Calc_Engine4[[#This Row],[Unocc DAT °F, Base]])/1000 -> 0 | DD143: =IF(AND($F$106="Proposed",$M$65="Enable",$M$75="Sub-Enable"),IF(tbl_HVAC_Airside_Calc_Engine4[[#This Row],[Unocc SF Flow %]]/tbl_HVAC_Airside_Calc_Engine4[[#This Row],[Unocc SF Flow %, Base]]=0,1,IFERROR(tbl_HVAC_Airside_Calc_Engine4[[#This Row],[Unocc SF Flow %]]/tbl_HVAC_Airside_Calc_Engine4[[#This Row],[Unocc SF Flow %, Base]],1)),100%) -> 1 | DE143: =IF($F$126="Constant Air Volume",0%,IFERROR((tbl_HVAC_Airside_Calc_Engine4[[#This Row],[Unocc Space Cooling Only Load kBtu/h, Base]]*1000/(1.08*($P$133-tbl_HVAC_Airside_Calc_Engine4[[#This Row],[Unocc SAT °F]]))-tbl_HVAC_Airside_Calc_Engine4[[#This Row],[Unocc Cooling Only Flow %, Base]]*$F$120)/$F$120,0)) -> 0 | DF143: =IF($F$126="Constant Air Volume",0%,IFERROR(MAX(0,tbl_HVAC_Airside_Calc_Engine4[[#This Row],[Unocc Space Tempered Cooling Load kBtu/h, Base]]*1000/(1.08*($P$133-tbl_HVAC_Airside_Calc_Engine4[[#This Row],[Unocc RH VAV DAT °F]]))-tbl_HVAC_Airside_Calc_Engine4[[#This Row],[Unocc Tempered Cooling Flow %, Base]]*$F$120)/$F$120,0)) -> 0 | DG143: =IF($F$126="Constant Air Volume",0%,tbl_HVAC_Airside_Calc_Engine4[[#This Row],[Unocc Prop Fan Flow Adj (Cooling Only)]]+tbl_HVAC_Airside_Calc_Engine4[[#This Row],[Unocc Prop Fan Flow Adj (Tempered Cooling)]]) -> 0 | DH143: =MAX(IF(tbl_HVAC_Airside_Calc_Engine4[[#This Row],[Unocc Space Heating Only Load kBtu/h, Base]]>0,tbl_HVAC_Airside_Calc_Engine4[[#This Row],[Unocc Space Heating Only Load kBtu/h, Base]]*1000/(1.08*tbl_HVAC_Airside_Calc_Engine4[[#This Row],[Unocc Heating Only Flow %, Base]]*tbl_HVAC_Airside_Calc_Engine4[[#This Row],[Unocc SF Manual Prop Airflow Adj to Base Ratio]]*$F$120)+$O$133,IF(tbl_HVAC_Airside_Calc_Engine4[[#This Row],[Unocc Space Tempered Cooling Load kBtu/h, Base]]>0,$O$133-tbl_HVAC_Airside_Calc_Engine4[[#This Row],[Unocc Space Tempered Cooling Load kBtu/h, Base]]*1000/(1.08*tbl_HVAC_Airside_Calc_Engine4[[#This Row],[Unocc Tempered Cooling Flow %, Base]]*tbl_HVAC_Airside_Calc_Engine4[[#This Row],[Unocc SF Manual Prop Airflow Adj to Base Ratio]]*$F$120),tbl_HVAC_Airside_Calc_Engine4[[#This Row],[Unocc DAT °F, Base]])),tbl_HVAC_Airside_Calc_Engine4[[#This Row],[Unocc SAT °F]]) -> 55 | DI143: =(tbl_HVAC_Airside_Calc_Engine4[[#This Row],[Occ Hr]]*(tbl_HVAC_Airside_Calc_Engine4[[#This Row],[Occ Space Cooling Only Load kBtu/h, Base]]+tbl_HVAC_Airside_Calc_Engine4[[#This Row],[Occ Space Tempered Cooling Load kBtu/h, Base]])+tbl_HVAC_Airside_Calc_Engine4[[#This Row],[UnOcc Hr]]*(tbl_HVAC_Airside_Calc_Engine4[[#This Row],[Unocc Space Cooling Only Load kBtu/h, Base]]+tbl_HVAC_Airside_Calc_Engine4[[#This Row],[Unocc Space Tempered Cooling Load kBtu/h, Base]]))/12 -> 0
E144: 111 | F144: =COUNTIFS(tbl_Climate_Zone[Dry_Bulb],E144,tbl_Climate_Zone[On-Pk Hour],1,tbl_Climate_Zone[Hour],">" & $K$114,tbl_Climate_Zone[Hour],"<=" & $L$114) -> 0 | G144: ='CZ2022'!S6-F144 -> 0 | H144: =SUM( COUNTIFS(tbl_Climate_Zone[Dry_Bulb],E144,tbl_Climate_Zone[Weekday],$M$114,tbl_Climate_Zone[Hour],">"&$K$114,tbl_Climate_Zone[Hour],"<="&$L$114), COUNTIFS(tbl_Climate_Zone[Dry_Bulb],E144,tbl_Climate_Zone[Weekday],$M$115,tbl_Climate_Zone[Hour],">"&$K$115,tbl_Climate_Zone[Hour],"<="&$L$115), COUNTIFS(tbl_Climate_Zone[Dry_Bulb],E144,tbl_Climate_Zone[Weekday],$M$116,tbl_Climate_Zone[Hour],">"&$K$116,tbl_Climate_Zone[Hour],"<="&$L$116)) -> 0 | I144: ='CZ2022'!T6-tbl_HVAC_Airside_Calc_Engine4[[#This Row],[Occ Hr]] -> 0 | AH144: =IFERROR(IF($F$49="Baseline Trend Data", IF(ISBLANK(tbl_HVAC_Airside_Calc_Engine4[[#This Row],[Occ SAT (°F), Base Trend]]),MEDIAN(MIN(tbl_HVAC_Airside_Calc_Engine4[Occ SAT (°F), Base Trend]),MAX(tbl_HVAC_Airside_Calc_Engine4[Occ SAT (°F), Base Trend]),FORECAST(tbl_HVAC_Airside_Calc_Engine4[[#This Row],[OAT °F]],tbl_HVAC_Airside_Calc_Engine4[Occ SAT (°F), Base Trend],tbl_HVAC_Airside_Calc_Engine4[OAT °F])),tbl_HVAC_Airside_Calc_Engine4[[#This Row],[Occ SAT (°F), Base Trend]]), FORECAST(MEDIAN($F$53,$G$53,tbl_HVAC_Airside_Calc_Engine4[[#This Row],[OAT °F]]),$F$52:$G$52,$F$53:$G$53)),0) -> 55 | AI144: =IF($M$47 = "Disable",tbl_HVAC_Airside_Calc_Engine4[[#This Row],[Occ Base SAT °F]],IFERROR(IF($K$49="Proposed Trend Data", IF(ISBLANK(tbl_HVAC_Airside_Calc_Engine4[[#This Row],[Occ SAT (°F), Prop Trend]]),MEDIAN(MIN(tbl_HVAC_Airside_Calc_Engine4[Occ SAT (°F), Prop Trend]),MAX(tbl_HVAC_Airside_Calc_Engine4[Occ SAT (°F), Prop Trend]),FORECAST(tbl_HVAC_Airside_Calc_Engine4[[#This Row],[OAT °F]],tbl_HVAC_Airside_Calc_Engine4[Occ SAT (°F), Prop Trend],tbl_HVAC_Airside_Calc_Engine4[OAT °F])),tbl_HVAC_Airside_Calc_Engine4[[#This Row],[Occ SAT (°F), Prop Trend]]), FORECAST(MEDIAN($K$53,$L$53,tbl_HVAC_Airside_Calc_Engine4[[#This Row],[OAT °F]]),$K$52:$L$52,$K$53:$L$53)),0)) -> 55 | AJ144: =tbl_HVAC_Airside_Calc_Engine4[[#This Row],[Occ SAT °F]]-tbl_HVAC_Airside_Calc_Engine4[[#This Row],[Occ Base SAT °F]] -> 0 | AK144: =IFERROR(IF($F$105="Baseline",tbl_HVAC_Airside_Calc_Engine4[[#This Row],[Occ Base SAT °F]],tbl_HVAC_Airside_Calc_Engine4[[#This Row],[Occ Prop SAT °F]]),0) -> 55 | AL144: =IF($K$127="Proposed Trend Data",IF(ISBLANK(tbl_HVAC_Airside_Calc_Engine4[[#This Row],[Occ RH Box VAV Flow (%), Prop Trend]]),MEDIAN(tbl_HVAC_Airside_Calc_Engine4[[#This Row],[Occ SF Flow %]],MIN(tbl_HVAC_Airside_Calc_Engine4[Occ RH Box VAV Flow (%), Prop Trend]),FORECAST(tbl_HVAC_Airside_Calc_Engine4[[#This Row],[OAT °F]],tbl_HVAC_Airside_Calc_Engine4[Occ RH Box VAV Flow (%), Prop Trend],tbl_HVAC_Airside_Calc_Engine4[OAT °F])),tbl_HVAC_Airside_Calc_Engine4[[#This Row],[Occ RH Box VAV Flow (%), Prop Trend]]), IF(AND($K$127="Auto Calc",$M$65="Enable",$M$68="Sub-Enable"),tbl_HVAC_Airside_Calc_Engine4[[#This Row],[Occ SF Flow %]]*tbl_HVAC_Airside_Calc_Engine4[[#This Row],[Occ RH to SF Ratio, Base]], tbl_HVAC_Airside_Calc_Engine4[[#This Row],[Occ RH Box Flow %, Base]]+tbl_HVAC_Airside_Calc_Engine4[[#This Row],[Occ Prop Fan Flow Adj (Tempered Cooling)]]+IFERROR(( tbl_HVAC_Airside_Calc_Engine4[[#This Row],[Occ RH Box Flow %, Base]]-tbl_HVAC_Airside_Calc_Engine4[[#This Row],[Occ Tempered Cooling Flow %, Base]]-tbl_HVAC_Airside_Calc_Engine4[[#This Row],[Occ Heating Only Flow %, Base]])/tbl_HVAC_Airside_Calc_Engine4[[#This Row],[Occ SF Flow %, Base]],0)*tbl_HVAC_Airside_Calc_Engine4[[#This Row],[Occ Prop Fan Flow Adj (Cooling Only)]])) -> 1 | AM144: =IF($K$127="Proposed Trend Data", IF(ISBLANK(tbl_HVAC_Airside_Calc_Engine4[[#This Row],[Occ RH VAV DAT (°F), Prop Trend]]),MEDIAN(tbl_HVAC_Airside_Calc_Engine4[[#This Row],[Occ Prop SAT °F]],MAX(tbl_HVAC_Airside_Calc_Engine4[Occ RH VAV DAT (°F), Prop Trend]),FORECAST(tbl_HVAC_Airside_Calc_Engine4[[#This Row],[OAT °F]],tbl_HVAC_Airside_Calc_Engine4[Occ RH VAV DAT (°F), Prop Trend],tbl_HVAC_Airside_Calc_Engine4[OAT °F])),tbl_HVAC_Airside_Calc_Engine4[[#This Row],[Occ RH VAV DAT (°F), Prop Trend]]), tbl_HVAC_Airside_Calc_Engine4[[#This Row],[Occ RH DAT °F Adj]]) -> 55 | AN144: =IF($O$130="Baseline Trend Data", IF(ISBLANK(tbl_HVAC_Airside_Calc_Engine4[[#This Row],[ Occ RAT (°F), Base Trend]]),MEDIAN(MIN($O$140:$O$245),MAX($O$140:$O$245),FORECAST(tbl_HVAC_Airside_Calc_Engine4[[#This Row],[OAT °F]],$O$140:$O$245,tbl_HVAC_Airside_Calc_Engine4[OAT °F])),tbl_HVAC_Airside_Calc_Engine4[[#This Row],[ Occ RAT (°F), Base Trend]]), IF($O$130="Proposed Trend Data",IF(ISBLANK(tbl_HVAC_Airside_Calc_Engine4[[#This Row],[Occ RAT (°F), Prop Trend]]),MEDIAN(MIN(tbl_HVAC_Airside_Calc_Engine4[Occ RAT (°F), Prop Trend]),MAX(tbl_HVAC_Airside_Calc_Engine4[Occ RAT (°F), Prop Trend]),FORECAST(tbl_HVAC_Airside_Calc_Engine4[[#This Row],[OAT °F]],tbl_HVAC_Airside_Calc_Engine4[Occ RAT (°F), Prop Trend],tbl_HVAC_Airside_Calc_Engine4[OAT °F])),tbl_HVAC_Airside_Calc_Engine4[[#This Row],[Occ RAT (°F), Prop Trend]]), MEDIAN($P$132,$O$132,tbl_HVAC_Airside_Calc_Engine4[[#This Row],[OAT °F]]))) -> 75 | AO144: =MEDIAN(0,1,IF($K$119="Baseline Trend Data", IF(ISBLANK(tbl_HVAC_Airside_Calc_Engine4[[#This Row],[Occ OA Flow (%), Base Trend]]),MEDIAN(MIN(tbl_HVAC_Airside_Calc_Engine4[Occ OA Flow (%), Base Trend]),MAX(tbl_HVAC_Airside_Calc_Engine4[Occ OA Flow (%), Base Trend]),FORECAST(tbl_HVAC_Airside_Calc_Engine4[[#This Row],[OAT °F]],tbl_HVAC_Airside_Calc_Engine4[Occ OA Flow (%), Base Trend],tbl_HVAC_Airside_Calc_Engine4[OAT °F])),tbl_HVAC_Airside_Calc_Engine4[[#This Row],[Occ OA Flow (%), Base Trend]]), IF($K$119="Proposed Trend Data", IF(ISBLANK(tbl_HVAC_Airside_Calc_Engine4[[#This Row],[Occ OA Flow (%), Prop Trend]]),MEDIAN(MIN(tbl_HVAC_Airside_Calc_Engine4[Occ OA Flow (%), Prop Trend]),MAX(tbl_HVAC_Airside_Calc_Engine4[Occ OA Flow (%), Prop Trend]),FORECAST(tbl_HVAC_Airside_Calc_Engine4[[#This Row],[OAT °F]],tbl_HVAC_Airside_Calc_Engine4[Occ OA Flow (%), Prop Trend],tbl_HVAC_Airside_Calc_Engine4[OAT °F])),tbl_HVAC_Airside_Calc_Engine4[[#This Row],[Occ OA Flow (%), Prop Trend]]), IFERROR(IF((tbl_HVAC_Airside_Calc_Engine4[[#This Row],[OAT °F]]>$K$122),$K$121,MAX($K$121,MIN($L$121,(tbl_HVAC_Airside_Calc_Engine4[[#This Row],[Occ SAT °F]]-tbl_HVAC_Airside_Calc_Engine4[[#This Row],[Occ RAT °F]])/(tbl_HVAC_Airside_Calc_Engine4[[#This Row],[OAT °F]]-tbl_HVAC_Airside_Calc_Engine4[[#This Row],[Occ RAT °F]])))),$K$121)))) -> 0.2989697927 | AP144: =tbl_HVAC_Airside_Calc_Engine4[[#This Row],[Occ RAT °F]]*(1-tbl_HVAC_Airside_Calc_Engine4[[#This Row],[Occ OA Flow %]])+tbl_HVAC_Airside_Calc_Engine4[[#This Row],[OAT °F]]*tbl_HVAC_Airside_Calc_Engine4[[#This Row],[Occ OA Flow %]] -> 85.76291254 | AQ144: =IF(AND($F$130="yes",$F$131>tbl_HVAC_Airside_Calc_Engine4[[#This Row],[Occ MAT °F]]+$F$132,tbl_HVAC_Airside_Calc_Engine4[[#This Row],[Occ Hr]]>0),"Yes","No") -> No | AR144: =IF(tbl_HVAC_Airside_Calc_Engine4[[#This Row],[Occ Pre-Heat?]]="Yes",1.08*tbl_HVAC_Airside_Calc_Engine4[[#This Row],[Occ SF Flow %]]*$F$120*($F$131-(tbl_HVAC_Airside_Calc_Engine4[[#This Row],[Occ MAT °F]]+$F$132))/1000,0) -> 0 | AS144: =IF($O$118="Proposed Trend Data", IF(ISBLANK(tbl_HVAC_Airside_Calc_Engine4[[#This Row],[Occ SF Flow (%), Prop Trend]]),MEDIAN(MIN(tbl_HVAC_Airside_Calc_Engine4[Occ SF Flow (%), Prop Trend]),100%,FORECAST(tbl_HVAC_Airside_Calc_Engine4[[#This Row],[OAT °F]],tbl_HVAC_Airside_Calc_Engine4[Occ SF Flow (%), Prop Trend],tbl_HVAC_Airside_Calc_Engine4[OAT °F])),tbl_HVAC_Airside_Calc_Engine4[[#This Row],[Occ SF Flow (%), Prop Trend]]), IF(AND($F$106="Proposed",$M$65="Enable",$M$68="Sub-Enable",$K$67="Simple Data"),IF(tbl_HVAC_Airside_Calc_Engine4[[#This Row],[OAT °F]]<$O$123,TREND($O$122:$P$122,$O$123:$P$123,MEDIAN(tbl_HVAC_Airside_Calc_Engine4[[#This Row],[OAT °F]],$O$123,$P$123)),TREND($O$120:$P$120,$O$121:$P$121,MEDIAN($O$121,$P$121,tbl_HVAC_Airside_Calc_Engine4[[#This Row],[OAT °F]]))), tbl_HVAC_Airside_Calc_Engine4[[#This Row],[Occ SF Flow %, Base]]+tbl_HVAC_Airside_Calc_Engine4[[#This Row],[Occ Prop Net Fan Flow Adj]])) -> 1 | AT144: =IF(tbl_HVAC_Airside_Calc_Engine4[[#This Row],[OAT °F]]>$F$118,MAX(1.08*$F$120*(tbl_HVAC_Airside_Calc_Engine4[[#This Row],[Occ SF Flow %]]*(tbl_HVAC_Airside_Calc_Engine4[[#This Row],[Occ MAT °F]]-tbl_HVAC_Airside_Calc_Engine4[[#This Row],[Occ SAT °F]])/12000),0),0) -> 277.8356787 | AU144: =IF(AND(tbl_HVAC_Airside_Calc_Engine4[[#This Row],[OAT °F]]<$F$117,tbl_HVAC_Airside_Calc_Engine4[[#This Row],[Occ Hr]]>0),(1.08*$F$120*tbl_HVAC_Airside_Calc_Engine4[[#This Row],[Occ RH Box Flow %]]*(tbl_HVAC_Airside_Calc_Engine4[[#This Row],[Occ RH VAV DAT °F]]-IF(tbl_HVAC_Airside_Calc_Engine4[[#This Row],[Occ Pre-Heat?]]="yes",$F$131,MIN(tbl_HVAC_Airside_Calc_Engine4[[#This Row],[Occ SAT °F]],tbl_HVAC_Airside_Calc_Engine4[[#This Row],[Occ MAT °F]])))/10^3),0) -> 0 | AV144: =tbl_HVAC_Airside_Calc_Engine4[[#This Row],[Occ Pre-Heat Load, kBtu]]+tbl_HVAC_Airside_Calc_Engine4[[#This Row],[Occ Re-Heating Load, kBtu]] -> 0 | AW144: =tbl_HVAC_Airside_Calc_Engine4[[#This Row],[Occ SF Flow %]]*$F$125 -> 1 | AX144: =IF(AND(tbl_HVAC_Airside_Calc_Engine4[[#This Row],[Occ SF Flow %]]>0,tbl_HVAC_Airside_Calc_Engine4[[#This Row],[Occ Hr]]>0),$F$119*0.746/$W$109/IF($F$121="VFD",$X$110,1)*(($Z$107+$Z$108*tbl_HVAC_Airside_Calc_Engine4[[#This Row],[Occ SF Flow %]]+$Z$109*tbl_HVAC_Airside_Calc_Engine4[[#This Row],[Occ SF Flow %]]^2+$Z$110*tbl_HVAC_Airside_Calc_Engine4[[#This Row],[Occ SF Flow %]]^3) ),0) -> 0 | AY144: =IF(AND(tbl_HVAC_Airside_Calc_Engine4[[#This Row],[Occ RF Flow %]]>0,tbl_HVAC_Airside_Calc_Engine4[[#This Row],[Occ Hr]]>0),$F$122*0.746/$W$110/IF($F$124="VFD",$X$110,1)*($AB$107+$AB$108*tbl_HVAC_Airside_Calc_Engine4[[#This Row],[Occ RF Flow %]]+$AB$109*tbl_HVAC_Airside_Calc_Engine4[[#This Row],[Occ RF Flow %]]^2+$AB$110*tbl_HVAC_Airside_Calc_Engine4[[#This Row],[Occ RF Flow %]]^3),0) -> 0 | AZ144: =tbl_HVAC_Airside_Calc_Engine4[[#This Row],[Occ SF kW]]+tbl_HVAC_Airside_Calc_Engine4[[#This Row],[Occ RF kW]] -> 0 | BA144: =IF(tbl_HVAC_Airside_Calc_Engine4[[#This Row],[Occ Hr]]>0,$F$113*tbl_HVAC_Airside_Calc_Engine4[[#This Row],[Occ Cooling Load, Ton]]+IF($F$114="Electric",(tbl_HVAC_Airside_Calc_Engine4[[#This Row],[Occ Total Heating Load, kBtu]])/$F$116,0),0) -> 0 | BB144: =IFERROR(IF($F$49="Baseline Trend Data", IF(ISBLANK(tbl_HVAC_Airside_Calc_Engine4[[#This Row],[UnOcc SAT (°F), Base Trend]]),MEDIAN(MIN(tbl_HVAC_Airside_Calc_Engine4[UnOcc SAT (°F), Base Trend]),MAX(tbl_HVAC_Airside_Calc_Engine4[UnOcc SAT (°F), Base Trend]),FORECAST(tbl_HVAC_Airside_Calc_Engine4[[#This Row],[OAT °F]],tbl_HVAC_Airside_Calc_Engine4[UnOcc SAT (°F), Base Trend],tbl_HVAC_Airside_Calc_Engine4[OAT °F])),tbl_HVAC_Airside_Calc_Engine4[[#This Row],[UnOcc SAT (°F), Base Trend]]), FORECAST(MEDIAN($F$58,$G$58,tbl_HVAC_Airside_Calc_Engine4[[#This Row],[OAT °F]]),$F$57:$G$57,$F$58:$G$58)),0) -> 55 | BC144: =IF($M$47 = "Disable",tbl_HVAC_Airside_Calc_Engine4[[#This Row],[Unocc Base SAT °F]],IFERROR(IF($K$49="Proposed Trend Data", IF(ISBLANK(tbl_HVAC_Airside_Calc_Engine4[[#This Row],[UnOcc SAT (°F), Prop Trend]]),MEDIAN(MIN(tbl_HVAC_Airside_Calc_Engine4[UnOcc SAT (°F), Prop Trend]),MAX(tbl_HVAC_Airside_Calc_Engine4[UnOcc SAT (°F), Prop Trend]),FORECAST(tbl_HVAC_Airside_Calc_Engine4[[#This Row],[OAT °F]],tbl_HVAC_Airside_Calc_Engine4[UnOcc SAT (°F), Prop Trend],tbl_HVAC_Airside_Calc_Engine4[OAT °F])),tbl_HVAC_Airside_Calc_Engine4[[#This Row],[UnOcc SAT (°F), Prop Trend]]), FORECAST(MEDIAN($K$58,$L$58,tbl_HVAC_Airside_Calc_Engine4[[#This Row],[OAT °F]]),$K$57:$L$57,$K$58:$L$58)),0)) -> 55 | BD144: =tbl_HVAC_Airside_Calc_Engine4[[#This Row],[Unocc SAT °F]]-tbl_HVAC_Airside_Calc_Engine4[[#This Row],[Unocc Base SAT °F]] -> 0 | BE144: =IFERROR(IF($F$105="Baseline",tbl_HVAC_Airside_Calc_Engine4[[#This Row],[Unocc Base SAT °F]],tbl_HVAC_Airside_Calc_Engine4[[#This Row],[Unocc Prop SAT °F]]),0) -> 55 | BF144: =IF($K$128="Proposed Trend Data",IF(ISBLANK(tbl_HVAC_Airside_Calc_Engine4[[#This Row],[UnOcc RH Box VAV Flow (%), Prop Trend]]),MEDIAN(tbl_HVAC_Airside_Calc_Engine4[[#This Row],[Unocc SF Flow %]],MIN(tbl_HVAC_Airside_Calc_Engine4[UnOcc RH Box VAV Flow (%), Prop Trend]),FORECAST(tbl_HVAC_Airside_Calc_Engine4[[#This Row],[OAT °F]],tbl_HVAC_Airside_Calc_Engine4[UnOcc RH Box VAV Flow (%), Prop Trend],tbl_HVAC_Airside_Calc_Engine4[OAT °F])),tbl_HVAC_Airside_Calc_Engine4[[#This Row],[UnOcc RH Box VAV Flow (%), Prop Trend]]), IF(AND($K$128="Auto Calc",$M$65="Enable",$M$75="Sub-Enable"),tbl_HVAC_Airside_Calc_Engine4[[#This Row],[Unocc SF Flow %]]*tbl_HVAC_Airside_Calc_Engine4[[#This Row],[Unocc RH to SF Ratio, Base]], tbl_HVAC_Airside_Calc_Engine4[[#This Row],[Unocc RH Box Flow %, Base]]+tbl_HVAC_Airside_Calc_Engine4[[#This Row],[Unocc Prop Fan Flow Adj (Tempered Cooling)]]+IFERROR(( tbl_HVAC_Airside_Calc_Engine4[[#This Row],[Unocc RH Box Flow %, Base]]-tbl_HVAC_Airside_Calc_Engine4[[#This Row],[Unocc Tempered Cooling Flow %, Base]]-tbl_HVAC_Airside_Calc_Engine4[[#This Row],[Unocc Heating Only Flow %, Base]])/tbl_HVAC_Airside_Calc_Engine4[[#This Row],[Unocc SF Flow %, Base]],0)*tbl_HVAC_Airside_Calc_Engine4[[#This Row],[Unocc Prop Fan Flow Adj (Cooling Only)]])) -> 0.3 | BG144: =IF($K$128="Proposed Trend Data", IF(ISBLANK(tbl_HVAC_Airside_Calc_Engine4[[#This Row],[UnOcc RH VAV DAT (°F), Prop Trend]]),MEDIAN(tbl_HVAC_Airside_Calc_Engine4[[#This Row],[Unocc Prop SAT °F]],MAX(tbl_HVAC_Airside_Calc_Engine4[UnOcc RH VAV DAT (°F), Prop Trend]),FORECAST(tbl_HVAC_Airside_Calc_Engine4[[#This Row],[OAT °F]],tbl_HVAC_Airside_Calc_Engine4[UnOcc RH VAV DAT (°F), Prop Trend],tbl_HVAC_Airside_Calc_Engine4[OAT °F])),tbl_HVAC_Airside_Calc_Engine4[[#This Row],[UnOcc RH VAV DAT (°F), Prop Trend]]), tbl_HVAC_Airside_Calc_Engine4[[#This Row],[Unocc RH DAT °F Adj]]) -> 55 | BH144: =IF($O$130="Baseline Trend Data", IF(ISBLANK(tbl_HVAC_Airside_Calc_Engine4[[#This Row],[UnOcc RAT (°F), Base Trend]]),MEDIAN(MIN(tbl_HVAC_Airside_Calc_Engine4[UnOcc RAT (°F), Base Trend]),MAX(tbl_HVAC_Airside_Calc_Engine4[UnOcc RAT (°F), Base Trend]),FORECAST(tbl_HVAC_Airside_Calc_Engine4[[#This Row],[OAT °F]], tbl_HVAC_Airside_Calc_Engine4[UnOcc RAT (°F), Base Trend],tbl_HVAC_Airside_Calc_Engine4[OAT °F])),tbl_HVAC_Airside_Calc_Engine4[[#This Row],[UnOcc RAT (°F), Base Trend]]), IF($O$130="Proposed Trend Data",IF(ISBLANK(tbl_HVAC_Airside_Calc_Engine4[[#This Row],[UnOcc RAT (°F), Prop Trend]]),MEDIAN(MIN(tbl_HVAC_Airside_Calc_Engine4[UnOcc RAT (°F), Prop Trend]),MAX(tbl_HVAC_Airside_Calc_Engine4[UnOcc RAT (°F), Prop Trend]),FORECAST(tbl_HVAC_Airside_Calc_Engine4[[#This Row],[OAT °F]],tbl_HVAC_Airside_Calc_Engine4[UnOcc RAT (°F), Prop Trend],tbl_HVAC_Airside_Calc_Engine4[OAT °F])),tbl_HVAC_Airside_Calc_Engine4[[#This Row],[UnOcc RAT (°F), Prop Trend]]), MEDIAN($P$133,$O$133,tbl_HVAC_Airside_Calc_Engine4[[#This Row],[OAT °F]]))) -> 75 | BI144: =MEDIAN(0,1,IF($K$119="Baseline Trend Data", IF(ISBLANK(tbl_HVAC_Airside_Calc_Engine4[[#This Row],[UnOcc OA Flow (%), Base Trend]]),MEDIAN(MIN(tbl_HVAC_Airside_Calc_Engine4[UnOcc OA Flow (%), Base Trend]),MAX(tbl_HVAC_Airside_Calc_Engine4[UnOcc OA Flow (%), Base Trend]),FORECAST(tbl_HVAC_Airside_Calc_Engine4[[#This Row],[OAT °F]],tbl_HVAC_Airside_Calc_Engine4[UnOcc OA Flow (%), Base Trend],tbl_HVAC_Airside_Calc_Engine4[OAT °F])),tbl_HVAC_Airside_Calc_Engine4[[#This Row],[UnOcc OA Flow (%), Base Trend]]), IF($K$119="Proposed Trend Data",IF(ISBLANK(tbl_HVAC_Airside_Calc_Engine4[[#This Row],[Unocc OA Flow (%), Prop Trend]]),MEDIAN(MIN(tbl_HVAC_Airside_Calc_Engine4[Unocc OA Flow (%), Prop Trend]),MAX(tbl_HVAC_Airside_Calc_Engine4[Unocc OA Flow (%), Prop Trend]),FORECAST(tbl_HVAC_Airside_Calc_Engine4[[#This Row],[OAT °F]],tbl_HVAC_Airside_Calc_Engine4[Unocc OA Flow (%), Prop Trend],tbl_HVAC_Airside_Calc_Engine4[OAT °F])),tbl_HVAC_Airside_Calc_Engine4[[#This Row],[Unocc OA Flow (%), Prop Trend]]), IFERROR(IF((tbl_HVAC_Airside_Calc_Engine4[[#This Row],[OAT °F]]>$K$124),$K$123,MAX($K$123,MIN($L$123,(tbl_HVAC_Airside_Calc_Engine4[[#This Row],[Unocc SAT °F]]-tbl_HVAC_Airside_Calc_Engine4[[#This Row],[UnOcc RAT °F]])/(tbl_HVAC_Airside_Calc_Engine4[[#This Row],[OAT °F]]-tbl_HVAC_Airside_Calc_Engine4[[#This Row],[UnOcc RAT °F]])))),$K$123)))) -> 0 | BJ144: =tbl_HVAC_Airside_Calc_Engine4[[#This Row],[UnOcc RAT °F]]*(1-tbl_HVAC_Airside_Calc_Engine4[[#This Row],[Unocc OA Flow %]])+tbl_HVAC_Airside_Calc_Engine4[[#This Row],[OAT °F]]*tbl_HVAC_Airside_Calc_Engine4[[#This Row],[Unocc OA Flow %]] -> 75 | BK144: =IF(AND($F$130="yes",$F$131>tbl_HVAC_Airside_Calc_Engine4[[#This Row],[UnOcc MAT °F]]+$F$132,tbl_HVAC_Airside_Calc_Engine4[[#This Row],[UnOcc Hr]]>0),"Yes","No") -> No | BL144: =IF(tbl_HVAC_Airside_Calc_Engine4[[#This Row],[Unocc Pre-Heat?]]="Yes",1.08*tbl_HVAC_Airside_Calc_Engine4[[#This Row],[Unocc SF Flow %]]*$F$120*($F$131-(tbl_HVAC_Airside_Calc_Engine4[[#This Row],[UnOcc MAT °F]]+$F$132))/1000,0) -> 0 | BM144: =IF($O$118="Proposed Trend Data", IF(ISBLANK(tbl_HVAC_Airside_Calc_Engine4[[#This Row],[Unocc SF Flow (%), Prop Trend]]),MEDIAN(MIN(tbl_HVAC_Airside_Calc_Engine4[Unocc SF Flow (%), Prop Trend]),100%,FORECAST(tbl_HVAC_Airside_Calc_Engine4[[#This Row],[OAT °F]],tbl_HVAC_Airside_Calc_Engine4[Unocc SF Flow (%), Prop Trend],tbl_HVAC_Airside_Calc_Engine4[OAT °F])),tbl_HVAC_Airside_Calc_Engine4[[#This Row],[Unocc SF Flow (%), Prop Trend]]), IF(AND($F$106="Proposed",$M$65="Enable",$M$75="Sub-Enable",$K$67="Simple Data"),IF(tbl_HVAC_Airside_Calc_Engine4[[#This Row],[OAT °F]]<$O$128,TREND($O$127:$P$127,$O$128:$P$128,MEDIAN(tbl_HVAC_Airside_Calc_Engine4[[#This Row],[OAT °F]],$O$128,$P$128)),TREND($O$125:$P$125,$O$126:$P$126,MEDIAN($O$126,$P$126,tbl_HVAC_Airside_Calc_Engine4[[#This Row],[OAT °F]]))), tbl_HVAC_Airside_Calc_Engine4[[#This Row],[Unocc SF Flow %, Base]]+tbl_HVAC_Airside_Calc_Engine4[[#This Row],[Unocc Prop Net Fan Flow Adj]])) -> 0.3 | BN144: =IF(tbl_HVAC_Airside_Calc_Engine4[[#This Row],[OAT °F]]>$F$118,MAX(1.08*$F$120*(tbl_HVAC_Airside_Calc_Engine4[[#This Row],[Unocc SF Flow %]]*(tbl_HVAC_Airside_Calc_Engine4[[#This Row],[UnOcc MAT °F]]-tbl_HVAC_Airside_Calc_Engine4[[#This Row],[Unocc SAT °F]])/12000),0),0) -> 54.18908467 | BO144: =IF(AND(tbl_HVAC_Airside_Calc_Engine4[[#This Row],[UnOcc Hr]]>0,tbl_HVAC_Airside_Calc_Engine4[[#This Row],[OAT °F]]<$F$117),(1.08*$F$120*tbl_HVAC_Airside_Calc_Engine4[[#This Row],[Unocc RH Box Flow %]]*(tbl_HVAC_Airside_Calc_Engine4[[#This Row],[Unocc RH VAV DAT °F]]-IF(tbl_HVAC_Airside_Calc_Engine4[[#This Row],[Unocc Pre-Heat?]]="yes",$F$131,MIN(tbl_HVAC_Airside_Calc_Engine4[[#This Row],[Unocc SAT °F]],tbl_HVAC_Airside_Calc_Engine4[[#This Row],[UnOcc MAT °F]])))/10^3),0) -> 0 | BP144: =tbl_HVAC_Airside_Calc_Engine4[[#This Row],[Unocc Pre-Heat Load, kBtu]]+tbl_HVAC_Airside_Calc_Engine4[[#This Row],[Unocc Re-Heating Load, kBtu]] -> 0 | BQ144: =tbl_HVAC_Airside_Calc_Engine4[[#This Row],[Unocc SF Flow %]]*$F$125 -> 0.3 | BR144: =IF(AND(tbl_HVAC_Airside_Calc_Engine4[[#This Row],[Unocc SF Flow %]]>0,tbl_HVAC_Airside_Calc_Engine4[[#This Row],[UnOcc Hr]]>0),$F$119*0.746/$W$109/IF($F$121="VFD",$X$110,1)*(($Z$107+$Z$108*tbl_HVAC_Airside_Calc_Engine4[[#This Row],[Unocc SF Flow %]]+$Z$109*tbl_HVAC_Airside_Calc_Engine4[[#This Row],[Unocc SF Flow %]]^2+$Z$110*tbl_HVAC_Airside_Calc_Engine4[[#This Row],[Unocc SF Flow %]]^3) ),0) -> 0 | BS144: =IF(AND(tbl_HVAC_Airside_Calc_Engine4[[#This Row],[Unocc RF Flow %]]>0,tbl_HVAC_Airside_Calc_Engine4[[#This Row],[UnOcc Hr]]>0),$F$122*0.746/$W$110/IF($F$124="VFD",$X$110,1)*($AB$107+$AB$108*tbl_HVAC_Airside_Calc_Engine4[[#This Row],[Unocc RF Flow %]]+$AB$109*tbl_HVAC_Airside_Calc_Engine4[[#This Row],[Unocc RF Flow %]]^2+$AB$110*tbl_HVAC_Airside_Calc_Engine4[[#This Row],[Unocc RF Flow %]]^3),0) -> 0 | BT144: =tbl_HVAC_Airside_Calc_Engine4[[#This Row],[Unocc SF kW]]+tbl_HVAC_Airside_Calc_Engine4[[#This Row],[Unocc RF kW]] -> 0 | BU144: =IF(tbl_HVAC_Airside_Calc_Engine4[[#This Row],[UnOcc Hr]]>0,$F$113*tbl_HVAC_Airside_Calc_Engine4[[#This Row],[Unocc Cooling Load, Ton]]+IF($F$114="Electric",(tbl_HVAC_Airside_Calc_Engine4[[#This Row],[Unocc Total Heating Load, kBtu]])/$F$116,0),0) -> 0 | BV144: =tbl_HVAC_Airside_Calc_Engine4[[#This Row],[Occ Hr]]*(tbl_HVAC_Airside_Calc_Engine4[[#This Row],[Occ SF kW]]+tbl_HVAC_Airside_Calc_Engine4[[#This Row],[Occ RF kW]])+tbl_HVAC_Airside_Calc_Engine4[[#This Row],[UnOcc Hr]]*(tbl_HVAC_Airside_Calc_Engine4[[#This Row],[Unocc SF kW]]+tbl_HVAC_Airside_Calc_Engine4[[#This Row],[Unocc RF kW]]) -> 0 | BW144: =tbl_HVAC_Airside_Calc_Engine4[[#This Row],[Occ Load kW]]*tbl_HVAC_Airside_Calc_Engine4[[#This Row],[Occ Hr]]+tbl_HVAC_Airside_Calc_Engine4[[#This Row],[Unocc Load kW]]*tbl_HVAC_Airside_Calc_Engine4[[#This Row],[UnOcc Hr]] -> 0 | BX144: =IF($F$114="Gas",(tbl_HVAC_Airside_Calc_Engine4[[#This Row],[Occ Pre-Heat Load, kBtu]]+tbl_HVAC_Airside_Calc_Engine4[[#This Row],[Occ Re-Heating Load, kBtu]])/100/$F$115*tbl_HVAC_Airside_Calc_Engine4[[#This Row],[Occ Hr]]+(tbl_HVAC_Airside_Calc_Engine4[[#This Row],[Unocc Pre-Heat Load, kBtu]]+tbl_HVAC_Airside_Calc_Engine4[[#This Row],[Unocc Re-Heating Load, kBtu]])/100/$F$115*tbl_HVAC_Airside_Calc_Engine4[[#This Row],[UnOcc Hr]],0) -> 0 | BY144: =MEDIAN(0,1,IF($F$31="Baseline Trend Data",IF(ISBLANK(tbl_HVAC_Airside_Calc_Engine4[[#This Row],[Occ OA Flow (%), Base Trend]]),MEDIAN(MIN(tbl_HVAC_Airside_Calc_Engine4[Occ OA Flow (%), Base Trend]),MAX(tbl_HVAC_Airside_Calc_Engine4[Occ OA Flow (%), Base Trend]),FORECAST(tbl_HVAC_Airside_Calc_Engine4[[#This Row],[OAT °F]],tbl_HVAC_Airside_Calc_Engine4[Occ OA Flow (%), Base Trend],tbl_HVAC_Airside_Calc_Engine4[OAT °F])),tbl_HVAC_Airside_Calc_Engine4[[#This Row],[Occ OA Flow (%), Base Trend]]), IFERROR(IF((tbl_HVAC_Airside_Calc_Engine4[[#This Row],[OAT °F]]>$F$35),$F$34,MAX($F$34,MIN($G$34,(tbl_HVAC_Airside_Calc_Engine4[[#This Row],[Occ Base SAT °F]]-tbl_HVAC_Airside_Calc_Engine4[[#This Row],[Occ RAT °F, Base]])/(tbl_HVAC_Airside_Calc_Engine4[[#This Row],[OAT °F]]-tbl_HVAC_Airside_Calc_Engine4[[#This Row],[Occ RAT °F, Base]])))),$F$34))) -> 0.2989697927 | BZ144: =MIN(100%,IF($F$67="Baseline Trend Data", IF(ISBLANK(tbl_HVAC_Airside_Calc_Engine4[[#This Row],[Occ SF Flow (%), Base Trend]]),MEDIAN(MIN(tbl_HVAC_Airside_Calc_Engine4[Occ SF Flow (%), Base Trend]),1,FORECAST(tbl_HVAC_Airside_Calc_Engine4[[#This Row],[OAT °F]],tbl_HVAC_Airside_Calc_Engine4[Occ SF Flow (%), Base Trend],tbl_HVAC_Airside_Calc_Engine4[OAT °F])),tbl_HVAC_Airside_Calc_Engine4[[#This Row],[Occ SF Flow (%), Base Trend]]), IF(tbl_HVAC_Airside_Calc_Engine4[[#This Row],[OAT °F]]<$F$73,TREND($F$72:$G$72,$F$73:$G$73,MEDIAN(tbl_HVAC_Airside_Calc_Engine4[[#This Row],[OAT °F]],$F$73,$G$73)), TREND($F$70:$G$70,$F$71:$G$71,MEDIAN($F$71,$G$71,tbl_HVAC_Airside_Calc_Engine4[[#This Row],[OAT °F]]))))) -> 1 | CA144: =MAX(0,MIN(100%,IF($F$82="Baseline Trend Data", IF(ISBLANK(tbl_HVAC_Airside_Calc_Engine4[[#This Row],[Occ RH Box VAV Flow (%), Base Trend]]),MEDIAN(MIN(tbl_HVAC_Airside_Calc_Engine4[Occ RH Box VAV Flow (%), Base Trend]),tbl_HVAC_Airside_Calc_Engine4[[#This Row],[Occ SF Flow %, Base]],FORECAST(tbl_HVAC_Airside_Calc_Engine4[[#This Row],[OAT °F]],tbl_HVAC_Airside_Calc_Engine4[Occ RH Box VAV Flow (%), Base Trend],tbl_HVAC_Airside_Calc_Engine4[OAT °F])),tbl_HVAC_Airside_Calc_Engine4[[#This Row],[Occ RH Box VAV Flow (%), Base Trend]]), tbl_HVAC_Airside_Calc_Engine4[[#This Row],[Occ SF Flow %, Base]]*$F$84))) -> 1 | CB144: =IFERROR(tbl_HVAC_Airside_Calc_Engine4[[#This Row],[Occ RH Box Flow %, Base]]/tbl_HVAC_Airside_Calc_Engine4[[#This Row],[Occ SF Flow %, Base]],0) -> 1 | CC144: =IF($F$82="Baseline Trend Data", IF(ISBLANK(tbl_HVAC_Airside_Calc_Engine4[[#This Row],[Occ RH VAV DAT (°F), Base Trend]]),MEDIAN(tbl_HVAC_Airside_Calc_Engine4[[#This Row],[Occ Base SAT °F]],MAX(tbl_HVAC_Airside_Calc_Engine4[Occ RH VAV DAT (°F), Base Trend]),FORECAST(tbl_HVAC_Airside_Calc_Engine4[[#This Row],[OAT °F]],tbl_HVAC_Airside_Calc_Engine4[Occ RH VAV DAT (°F), Base Trend],tbl_HVAC_Airside_Calc_Engine4[OAT °F])),tbl_HVAC_Airside_Calc_Engine4[[#This Row],[Occ RH VAV DAT (°F), Base Trend]]), MIN($F$90,tbl_HVAC_Airside_Calc_Engine4[[#This Row],[Occ Base SAT °F]]+MAX(0,($F$90-tbl_HVAC_Airside_Calc_Engine4[[#This Row],[Occ Base SAT °F]])*(($F$85-tbl_HVAC_Airside_Calc_Engine4[[#This Row],[OAT °F]])/($F$85-IF($F$88="yes",$F$89,$F$87)))))) -> 55 | CD144: =IF($F$96="Baseline Trend Data", IF(ISBLANK(tbl_HVAC_Airside_Calc_Engine4[[#This Row],[ Occ RAT (°F), Base Trend]]),MEDIAN(MIN($O$140:$O$245),MAX($O$140:$O$245),FORECAST(tbl_HVAC_Airside_Calc_Engine4[[#This Row],[OAT °F]],$O$140:$O$245,tbl_HVAC_Airside_Calc_Engine4[OAT °F])),tbl_HVAC_Airside_Calc_Engine4[[#This Row],[ Occ RAT (°F), Base Trend]]), MEDIAN($G$94,$F$94,tbl_HVAC_Airside_Calc_Engine4[[#This Row],[OAT °F]])) -> 75 | CE144: =IF(tbl_HVAC_Airside_Calc_Engine4[[#This Row],[Occ DAT °F, Base]]>$F$94,tbl_HVAC_Airside_Calc_Engine4[[#This Row],[Occ RH Box Flow %, Base]],0) -> 0 | CF144: =tbl_HVAC_Airside_Calc_Engine4[[#This Row],[Occ SF Flow %, Base]]-tbl_HVAC_Airside_Calc_Engine4[[#This Row],[Occ Heating Only Flow %, Base]]-tbl_HVAC_Airside_Calc_Engine4[[#This Row],[Occ Tempered Cooling Flow %, Base]] -> 1 | CG144: =IF(AND(tbl_HVAC_Airside_Calc_Engine4[[#This Row],[Occ DAT °F, Base]]<=$F$94,tbl_HVAC_Airside_Calc_Engine4[[#This Row],[Occ DAT °F, Base]]>tbl_HVAC_Airside_Calc_Engine4[[#This Row],[Occ Base SAT °F]]),tbl_HVAC_Airside_Calc_Engine4[[#This Row],[Occ RH Box Flow %, Base]],0) -> 0 | CH144: =SUM(tbl_HVAC_Airside_Calc_Engine4[[#This Row],[Occ Heating Only Flow %, Base]:[Occ Tempered Cooling Flow %, Base]]) -> 1 | CI144: =1.08*tbl_HVAC_Airside_Calc_Engine4[[#This Row],[Occ Heating Only Flow %, Base]]*$F$120*(tbl_HVAC_Airside_Calc_Engine4[[#This Row],[Occ DAT °F, Base]]-$F$94)/1000 -> 0 | CJ144: =1.08*tbl_HVAC_Airside_Calc_Engine4[[#This Row],[Occ Cooling Only Flow %, Base]]*$F$120*($G$94-tbl_HVAC_Airside_Calc_Engine4[[#This Row],[Occ Base SAT °F]])/1000 -> 2167.563387 | CK144: =1.08*tbl_HVAC_Airside_Calc_Engine4[[#This Row],[Occ Tempered Cooling Flow %, Base]]*$F$120*($F$94-tbl_HVAC_Airside_Calc_Engine4[[#This Row],[Occ DAT °F, Base]])/1000 -> 0 | CL144: =IF(AND($F$106="Proposed",$M$65="Enable",$M$68="Sub-Enable"),IFERROR(tbl_HVAC_Airside_Calc_Engine4[[#This Row],[Occ SF Flow %]]/tbl_HVAC_Airside_Calc_Engine4[[#This Row],[Occ SF Flow %, Base]],0),100%) -> 1 | CM144: =IF($F$126="Constant Air Volume",0%,IFERROR((tbl_HVAC_Airside_Calc_Engine4[[#This Row],[Occ Space Cooling Only Load kBtu/h, Base]]*1000/(1.08*($P$132-tbl_HVAC_Airside_Calc_Engine4[[#This Row],[Occ SAT °F]]))-tbl_HVAC_Airside_Calc_Engine4[[#This Row],[Occ Cooling Only Flow %, Base]]*$F$120)/$F$120,0)) -> 0 | CN144: =IF($F$126="Constant Air Volume",0%,IFERROR(MAX(0,tbl_HVAC_Airside_Calc_Engine4[[#This Row],[Occ Space Tempered Cooling Load kBtu/h, Base]]*1000/(1.08*($P$132-tbl_HVAC_Airside_Calc_Engine4[[#This Row],[Occ RH VAV DAT °F]]))-tbl_HVAC_Airside_Calc_Engine4[[#This Row],[Occ Tempered Cooling Flow %, Base]]*$F$120)/$F$120,0)) -> 0 | CO144: =IF($F$126="Constant Air Volume",0%,tbl_HVAC_Airside_Calc_Engine4[[#This Row],[Occ Prop Fan Flow Adj (Cooling Only)]]+tbl_HVAC_Airside_Calc_Engine4[[#This Row],[Occ Prop Fan Flow Adj (Tempered Cooling)]]) -> 0 | CP144: =MAX(IF(tbl_HVAC_Airside_Calc_Engine4[[#This Row],[Occ Space Heating Only Load kBtu/h, Base]]>0,tbl_HVAC_Airside_Calc_Engine4[[#This Row],[Occ Space Heating Only Load kBtu/h, Base]]*1000/(1.08*tbl_HVAC_Airside_Calc_Engine4[[#This Row],[Occ Heating Only Flow %, Base]]*tbl_HVAC_Airside_Calc_Engine4[[#This Row],[Occ SF Manual Prop Airflow Adj to Base Ratio]]*$F$120)+$O$132,IF(tbl_HVAC_Airside_Calc_Engine4[[#This Row],[Occ Space Tempered Cooling Load kBtu/h, Base]]>0,$O$132-tbl_HVAC_Airside_Calc_Engine4[[#This Row],[Occ Space Tempered Cooling Load kBtu/h, Base]]*1000/(1.08*tbl_HVAC_Airside_Calc_Engine4[[#This Row],[Occ Tempered Cooling Flow %, Base]]*tbl_HVAC_Airside_Calc_Engine4[[#This Row],[Occ SF Manual Prop Airflow Adj to Base Ratio]]*$F$120),tbl_HVAC_Airside_Calc_Engine4[[#This Row],[Occ DAT °F, Base]])),tbl_HVAC_Airside_Calc_Engine4[[#This Row],[Occ SAT °F]]) -> 55 | CQ144: =MEDIAN(0,1,IF($F$31="Baseline Trend Data",IF(ISBLANK(tbl_HVAC_Airside_Calc_Engine4[[#This Row],[UnOcc OA Flow (%), Base Trend]]),MEDIAN(MIN(tbl_HVAC_Airside_Calc_Engine4[UnOcc OA Flow (%), Base Trend]),MAX(tbl_HVAC_Airside_Calc_Engine4[UnOcc OA Flow (%), Base Trend]),FORECAST(tbl_HVAC_Airside_Calc_Engine4[[#This Row],[OAT °F]],tbl_HVAC_Airside_Calc_Engine4[UnOcc OA Flow (%), Base Trend],tbl_HVAC_Airside_Calc_Engine4[OAT °F])),tbl_HVAC_Airside_Calc_Engine4[[#This Row],[UnOcc OA Flow (%), Base Trend]]), IFERROR(IF((tbl_HVAC_Airside_Calc_Engine4[[#This Row],[OAT °F]]>$F$40),$F$39,MAX($F$39,MIN($G$39,(tbl_HVAC_Airside_Calc_Engine4[[#This Row],[Unocc Base SAT °F]]-tbl_HVAC_Airside_Calc_Engine4[[#This Row],[Unocc RAT °F, Base]])/(tbl_HVAC_Airside_Calc_Engine4[[#This Row],[OAT °F]]-tbl_HVAC_Airside_Calc_Engine4[[#This Row],[Unocc RAT °F, Base]])))),$F$39))) -> 0 | CR144: =MIN(100%,IF($F$67="Baseline Trend Data", IF(ISBLANK(tbl_HVAC_Airside_Calc_Engine4[[#This Row],[UnOcc SF Flow (%), Base Trend]]),MEDIAN(MIN(tbl_HVAC_Airside_Calc_Engine4[UnOcc SF Flow (%), Base Trend]),1,FORECAST(tbl_HVAC_Airside_Calc_Engine4[[#This Row],[OAT °F]],tbl_HVAC_Airside_Calc_Engine4[UnOcc SF Flow (%), Base Trend],tbl_HVAC_Airside_Calc_Engine4[OAT °F])),tbl_HVAC_Airside_Calc_Engine4[[#This Row],[UnOcc SF Flow (%), Base Trend]]), IF(tbl_HVAC_Airside_Calc_Engine4[[#This Row],[OAT °F]]<$F$80,TREND($F$79:$G$79,$F$80:$G$80,MEDIAN(tbl_HVAC_Airside_Calc_Engine4[[#This Row],[OAT °F]],$F$80,$G$80)), TREND($F$77:$G$77,$F$78:$G$78,MEDIAN($F$78,$G$78,tbl_HVAC_Airside_Calc_Engine4[[#This Row],[OAT °F]]))))) -> 0.3 | CS144: =MAX(0,MIN(100%,IF($F$82="Baseline Trend Data", IF(ISBLANK(tbl_HVAC_Airside_Calc_Engine4[[#This Row],[UnOcc RH Box VAV Flow (%), Base Trend]]),MEDIAN(MIN(tbl_HVAC_Airside_Calc_Engine4[UnOcc RH Box VAV Flow (%), Base Trend]),tbl_HVAC_Airside_Calc_Engine4[[#This Row],[Unocc SF Flow %, Base]],FORECAST(tbl_HVAC_Airside_Calc_Engine4[[#This Row],[OAT °F]],tbl_HVAC_Airside_Calc_Engine4[UnOcc RH Box VAV Flow (%), Base Trend],tbl_HVAC_Airside_Calc_Engine4[OAT °F])),tbl_HVAC_Airside_Calc_Engine4[[#This Row],[UnOcc RH Box VAV Flow (%), Base Trend]]), tbl_HVAC_Airside_Calc_Engine4[[#This Row],[Unocc SF Flow %, Base]]*$F$84))) -> 0.3 | CT144: =IFERROR(tbl_HVAC_Airside_Calc_Engine4[[#This Row],[Unocc RH Box Flow %, Base]]/tbl_HVAC_Airside_Calc_Engine4[[#This Row],[Unocc SF Flow %, Base]],0) -> 1 | CU144: =IF($F$82="Baseline Trend Data", IF(ISBLANK(tbl_HVAC_Airside_Calc_Engine4[[#This Row],[UnOcc RH VAV DAT (°F), Base Trend]]),MEDIAN(tbl_HVAC_Airside_Calc_Engine4[[#This Row],[Unocc Base SAT °F]],MAX(tbl_HVAC_Airside_Calc_Engine4[UnOcc RH VAV DAT (°F), Base Trend]),FORECAST(tbl_HVAC_Airside_Calc_Engine4[[#This Row],[OAT °F]],tbl_HVAC_Airside_Calc_Engine4[UnOcc RH VAV DAT (°F), Base Trend],tbl_HVAC_Airside_Calc_Engine4[OAT °F])),tbl_HVAC_Airside_Calc_Engine4[[#This Row],[UnOcc RH VAV DAT (°F), Base Trend]]), MIN($G$90,tbl_HVAC_Airside_Calc_Engine4[[#This Row],[Unocc Base SAT °F]]+MAX(0,($G$90-tbl_HVAC_Airside_Calc_Engine4[[#This Row],[Unocc Base SAT °F]])*(($G$85-tbl_HVAC_Airside_Calc_Engine4[[#This Row],[OAT °F]])/($G$85-IF($G$88="yes",$G$89,$G$87)))))) -> 55 | CV144: =IF($F$96="Baseline Trend Data", IF(ISBLANK(tbl_HVAC_Airside_Calc_Engine4[[#This Row],[UnOcc RAT (°F), Base Trend]]),MEDIAN(MIN(tbl_HVAC_Airside_Calc_Engine4[UnOcc RAT (°F), Base Trend]),MAX(tbl_HVAC_Airside_Calc_Engine4[UnOcc RAT (°F), Base Trend]),FORECAST(tbl_HVAC_Airside_Calc_Engine4[[#This Row],[OAT °F]],tbl_HVAC_Airside_Calc_Engine4[UnOcc RAT (°F), Base Trend],tbl_HVAC_Airside_Calc_Engine4[OAT °F])),tbl_HVAC_Airside_Calc_Engine4[[#This Row],[UnOcc RAT (°F), Base Trend]]), MEDIAN($G$95,$F$95,tbl_HVAC_Airside_Calc_Engine4[[#This Row],[OAT °F]])) -> 80 | CW144: =IF(tbl_HVAC_Airside_Calc_Engine4[[#This Row],[Unocc DAT °F, Base]]>$F$95,tbl_HVAC_Airside_Calc_Engine4[[#This Row],[Unocc RH Box Flow %, Base]],0) -> 0 | CX144: =tbl_HVAC_Airside_Calc_Engine4[[#This Row],[Unocc SF Flow %, Base]]-tbl_HVAC_Airside_Calc_Engine4[[#This Row],[Unocc Heating Only Flow %, Base]]-tbl_HVAC_Airside_Calc_Engine4[[#This Row],[Unocc Tempered Cooling Flow %, Base]] -> 0.3 | CY144: =IF(AND(tbl_HVAC_Airside_Calc_Engine4[[#This Row],[Unocc DAT °F, Base]]<=$F$95,tbl_HVAC_Airside_Calc_Engine4[[#This Row],[Unocc DAT °F, Base]]>tbl_HVAC_Airside_Calc_Engine4[[#This Row],[Unocc Base SAT °F]]),tbl_HVAC_Airside_Calc_Engine4[[#This Row],[Unocc RH Box Flow %, Base]],0) -> 0 | CZ144: =SUM(tbl_HVAC_Airside_Calc_Engine4[[#This Row],[Unocc Heating Only Flow %, Base]:[Unocc Tempered Cooling Flow %, Base]]) -> 0.3 | DA144: =1.08*tbl_HVAC_Airside_Calc_Engine4[[#This Row],[Unocc Heating Only Flow %, Base]]*$F$120*(tbl_HVAC_Airside_Calc_Engine4[[#This Row],[Unocc DAT °F, Base]]-$F$95)/1000 -> 0 | DB144: =1.08*tbl_HVAC_Airside_Calc_Engine4[[#This Row],[Unocc Cooling Only Flow %, Base]]*$F$120*($G$95-tbl_HVAC_Airside_Calc_Engine4[[#This Row],[Unocc Base SAT °F]])/1000 -> 812.8362701 | DC144: =1.08*tbl_HVAC_Airside_Calc_Engine4[[#This Row],[Unocc Tempered Cooling Flow %, Base]]*$F$120*($F$95-tbl_HVAC_Airside_Calc_Engine4[[#This Row],[Unocc DAT °F, Base]])/1000 -> 0 | DD144: =IF(AND($F$106="Proposed",$M$65="Enable",$M$75="Sub-Enable"),IF(tbl_HVAC_Airside_Calc_Engine4[[#This Row],[Unocc SF Flow %]]/tbl_HVAC_Airside_Calc_Engine4[[#This Row],[Unocc SF Flow %, Base]]=0,1,IFERROR(tbl_HVAC_Airside_Calc_Engine4[[#This Row],[Unocc SF Flow %]]/tbl_HVAC_Airside_Calc_Engine4[[#This Row],[Unocc SF Flow %, Base]],1)),100%) -> 1 | DE144: =IF($F$126="Constant Air Volume",0%,IFERROR((tbl_HVAC_Airside_Calc_Engine4[[#This Row],[Unocc Space Cooling Only Load kBtu/h, Base]]*1000/(1.08*($P$133-tbl_HVAC_Airside_Calc_Engine4[[#This Row],[Unocc SAT °F]]))-tbl_HVAC_Airside_Calc_Engine4[[#This Row],[Unocc Cooling Only Flow %, Base]]*$F$120)/$F$120,0)) -> 0 | DF144: =IF($F$126="Constant Air Volume",0%,IFERROR(MAX(0,tbl_HVAC_Airside_Calc_Engine4[[#This Row],[Unocc Space Tempered Cooling Load kBtu/h, Base]]*1000/(1.08*($P$133-tbl_HVAC_Airside_Calc_Engine4[[#This Row],[Unocc RH VAV DAT °F]]))-tbl_HVAC_Airside_Calc_Engine4[[#This Row],[Unocc Tempered Cooling Flow %, Base]]*$F$120)/$F$120,0)) -> 0 | DG144: =IF($F$126="Constant Air Volume",0%,tbl_HVAC_Airside_Calc_Engine4[[#This Row],[Unocc Prop Fan Flow Adj (Cooling Only)]]+tbl_HVAC_Airside_Calc_Engine4[[#This Row],[Unocc Prop Fan Flow Adj (Tempered Cooling)]]) -> 0 | DH144: =MAX(IF(tbl_HVAC_Airside_Calc_Engine4[[#This Row],[Unocc Space Heating Only Load kBtu/h, Base]]>0,tbl_HVAC_Airside_Calc_Engine4[[#This Row],[Unocc Space Heating Only Load kBtu/h, Base]]*1000/(1.08*tbl_HVAC_Airside_Calc_Engine4[[#This Row],[Unocc Heating Only Flow %, Base]]*tbl_HVAC_Airside_Calc_Engine4[[#This Row],[Unocc SF Manual Prop Airflow Adj to Base Ratio]]*$F$120)+$O$133,IF(tbl_HVAC_Airside_Calc_Engine4[[#This Row],[Unocc Space Tempered Cooling Load kBtu/h, Base]]>0,$O$133-tbl_HVAC_Airside_Calc_Engine4[[#This Row],[Unocc Space Tempered Cooling Load kBtu/h, Base]]*1000/(1.08*tbl_HVAC_Airside_Calc_Engine4[[#This Row],[Unocc Tempered Cooling Flow %, Base]]*tbl_HVAC_Airside_Calc_Engine4[[#This Row],[Unocc SF Manual Prop Airflow Adj to Base Ratio]]*$F$120),tbl_HVAC_Airside_Calc_Engine4[[#This Row],[Unocc DAT °F, Base]])),tbl_HVAC_Airside_Calc_Engine4[[#This Row],[Unocc SAT °F]]) -> 55 | DI144: =(tbl_HVAC_Airside_Calc_Engine4[[#This Row],[Occ Hr]]*(tbl_HVAC_Airside_Calc_Engine4[[#This Row],[Occ Space Cooling Only Load kBtu/h, Base]]+tbl_HVAC_Airside_Calc_Engine4[[#This Row],[Occ Space Tempered Cooling Load kBtu/h, Base]])+tbl_HVAC_Airside_Calc_Engine4[[#This Row],[UnOcc Hr]]*(tbl_HVAC_Airside_Calc_Engine4[[#This Row],[Unocc Space Cooling Only Load kBtu/h, Base]]+tbl_HVAC_Airside_Calc_Engine4[[#This Row],[Unocc Space Tempered Cooling Load kBtu/h, Base]]))/12 -> 0
E145: 110 | F145: =COUNTIFS(tbl_Climate_Zone[Dry_Bulb],E145,tbl_Climate_Zone[On-Pk Hour],1,tbl_Climate_Zone[Hour],">" & $K$114,tbl_Climate_Zone[Hour],"<=" & $L$114) -> 0 | G145: ='CZ2022'!S7-F145 -> 0 | H145: =SUM( COUNTIFS(tbl_Climate_Zone[Dry_Bulb],E145,tbl_Climate_Zone[Weekday],$M$114,tbl_Climate_Zone[Hour],">"&$K$114,tbl_Climate_Zone[Hour],"<="&$L$114), COUNTIFS(tbl_Climate_Zone[Dry_Bulb],E145,tbl_Climate_Zone[Weekday],$M$115,tbl_Climate_Zone[Hour],">"&$K$115,tbl_Climate_Zone[Hour],"<="&$L$115), COUNTIFS(tbl_Climate_Zone[Dry_Bulb],E145,tbl_Climate_Zone[Weekday],$M$116,tbl_Climate_Zone[Hour],">"&$K$116,tbl_Climate_Zone[Hour],"<="&$L$116)) -> 0 | I145: ='CZ2022'!T7-tbl_HVAC_Airside_Calc_Engine4[[#This Row],[Occ Hr]] -> 0 | AH145: =IFERROR(IF($F$49="Baseline Trend Data", IF(ISBLANK(tbl_HVAC_Airside_Calc_Engine4[[#This Row],[Occ SAT (°F), Base Trend]]),MEDIAN(MIN(tbl_HVAC_Airside_Calc_Engine4[Occ SAT (°F), Base Trend]),MAX(tbl_HVAC_Airside_Calc_Engine4[Occ SAT (°F), Base Trend]),FORECAST(tbl_HVAC_Airside_Calc_Engine4[[#This Row],[OAT °F]],tbl_HVAC_Airside_Calc_Engine4[Occ SAT (°F), Base Trend],tbl_HVAC_Airside_Calc_Engine4[OAT °F])),tbl_HVAC_Airside_Calc_Engine4[[#This Row],[Occ SAT (°F), Base Trend]]), FORECAST(MEDIAN($F$53,$G$53,tbl_HVAC_Airside_Calc_Engine4[[#This Row],[OAT °F]]),$F$52:$G$52,$F$53:$G$53)),0) -> 55 | AI145: =IF($M$47 = "Disable",tbl_HVAC_Airside_Calc_Engine4[[#This Row],[Occ Base SAT °F]],IFERROR(IF($K$49="Proposed Trend Data", IF(ISBLANK(tbl_HVAC_Airside_Calc_Engine4[[#This Row],[Occ SAT (°F), Prop Trend]]),MEDIAN(MIN(tbl_HVAC_Airside_Calc_Engine4[Occ SAT (°F), Prop Trend]),MAX(tbl_HVAC_Airside_Calc_Engine4[Occ SAT (°F), Prop Trend]),FORECAST(tbl_HVAC_Airside_Calc_Engine4[[#This Row],[OAT °F]],tbl_HVAC_Airside_Calc_Engine4[Occ SAT (°F), Prop Trend],tbl_HVAC_Airside_Calc_Engine4[OAT °F])),tbl_HVAC_Airside_Calc_Engine4[[#This Row],[Occ SAT (°F), Prop Trend]]), FORECAST(MEDIAN($K$53,$L$53,tbl_HVAC_Airside_Calc_Engine4[[#This Row],[OAT °F]]),$K$52:$L$52,$K$53:$L$53)),0)) -> 55 | AJ145: =tbl_HVAC_Airside_Calc_Engine4[[#This Row],[Occ SAT °F]]-tbl_HVAC_Airside_Calc_Engine4[[#This Row],[Occ Base SAT °F]] -> 0 | AK145: =IFERROR(IF($F$105="Baseline",tbl_HVAC_Airside_Calc_Engine4[[#This Row],[Occ Base SAT °F]],tbl_HVAC_Airside_Calc_Engine4[[#This Row],[Occ Prop SAT °F]]),0) -> 55 | AL145: =IF($K$127="Proposed Trend Data",IF(ISBLANK(tbl_HVAC_Airside_Calc_Engine4[[#This Row],[Occ RH Box VAV Flow (%), Prop Trend]]),MEDIAN(tbl_HVAC_Airside_Calc_Engine4[[#This Row],[Occ SF Flow %]],MIN(tbl_HVAC_Airside_Calc_Engine4[Occ RH Box VAV Flow (%), Prop Trend]),FORECAST(tbl_HVAC_Airside_Calc_Engine4[[#This Row],[OAT °F]],tbl_HVAC_Airside_Calc_Engine4[Occ RH Box VAV Flow (%), Prop Trend],tbl_HVAC_Airside_Calc_Engine4[OAT °F])),tbl_HVAC_Airside_Calc_Engine4[[#This Row],[Occ RH Box VAV Flow (%), Prop Trend]]), IF(AND($K$127="Auto Calc",$M$65="Enable",$M$68="Sub-Enable"),tbl_HVAC_Airside_Calc_Engine4[[#This Row],[Occ SF Flow %]]*tbl_HVAC_Airside_Calc_Engine4[[#This Row],[Occ RH to SF Ratio, Base]], tbl_HVAC_Airside_Calc_Engine4[[#This Row],[Occ RH Box Flow %, Base]]+tbl_HVAC_Airside_Calc_Engine4[[#This Row],[Occ Prop Fan Flow Adj (Tempered Cooling)]]+IFERROR(( tbl_HVAC_Airside_Calc_Engine4[[#This Row],[Occ RH Box Flow %, Base]]-tbl_HVAC_Airside_Calc_Engine4[[#This Row],[Occ Tempered Cooling Flow %, Base]]-tbl_HVAC_Airside_Calc_Engine4[[#This Row],[Occ Heating Only Flow %, Base]])/tbl_HVAC_Airside_Calc_Engine4[[#This Row],[Occ SF Flow %, Base]],0)*tbl_HVAC_Airside_Calc_Engine4[[#This Row],[Occ Prop Fan Flow Adj (Cooling Only)]])) -> 1 | AM145: =IF($K$127="Proposed Trend Data", IF(ISBLANK(tbl_HVAC_Airside_Calc_Engine4[[#This Row],[Occ RH VAV DAT (°F), Prop Trend]]),MEDIAN(tbl_HVAC_Airside_Calc_Engine4[[#This Row],[Occ Prop SAT °F]],MAX(tbl_HVAC_Airside_Calc_Engine4[Occ RH VAV DAT (°F), Prop Trend]),FORECAST(tbl_HVAC_Airside_Calc_Engine4[[#This Row],[OAT °F]],tbl_HVAC_Airside_Calc_Engine4[Occ RH VAV DAT (°F), Prop Trend],tbl_HVAC_Airside_Calc_Engine4[OAT °F])),tbl_HVAC_Airside_Calc_Engine4[[#This Row],[Occ RH VAV DAT (°F), Prop Trend]]), tbl_HVAC_Airside_Calc_Engine4[[#This Row],[Occ RH DAT °F Adj]]) -> 55 | AN145: =IF($O$130="Baseline Trend Data", IF(ISBLANK(tbl_HVAC_Airside_Calc_Engine4[[#This Row],[ Occ RAT (°F), Base Trend]]),MEDIAN(MIN($O$140:$O$245),MAX($O$140:$O$245),FORECAST(tbl_HVAC_Airside_Calc_Engine4[[#This Row],[OAT °F]],$O$140:$O$245,tbl_HVAC_Airside_Calc_Engine4[OAT °F])),tbl_HVAC_Airside_Calc_Engine4[[#This Row],[ Occ RAT (°F), Base Trend]]), IF($O$130="Proposed Trend Data",IF(ISBLANK(tbl_HVAC_Airside_Calc_Engine4[[#This Row],[Occ RAT (°F), Prop Trend]]),MEDIAN(MIN(tbl_HVAC_Airside_Calc_Engine4[Occ RAT (°F), Prop Trend]),MAX(tbl_HVAC_Airside_Calc_Engine4[Occ RAT (°F), Prop Trend]),FORECAST(tbl_HVAC_Airside_Calc_Engine4[[#This Row],[OAT °F]],tbl_HVAC_Airside_Calc_Engine4[Occ RAT (°F), Prop Trend],tbl_HVAC_Airside_Calc_Engine4[OAT °F])),tbl_HVAC_Airside_Calc_Engine4[[#This Row],[Occ RAT (°F), Prop Trend]]), MEDIAN($P$132,$O$132,tbl_HVAC_Airside_Calc_Engine4[[#This Row],[OAT °F]]))) -> 75 | AO145: =MEDIAN(0,1,IF($K$119="Baseline Trend Data", IF(ISBLANK(tbl_HVAC_Airside_Calc_Engine4[[#This Row],[Occ OA Flow (%), Base Trend]]),MEDIAN(MIN(tbl_HVAC_Airside_Calc_Engine4[Occ OA Flow (%), Base Trend]),MAX(tbl_HVAC_Airside_Calc_Engine4[Occ OA Flow (%), Base Trend]),FORECAST(tbl_HVAC_Airside_Calc_Engine4[[#This Row],[OAT °F]],tbl_HVAC_Airside_Calc_Engine4[Occ OA Flow (%), Base Trend],tbl_HVAC_Airside_Calc_Engine4[OAT °F])),tbl_HVAC_Airside_Calc_Engine4[[#This Row],[Occ OA Flow (%), Base Trend]]), IF($K$119="Proposed Trend Data", IF(ISBLANK(tbl_HVAC_Airside_Calc_Engine4[[#This Row],[Occ OA Flow (%), Prop Trend]]),MEDIAN(MIN(tbl_HVAC_Airside_Calc_Engine4[Occ OA Flow (%), Prop Trend]),MAX(tbl_HVAC_Airside_Calc_Engine4[Occ OA Flow (%), Prop Trend]),FORECAST(tbl_HVAC_Airside_Calc_Engine4[[#This Row],[OAT °F]],tbl_HVAC_Airside_Calc_Engine4[Occ OA Flow (%), Prop Trend],tbl_HVAC_Airside_Calc_Engine4[OAT °F])),tbl_HVAC_Airside_Calc_Engine4[[#This Row],[Occ OA Flow (%), Prop Trend]]), IFERROR(IF((tbl_HVAC_Airside_Calc_Engine4[[#This Row],[OAT °F]]>$K$122),$K$121,MAX($K$121,MIN($L$121,(tbl_HVAC_Airside_Calc_Engine4[[#This Row],[Occ SAT °F]]-tbl_HVAC_Airside_Calc_Engine4[[#This Row],[Occ RAT °F]])/(tbl_HVAC_Airside_Calc_Engine4[[#This Row],[OAT °F]]-tbl_HVAC_Airside_Calc_Engine4[[#This Row],[Occ RAT °F]])))),$K$121)))) -> 0.2989697927 | AP145: =tbl_HVAC_Airside_Calc_Engine4[[#This Row],[Occ RAT °F]]*(1-tbl_HVAC_Airside_Calc_Engine4[[#This Row],[Occ OA Flow %]])+tbl_HVAC_Airside_Calc_Engine4[[#This Row],[OAT °F]]*tbl_HVAC_Airside_Calc_Engine4[[#This Row],[Occ OA Flow %]] -> 85.46394274 | AQ145: =IF(AND($F$130="yes",$F$131>tbl_HVAC_Airside_Calc_Engine4[[#This Row],[Occ MAT °F]]+$F$132,tbl_HVAC_Airside_Calc_Engine4[[#This Row],[Occ Hr]]>0),"Yes","No") -> No | AR145: =IF(tbl_HVAC_Airside_Calc_Engine4[[#This Row],[Occ Pre-Heat?]]="Yes",1.08*tbl_HVAC_Airside_Calc_Engine4[[#This Row],[Occ SF Flow %]]*$F$120*($F$131-(tbl_HVAC_Airside_Calc_Engine4[[#This Row],[Occ MAT °F]]+$F$132))/1000,0) -> 0 | AS145: =IF($O$118="Proposed Trend Data", IF(ISBLANK(tbl_HVAC_Airside_Calc_Engine4[[#This Row],[Occ SF Flow (%), Prop Trend]]),MEDIAN(MIN(tbl_HVAC_Airside_Calc_Engine4[Occ SF Flow (%), Prop Trend]),100%,FORECAST(tbl_HVAC_Airside_Calc_Engine4[[#This Row],[OAT °F]],tbl_HVAC_Airside_Calc_Engine4[Occ SF Flow (%), Prop Trend],tbl_HVAC_Airside_Calc_Engine4[OAT °F])),tbl_HVAC_Airside_Calc_Engine4[[#This Row],[Occ SF Flow (%), Prop Trend]]), IF(AND($F$106="Proposed",$M$65="Enable",$M$68="Sub-Enable",$K$67="Simple Data"),IF(tbl_HVAC_Airside_Calc_Engine4[[#This Row],[OAT °F]]<$O$123,TREND($O$122:$P$122,$O$123:$P$123,MEDIAN(tbl_HVAC_Airside_Calc_Engine4[[#This Row],[OAT °F]],$O$123,$P$123)),TREND($O$120:$P$120,$O$121:$P$121,MEDIAN($O$121,$P$121,tbl_HVAC_Airside_Calc_Engine4[[#This Row],[OAT °F]]))), tbl_HVAC_Airside_Calc_Engine4[[#This Row],[Occ SF Flow %, Base]]+tbl_HVAC_Airside_Calc_Engine4[[#This Row],[Occ Prop Net Fan Flow Adj]])) -> 1 | AT145: =IF(tbl_HVAC_Airside_Calc_Engine4[[#This Row],[OAT °F]]>$F$118,MAX(1.08*$F$120*(tbl_HVAC_Airside_Calc_Engine4[[#This Row],[Occ SF Flow %]]*(tbl_HVAC_Airside_Calc_Engine4[[#This Row],[Occ MAT °F]]-tbl_HVAC_Airside_Calc_Engine4[[#This Row],[Occ SAT °F]])/12000),0),0) -> 275.1355288 | AU145: =IF(AND(tbl_HVAC_Airside_Calc_Engine4[[#This Row],[OAT °F]]<$F$117,tbl_HVAC_Airside_Calc_Engine4[[#This Row],[Occ Hr]]>0),(1.08*$F$120*tbl_HVAC_Airside_Calc_Engine4[[#This Row],[Occ RH Box Flow %]]*(tbl_HVAC_Airside_Calc_Engine4[[#This Row],[Occ RH VAV DAT °F]]-IF(tbl_HVAC_Airside_Calc_Engine4[[#This Row],[Occ Pre-Heat?]]="yes",$F$131,MIN(tbl_HVAC_Airside_Calc_Engine4[[#This Row],[Occ SAT °F]],tbl_HVAC_Airside_Calc_Engine4[[#This Row],[Occ MAT °F]])))/10^3),0) -> 0 | AV145: =tbl_HVAC_Airside_Calc_Engine4[[#This Row],[Occ Pre-Heat Load, kBtu]]+tbl_HVAC_Airside_Calc_Engine4[[#This Row],[Occ Re-Heating Load, kBtu]] -> 0 | AW145: =tbl_HVAC_Airside_Calc_Engine4[[#This Row],[Occ SF Flow %]]*$F$125 -> 1 | AX145: =IF(AND(tbl_HVAC_Airside_Calc_Engine4[[#This Row],[Occ SF Flow %]]>0,tbl_HVAC_Airside_Calc_Engine4[[#This Row],[Occ Hr]]>0),$F$119*0.746/$W$109/IF($F$121="VFD",$X$110,1)*(($Z$107+$Z$108*tbl_HVAC_Airside_Calc_Engine4[[#This Row],[Occ SF Flow %]]+$Z$109*tbl_HVAC_Airside_Calc_Engine4[[#This Row],[Occ SF Flow %]]^2+$Z$110*tbl_HVAC_Airside_Calc_Engine4[[#This Row],[Occ SF Flow %]]^3) ),0) -> 0 | AY145: =IF(AND(tbl_HVAC_Airside_Calc_Engine4[[#This Row],[Occ RF Flow %]]>0,tbl_HVAC_Airside_Calc_Engine4[[#This Row],[Occ Hr]]>0),$F$122*0.746/$W$110/IF($F$124="VFD",$X$110,1)*($AB$107+$AB$108*tbl_HVAC_Airside_Calc_Engine4[[#This Row],[Occ RF Flow %]]+$AB$109*tbl_HVAC_Airside_Calc_Engine4[[#This Row],[Occ RF Flow %]]^2+$AB$110*tbl_HVAC_Airside_Calc_Engine4[[#This Row],[Occ RF Flow %]]^3),0) -> 0 | AZ145: =tbl_HVAC_Airside_Calc_Engine4[[#This Row],[Occ SF kW]]+tbl_HVAC_Airside_Calc_Engine4[[#This Row],[Occ RF kW]] -> 0 | BA145: =IF(tbl_HVAC_Airside_Calc_Engine4[[#This Row],[Occ Hr]]>0,$F$113*tbl_HVAC_Airside_Calc_Engine4[[#This Row],[Occ Cooling Load, Ton]]+IF($F$114="Electric",(tbl_HVAC_Airside_Calc_Engine4[[#This Row],[Occ Total Heating Load, kBtu]])/$F$116,0),0) -> 0 | BB145: =IFERROR(IF($F$49="Baseline Trend Data", IF(ISBLANK(tbl_HVAC_Airside_Calc_Engine4[[#This Row],[UnOcc SAT (°F), Base Trend]]),MEDIAN(MIN(tbl_HVAC_Airside_Calc_Engine4[UnOcc SAT (°F), Base Trend]),MAX(tbl_HVAC_Airside_Calc_Engine4[UnOcc SAT (°F), Base Trend]),FORECAST(tbl_HVAC_Airside_Calc_Engine4[[#This Row],[OAT °F]],tbl_HVAC_Airside_Calc_Engine4[UnOcc SAT (°F), Base Trend],tbl_HVAC_Airside_Calc_Engine4[OAT °F])),tbl_HVAC_Airside_Calc_Engine4[[#This Row],[UnOcc SAT (°F), Base Trend]]), FORECAST(MEDIAN($F$58,$G$58,tbl_HVAC_Airside_Calc_Engine4[[#This Row],[OAT °F]]),$F$57:$G$57,$F$58:$G$58)),0) -> 55 | BC145: =IF($M$47 = "Disable",tbl_HVAC_Airside_Calc_Engine4[[#This Row],[Unocc Base SAT °F]],IFERROR(IF($K$49="Proposed Trend Data", IF(ISBLANK(tbl_HVAC_Airside_Calc_Engine4[[#This Row],[UnOcc SAT (°F), Prop Trend]]),MEDIAN(MIN(tbl_HVAC_Airside_Calc_Engine4[UnOcc SAT (°F), Prop Trend]),MAX(tbl_HVAC_Airside_Calc_Engine4[UnOcc SAT (°F), Prop Trend]),FORECAST(tbl_HVAC_Airside_Calc_Engine4[[#This Row],[OAT °F]],tbl_HVAC_Airside_Calc_Engine4[UnOcc SAT (°F), Prop Trend],tbl_HVAC_Airside_Calc_Engine4[OAT °F])),tbl_HVAC_Airside_Calc_Engine4[[#This Row],[UnOcc SAT (°F), Prop Trend]]), FORECAST(MEDIAN($K$58,$L$58,tbl_HVAC_Airside_Calc_Engine4[[#This Row],[OAT °F]]),$K$57:$L$57,$K$58:$L$58)),0)) -> 55 | BD145: =tbl_HVAC_Airside_Calc_Engine4[[#This Row],[Unocc SAT °F]]-tbl_HVAC_Airside_Calc_Engine4[[#This Row],[Unocc Base SAT °F]] -> 0 | BE145: =IFERROR(IF($F$105="Baseline",tbl_HVAC_Airside_Calc_Engine4[[#This Row],[Unocc Base SAT °F]],tbl_HVAC_Airside_Calc_Engine4[[#This Row],[Unocc Prop SAT °F]]),0) -> 55 | BF145: =IF($K$128="Proposed Trend Data",IF(ISBLANK(tbl_HVAC_Airside_Calc_Engine4[[#This Row],[UnOcc RH Box VAV Flow (%), Prop Trend]]),MEDIAN(tbl_HVAC_Airside_Calc_Engine4[[#This Row],[Unocc SF Flow %]],MIN(tbl_HVAC_Airside_Calc_Engine4[UnOcc RH Box VAV Flow (%), Prop Trend]),FORECAST(tbl_HVAC_Airside_Calc_Engine4[[#This Row],[OAT °F]],tbl_HVAC_Airside_Calc_Engine4[UnOcc RH Box VAV Flow (%), Prop Trend],tbl_HVAC_Airside_Calc_Engine4[OAT °F])),tbl_HVAC_Airside_Calc_Engine4[[#This Row],[UnOcc RH Box VAV Flow (%), Prop Trend]]), IF(AND($K$128="Auto Calc",$M$65="Enable",$M$75="Sub-Enable"),tbl_HVAC_Airside_Calc_Engine4[[#This Row],[Unocc SF Flow %]]*tbl_HVAC_Airside_Calc_Engine4[[#This Row],[Unocc RH to SF Ratio, Base]], tbl_HVAC_Airside_Calc_Engine4[[#This Row],[Unocc RH Box Flow %, Base]]+tbl_HVAC_Airside_Calc_Engine4[[#This Row],[Unocc Prop Fan Flow Adj (Tempered Cooling)]]+IFERROR(( tbl_HVAC_Airside_Calc_Engine4[[#This Row],[Unocc RH Box Flow %, Base]]-tbl_HVAC_Airside_Calc_Engine4[[#This Row],[Unocc Tempered Cooling Flow %, Base]]-tbl_HVAC_Airside_Calc_Engine4[[#This Row],[Unocc Heating Only Flow %, Base]])/tbl_HVAC_Airside_Calc_Engine4[[#This Row],[Unocc SF Flow %, Base]],0)*tbl_HVAC_Airside_Calc_Engine4[[#This Row],[Unocc Prop Fan Flow Adj (Cooling Only)]])) -> 0.3 | BG145: =IF($K$128="Proposed Trend Data", IF(ISBLANK(tbl_HVAC_Airside_Calc_Engine4[[#This Row],[UnOcc RH VAV DAT (°F), Prop Trend]]),MEDIAN(tbl_HVAC_Airside_Calc_Engine4[[#This Row],[Unocc Prop SAT °F]],MAX(tbl_HVAC_Airside_Calc_Engine4[UnOcc RH VAV DAT (°F), Prop Trend]),FORECAST(tbl_HVAC_Airside_Calc_Engine4[[#This Row],[OAT °F]],tbl_HVAC_Airside_Calc_Engine4[UnOcc RH VAV DAT (°F), Prop Trend],tbl_HVAC_Airside_Calc_Engine4[OAT °F])),tbl_HVAC_Airside_Calc_Engine4[[#This Row],[UnOcc RH VAV DAT (°F), Prop Trend]]), tbl_HVAC_Airside_Calc_Engine4[[#This Row],[Unocc RH DAT °F Adj]]) -> 55 | BH145: =IF($O$130="Baseline Trend Data", IF(ISBLANK(tbl_HVAC_Airside_Calc_Engine4[[#This Row],[UnOcc RAT (°F), Base Trend]]),MEDIAN(MIN(tbl_HVAC_Airside_Calc_Engine4[UnOcc RAT (°F), Base Trend]),MAX(tbl_HVAC_Airside_Calc_Engine4[UnOcc RAT (°F), Base Trend]),FORECAST(tbl_HVAC_Airside_Calc_Engine4[[#This Row],[OAT °F]], tbl_HVAC_Airside_Calc_Engine4[UnOcc RAT (°F), Base Trend],tbl_HVAC_Airside_Calc_Engine4[OAT °F])),tbl_HVAC_Airside_Calc_Engine4[[#This Row],[UnOcc RAT (°F), Base Trend]]), IF($O$130="Proposed Trend Data",IF(ISBLANK(tbl_HVAC_Airside_Calc_Engine4[[#This Row],[UnOcc RAT (°F), Prop Trend]]),MEDIAN(MIN(tbl_HVAC_Airside_Calc_Engine4[UnOcc RAT (°F), Prop Trend]),MAX(tbl_HVAC_Airside_Calc_Engine4[UnOcc RAT (°F), Prop Trend]),FORECAST(tbl_HVAC_Airside_Calc_Engine4[[#This Row],[OAT °F]],tbl_HVAC_Airside_Calc_Engine4[UnOcc RAT (°F), Prop Trend],tbl_HVAC_Airside_Calc_Engine4[OAT °F])),tbl_HVAC_Airside_Calc_Engine4[[#This Row],[UnOcc RAT (°F), Prop Trend]]), MEDIAN($P$133,$O$133,tbl_HVAC_Airside_Calc_Engine4[[#This Row],[OAT °F]]))) -> 75 | BI145: =MEDIAN(0,1,IF($K$119="Baseline Trend Data", IF(ISBLANK(tbl_HVAC_Airside_Calc_Engine4[[#This Row],[UnOcc OA Flow (%), Base Trend]]),MEDIAN(MIN(tbl_HVAC_Airside_Calc_Engine4[UnOcc OA Flow (%), Base Trend]),MAX(tbl_HVAC_Airside_Calc_Engine4[UnOcc OA Flow (%), Base Trend]),FORECAST(tbl_HVAC_Airside_Calc_Engine4[[#This Row],[OAT °F]],tbl_HVAC_Airside_Calc_Engine4[UnOcc OA Flow (%), Base Trend],tbl_HVAC_Airside_Calc_Engine4[OAT °F])),tbl_HVAC_Airside_Calc_Engine4[[#This Row],[UnOcc OA Flow (%), Base Trend]]), IF($K$119="Proposed Trend Data",IF(ISBLANK(tbl_HVAC_Airside_Calc_Engine4[[#This Row],[Unocc OA Flow (%), Prop Trend]]),MEDIAN(MIN(tbl_HVAC_Airside_Calc_Engine4[Unocc OA Flow (%), Prop Trend]),MAX(tbl_HVAC_Airside_Calc_Engine4[Unocc OA Flow (%), Prop Trend]),FORECAST(tbl_HVAC_Airside_Calc_Engine4[[#This Row],[OAT °F]],tbl_HVAC_Airside_Calc_Engine4[Unocc OA Flow (%), Prop Trend],tbl_HVAC_Airside_Calc_Engine4[OAT °F])),tbl_HVAC_Airside_Calc_Engine4[[#This Row],[Unocc OA Flow (%), Prop Trend]]), IFERROR(IF((tbl_HVAC_Airside_Calc_Engine4[[#This Row],[OAT °F]]>$K$124),$K$123,MAX($K$123,MIN($L$123,(tbl_HVAC_Airside_Calc_Engine4[[#This Row],[Unocc SAT °F]]-tbl_HVAC_Airside_Calc_Engine4[[#This Row],[UnOcc RAT °F]])/(tbl_HVAC_Airside_Calc_Engine4[[#This Row],[OAT °F]]-tbl_HVAC_Airside_Calc_Engine4[[#This Row],[UnOcc RAT °F]])))),$K$123)))) -> 0 | BJ145: =tbl_HVAC_Airside_Calc_Engine4[[#This Row],[UnOcc RAT °F]]*(1-tbl_HVAC_Airside_Calc_Engine4[[#This Row],[Unocc OA Flow %]])+tbl_HVAC_Airside_Calc_Engine4[[#This Row],[OAT °F]]*tbl_HVAC_Airside_Calc_Engine4[[#This Row],[Unocc OA Flow %]] -> 75 | BK145: =IF(AND($F$130="yes",$F$131>tbl_HVAC_Airside_Calc_Engine4[[#This Row],[UnOcc MAT °F]]+$F$132,tbl_HVAC_Airside_Calc_Engine4[[#This Row],[UnOcc Hr]]>0),"Yes","No") -> No | BL145: =IF(tbl_HVAC_Airside_Calc_Engine4[[#This Row],[Unocc Pre-Heat?]]="Yes",1.08*tbl_HVAC_Airside_Calc_Engine4[[#This Row],[Unocc SF Flow %]]*$F$120*($F$131-(tbl_HVAC_Airside_Calc_Engine4[[#This Row],[UnOcc MAT °F]]+$F$132))/1000,0) -> 0 | BM145: =IF($O$118="Proposed Trend Data", IF(ISBLANK(tbl_HVAC_Airside_Calc_Engine4[[#This Row],[Unocc SF Flow (%), Prop Trend]]),MEDIAN(MIN(tbl_HVAC_Airside_Calc_Engine4[Unocc SF Flow (%), Prop Trend]),100%,FORECAST(tbl_HVAC_Airside_Calc_Engine4[[#This Row],[OAT °F]],tbl_HVAC_Airside_Calc_Engine4[Unocc SF Flow (%), Prop Trend],tbl_HVAC_Airside_Calc_Engine4[OAT °F])),tbl_HVAC_Airside_Calc_Engine4[[#This Row],[Unocc SF Flow (%), Prop Trend]]), IF(AND($F$106="Proposed",$M$65="Enable",$M$75="Sub-Enable",$K$67="Simple Data"),IF(tbl_HVAC_Airside_Calc_Engine4[[#This Row],[OAT °F]]<$O$128,TREND($O$127:$P$127,$O$128:$P$128,MEDIAN(tbl_HVAC_Airside_Calc_Engine4[[#This Row],[OAT °F]],$O$128,$P$128)),TREND($O$125:$P$125,$O$126:$P$126,MEDIAN($O$126,$P$126,tbl_HVAC_Airside_Calc_Engine4[[#This Row],[OAT °F]]))), tbl_HVAC_Airside_Calc_Engine4[[#This Row],[Unocc SF Flow %, Base]]+tbl_HVAC_Airside_Calc_Engine4[[#This Row],[Unocc Prop Net Fan Flow Adj]])) -> 0.3 | BN145: =IF(tbl_HVAC_Airside_Calc_Engine4[[#This Row],[OAT °F]]>$F$118,MAX(1.08*$F$120*(tbl_HVAC_Airside_Calc_Engine4[[#This Row],[Unocc SF Flow %]]*(tbl_HVAC_Airside_Calc_Engine4[[#This Row],[UnOcc MAT °F]]-tbl_HVAC_Airside_Calc_Engine4[[#This Row],[Unocc SAT °F]])/12000),0),0) -> 54.18908467 | BO145: =IF(AND(tbl_HVAC_Airside_Calc_Engine4[[#This Row],[UnOcc Hr]]>0,tbl_HVAC_Airside_Calc_Engine4[[#This Row],[OAT °F]]<$F$117),(1.08*$F$120*tbl_HVAC_Airside_Calc_Engine4[[#This Row],[Unocc RH Box Flow %]]*(tbl_HVAC_Airside_Calc_Engine4[[#This Row],[Unocc RH VAV DAT °F]]-IF(tbl_HVAC_Airside_Calc_Engine4[[#This Row],[Unocc Pre-Heat?]]="yes",$F$131,MIN(tbl_HVAC_Airside_Calc_Engine4[[#This Row],[Unocc SAT °F]],tbl_HVAC_Airside_Calc_Engine4[[#This Row],[UnOcc MAT °F]])))/10^3),0) -> 0 | BP145: =tbl_HVAC_Airside_Calc_Engine4[[#This Row],[Unocc Pre-Heat Load, kBtu]]+tbl_HVAC_Airside_Calc_Engine4[[#This Row],[Unocc Re-Heating Load, kBtu]] -> 0 | BQ145: =tbl_HVAC_Airside_Calc_Engine4[[#This Row],[Unocc SF Flow %]]*$F$125 -> 0.3 | BR145: =IF(AND(tbl_HVAC_Airside_Calc_Engine4[[#This Row],[Unocc SF Flow %]]>0,tbl_HVAC_Airside_Calc_Engine4[[#This Row],[UnOcc Hr]]>0),$F$119*0.746/$W$109/IF($F$121="VFD",$X$110,1)*(($Z$107+$Z$108*tbl_HVAC_Airside_Calc_Engine4[[#This Row],[Unocc SF Flow %]]+$Z$109*tbl_HVAC_Airside_Calc_Engine4[[#This Row],[Unocc SF Flow %]]^2+$Z$110*tbl_HVAC_Airside_Calc_Engine4[[#This Row],[Unocc SF Flow %]]^3) ),0) -> 0 | BS145: =IF(AND(tbl_HVAC_Airside_Calc_Engine4[[#This Row],[Unocc RF Flow %]]>0,tbl_HVAC_Airside_Calc_Engine4[[#This Row],[UnOcc Hr]]>0),$F$122*0.746/$W$110/IF($F$124="VFD",$X$110,1)*($AB$107+$AB$108*tbl_HVAC_Airside_Calc_Engine4[[#This Row],[Unocc RF Flow %]]+$AB$109*tbl_HVAC_Airside_Calc_Engine4[[#This Row],[Unocc RF Flow %]]^2+$AB$110*tbl_HVAC_Airside_Calc_Engine4[[#This Row],[Unocc RF Flow %]]^3),0) -> 0 | BT145: =tbl_HVAC_Airside_Calc_Engine4[[#This Row],[Unocc SF kW]]+tbl_HVAC_Airside_Calc_Engine4[[#This Row],[Unocc RF kW]] -> 0 | BU145: =IF(tbl_HVAC_Airside_Calc_Engine4[[#This Row],[UnOcc Hr]]>0,$F$113*tbl_HVAC_Airside_Calc_Engine4[[#This Row],[Unocc Cooling Load, Ton]]+IF($F$114="Electric",(tbl_HVAC_Airside_Calc_Engine4[[#This Row],[Unocc Total Heating Load, kBtu]])/$F$116,0),0) -> 0 | BV145: =tbl_HVAC_Airside_Calc_Engine4[[#This Row],[Occ Hr]]*(tbl_HVAC_Airside_Calc_Engine4[[#This Row],[Occ SF kW]]+tbl_HVAC_Airside_Calc_Engine4[[#This Row],[Occ RF kW]])+tbl_HVAC_Airside_Calc_Engine4[[#This Row],[UnOcc Hr]]*(tbl_HVAC_Airside_Calc_Engine4[[#This Row],[Unocc SF kW]]+tbl_HVAC_Airside_Calc_Engine4[[#This Row],[Unocc RF kW]]) -> 0 | BW145: =tbl_HVAC_Airside_Calc_Engine4[[#This Row],[Occ Load kW]]*tbl_HVAC_Airside_Calc_Engine4[[#This Row],[Occ Hr]]+tbl_HVAC_Airside_Calc_Engine4[[#This Row],[Unocc Load kW]]*tbl_HVAC_Airside_Calc_Engine4[[#This Row],[UnOcc Hr]] -> 0 | BX145: =IF($F$114="Gas",(tbl_HVAC_Airside_Calc_Engine4[[#This Row],[Occ Pre-Heat Load, kBtu]]+tbl_HVAC_Airside_Calc_Engine4[[#This Row],[Occ Re-Heating Load, kBtu]])/100/$F$115*tbl_HVAC_Airside_Calc_Engine4[[#This Row],[Occ Hr]]+(tbl_HVAC_Airside_Calc_Engine4[[#This Row],[Unocc Pre-Heat Load, kBtu]]+tbl_HVAC_Airside_Calc_Engine4[[#This Row],[Unocc Re-Heating Load, kBtu]])/100/$F$115*tbl_HVAC_Airside_Calc_Engine4[[#This Row],[UnOcc Hr]],0) -> 0 | BY145: =MEDIAN(0,1,IF($F$31="Baseline Trend Data",IF(ISBLANK(tbl_HVAC_Airside_Calc_Engine4[[#This Row],[Occ OA Flow (%), Base Trend]]),MEDIAN(MIN(tbl_HVAC_Airside_Calc_Engine4[Occ OA Flow (%), Base Trend]),MAX(tbl_HVAC_Airside_Calc_Engine4[Occ OA Flow (%), Base Trend]),FORECAST(tbl_HVAC_Airside_Calc_Engine4[[#This Row],[OAT °F]],tbl_HVAC_Airside_Calc_Engine4[Occ OA Flow (%), Base Trend],tbl_HVAC_Airside_Calc_Engine4[OAT °F])),tbl_HVAC_Airside_Calc_Engine4[[#This Row],[Occ OA Flow (%), Base Trend]]), IFERROR(IF((tbl_HVAC_Airside_Calc_Engine4[[#This Row],[OAT °F]]>$F$35),$F$34,MAX($F$34,MIN($G$34,(tbl_HVAC_Airside_Calc_Engine4[[#This Row],[Occ Base SAT °F]]-tbl_HVAC_Airside_Calc_Engine4[[#This Row],[Occ RAT °F, Base]])/(tbl_HVAC_Airside_Calc_Engine4[[#This Row],[OAT °F]]-tbl_HVAC_Airside_Calc_Engine4[[#This Row],[Occ RAT °F, Base]])))),$F$34))) -> 0.2989697927 | BZ145: =MIN(100%,IF($F$67="Baseline Trend Data", IF(ISBLANK(tbl_HVAC_Airside_Calc_Engine4[[#This Row],[Occ SF Flow (%), Base Trend]]),MEDIAN(MIN(tbl_HVAC_Airside_Calc_Engine4[Occ SF Flow (%), Base Trend]),1,FORECAST(tbl_HVAC_Airside_Calc_Engine4[[#This Row],[OAT °F]],tbl_HVAC_Airside_Calc_Engine4[Occ SF Flow (%), Base Trend],tbl_HVAC_Airside_Calc_Engine4[OAT °F])),tbl_HVAC_Airside_Calc_Engine4[[#This Row],[Occ SF Flow (%), Base Trend]]), IF(tbl_HVAC_Airside_Calc_Engine4[[#This Row],[OAT °F]]<$F$73,TREND($F$72:$G$72,$F$73:$G$73,MEDIAN(tbl_HVAC_Airside_Calc_Engine4[[#This Row],[OAT °F]],$F$73,$G$73)), TREND($F$70:$G$70,$F$71:$G$71,MEDIAN($F$71,$G$71,tbl_HVAC_Airside_Calc_Engine4[[#This Row],[OAT °F]]))))) -> 1 | CA145: =MAX(0,MIN(100%,IF($F$82="Baseline Trend Data", IF(ISBLANK(tbl_HVAC_Airside_Calc_Engine4[[#This Row],[Occ RH Box VAV Flow (%), Base Trend]]),MEDIAN(MIN(tbl_HVAC_Airside_Calc_Engine4[Occ RH Box VAV Flow (%), Base Trend]),tbl_HVAC_Airside_Calc_Engine4[[#This Row],[Occ SF Flow %, Base]],FORECAST(tbl_HVAC_Airside_Calc_Engine4[[#This Row],[OAT °F]],tbl_HVAC_Airside_Calc_Engine4[Occ RH Box VAV Flow (%), Base Trend],tbl_HVAC_Airside_Calc_Engine4[OAT °F])),tbl_HVAC_Airside_Calc_Engine4[[#This Row],[Occ RH Box VAV Flow (%), Base Trend]]), tbl_HVAC_Airside_Calc_Engine4[[#This Row],[Occ SF Flow %, Base]]*$F$84))) -> 1 | CB145: =IFERROR(tbl_HVAC_Airside_Calc_Engine4[[#This Row],[Occ RH Box Flow %, Base]]/tbl_HVAC_Airside_Calc_Engine4[[#This Row],[Occ SF Flow %, Base]],0) -> 1 | CC145: =IF($F$82="Baseline Trend Data", IF(ISBLANK(tbl_HVAC_Airside_Calc_Engine4[[#This Row],[Occ RH VAV DAT (°F), Base Trend]]),MEDIAN(tbl_HVAC_Airside_Calc_Engine4[[#This Row],[Occ Base SAT °F]],MAX(tbl_HVAC_Airside_Calc_Engine4[Occ RH VAV DAT (°F), Base Trend]),FORECAST(tbl_HVAC_Airside_Calc_Engine4[[#This Row],[OAT °F]],tbl_HVAC_Airside_Calc_Engine4[Occ RH VAV DAT (°F), Base Trend],tbl_HVAC_Airside_Calc_Engine4[OAT °F])),tbl_HVAC_Airside_Calc_Engine4[[#This Row],[Occ RH VAV DAT (°F), Base Trend]]), MIN($F$90,tbl_HVAC_Airside_Calc_Engine4[[#This Row],[Occ Base SAT °F]]+MAX(0,($F$90-tbl_HVAC_Airside_Calc_Engine4[[#This Row],[Occ Base SAT °F]])*(($F$85-tbl_HVAC_Airside_Calc_Engine4[[#This Row],[OAT °F]])/($F$85-IF($F$88="yes",$F$89,$F$87)))))) -> 55 | CD145: =IF($F$96="Baseline Trend Data", IF(ISBLANK(tbl_HVAC_Airside_Calc_Engine4[[#This Row],[ Occ RAT (°F), Base Trend]]),MEDIAN(MIN($O$140:$O$245),MAX($O$140:$O$245),FORECAST(tbl_HVAC_Airside_Calc_Engine4[[#This Row],[OAT °F]],$O$140:$O$245,tbl_HVAC_Airside_Calc_Engine4[OAT °F])),tbl_HVAC_Airside_Calc_Engine4[[#This Row],[ Occ RAT (°F), Base Trend]]), MEDIAN($G$94,$F$94,tbl_HVAC_Airside_Calc_Engine4[[#This Row],[OAT °F]])) -> 75 | CE145: =IF(tbl_HVAC_Airside_Calc_Engine4[[#This Row],[Occ DAT °F, Base]]>$F$94,tbl_HVAC_Airside_Calc_Engine4[[#This Row],[Occ RH Box Flow %, Base]],0) -> 0 | CF145: =tbl_HVAC_Airside_Calc_Engine4[[#This Row],[Occ SF Flow %, Base]]-tbl_HVAC_Airside_Calc_Engine4[[#This Row],[Occ Heating Only Flow %, Base]]-tbl_HVAC_Airside_Calc_Engine4[[#This Row],[Occ Tempered Cooling Flow %, Base]] -> 1 | CG145: =IF(AND(tbl_HVAC_Airside_Calc_Engine4[[#This Row],[Occ DAT °F, Base]]<=$F$94,tbl_HVAC_Airside_Calc_Engine4[[#This Row],[Occ DAT °F, Base]]>tbl_HVAC_Airside_Calc_Engine4[[#This Row],[Occ Base SAT °F]]),tbl_HVAC_Airside_Calc_Engine4[[#This Row],[Occ RH Box Flow %, Base]],0) -> 0 | CH145: =SUM(tbl_HVAC_Airside_Calc_Engine4[[#This Row],[Occ Heating Only Flow %, Base]:[Occ Tempered Cooling Flow %, Base]]) -> 1 | CI145: =1.08*tbl_HVAC_Airside_Calc_Engine4[[#This Row],[Occ Heating Only Flow %, Base]]*$F$120*(tbl_HVAC_Airside_Calc_Engine4[[#This Row],[Occ DAT °F, Base]]-$F$94)/1000 -> 0 | CJ145: =1.08*tbl_HVAC_Airside_Calc_Engine4[[#This Row],[Occ Cooling Only Flow %, Base]]*$F$120*($G$94-tbl_HVAC_Airside_Calc_Engine4[[#This Row],[Occ Base SAT °F]])/1000 -> 2167.563387 | CK145: =1.08*tbl_HVAC_Airside_Calc_Engine4[[#This Row],[Occ Tempered Cooling Flow %, Base]]*$F$120*($F$94-tbl_HVAC_Airside_Calc_Engine4[[#This Row],[Occ DAT °F, Base]])/1000 -> 0 | CL145: =IF(AND($F$106="Proposed",$M$65="Enable",$M$68="Sub-Enable"),IFERROR(tbl_HVAC_Airside_Calc_Engine4[[#This Row],[Occ SF Flow %]]/tbl_HVAC_Airside_Calc_Engine4[[#This Row],[Occ SF Flow %, Base]],0),100%) -> 1 | CM145: =IF($F$126="Constant Air Volume",0%,IFERROR((tbl_HVAC_Airside_Calc_Engine4[[#This Row],[Occ Space Cooling Only Load kBtu/h, Base]]*1000/(1.08*($P$132-tbl_HVAC_Airside_Calc_Engine4[[#This Row],[Occ SAT °F]]))-tbl_HVAC_Airside_Calc_Engine4[[#This Row],[Occ Cooling Only Flow %, Base]]*$F$120)/$F$120,0)) -> 0 | CN145: =IF($F$126="Constant Air Volume",0%,IFERROR(MAX(0,tbl_HVAC_Airside_Calc_Engine4[[#This Row],[Occ Space Tempered Cooling Load kBtu/h, Base]]*1000/(1.08*($P$132-tbl_HVAC_Airside_Calc_Engine4[[#This Row],[Occ RH VAV DAT °F]]))-tbl_HVAC_Airside_Calc_Engine4[[#This Row],[Occ Tempered Cooling Flow %, Base]]*$F$120)/$F$120,0)) -> 0 | CO145: =IF($F$126="Constant Air Volume",0%,tbl_HVAC_Airside_Calc_Engine4[[#This Row],[Occ Prop Fan Flow Adj (Cooling Only)]]+tbl_HVAC_Airside_Calc_Engine4[[#This Row],[Occ Prop Fan Flow Adj (Tempered Cooling)]]) -> 0 | CP145: =MAX(IF(tbl_HVAC_Airside_Calc_Engine4[[#This Row],[Occ Space Heating Only Load kBtu/h, Base]]>0,tbl_HVAC_Airside_Calc_Engine4[[#This Row],[Occ Space Heating Only Load kBtu/h, Base]]*1000/(1.08*tbl_HVAC_Airside_Calc_Engine4[[#This Row],[Occ Heating Only Flow %, Base]]*tbl_HVAC_Airside_Calc_Engine4[[#This Row],[Occ SF Manual Prop Airflow Adj to Base Ratio]]*$F$120)+$O$132,IF(tbl_HVAC_Airside_Calc_Engine4[[#This Row],[Occ Space Tempered Cooling Load kBtu/h, Base]]>0,$O$132-tbl_HVAC_Airside_Calc_Engine4[[#This Row],[Occ Space Tempered Cooling Load kBtu/h, Base]]*1000/(1.08*tbl_HVAC_Airside_Calc_Engine4[[#This Row],[Occ Tempered Cooling Flow %, Base]]*tbl_HVAC_Airside_Calc_Engine4[[#This Row],[Occ SF Manual Prop Airflow Adj to Base Ratio]]*$F$120),tbl_HVAC_Airside_Calc_Engine4[[#This Row],[Occ DAT °F, Base]])),tbl_HVAC_Airside_Calc_Engine4[[#This Row],[Occ SAT °F]]) -> 55 | CQ145: =MEDIAN(0,1,IF($F$31="Baseline Trend Data",IF(ISBLANK(tbl_HVAC_Airside_Calc_Engine4[[#This Row],[UnOcc OA Flow (%), Base Trend]]),MEDIAN(MIN(tbl_HVAC_Airside_Calc_Engine4[UnOcc OA Flow (%), Base Trend]),MAX(tbl_HVAC_Airside_Calc_Engine4[UnOcc OA Flow (%), Base Trend]),FORECAST(tbl_HVAC_Airside_Calc_Engine4[[#This Row],[OAT °F]],tbl_HVAC_Airside_Calc_Engine4[UnOcc OA Flow (%), Base Trend],tbl_HVAC_Airside_Calc_Engine4[OAT °F])),tbl_HVAC_Airside_Calc_Engine4[[#This Row],[UnOcc OA Flow (%), Base Trend]]), IFERROR(IF((tbl_HVAC_Airside_Calc_Engine4[[#This Row],[OAT °F]]>$F$40),$F$39,MAX($F$39,MIN($G$39,(tbl_HVAC_Airside_Calc_Engine4[[#This Row],[Unocc Base SAT °F]]-tbl_HVAC_Airside_Calc_Engine4[[#This Row],[Unocc RAT °F, Base]])/(tbl_HVAC_Airside_Calc_Engine4[[#This Row],[OAT °F]]-tbl_HVAC_Airside_Calc_Engine4[[#This Row],[Unocc RAT °F, Base]])))),$F$39))) -> 0 | CR145: =MIN(100%,IF($F$67="Baseline Trend Data", IF(ISBLANK(tbl_HVAC_Airside_Calc_Engine4[[#This Row],[UnOcc SF Flow (%), Base Trend]]),MEDIAN(MIN(tbl_HVAC_Airside_Calc_Engine4[UnOcc SF Flow (%), Base Trend]),1,FORECAST(tbl_HVAC_Airside_Calc_Engine4[[#This Row],[OAT °F]],tbl_HVAC_Airside_Calc_Engine4[UnOcc SF Flow (%), Base Trend],tbl_HVAC_Airside_Calc_Engine4[OAT °F])),tbl_HVAC_Airside_Calc_Engine4[[#This Row],[UnOcc SF Flow (%), Base Trend]]), IF(tbl_HVAC_Airside_Calc_Engine4[[#This Row],[OAT °F]]<$F$80,TREND($F$79:$G$79,$F$80:$G$80,MEDIAN(tbl_HVAC_Airside_Calc_Engine4[[#This Row],[OAT °F]],$F$80,$G$80)), TREND($F$77:$G$77,$F$78:$G$78,MEDIAN($F$78,$G$78,tbl_HVAC_Airside_Calc_Engine4[[#This Row],[OAT °F]]))))) -> 0.3 | CS145: =MAX(0,MIN(100%,IF($F$82="Baseline Trend Data", IF(ISBLANK(tbl_HVAC_Airside_Calc_Engine4[[#This Row],[UnOcc RH Box VAV Flow (%), Base Trend]]),MEDIAN(MIN(tbl_HVAC_Airside_Calc_Engine4[UnOcc RH Box VAV Flow (%), Base Trend]),tbl_HVAC_Airside_Calc_Engine4[[#This Row],[Unocc SF Flow %, Base]],FORECAST(tbl_HVAC_Airside_Calc_Engine4[[#This Row],[OAT °F]],tbl_HVAC_Airside_Calc_Engine4[UnOcc RH Box VAV Flow (%), Base Trend],tbl_HVAC_Airside_Calc_Engine4[OAT °F])),tbl_HVAC_Airside_Calc_Engine4[[#This Row],[UnOcc RH Box VAV Flow (%), Base Trend]]), tbl_HVAC_Airside_Calc_Engine4[[#This Row],[Unocc SF Flow %, Base]]*$F$84))) -> 0.3 | CT145: =IFERROR(tbl_HVAC_Airside_Calc_Engine4[[#This Row],[Unocc RH Box Flow %, Base]]/tbl_HVAC_Airside_Calc_Engine4[[#This Row],[Unocc SF Flow %, Base]],0) -> 1 | CU145: =IF($F$82="Baseline Trend Data", IF(ISBLANK(tbl_HVAC_Airside_Calc_Engine4[[#This Row],[UnOcc RH VAV DAT (°F), Base Trend]]),MEDIAN(tbl_HVAC_Airside_Calc_Engine4[[#This Row],[Unocc Base SAT °F]],MAX(tbl_HVAC_Airside_Calc_Engine4[UnOcc RH VAV DAT (°F), Base Trend]),FORECAST(tbl_HVAC_Airside_Calc_Engine4[[#This Row],[OAT °F]],tbl_HVAC_Airside_Calc_Engine4[UnOcc RH VAV DAT (°F), Base Trend],tbl_HVAC_Airside_Calc_Engine4[OAT °F])),tbl_HVAC_Airside_Calc_Engine4[[#This Row],[UnOcc RH VAV DAT (°F), Base Trend]]), MIN($G$90,tbl_HVAC_Airside_Calc_Engine4[[#This Row],[Unocc Base SAT °F]]+MAX(0,($G$90-tbl_HVAC_Airside_Calc_Engine4[[#This Row],[Unocc Base SAT °F]])*(($G$85-tbl_HVAC_Airside_Calc_Engine4[[#This Row],[OAT °F]])/($G$85-IF($G$88="yes",$G$89,$G$87)))))) -> 55 | CV145: =IF($F$96="Baseline Trend Data", IF(ISBLANK(tbl_HVAC_Airside_Calc_Engine4[[#This Row],[UnOcc RAT (°F), Base Trend]]),MEDIAN(MIN(tbl_HVAC_Airside_Calc_Engine4[UnOcc RAT (°F), Base Trend]),MAX(tbl_HVAC_Airside_Calc_Engine4[UnOcc RAT (°F), Base Trend]),FORECAST(tbl_HVAC_Airside_Calc_Engine4[[#This Row],[OAT °F]],tbl_HVAC_Airside_Calc_Engine4[UnOcc RAT (°F), Base Trend],tbl_HVAC_Airside_Calc_Engine4[OAT °F])),tbl_HVAC_Airside_Calc_Engine4[[#This Row],[UnOcc RAT (°F), Base Trend]]), MEDIAN($G$95,$F$95,tbl_HVAC_Airside_Calc_Engine4[[#This Row],[OAT °F]])) -> 80 | CW145: =IF(tbl_HVAC_Airside_Calc_Engine4[[#This Row],[Unocc DAT °F, Base]]>$F$95,tbl_HVAC_Airside_Calc_Engine4[[#This Row],[Unocc RH Box Flow %, Base]],0) -> 0 | CX145: =tbl_HVAC_Airside_Calc_Engine4[[#This Row],[Unocc SF Flow %, Base]]-tbl_HVAC_Airside_Calc_Engine4[[#This Row],[Unocc Heating Only Flow %, Base]]-tbl_HVAC_Airside_Calc_Engine4[[#This Row],[Unocc Tempered Cooling Flow %, Base]] -> 0.3 | CY145: =IF(AND(tbl_HVAC_Airside_Calc_Engine4[[#This Row],[Unocc DAT °F, Base]]<=$F$95,tbl_HVAC_Airside_Calc_Engine4[[#This Row],[Unocc DAT °F, Base]]>tbl_HVAC_Airside_Calc_Engine4[[#This Row],[Unocc Base SAT °F]]),tbl_HVAC_Airside_Calc_Engine4[[#This Row],[Unocc RH Box Flow %, Base]],0) -> 0 | CZ145: =SUM(tbl_HVAC_Airside_Calc_Engine4[[#This Row],[Unocc Heating Only Flow %, Base]:[Unocc Tempered Cooling Flow %, Base]]) -> 0.3 | DA145: =1.08*tbl_HVAC_Airside_Calc_Engine4[[#This Row],[Unocc Heating Only Flow %, Base]]*$F$120*(tbl_HVAC_Airside_Calc_Engine4[[#This Row],[Unocc DAT °F, Base]]-$F$95)/1000 -> 0 | DB145: =1.08*tbl_HVAC_Airside_Calc_Engine4[[#This Row],[Unocc Cooling Only Flow %, Base]]*$F$120*($G$95-tbl_HVAC_Airside_Calc_Engine4[[#This Row],[Unocc Base SAT °F]])/1000 -> 812.8362701 | DC145: =1.08*tbl_HVAC_Airside_Calc_Engine4[[#This Row],[Unocc Tempered Cooling Flow %, Base]]*$F$120*($F$95-tbl_HVAC_Airside_Calc_Engine4[[#This Row],[Unocc DAT °F, Base]])/1000 -> 0 | DD145: =IF(AND($F$106="Proposed",$M$65="Enable",$M$75="Sub-Enable"),IF(tbl_HVAC_Airside_Calc_Engine4[[#This Row],[Unocc SF Flow %]]/tbl_HVAC_Airside_Calc_Engine4[[#This Row],[Unocc SF Flow %, Base]]=0,1,IFERROR(tbl_HVAC_Airside_Calc_Engine4[[#This Row],[Unocc SF Flow %]]/tbl_HVAC_Airside_Calc_Engine4[[#This Row],[Unocc SF Flow %, Base]],1)),100%) -> 1 | DE145: =IF($F$126="Constant Air Volume",0%,IFERROR((tbl_HVAC_Airside_Calc_Engine4[[#This Row],[Unocc Space Cooling Only Load kBtu/h, Base]]*1000/(1.08*($P$133-tbl_HVAC_Airside_Calc_Engine4[[#This Row],[Unocc SAT °F]]))-tbl_HVAC_Airside_Calc_Engine4[[#This Row],[Unocc Cooling Only Flow %, Base]]*$F$120)/$F$120,0)) -> 0 | DF145: =IF($F$126="Constant Air Volume",0%,IFERROR(MAX(0,tbl_HVAC_Airside_Calc_Engine4[[#This Row],[Unocc Space Tempered Cooling Load kBtu/h, Base]]*1000/(1.08*($P$133-tbl_HVAC_Airside_Calc_Engine4[[#This Row],[Unocc RH VAV DAT °F]]))-tbl_HVAC_Airside_Calc_Engine4[[#This Row],[Unocc Tempered Cooling Flow %, Base]]*$F$120)/$F$120,0)) -> 0 | DG145: =IF($F$126="Constant Air Volume",0%,tbl_HVAC_Airside_Calc_Engine4[[#This Row],[Unocc Prop Fan Flow Adj (Cooling Only)]]+tbl_HVAC_Airside_Calc_Engine4[[#This Row],[Unocc Prop Fan Flow Adj (Tempered Cooling)]]) -> 0 | DH145: =MAX(IF(tbl_HVAC_Airside_Calc_Engine4[[#This Row],[Unocc Space Heating Only Load kBtu/h, Base]]>0,tbl_HVAC_Airside_Calc_Engine4[[#This Row],[Unocc Space Heating Only Load kBtu/h, Base]]*1000/(1.08*tbl_HVAC_Airside_Calc_Engine4[[#This Row],[Unocc Heating Only Flow %, Base]]*tbl_HVAC_Airside_Calc_Engine4[[#This Row],[Unocc SF Manual Prop Airflow Adj to Base Ratio]]*$F$120)+$O$133,IF(tbl_HVAC_Airside_Calc_Engine4[[#This Row],[Unocc Space Tempered Cooling Load kBtu/h, Base]]>0,$O$133-tbl_HVAC_Airside_Calc_Engine4[[#This Row],[Unocc Space Tempered Cooling Load kBtu/h, Base]]*1000/(1.08*tbl_HVAC_Airside_Calc_Engine4[[#This Row],[Unocc Tempered Cooling Flow %, Base]]*tbl_HVAC_Airside_Calc_Engine4[[#This Row],[Unocc SF Manual Prop Airflow Adj to Base Ratio]]*$F$120),tbl_HVAC_Airside_Calc_Engine4[[#This Row],[Unocc DAT °F, Base]])),tbl_HVAC_Airside_Calc_Engine4[[#This Row],[Unocc SAT °F]]) -> 55 | DI145: =(tbl_HVAC_Airside_Calc_Engine4[[#This Row],[Occ Hr]]*(tbl_HVAC_Airside_Calc_Engine4[[#This Row],[Occ Space Cooling Only Load kBtu/h, Base]]+tbl_HVAC_Airside_Calc_Engine4[[#This Row],[Occ Space Tempered Cooling Load kBtu/h, Base]])+tbl_HVAC_Airside_Calc_Engine4[[#This Row],[UnOcc Hr]]*(tbl_HVAC_Airside_Calc_Engine4[[#This Row],[Unocc Space Cooling Only Load kBtu/h, Base]]+tbl_HVAC_Airside_Calc_Engine4[[#This Row],[Unocc Space Tempered Cooling Load kBtu/h, Base]]))/12 -> 0
E146: 109 | F146: =COUNTIFS(tbl_Climate_Zone[Dry_Bulb],E146,tbl_Climate_Zone[On-Pk Hour],1,tbl_Climate_Zone[Hour],">" & $K$114,tbl_Climate_Zone[Hour],"<=" & $L$114) -> 0 | G146: ='CZ2022'!S8-F146 -> 0 | H146: =SUM( COUNTIFS(tbl_Climate_Zone[Dry_Bulb],E146,tbl_Climate_Zone[Weekday],$M$114,tbl_Climate_Zone[Hour],">"&$K$114,tbl_Climate_Zone[Hour],"<="&$L$114), COUNTIFS(tbl_Climate_Zone[Dry_Bulb],E146,tbl_Climate_Zone[Weekday],$M$115,tbl_Climate_Zone[Hour],">"&$K$115,tbl_Climate_Zone[Hour],"<="&$L$115), COUNTIFS(tbl_Climate_Zone[Dry_Bulb],E146,tbl_Climate_Zone[Weekday],$M$116,tbl_Climate_Zone[Hour],">"&$K$116,tbl_Climate_Zone[Hour],"<="&$L$116)) -> 0 | I146: ='CZ2022'!T8-tbl_HVAC_Airside_Calc_Engine4[[#This Row],[Occ Hr]] -> 0 | AH146: =IFERROR(IF($F$49="Baseline Trend Data", IF(ISBLANK(tbl_HVAC_Airside_Calc_Engine4[[#This Row],[Occ SAT (°F), Base Trend]]),MEDIAN(MIN(tbl_HVAC_Airside_Calc_Engine4[Occ SAT (°F), Base Trend]),MAX(tbl_HVAC_Airside_Calc_Engine4[Occ SAT (°F), Base Trend]),FORECAST(tbl_HVAC_Airside_Calc_Engine4[[#This Row],[OAT °F]],tbl_HVAC_Airside_Calc_Engine4[Occ SAT (°F), Base Trend],tbl_HVAC_Airside_Calc_Engine4[OAT °F])),tbl_HVAC_Airside_Calc_Engine4[[#This Row],[Occ SAT (°F), Base Trend]]), FORECAST(MEDIAN($F$53,$G$53,tbl_HVAC_Airside_Calc_Engine4[[#This Row],[OAT °F]]),$F$52:$G$52,$F$53:$G$53)),0) -> 55 | AI146: =IF($M$47 = "Disable",tbl_HVAC_Airside_Calc_Engine4[[#This Row],[Occ Base SAT °F]],IFERROR(IF($K$49="Proposed Trend Data", IF(ISBLANK(tbl_HVAC_Airside_Calc_Engine4[[#This Row],[Occ SAT (°F), Prop Trend]]),MEDIAN(MIN(tbl_HVAC_Airside_Calc_Engine4[Occ SAT (°F), Prop Trend]),MAX(tbl_HVAC_Airside_Calc_Engine4[Occ SAT (°F), Prop Trend]),FORECAST(tbl_HVAC_Airside_Calc_Engine4[[#This Row],[OAT °F]],tbl_HVAC_Airside_Calc_Engine4[Occ SAT (°F), Prop Trend],tbl_HVAC_Airside_Calc_Engine4[OAT °F])),tbl_HVAC_Airside_Calc_Engine4[[#This Row],[Occ SAT (°F), Prop Trend]]), FORECAST(MEDIAN($K$53,$L$53,tbl_HVAC_Airside_Calc_Engine4[[#This Row],[OAT °F]]),$K$52:$L$52,$K$53:$L$53)),0)) -> 55 | AJ146: =tbl_HVAC_Airside_Calc_Engine4[[#This Row],[Occ SAT °F]]-tbl_HVAC_Airside_Calc_Engine4[[#This Row],[Occ Base SAT °F]] -> 0 | AK146: =IFERROR(IF($F$105="Baseline",tbl_HVAC_Airside_Calc_Engine4[[#This Row],[Occ Base SAT °F]],tbl_HVAC_Airside_Calc_Engine4[[#This Row],[Occ Prop SAT °F]]),0) -> 55 | AL146: =IF($K$127="Proposed Trend Data",IF(ISBLANK(tbl_HVAC_Airside_Calc_Engine4[[#This Row],[Occ RH Box VAV Flow (%), Prop Trend]]),MEDIAN(tbl_HVAC_Airside_Calc_Engine4[[#This Row],[Occ SF Flow %]],MIN(tbl_HVAC_Airside_Calc_Engine4[Occ RH Box VAV Flow (%), Prop Trend]),FORECAST(tbl_HVAC_Airside_Calc_Engine4[[#This Row],[OAT °F]],tbl_HVAC_Airside_Calc_Engine4[Occ RH Box VAV Flow (%), Prop Trend],tbl_HVAC_Airside_Calc_Engine4[OAT °F])),tbl_HVAC_Airside_Calc_Engine4[[#This Row],[Occ RH Box VAV Flow (%), Prop Trend]]), IF(AND($K$127="Auto Calc",$M$65="Enable",$M$68="Sub-Enable"),tbl_HVAC_Airside_Calc_Engine4[[#This Row],[Occ SF Flow %]]*tbl_HVAC_Airside_Calc_Engine4[[#This Row],[Occ RH to SF Ratio, Base]], tbl_HVAC_Airside_Calc_Engine4[[#This Row],[Occ RH Box Flow %, Base]]+tbl_HVAC_Airside_Calc_Engine4[[#This Row],[Occ Prop Fan Flow Adj (Tempered Cooling)]]+IFERROR(( tbl_HVAC_Airside_Calc_Engine4[[#This Row],[Occ RH Box Flow %, Base]]-tbl_HVAC_Airside_Calc_Engine4[[#This Row],[Occ Tempered Cooling Flow %, Base]]-tbl_HVAC_Airside_Calc_Engine4[[#This Row],[Occ Heating Only Flow %, Base]])/tbl_HVAC_Airside_Calc_Engine4[[#This Row],[Occ SF Flow %, Base]],0)*tbl_HVAC_Airside_Calc_Engine4[[#This Row],[Occ Prop Fan Flow Adj (Cooling Only)]])) -> 1 | AM146: =IF($K$127="Proposed Trend Data", IF(ISBLANK(tbl_HVAC_Airside_Calc_Engine4[[#This Row],[Occ RH VAV DAT (°F), Prop Trend]]),MEDIAN(tbl_HVAC_Airside_Calc_Engine4[[#This Row],[Occ Prop SAT °F]],MAX(tbl_HVAC_Airside_Calc_Engine4[Occ RH VAV DAT (°F), Prop Trend]),FORECAST(tbl_HVAC_Airside_Calc_Engine4[[#This Row],[OAT °F]],tbl_HVAC_Airside_Calc_Engine4[Occ RH VAV DAT (°F), Prop Trend],tbl_HVAC_Airside_Calc_Engine4[OAT °F])),tbl_HVAC_Airside_Calc_Engine4[[#This Row],[Occ RH VAV DAT (°F), Prop Trend]]), tbl_HVAC_Airside_Calc_Engine4[[#This Row],[Occ RH DAT °F Adj]]) -> 55 | AN146: =IF($O$130="Baseline Trend Data", IF(ISBLANK(tbl_HVAC_Airside_Calc_Engine4[[#This Row],[ Occ RAT (°F), Base Trend]]),MEDIAN(MIN($O$140:$O$245),MAX($O$140:$O$245),FORECAST(tbl_HVAC_Airside_Calc_Engine4[[#This Row],[OAT °F]],$O$140:$O$245,tbl_HVAC_Airside_Calc_Engine4[OAT °F])),tbl_HVAC_Airside_Calc_Engine4[[#This Row],[ Occ RAT (°F), Base Trend]]), IF($O$130="Proposed Trend Data",IF(ISBLANK(tbl_HVAC_Airside_Calc_Engine4[[#This Row],[Occ RAT (°F), Prop Trend]]),MEDIAN(MIN(tbl_HVAC_Airside_Calc_Engine4[Occ RAT (°F), Prop Trend]),MAX(tbl_HVAC_Airside_Calc_Engine4[Occ RAT (°F), Prop Trend]),FORECAST(tbl_HVAC_Airside_Calc_Engine4[[#This Row],[OAT °F]],tbl_HVAC_Airside_Calc_Engine4[Occ RAT (°F), Prop Trend],tbl_HVAC_Airside_Calc_Engine4[OAT °F])),tbl_HVAC_Airside_Calc_Engine4[[#This Row],[Occ RAT (°F), Prop Trend]]), MEDIAN($P$132,$O$132,tbl_HVAC_Airside_Calc_Engine4[[#This Row],[OAT °F]]))) -> 75 | AO146: =MEDIAN(0,1,IF($K$119="Baseline Trend Data", IF(ISBLANK(tbl_HVAC_Airside_Calc_Engine4[[#This Row],[Occ OA Flow (%), Base Trend]]),MEDIAN(MIN(tbl_HVAC_Airside_Calc_Engine4[Occ OA Flow (%), Base Trend]),MAX(tbl_HVAC_Airside_Calc_Engine4[Occ OA Flow (%), Base Trend]),FORECAST(tbl_HVAC_Airside_Calc_Engine4[[#This Row],[OAT °F]],tbl_HVAC_Airside_Calc_Engine4[Occ OA Flow (%), Base Trend],tbl_HVAC_Airside_Calc_Engine4[OAT °F])),tbl_HVAC_Airside_Calc_Engine4[[#This Row],[Occ OA Flow (%), Base Trend]]), IF($K$119="Proposed Trend Data", IF(ISBLANK(tbl_HVAC_Airside_Calc_Engine4[[#This Row],[Occ OA Flow (%), Prop Trend]]),MEDIAN(MIN(tbl_HVAC_Airside_Calc_Engine4[Occ OA Flow (%), Prop Trend]),MAX(tbl_HVAC_Airside_Calc_Engine4[Occ OA Flow (%), Prop Trend]),FORECAST(tbl_HVAC_Airside_Calc_Engine4[[#This Row],[OAT °F]],tbl_HVAC_Airside_Calc_Engine4[Occ OA Flow (%), Prop Trend],tbl_HVAC_Airside_Calc_Engine4[OAT °F])),tbl_HVAC_Airside_Calc_Engine4[[#This Row],[Occ OA Flow (%), Prop Trend]]), IFERROR(IF((tbl_HVAC_Airside_Calc_Engine4[[#This Row],[OAT °F]]>$K$122),$K$121,MAX($K$121,MIN($L$121,(tbl_HVAC_Airside_Calc_Engine4[[#This Row],[Occ SAT °F]]-tbl_HVAC_Airside_Calc_Engine4[[#This Row],[Occ RAT °F]])/(tbl_HVAC_Airside_Calc_Engine4[[#This Row],[OAT °F]]-tbl_HVAC_Airside_Calc_Engine4[[#This Row],[Occ RAT °F]])))),$K$121)))) -> 0.2989697927 | AP146: =tbl_HVAC_Airside_Calc_Engine4[[#This Row],[Occ RAT °F]]*(1-tbl_HVAC_Airside_Calc_Engine4[[#This Row],[Occ OA Flow %]])+tbl_HVAC_Airside_Calc_Engine4[[#This Row],[OAT °F]]*tbl_HVAC_Airside_Calc_Engine4[[#This Row],[Occ OA Flow %]] -> 85.16497295 | AQ146: =IF(AND($F$130="yes",$F$131>tbl_HVAC_Airside_Calc_Engine4[[#This Row],[Occ MAT °F]]+$F$132,tbl_HVAC_Airside_Calc_Engine4[[#This Row],[Occ Hr]]>0),"Yes","No") -> No | AR146: =IF(tbl_HVAC_Airside_Calc_Engine4[[#This Row],[Occ Pre-Heat?]]="Yes",1.08*tbl_HVAC_Airside_Calc_Engine4[[#This Row],[Occ SF Flow %]]*$F$120*($F$131-(tbl_HVAC_Airside_Calc_Engine4[[#This Row],[Occ MAT °F]]+$F$132))/1000,0) -> 0 | AS146: =IF($O$118="Proposed Trend Data", IF(ISBLANK(tbl_HVAC_Airside_Calc_Engine4[[#This Row],[Occ SF Flow (%), Prop Trend]]),MEDIAN(MIN(tbl_HVAC_Airside_Calc_Engine4[Occ SF Flow (%), Prop Trend]),100%,FORECAST(tbl_HVAC_Airside_Calc_Engine4[[#This Row],[OAT °F]],tbl_HVAC_Airside_Calc_Engine4[Occ SF Flow (%), Prop Trend],tbl_HVAC_Airside_Calc_Engine4[OAT °F])),tbl_HVAC_Airside_Calc_Engine4[[#This Row],[Occ SF Flow (%), Prop Trend]]), IF(AND($F$106="Proposed",$M$65="Enable",$M$68="Sub-Enable",$K$67="Simple Data"),IF(tbl_HVAC_Airside_Calc_Engine4[[#This Row],[OAT °F]]<$O$123,TREND($O$122:$P$122,$O$123:$P$123,MEDIAN(tbl_HVAC_Airside_Calc_Engine4[[#This Row],[OAT °F]],$O$123,$P$123)),TREND($O$120:$P$120,$O$121:$P$121,MEDIAN($O$121,$P$121,tbl_HVAC_Airside_Calc_Engine4[[#This Row],[OAT °F]]))), tbl_HVAC_Airside_Calc_Engine4[[#This Row],[Occ SF Flow %, Base]]+tbl_HVAC_Airside_Calc_Engine4[[#This Row],[Occ Prop Net Fan Flow Adj]])) -> 1 | AT146: =IF(tbl_HVAC_Airside_Calc_Engine4[[#This Row],[OAT °F]]>$F$118,MAX(1.08*$F$120*(tbl_HVAC_Airside_Calc_Engine4[[#This Row],[Occ SF Flow %]]*(tbl_HVAC_Airside_Calc_Engine4[[#This Row],[Occ MAT °F]]-tbl_HVAC_Airside_Calc_Engine4[[#This Row],[Occ SAT °F]])/12000),0),0) -> 272.4353789 | AU146: =IF(AND(tbl_HVAC_Airside_Calc_Engine4[[#This Row],[OAT °F]]<$F$117,tbl_HVAC_Airside_Calc_Engine4[[#This Row],[Occ Hr]]>0),(1.08*$F$120*tbl_HVAC_Airside_Calc_Engine4[[#This Row],[Occ RH Box Flow %]]*(tbl_HVAC_Airside_Calc_Engine4[[#This Row],[Occ RH VAV DAT °F]]-IF(tbl_HVAC_Airside_Calc_Engine4[[#This Row],[Occ Pre-Heat?]]="yes",$F$131,MIN(tbl_HVAC_Airside_Calc_Engine4[[#This Row],[Occ SAT °F]],tbl_HVAC_Airside_Calc_Engine4[[#This Row],[Occ MAT °F]])))/10^3),0) -> 0 | AV146: =tbl_HVAC_Airside_Calc_Engine4[[#This Row],[Occ Pre-Heat Load, kBtu]]+tbl_HVAC_Airside_Calc_Engine4[[#This Row],[Occ Re-Heating Load, kBtu]] -> 0 | AW146: =tbl_HVAC_Airside_Calc_Engine4[[#This Row],[Occ SF Flow %]]*$F$125 -> 1 | AX146: =IF(AND(tbl_HVAC_Airside_Calc_Engine4[[#This Row],[Occ SF Flow %]]>0,tbl_HVAC_Airside_Calc_Engine4[[#This Row],[Occ Hr]]>0),$F$119*0.746/$W$109/IF($F$121="VFD",$X$110,1)*(($Z$107+$Z$108*tbl_HVAC_Airside_Calc_Engine4[[#This Row],[Occ SF Flow %]]+$Z$109*tbl_HVAC_Airside_Calc_Engine4[[#This Row],[Occ SF Flow %]]^2+$Z$110*tbl_HVAC_Airside_Calc_Engine4[[#This Row],[Occ SF Flow %]]^3) ),0) -> 0 | AY146: =IF(AND(tbl_HVAC_Airside_Calc_Engine4[[#This Row],[Occ RF Flow %]]>0,tbl_HVAC_Airside_Calc_Engine4[[#This Row],[Occ Hr]]>0),$F$122*0.746/$W$110/IF($F$124="VFD",$X$110,1)*($AB$107+$AB$108*tbl_HVAC_Airside_Calc_Engine4[[#This Row],[Occ RF Flow %]]+$AB$109*tbl_HVAC_Airside_Calc_Engine4[[#This Row],[Occ RF Flow %]]^2+$AB$110*tbl_HVAC_Airside_Calc_Engine4[[#This Row],[Occ RF Flow %]]^3),0) -> 0 | AZ146: =tbl_HVAC_Airside_Calc_Engine4[[#This Row],[Occ SF kW]]+tbl_HVAC_Airside_Calc_Engine4[[#This Row],[Occ RF kW]] -> 0 | BA146: =IF(tbl_HVAC_Airside_Calc_Engine4[[#This Row],[Occ Hr]]>0,$F$113*tbl_HVAC_Airside_Calc_Engine4[[#This Row],[Occ Cooling Load, Ton]]+IF($F$114="Electric",(tbl_HVAC_Airside_Calc_Engine4[[#This Row],[Occ Total Heating Load, kBtu]])/$F$116,0),0) -> 0 | BB146: =IFERROR(IF($F$49="Baseline Trend Data", IF(ISBLANK(tbl_HVAC_Airside_Calc_Engine4[[#This Row],[UnOcc SAT (°F), Base Trend]]),MEDIAN(MIN(tbl_HVAC_Airside_Calc_Engine4[UnOcc SAT (°F), Base Trend]),MAX(tbl_HVAC_Airside_Calc_Engine4[UnOcc SAT (°F), Base Trend]),FORECAST(tbl_HVAC_Airside_Calc_Engine4[[#This Row],[OAT °F]],tbl_HVAC_Airside_Calc_Engine4[UnOcc SAT (°F), Base Trend],tbl_HVAC_Airside_Calc_Engine4[OAT °F])),tbl_HVAC_Airside_Calc_Engine4[[#This Row],[UnOcc SAT (°F), Base Trend]]), FORECAST(MEDIAN($F$58,$G$58,tbl_HVAC_Airside_Calc_Engine4[[#This Row],[OAT °F]]),$F$57:$G$57,$F$58:$G$58)),0) -> 55 | BC146: =IF($M$47 = "Disable",tbl_HVAC_Airside_Calc_Engine4[[#This Row],[Unocc Base SAT °F]],IFERROR(IF($K$49="Proposed Trend Data", IF(ISBLANK(tbl_HVAC_Airside_Calc_Engine4[[#This Row],[UnOcc SAT (°F), Prop Trend]]),MEDIAN(MIN(tbl_HVAC_Airside_Calc_Engine4[UnOcc SAT (°F), Prop Trend]),MAX(tbl_HVAC_Airside_Calc_Engine4[UnOcc SAT (°F), Prop Trend]),FORECAST(tbl_HVAC_Airside_Calc_Engine4[[#This Row],[OAT °F]],tbl_HVAC_Airside_Calc_Engine4[UnOcc SAT (°F), Prop Trend],tbl_HVAC_Airside_Calc_Engine4[OAT °F])),tbl_HVAC_Airside_Calc_Engine4[[#This Row],[UnOcc SAT (°F), Prop Trend]]), FORECAST(MEDIAN($K$58,$L$58,tbl_HVAC_Airside_Calc_Engine4[[#This Row],[OAT °F]]),$K$57:$L$57,$K$58:$L$58)),0)) -> 55 | BD146: =tbl_HVAC_Airside_Calc_Engine4[[#This Row],[Unocc SAT °F]]-tbl_HVAC_Airside_Calc_Engine4[[#This Row],[Unocc Base SAT °F]] -> 0 | BE146: =IFERROR(IF($F$105="Baseline",tbl_HVAC_Airside_Calc_Engine4[[#This Row],[Unocc Base SAT °F]],tbl_HVAC_Airside_Calc_Engine4[[#This Row],[Unocc Prop SAT °F]]),0) -> 55 | BF146: =IF($K$128="Proposed Trend Data",IF(ISBLANK(tbl_HVAC_Airside_Calc_Engine4[[#This Row],[UnOcc RH Box VAV Flow (%), Prop Trend]]),MEDIAN(tbl_HVAC_Airside_Calc_Engine4[[#This Row],[Unocc SF Flow %]],MIN(tbl_HVAC_Airside_Calc_Engine4[UnOcc RH Box VAV Flow (%), Prop Trend]),FORECAST(tbl_HVAC_Airside_Calc_Engine4[[#This Row],[OAT °F]],tbl_HVAC_Airside_Calc_Engine4[UnOcc RH Box VAV Flow (%), Prop Trend],tbl_HVAC_Airside_Calc_Engine4[OAT °F])),tbl_HVAC_Airside_Calc_Engine4[[#This Row],[UnOcc RH Box VAV Flow (%), Prop Trend]]), IF(AND($K$128="Auto Calc",$M$65="Enable",$M$75="Sub-Enable"),tbl_HVAC_Airside_Calc_Engine4[[#This Row],[Unocc SF Flow %]]*tbl_HVAC_Airside_Calc_Engine4[[#This Row],[Unocc RH to SF Ratio, Base]], tbl_HVAC_Airside_Calc_Engine4[[#This Row],[Unocc RH Box Flow %, Base]]+tbl_HVAC_Airside_Calc_Engine4[[#This Row],[Unocc Prop Fan Flow Adj (Tempered Cooling)]]+IFERROR(( tbl_HVAC_Airside_Calc_Engine4[[#This Row],[Unocc RH Box Flow %, Base]]-tbl_HVAC_Airside_Calc_Engine4[[#This Row],[Unocc Tempered Cooling Flow %, Base]]-tbl_HVAC_Airside_Calc_Engine4[[#This Row],[Unocc Heating Only Flow %, Base]])/tbl_HVAC_Airside_Calc_Engine4[[#This Row],[Unocc SF Flow %, Base]],0)*tbl_HVAC_Airside_Calc_Engine4[[#This Row],[Unocc Prop Fan Flow Adj (Cooling Only)]])) -> 0.3 | BG146: =IF($K$128="Proposed Trend Data", IF(ISBLANK(tbl_HVAC_Airside_Calc_Engine4[[#This Row],[UnOcc RH VAV DAT (°F), Prop Trend]]),MEDIAN(tbl_HVAC_Airside_Calc_Engine4[[#This Row],[Unocc Prop SAT °F]],MAX(tbl_HVAC_Airside_Calc_Engine4[UnOcc RH VAV DAT (°F), Prop Trend]),FORECAST(tbl_HVAC_Airside_Calc_Engine4[[#This Row],[OAT °F]],tbl_HVAC_Airside_Calc_Engine4[UnOcc RH VAV DAT (°F), Prop Trend],tbl_HVAC_Airside_Calc_Engine4[OAT °F])),tbl_HVAC_Airside_Calc_Engine4[[#This Row],[UnOcc RH VAV DAT (°F), Prop Trend]]), tbl_HVAC_Airside_Calc_Engine4[[#This Row],[Unocc RH DAT °F Adj]]) -> 55 | BH146: =IF($O$130="Baseline Trend Data", IF(ISBLANK(tbl_HVAC_Airside_Calc_Engine4[[#This Row],[UnOcc RAT (°F), Base Trend]]),MEDIAN(MIN(tbl_HVAC_Airside_Calc_Engine4[UnOcc RAT (°F), Base Trend]),MAX(tbl_HVAC_Airside_Calc_Engine4[UnOcc RAT (°F), Base Trend]),FORECAST(tbl_HVAC_Airside_Calc_Engine4[[#This Row],[OAT °F]], tbl_HVAC_Airside_Calc_Engine4[UnOcc RAT (°F), Base Trend],tbl_HVAC_Airside_Calc_Engine4[OAT °F])),tbl_HVAC_Airside_Calc_Engine4[[#This Row],[UnOcc RAT (°F), Base Trend]]), IF($O$130="Proposed Trend Data",IF(ISBLANK(tbl_HVAC_Airside_Calc_Engine4[[#This Row],[UnOcc RAT (°F), Prop Trend]]),MEDIAN(MIN(tbl_HVAC_Airside_Calc_Engine4[UnOcc RAT (°F), Prop Trend]),MAX(tbl_HVAC_Airside_Calc_Engine4[UnOcc RAT (°F), Prop Trend]),FORECAST(tbl_HVAC_Airside_Calc_Engine4[[#This Row],[OAT °F]],tbl_HVAC_Airside_Calc_Engine4[UnOcc RAT (°F), Prop Trend],tbl_HVAC_Airside_Calc_Engine4[OAT °F])),tbl_HVAC_Airside_Calc_Engine4[[#This Row],[UnOcc RAT (°F), Prop Trend]]), MEDIAN($P$133,$O$133,tbl_HVAC_Airside_Calc_Engine4[[#This Row],[OAT °F]]))) -> 75 | BI146: =MEDIAN(0,1,IF($K$119="Baseline Trend Data", IF(ISBLANK(tbl_HVAC_Airside_Calc_Engine4[[#This Row],[UnOcc OA Flow (%), Base Trend]]),MEDIAN(MIN(tbl_HVAC_Airside_Calc_Engine4[UnOcc OA Flow (%), Base Trend]),MAX(tbl_HVAC_Airside_Calc_Engine4[UnOcc OA Flow (%), Base Trend]),FORECAST(tbl_HVAC_Airside_Calc_Engine4[[#This Row],[OAT °F]],tbl_HVAC_Airside_Calc_Engine4[UnOcc OA Flow (%), Base Trend],tbl_HVAC_Airside_Calc_Engine4[OAT °F])),tbl_HVAC_Airside_Calc_Engine4[[#This Row],[UnOcc OA Flow (%), Base Trend]]), IF($K$119="Proposed Trend Data",IF(ISBLANK(tbl_HVAC_Airside_Calc_Engine4[[#This Row],[Unocc OA Flow (%), Prop Trend]]),MEDIAN(MIN(tbl_HVAC_Airside_Calc_Engine4[Unocc OA Flow (%), Prop Trend]),MAX(tbl_HVAC_Airside_Calc_Engine4[Unocc OA Flow (%), Prop Trend]),FORECAST(tbl_HVAC_Airside_Calc_Engine4[[#This Row],[OAT °F]],tbl_HVAC_Airside_Calc_Engine4[Unocc OA Flow (%), Prop Trend],tbl_HVAC_Airside_Calc_Engine4[OAT °F])),tbl_HVAC_Airside_Calc_Engine4[[#This Row],[Unocc OA Flow (%), Prop Trend]]), IFERROR(IF((tbl_HVAC_Airside_Calc_Engine4[[#This Row],[OAT °F]]>$K$124),$K$123,MAX($K$123,MIN($L$123,(tbl_HVAC_Airside_Calc_Engine4[[#This Row],[Unocc SAT °F]]-tbl_HVAC_Airside_Calc_Engine4[[#This Row],[UnOcc RAT °F]])/(tbl_HVAC_Airside_Calc_Engine4[[#This Row],[OAT °F]]-tbl_HVAC_Airside_Calc_Engine4[[#This Row],[UnOcc RAT °F]])))),$K$123)))) -> 0 | BJ146: =tbl_HVAC_Airside_Calc_Engine4[[#This Row],[UnOcc RAT °F]]*(1-tbl_HVAC_Airside_Calc_Engine4[[#This Row],[Unocc OA Flow %]])+tbl_HVAC_Airside_Calc_Engine4[[#This Row],[OAT °F]]*tbl_HVAC_Airside_Calc_Engine4[[#This Row],[Unocc OA Flow %]] -> 75 | BK146: =IF(AND($F$130="yes",$F$131>tbl_HVAC_Airside_Calc_Engine4[[#This Row],[UnOcc MAT °F]]+$F$132,tbl_HVAC_Airside_Calc_Engine4[[#This Row],[UnOcc Hr]]>0),"Yes","No") -> No | BL146: =IF(tbl_HVAC_Airside_Calc_Engine4[[#This Row],[Unocc Pre-Heat?]]="Yes",1.08*tbl_HVAC_Airside_Calc_Engine4[[#This Row],[Unocc SF Flow %]]*$F$120*($F$131-(tbl_HVAC_Airside_Calc_Engine4[[#This Row],[UnOcc MAT °F]]+$F$132))/1000,0) -> 0 | BM146: =IF($O$118="Proposed Trend Data", IF(ISBLANK(tbl_HVAC_Airside_Calc_Engine4[[#This Row],[Unocc SF Flow (%), Prop Trend]]),MEDIAN(MIN(tbl_HVAC_Airside_Calc_Engine4[Unocc SF Flow (%), Prop Trend]),100%,FORECAST(tbl_HVAC_Airside_Calc_Engine4[[#This Row],[OAT °F]],tbl_HVAC_Airside_Calc_Engine4[Unocc SF Flow (%), Prop Trend],tbl_HVAC_Airside_Calc_Engine4[OAT °F])),tbl_HVAC_Airside_Calc_Engine4[[#This Row],[Unocc SF Flow (%), Prop Trend]]), IF(AND($F$106="Proposed",$M$65="Enable",$M$75="Sub-Enable",$K$67="Simple Data"),IF(tbl_HVAC_Airside_Calc_Engine4[[#This Row],[OAT °F]]<$O$128,TREND($O$127:$P$127,$O$128:$P$128,MEDIAN(tbl_HVAC_Airside_Calc_Engine4[[#This Row],[OAT °F]],$O$128,$P$128)),TREND($O$125:$P$125,$O$126:$P$126,MEDIAN($O$126,$P$126,tbl_HVAC_Airside_Calc_Engine4[[#This Row],[OAT °F]]))), tbl_HVAC_Airside_Calc_Engine4[[#This Row],[Unocc SF Flow %, Base]]+tbl_HVAC_Airside_Calc_Engine4[[#This Row],[Unocc Prop Net Fan Flow Adj]])) -> 0.3 | BN146: =IF(tbl_HVAC_Airside_Calc_Engine4[[#This Row],[OAT °F]]>$F$118,MAX(1.08*$F$120*(tbl_HVAC_Airside_Calc_Engine4[[#This Row],[Unocc SF Flow %]]*(tbl_HVAC_Airside_Calc_Engine4[[#This Row],[UnOcc MAT °F]]-tbl_HVAC_Airside_Calc_Engine4[[#This Row],[Unocc SAT °F]])/12000),0),0) -> 54.18908467 | BO146: =IF(AND(tbl_HVAC_Airside_Calc_Engine4[[#This Row],[UnOcc Hr]]>0,tbl_HVAC_Airside_Calc_Engine4[[#This Row],[OAT °F]]<$F$117),(1.08*$F$120*tbl_HVAC_Airside_Calc_Engine4[[#This Row],[Unocc RH Box Flow %]]*(tbl_HVAC_Airside_Calc_Engine4[[#This Row],[Unocc RH VAV DAT °F]]-IF(tbl_HVAC_Airside_Calc_Engine4[[#This Row],[Unocc Pre-Heat?]]="yes",$F$131,MIN(tbl_HVAC_Airside_Calc_Engine4[[#This Row],[Unocc SAT °F]],tbl_HVAC_Airside_Calc_Engine4[[#This Row],[UnOcc MAT °F]])))/10^3),0) -> 0 | BP146: =tbl_HVAC_Airside_Calc_Engine4[[#This Row],[Unocc Pre-Heat Load, kBtu]]+tbl_HVAC_Airside_Calc_Engine4[[#This Row],[Unocc Re-Heating Load, kBtu]] -> 0 | BQ146: =tbl_HVAC_Airside_Calc_Engine4[[#This Row],[Unocc SF Flow %]]*$F$125 -> 0.3 | BR146: =IF(AND(tbl_HVAC_Airside_Calc_Engine4[[#This Row],[Unocc SF Flow %]]>0,tbl_HVAC_Airside_Calc_Engine4[[#This Row],[UnOcc Hr]]>0),$F$119*0.746/$W$109/IF($F$121="VFD",$X$110,1)*(($Z$107+$Z$108*tbl_HVAC_Airside_Calc_Engine4[[#This Row],[Unocc SF Flow %]]+$Z$109*tbl_HVAC_Airside_Calc_Engine4[[#This Row],[Unocc SF Flow %]]^2+$Z$110*tbl_HVAC_Airside_Calc_Engine4[[#This Row],[Unocc SF Flow %]]^3) ),0) -> 0 | BS146: =IF(AND(tbl_HVAC_Airside_Calc_Engine4[[#This Row],[Unocc RF Flow %]]>0,tbl_HVAC_Airside_Calc_Engine4[[#This Row],[UnOcc Hr]]>0),$F$122*0.746/$W$110/IF($F$124="VFD",$X$110,1)*($AB$107+$AB$108*tbl_HVAC_Airside_Calc_Engine4[[#This Row],[Unocc RF Flow %]]+$AB$109*tbl_HVAC_Airside_Calc_Engine4[[#This Row],[Unocc RF Flow %]]^2+$AB$110*tbl_HVAC_Airside_Calc_Engine4[[#This Row],[Unocc RF Flow %]]^3),0) -> 0 | BT146: =tbl_HVAC_Airside_Calc_Engine4[[#This Row],[Unocc SF kW]]+tbl_HVAC_Airside_Calc_Engine4[[#This Row],[Unocc RF kW]] -> 0 | BU146: =IF(tbl_HVAC_Airside_Calc_Engine4[[#This Row],[UnOcc Hr]]>0,$F$113*tbl_HVAC_Airside_Calc_Engine4[[#This Row],[Unocc Cooling Load, Ton]]+IF($F$114="Electric",(tbl_HVAC_Airside_Calc_Engine4[[#This Row],[Unocc Total Heating Load, kBtu]])/$F$116,0),0) -> 0 | BV146: =tbl_HVAC_Airside_Calc_Engine4[[#This Row],[Occ Hr]]*(tbl_HVAC_Airside_Calc_Engine4[[#This Row],[Occ SF kW]]+tbl_HVAC_Airside_Calc_Engine4[[#This Row],[Occ RF kW]])+tbl_HVAC_Airside_Calc_Engine4[[#This Row],[UnOcc Hr]]*(tbl_HVAC_Airside_Calc_Engine4[[#This Row],[Unocc SF kW]]+tbl_HVAC_Airside_Calc_Engine4[[#This Row],[Unocc RF kW]]) -> 0 | BW146: =tbl_HVAC_Airside_Calc_Engine4[[#This Row],[Occ Load kW]]*tbl_HVAC_Airside_Calc_Engine4[[#This Row],[Occ Hr]]+tbl_HVAC_Airside_Calc_Engine4[[#This Row],[Unocc Load kW]]*tbl_HVAC_Airside_Calc_Engine4[[#This Row],[UnOcc Hr]] -> 0 | BX146: =IF($F$114="Gas",(tbl_HVAC_Airside_Calc_Engine4[[#This Row],[Occ Pre-Heat Load, kBtu]]+tbl_HVAC_Airside_Calc_Engine4[[#This Row],[Occ Re-Heating Load, kBtu]])/100/$F$115*tbl_HVAC_Airside_Calc_Engine4[[#This Row],[Occ Hr]]+(tbl_HVAC_Airside_Calc_Engine4[[#This Row],[Unocc Pre-Heat Load, kBtu]]+tbl_HVAC_Airside_Calc_Engine4[[#This Row],[Unocc Re-Heating Load, kBtu]])/100/$F$115*tbl_HVAC_Airside_Calc_Engine4[[#This Row],[UnOcc Hr]],0) -> 0 | BY146: =MEDIAN(0,1,IF($F$31="Baseline Trend Data",IF(ISBLANK(tbl_HVAC_Airside_Calc_Engine4[[#This Row],[Occ OA Flow (%), Base Trend]]),MEDIAN(MIN(tbl_HVAC_Airside_Calc_Engine4[Occ OA Flow (%), Base Trend]),MAX(tbl_HVAC_Airside_Calc_Engine4[Occ OA Flow (%), Base Trend]),FORECAST(tbl_HVAC_Airside_Calc_Engine4[[#This Row],[OAT °F]],tbl_HVAC_Airside_Calc_Engine4[Occ OA Flow (%), Base Trend],tbl_HVAC_Airside_Calc_Engine4[OAT °F])),tbl_HVAC_Airside_Calc_Engine4[[#This Row],[Occ OA Flow (%), Base Trend]]), IFERROR(IF((tbl_HVAC_Airside_Calc_Engine4[[#This Row],[OAT °F]]>$F$35),$F$34,MAX($F$34,MIN($G$34,(tbl_HVAC_Airside_Calc_Engine4[[#This Row],[Occ Base SAT °F]]-tbl_HVAC_Airside_Calc_Engine4[[#This Row],[Occ RAT °F, Base]])/(tbl_HVAC_Airside_Calc_Engine4[[#This Row],[OAT °F]]-tbl_HVAC_Airside_Calc_Engine4[[#This Row],[Occ RAT °F, Base]])))),$F$34))) -> 0.2989697927 | BZ146: =MIN(100%,IF($F$67="Baseline Trend Data", IF(ISBLANK(tbl_HVAC_Airside_Calc_Engine4[[#This Row],[Occ SF Flow (%), Base Trend]]),MEDIAN(MIN(tbl_HVAC_Airside_Calc_Engine4[Occ SF Flow (%), Base Trend]),1,FORECAST(tbl_HVAC_Airside_Calc_Engine4[[#This Row],[OAT °F]],tbl_HVAC_Airside_Calc_Engine4[Occ SF Flow (%), Base Trend],tbl_HVAC_Airside_Calc_Engine4[OAT °F])),tbl_HVAC_Airside_Calc_Engine4[[#This Row],[Occ SF Flow (%), Base Trend]]), IF(tbl_HVAC_Airside_Calc_Engine4[[#This Row],[OAT °F]]<$F$73,TREND($F$72:$G$72,$F$73:$G$73,MEDIAN(tbl_HVAC_Airside_Calc_Engine4[[#This Row],[OAT °F]],$F$73,$G$73)), TREND($F$70:$G$70,$F$71:$G$71,MEDIAN($F$71,$G$71,tbl_HVAC_Airside_Calc_Engine4[[#This Row],[OAT °F]]))))) -> 1 | CA146: =MAX(0,MIN(100%,IF($F$82="Baseline Trend Data", IF(ISBLANK(tbl_HVAC_Airside_Calc_Engine4[[#This Row],[Occ RH Box VAV Flow (%), Base Trend]]),MEDIAN(MIN(tbl_HVAC_Airside_Calc_Engine4[Occ RH Box VAV Flow (%), Base Trend]),tbl_HVAC_Airside_Calc_Engine4[[#This Row],[Occ SF Flow %, Base]],FORECAST(tbl_HVAC_Airside_Calc_Engine4[[#This Row],[OAT °F]],tbl_HVAC_Airside_Calc_Engine4[Occ RH Box VAV Flow (%), Base Trend],tbl_HVAC_Airside_Calc_Engine4[OAT °F])),tbl_HVAC_Airside_Calc_Engine4[[#This Row],[Occ RH Box VAV Flow (%), Base Trend]]), tbl_HVAC_Airside_Calc_Engine4[[#This Row],[Occ SF Flow %, Base]]*$F$84))) -> 1 | CB146: =IFERROR(tbl_HVAC_Airside_Calc_Engine4[[#This Row],[Occ RH Box Flow %, Base]]/tbl_HVAC_Airside_Calc_Engine4[[#This Row],[Occ SF Flow %, Base]],0) -> 1 | CC146: =IF($F$82="Baseline Trend Data", IF(ISBLANK(tbl_HVAC_Airside_Calc_Engine4[[#This Row],[Occ RH VAV DAT (°F), Base Trend]]),MEDIAN(tbl_HVAC_Airside_Calc_Engine4[[#This Row],[Occ Base SAT °F]],MAX(tbl_HVAC_Airside_Calc_Engine4[Occ RH VAV DAT (°F), Base Trend]),FORECAST(tbl_HVAC_Airside_Calc_Engine4[[#This Row],[OAT °F]],tbl_HVAC_Airside_Calc_Engine4[Occ RH VAV DAT (°F), Base Trend],tbl_HVAC_Airside_Calc_Engine4[OAT °F])),tbl_HVAC_Airside_Calc_Engine4[[#This Row],[Occ RH VAV DAT (°F), Base Trend]]), MIN($F$90,tbl_HVAC_Airside_Calc_Engine4[[#This Row],[Occ Base SAT °F]]+MAX(0,($F$90-tbl_HVAC_Airside_Calc_Engine4[[#This Row],[Occ Base SAT °F]])*(($F$85-tbl_HVAC_Airside_Calc_Engine4[[#This Row],[OAT °F]])/($F$85-IF($F$88="yes",$F$89,$F$87)))))) -> 55 | CD146: =IF($F$96="Baseline Trend Data", IF(ISBLANK(tbl_HVAC_Airside_Calc_Engine4[[#This Row],[ Occ RAT (°F), Base Trend]]),MEDIAN(MIN($O$140:$O$245),MAX($O$140:$O$245),FORECAST(tbl_HVAC_Airside_Calc_Engine4[[#This Row],[OAT °F]],$O$140:$O$245,tbl_HVAC_Airside_Calc_Engine4[OAT °F])),tbl_HVAC_Airside_Calc_Engine4[[#This Row],[ Occ RAT (°F), Base Trend]]), MEDIAN($G$94,$F$94,tbl_HVAC_Airside_Calc_Engine4[[#This Row],[OAT °F]])) -> 75 | CE146: =IF(tbl_HVAC_Airside_Calc_Engine4[[#This Row],[Occ DAT °F, Base]]>$F$94,tbl_HVAC_Airside_Calc_Engine4[[#This Row],[Occ RH Box Flow %, Base]],0) -> 0 | CF146: =tbl_HVAC_Airside_Calc_Engine4[[#This Row],[Occ SF Flow %, Base]]-tbl_HVAC_Airside_Calc_Engine4[[#This Row],[Occ Heating Only Flow %, Base]]-tbl_HVAC_Airside_Calc_Engine4[[#This Row],[Occ Tempered Cooling Flow %, Base]] -> 1 | CG146: =IF(AND(tbl_HVAC_Airside_Calc_Engine4[[#This Row],[Occ DAT °F, Base]]<=$F$94,tbl_HVAC_Airside_Calc_Engine4[[#This Row],[Occ DAT °F, Base]]>tbl_HVAC_Airside_Calc_Engine4[[#This Row],[Occ Base SAT °F]]),tbl_HVAC_Airside_Calc_Engine4[[#This Row],[Occ RH Box Flow %, Base]],0) -> 0 | CH146: =SUM(tbl_HVAC_Airside_Calc_Engine4[[#This Row],[Occ Heating Only Flow %, Base]:[Occ Tempered Cooling Flow %, Base]]) -> 1 | CI146: =1.08*tbl_HVAC_Airside_Calc_Engine4[[#This Row],[Occ Heating Only Flow %, Base]]*$F$120*(tbl_HVAC_Airside_Calc_Engine4[[#This Row],[Occ DAT °F, Base]]-$F$94)/1000 -> 0 | CJ146: =1.08*tbl_HVAC_Airside_Calc_Engine4[[#This Row],[Occ Cooling Only Flow %, Base]]*$F$120*($G$94-tbl_HVAC_Airside_Calc_Engine4[[#This Row],[Occ Base SAT °F]])/1000 -> 2167.563387 | CK146: =1.08*tbl_HVAC_Airside_Calc_Engine4[[#This Row],[Occ Tempered Cooling Flow %, Base]]*$F$120*($F$94-tbl_HVAC_Airside_Calc_Engine4[[#This Row],[Occ DAT °F, Base]])/1000 -> 0 | CL146: =IF(AND($F$106="Proposed",$M$65="Enable",$M$68="Sub-Enable"),IFERROR(tbl_HVAC_Airside_Calc_Engine4[[#This Row],[Occ SF Flow %]]/tbl_HVAC_Airside_Calc_Engine4[[#This Row],[Occ SF Flow %, Base]],0),100%) -> 1 | CM146: =IF($F$126="Constant Air Volume",0%,IFERROR((tbl_HVAC_Airside_Calc_Engine4[[#This Row],[Occ Space Cooling Only Load kBtu/h, Base]]*1000/(1.08*($P$132-tbl_HVAC_Airside_Calc_Engine4[[#This Row],[Occ SAT °F]]))-tbl_HVAC_Airside_Calc_Engine4[[#This Row],[Occ Cooling Only Flow %, Base]]*$F$120)/$F$120,0)) -> 0 | CN146: =IF($F$126="Constant Air Volume",0%,IFERROR(MAX(0,tbl_HVAC_Airside_Calc_Engine4[[#This Row],[Occ Space Tempered Cooling Load kBtu/h, Base]]*1000/(1.08*($P$132-tbl_HVAC_Airside_Calc_Engine4[[#This Row],[Occ RH VAV DAT °F]]))-tbl_HVAC_Airside_Calc_Engine4[[#This Row],[Occ Tempered Cooling Flow %, Base]]*$F$120)/$F$120,0)) -> 0 | CO146: =IF($F$126="Constant Air Volume",0%,tbl_HVAC_Airside_Calc_Engine4[[#This Row],[Occ Prop Fan Flow Adj (Cooling Only)]]+tbl_HVAC_Airside_Calc_Engine4[[#This Row],[Occ Prop Fan Flow Adj (Tempered Cooling)]]) -> 0 | CP146: =MAX(IF(tbl_HVAC_Airside_Calc_Engine4[[#This Row],[Occ Space Heating Only Load kBtu/h, Base]]>0,tbl_HVAC_Airside_Calc_Engine4[[#This Row],[Occ Space Heating Only Load kBtu/h, Base]]*1000/(1.08*tbl_HVAC_Airside_Calc_Engine4[[#This Row],[Occ Heating Only Flow %, Base]]*tbl_HVAC_Airside_Calc_Engine4[[#This Row],[Occ SF Manual Prop Airflow Adj to Base Ratio]]*$F$120)+$O$132,IF(tbl_HVAC_Airside_Calc_Engine4[[#This Row],[Occ Space Tempered Cooling Load kBtu/h, Base]]>0,$O$132-tbl_HVAC_Airside_Calc_Engine4[[#This Row],[Occ Space Tempered Cooling Load kBtu/h, Base]]*1000/(1.08*tbl_HVAC_Airside_Calc_Engine4[[#This Row],[Occ Tempered Cooling Flow %, Base]]*tbl_HVAC_Airside_Calc_Engine4[[#This Row],[Occ SF Manual Prop Airflow Adj to Base Ratio]]*$F$120),tbl_HVAC_Airside_Calc_Engine4[[#This Row],[Occ DAT °F, Base]])),tbl_HVAC_Airside_Calc_Engine4[[#This Row],[Occ SAT °F]]) -> 55 | CQ146: =MEDIAN(0,1,IF($F$31="Baseline Trend Data",IF(ISBLANK(tbl_HVAC_Airside_Calc_Engine4[[#This Row],[UnOcc OA Flow (%), Base Trend]]),MEDIAN(MIN(tbl_HVAC_Airside_Calc_Engine4[UnOcc OA Flow (%), Base Trend]),MAX(tbl_HVAC_Airside_Calc_Engine4[UnOcc OA Flow (%), Base Trend]),FORECAST(tbl_HVAC_Airside_Calc_Engine4[[#This Row],[OAT °F]],tbl_HVAC_Airside_Calc_Engine4[UnOcc OA Flow (%), Base Trend],tbl_HVAC_Airside_Calc_Engine4[OAT °F])),tbl_HVAC_Airside_Calc_Engine4[[#This Row],[UnOcc OA Flow (%), Base Trend]]), IFERROR(IF((tbl_HVAC_Airside_Calc_Engine4[[#This Row],[OAT °F]]>$F$40),$F$39,MAX($F$39,MIN($G$39,(tbl_HVAC_Airside_Calc_Engine4[[#This Row],[Unocc Base SAT °F]]-tbl_HVAC_Airside_Calc_Engine4[[#This Row],[Unocc RAT °F, Base]])/(tbl_HVAC_Airside_Calc_Engine4[[#This Row],[OAT °F]]-tbl_HVAC_Airside_Calc_Engine4[[#This Row],[Unocc RAT °F, Base]])))),$F$39))) -> 0 | CR146: =MIN(100%,IF($F$67="Baseline Trend Data", IF(ISBLANK(tbl_HVAC_Airside_Calc_Engine4[[#This Row],[UnOcc SF Flow (%), Base Trend]]),MEDIAN(MIN(tbl_HVAC_Airside_Calc_Engine4[UnOcc SF Flow (%), Base Trend]),1,FORECAST(tbl_HVAC_Airside_Calc_Engine4[[#This Row],[OAT °F]],tbl_HVAC_Airside_Calc_Engine4[UnOcc SF Flow (%), Base Trend],tbl_HVAC_Airside_Calc_Engine4[OAT °F])),tbl_HVAC_Airside_Calc_Engine4[[#This Row],[UnOcc SF Flow (%), Base Trend]]), IF(tbl_HVAC_Airside_Calc_Engine4[[#This Row],[OAT °F]]<$F$80,TREND($F$79:$G$79,$F$80:$G$80,MEDIAN(tbl_HVAC_Airside_Calc_Engine4[[#This Row],[OAT °F]],$F$80,$G$80)), TREND($F$77:$G$77,$F$78:$G$78,MEDIAN($F$78,$G$78,tbl_HVAC_Airside_Calc_Engine4[[#This Row],[OAT °F]]))))) -> 0.3 | CS146: =MAX(0,MIN(100%,IF($F$82="Baseline Trend Data", IF(ISBLANK(tbl_HVAC_Airside_Calc_Engine4[[#This Row],[UnOcc RH Box VAV Flow (%), Base Trend]]),MEDIAN(MIN(tbl_HVAC_Airside_Calc_Engine4[UnOcc RH Box VAV Flow (%), Base Trend]),tbl_HVAC_Airside_Calc_Engine4[[#This Row],[Unocc SF Flow %, Base]],FORECAST(tbl_HVAC_Airside_Calc_Engine4[[#This Row],[OAT °F]],tbl_HVAC_Airside_Calc_Engine4[UnOcc RH Box VAV Flow (%), Base Trend],tbl_HVAC_Airside_Calc_Engine4[OAT °F])),tbl_HVAC_Airside_Calc_Engine4[[#This Row],[UnOcc RH Box VAV Flow (%), Base Trend]]), tbl_HVAC_Airside_Calc_Engine4[[#This Row],[Unocc SF Flow %, Base]]*$F$84))) -> 0.3 | CT146: =IFERROR(tbl_HVAC_Airside_Calc_Engine4[[#This Row],[Unocc RH Box Flow %, Base]]/tbl_HVAC_Airside_Calc_Engine4[[#This Row],[Unocc SF Flow %, Base]],0) -> 1 | CU146: =IF($F$82="Baseline Trend Data", IF(ISBLANK(tbl_HVAC_Airside_Calc_Engine4[[#This Row],[UnOcc RH VAV DAT (°F), Base Trend]]),MEDIAN(tbl_HVAC_Airside_Calc_Engine4[[#This Row],[Unocc Base SAT °F]],MAX(tbl_HVAC_Airside_Calc_Engine4[UnOcc RH VAV DAT (°F), Base Trend]),FORECAST(tbl_HVAC_Airside_Calc_Engine4[[#This Row],[OAT °F]],tbl_HVAC_Airside_Calc_Engine4[UnOcc RH VAV DAT (°F), Base Trend],tbl_HVAC_Airside_Calc_Engine4[OAT °F])),tbl_HVAC_Airside_Calc_Engine4[[#This Row],[UnOcc RH VAV DAT (°F), Base Trend]]), MIN($G$90,tbl_HVAC_Airside_Calc_Engine4[[#This Row],[Unocc Base SAT °F]]+MAX(0,($G$90-tbl_HVAC_Airside_Calc_Engine4[[#This Row],[Unocc Base SAT °F]])*(($G$85-tbl_HVAC_Airside_Calc_Engine4[[#This Row],[OAT °F]])/($G$85-IF($G$88="yes",$G$89,$G$87)))))) -> 55 | CV146: =IF($F$96="Baseline Trend Data", IF(ISBLANK(tbl_HVAC_Airside_Calc_Engine4[[#This Row],[UnOcc RAT (°F), Base Trend]]),MEDIAN(MIN(tbl_HVAC_Airside_Calc_Engine4[UnOcc RAT (°F), Base Trend]),MAX(tbl_HVAC_Airside_Calc_Engine4[UnOcc RAT (°F), Base Trend]),FORECAST(tbl_HVAC_Airside_Calc_Engine4[[#This Row],[OAT °F]],tbl_HVAC_Airside_Calc_Engine4[UnOcc RAT (°F), Base Trend],tbl_HVAC_Airside_Calc_Engine4[OAT °F])),tbl_HVAC_Airside_Calc_Engine4[[#This Row],[UnOcc RAT (°F), Base Trend]]), MEDIAN($G$95,$F$95,tbl_HVAC_Airside_Calc_Engine4[[#This Row],[OAT °F]])) -> 80 | CW146: =IF(tbl_HVAC_Airside_Calc_Engine4[[#This Row],[Unocc DAT °F, Base]]>$F$95,tbl_HVAC_Airside_Calc_Engine4[[#This Row],[Unocc RH Box Flow %, Base]],0) -> 0 | CX146: =tbl_HVAC_Airside_Calc_Engine4[[#This Row],[Unocc SF Flow %, Base]]-tbl_HVAC_Airside_Calc_Engine4[[#This Row],[Unocc Heating Only Flow %, Base]]-tbl_HVAC_Airside_Calc_Engine4[[#This Row],[Unocc Tempered Cooling Flow %, Base]] -> 0.3 | CY146: =IF(AND(tbl_HVAC_Airside_Calc_Engine4[[#This Row],[Unocc DAT °F, Base]]<=$F$95,tbl_HVAC_Airside_Calc_Engine4[[#This Row],[Unocc DAT °F, Base]]>tbl_HVAC_Airside_Calc_Engine4[[#This Row],[Unocc Base SAT °F]]),tbl_HVAC_Airside_Calc_Engine4[[#This Row],[Unocc RH Box Flow %, Base]],0) -> 0 | CZ146: =SUM(tbl_HVAC_Airside_Calc_Engine4[[#This Row],[Unocc Heating Only Flow %, Base]:[Unocc Tempered Cooling Flow %, Base]]) -> 0.3 | DA146: =1.08*tbl_HVAC_Airside_Calc_Engine4[[#This Row],[Unocc Heating Only Flow %, Base]]*$F$120*(tbl_HVAC_Airside_Calc_Engine4[[#This Row],[Unocc DAT °F, Base]]-$F$95)/1000 -> 0 | DB146: =1.08*tbl_HVAC_Airside_Calc_Engine4[[#This Row],[Unocc Cooling Only Flow %, Base]]*$F$120*($G$95-tbl_HVAC_Airside_Calc_Engine4[[#This Row],[Unocc Base SAT °F]])/1000 -> 812.8362701 | DC146: =1.08*tbl_HVAC_Airside_Calc_Engine4[[#This Row],[Unocc Tempered Cooling Flow %, Base]]*$F$120*($F$95-tbl_HVAC_Airside_Calc_Engine4[[#This Row],[Unocc DAT °F, Base]])/1000 -> 0 | DD146: =IF(AND($F$106="Proposed",$M$65="Enable",$M$75="Sub-Enable"),IF(tbl_HVAC_Airside_Calc_Engine4[[#This Row],[Unocc SF Flow %]]/tbl_HVAC_Airside_Calc_Engine4[[#This Row],[Unocc SF Flow %, Base]]=0,1,IFERROR(tbl_HVAC_Airside_Calc_Engine4[[#This Row],[Unocc SF Flow %]]/tbl_HVAC_Airside_Calc_Engine4[[#This Row],[Unocc SF Flow %, Base]],1)),100%) -> 1 | DE146: =IF($F$126="Constant Air Volume",0%,IFERROR((tbl_HVAC_Airside_Calc_Engine4[[#This Row],[Unocc Space Cooling Only Load kBtu/h, Base]]*1000/(1.08*($P$133-tbl_HVAC_Airside_Calc_Engine4[[#This Row],[Unocc SAT °F]]))-tbl_HVAC_Airside_Calc_Engine4[[#This Row],[Unocc Cooling Only Flow %, Base]]*$F$120)/$F$120,0)) -> 0 | DF146: =IF($F$126="Constant Air Volume",0%,IFERROR(MAX(0,tbl_HVAC_Airside_Calc_Engine4[[#This Row],[Unocc Space Tempered Cooling Load kBtu/h, Base]]*1000/(1.08*($P$133-tbl_HVAC_Airside_Calc_Engine4[[#This Row],[Unocc RH VAV DAT °F]]))-tbl_HVAC_Airside_Calc_Engine4[[#This Row],[Unocc Tempered Cooling Flow %, Base]]*$F$120)/$F$120,0)) -> 0 | DG146: =IF($F$126="Constant Air Volume",0%,tbl_HVAC_Airside_Calc_Engine4[[#This Row],[Unocc Prop Fan Flow Adj (Cooling Only)]]+tbl_HVAC_Airside_Calc_Engine4[[#This Row],[Unocc Prop Fan Flow Adj (Tempered Cooling)]]) -> 0 | DH146: =MAX(IF(tbl_HVAC_Airside_Calc_Engine4[[#This Row],[Unocc Space Heating Only Load kBtu/h, Base]]>0,tbl_HVAC_Airside_Calc_Engine4[[#This Row],[Unocc Space Heating Only Load kBtu/h, Base]]*1000/(1.08*tbl_HVAC_Airside_Calc_Engine4[[#This Row],[Unocc Heating Only Flow %, Base]]*tbl_HVAC_Airside_Calc_Engine4[[#This Row],[Unocc SF Manual Prop Airflow Adj to Base Ratio]]*$F$120)+$O$133,IF(tbl_HVAC_Airside_Calc_Engine4[[#This Row],[Unocc Space Tempered Cooling Load kBtu/h, Base]]>0,$O$133-tbl_HVAC_Airside_Calc_Engine4[[#This Row],[Unocc Space Tempered Cooling Load kBtu/h, Base]]*1000/(1.08*tbl_HVAC_Airside_Calc_Engine4[[#This Row],[Unocc Tempered Cooling Flow %, Base]]*tbl_HVAC_Airside_Calc_Engine4[[#This Row],[Unocc SF Manual Prop Airflow Adj to Base Ratio]]*$F$120),tbl_HVAC_Airside_Calc_Engine4[[#This Row],[Unocc DAT °F, Base]])),tbl_HVAC_Airside_Calc_Engine4[[#This Row],[Unocc SAT °F]]) -> 55 | DI146: =(tbl_HVAC_Airside_Calc_Engine4[[#This Row],[Occ Hr]]*(tbl_HVAC_Airside_Calc_Engine4[[#This Row],[Occ Space Cooling Only Load kBtu/h, Base]]+tbl_HVAC_Airside_Calc_Engine4[[#This Row],[Occ Space Tempered Cooling Load kBtu/h, Base]])+tbl_HVAC_Airside_Calc_Engine4[[#This Row],[UnOcc Hr]]*(tbl_HVAC_Airside_Calc_Engine4[[#This Row],[Unocc Space Cooling Only Load kBtu/h, Base]]+tbl_HVAC_Airside_Calc_Engine4[[#This Row],[Unocc Space Tempered Cooling Load kBtu/h, Base]]))/12 -> 0
